{"text_format":"1","workbook":"xlsx","n_sheets":2,"sheets":["0.5. Importera data fr. verktyg","2. Samhällsekonomisk analys"],"not_rendered":{"charts":0,"images":3,"macros":1,"external_links":7,"defined_names":453,"comments":2,"pivot_tables":0},"unopened":[],"bounds":{"document_bytes":16777216,"sheet_cells":100000,"rows_first":2000,"rows_last":500,"rows_between":2000,"halvings":0,"cell_chars":16384,"cell_head_chars":4096},"cells_cut":0,"cells_raw":0,"read":"whole","date_system":"1900"}

{"sheet":"0.5. Importera data fr. verktyg","index":0,"n_rows":1825,"n_cols":52,"rows_kept":1825,"cut":false,"hidden":false,"merged":[[382,18,382,22],[730,18,730,22],[776,18,776,22],[13,36,16,36],[13,43,13,52],[14,48,14,52],[15,48,15,52],[16,43,17,52],[34,18,34,22],[9,0,9,1],[9,3,9,14],[9,18,29,18],[9,24,20,24],[9,30,12,30],[10,0,27,15],[6,0,6,13],[7,0,7,13],[7,18,7,40],[7,43,7,52],[8,0,8,13],[8,43,8,52],[5,0,5,2],[5,3,5,13],[0,0,0,16],[1,0,1,13],[2,0,2,13],[3,0,3,13],[4,0,4,13]]}
["Samlad effektbedömning v 1.17"]
[]
[]
[]
[]
[]
[null,null,null,null,null,null,null,null,null,null,null,null,null,null,null,null,null,null,null,null,null,null,null,null,null,null,null,null,null,null,null,null,null,null,null,null,null,null,null,null,null,"Skadade"]
["Hämta kalkylresultatet från SK46, denna mall läses sedan in i SEB-IT",null,null,null,null,null,null,null,null,null,null,null,null,null,null,null,null,null,"Beräkning av effekter 2040 och nuvärde\n",null,null,null,null,null,null,null,null,null,null,null,null,null,null,null,null,null,null,null,null,null,null,"Döda",{"$f":"V697+Y697+AB697+AE697+AH697+AK697+AN697+AQ697+V707+Y707+AB707+AE707+AH707+AK707+AN707+AQ707","v":-5.3110000000000004E-2},"Beräkning av effektivitetstal\n"]
["En Samlad effektbedömning kan riggas så att kalkylresultat kan klistras in MANUELLT i denna flik och sedan länkas vidare in till andra flikar i den Samlade effektbedömningen.  Här nedan finns möjlighet att klistra in resultat från Samkalk. Observera att en förifylld Samlad effektbedömning är en hjälp om man använt ett visst verktyg. Det som lagts och länkats in i en förifylld SEB ligger oskyddat till skillnad från länkar som ligger i grundmallen. Länkar som lagts in kan av misstag skrivas över (om mallen använts av personer som inte är uppmärksammade på hur mallen fungerar). Ansvaret för att kontrollera att detta inte skett ligger hos den som upprättar SEBen. \n",null,null,null,null,null,null,null,null,null,null,null,null,null,null,null,null,null,null,"Effektbenämning och kortfattad beskrivning","Ex på årlig effekt  för prognosår 1",null,"Nuvärde detaljerat (mnkr)",null,null,"Effektbenämning och kortfattad beskrivning","Ex på årlig effekt  för prognosår 1",null,"Nuvärde detaljerat (mnkr)",null,null,"Effektbenämning och kortfattad beskrivning","Ex på årlig effekt  för prognosår 1",null,"Nuvärde detaljerat (mnkr)",null,null,"Effektbenämning och kortfattad beskrivning","Ex på årlig effekt  för prognosår 1",null,"Nuvärde detaljerat (mnkr)","MAS",{"$f":"V698+Y698+AB698+AE698+AH698+AK698+AN698+AQ698+V708+Y708+AB708+AE708+AH708+AK708+AN708+AQ708","v":-0.29443999999999998},"Beräkna Annuitetskostnad \n"]
[null,null,null,null,null,null,null,null,null,null,null,null,null,null,null,null,null,null,"Till \"RESENÄRER\" i SEB","Restid pb, regionalt tjänste",{"$f":"V550","v":-5.3800000000000002E-3},"Mh/år",{"$f":"-V268","v":57.323120000000003},null,"Till \"GODSTRANSPORTER\" i SEB","Restid pb yrkestrafik",{"$f":"Y514","v":-1.9380000000000001E-2},"Mh/år",{"$f":"-Y256","v":169.29739000000001},null,"Till \"PERSON-TRANSPORTER\" i SEB","Biljettintäkter",{"$f":"AH455+AK455+AN455+AQ455","v":-0.29988999999999999},"mnkr/år",{"$f":"AH107+AK107+AN107+AQ107","v":-6.4377300000000002},null,"Till \"TRAFIKSÄKERHET\" i SEB","Trafiksäkerhet",null,null,{"$f":"B35*(V412+Y412)*V367/V715","v":38.850904941837314},"AS-MAS",{"$f":"V699+Y699+AB699+AE699+AH699+AK699+AN699+AQ699+V709+Y709+AB709+AE709+AH709+AK709+AN709+AQ709","v":-1.3537699999999999},"Kapitaliserad inv.kostnad exkl. skattefaktor",null,null,{"$f":"U763/1.3","v":76.92307692307692},"mnkr",null,"Kapitaliserad inv.kostnad inkl. skattefaktor",{"$f":"U763","v":100},"mnkr"]
["LÄS DETTA INNAN KALKYLRESULTAT HÄMTAS IN:\n\nNär makrot för långväga resor körts se PM (\"PM-Beräkning av KÖ för långväga bilresor vid väganalyser i Samkalk\") på Samkalks webbsida. Observera att dessa effekter ska fyllas i direkt i flik 2, alternativt i SEB-IT.\n\nÖvergripande instruktion för denna flik:\nObservera att en förifylld Samlad effektbedömning är en hjälp om man använt ett visst verktyg. Det som lagts och länkats in i en förifylld SEB ligger oskyddat till skillnad från länkar som ligger i grundmallen. Länkar som lagts in kan av misstag skrivas över (om mallen använts av personer som inte är uppmärksammade på hur mallen fungerar). Ansvaret för att kontrollera att detta inte skett ligger hos den som upprättar SEBen. \n\nFrån SK46 ska följande flikar klistras in i denna flik:\n- \"Diskonterade resultat\" (se cell S35)\n- \"Resultat prognosår\" (se cell S383)\n- \"Lönsamhetsberäkning\" (se cell S731)\n- \"Förutsättningar\" (se cell S777)\n\nFörklaringar av färger på celler:\n - I blåa celler ligger de instruktioner som ska följas.\n-  Svarta celler ska inte fyllas i i denna flik utan läggs in direkt i flik 2. \n - I celler med röda ramar ska data matas in av användaren:\n      * Excelflikarna \"Diskonterade resultat\", \"Resultat \n         prognosår\", \"Lönsamhetsberäkning\" samt \"Förutsättingar\" från Samkalk  SK-\n         fil ska klistras  in enligt instruktion.\n - I gråa celler sker beräkningar i ett mellansteg innan beräkningen länkas vidare till flikarna 2. och 4. i den Samlade effektbedömningen.\n\n",null,null,null,null,null,null,null,null,null,null,null,null,null,null,null,null,null,null,"Restid pb, långväga tjänste",null,null,null,"Manuell inmatn enligt PM om långväga resor pb läggs inte in här utan direkt i flik 2",null,"Restid lastbil (utan släp)",{"$f":"AB514","v":-2.4830000000000001E-2},"Mh/år",{"$f":"-AB256","v":216.83833000000001},null,null,"Fordonskostnader för kollektivtrafik",{"$f":"AH464+AK464+AN464+AQ464","v":-4.199E-2},"mnkr/år",{"$f":"-AH116-AK116-AN116-AQ116","v":1.0786800000000001},null,null,null,null,null,{"$f":"(B36*AB412)+(B37+AE412)*(AB367)/(AB715)","v":16.694882172516788},"EAS",{"$f":"V700+Y700+AB700+AE700+AH700+AK700+AN700+AQ700+V710+Y710+AB710+AE710+AH710+AK710+AN710+AQ710","v":-8.3379499999999993},"Diskonteringsränta hämtas från gälland ASEK",null,null,3.5000000000000003E-2,null,null,"Diskonteringsränta hämtas från gälland ASEK",{"$f":"U1768/100","v":3.5000000000000003E-2}]
[null,null,null,null,null,null,null,null,null,null,null,null,null,null,null,null,null,null,null,"Restid pb, regionalt arbete",{"$f":"V572","v":-4.4810000000000003E-2},"Mh/år",{"$f":"-V274","v":142.17339999999999},null,null,"Restid lastbil (släp)",{"$f":"AE514","v":-1.448E-2},"Mh/år",{"$f":"-AE256","v":126.41621000000001},null,null,"Moms på biljettintäkter",{"$f":"AH465+AK465+AN465+AQ465","v":-1.6979999999999999E-2},"mnkr/år",{"$f":"-AH117-AK117-AN117-AQ117","v":0.3644},null,"Till \"KLIMAT\" i SEB","CO2-ekvivalenter",{"$f":"V675+Y675+AB675+AE675+AH675+AK675+AQ675","v":-9.4480000000000008E-2},"kton/år",{"$f":"-V340-Y340-AB340-AE340-AH340-AK340-AN340-AQ340","v":20.63522},null,null,"Använd Kalkylperiod i aktuell kalkyl",null,null,{"$f":"'2. Samhällsekonomisk analys'!AJ18","v":40},"år",null,"Använd Kalkylperiod i aktuell kalkyl",{"$f":"'2. Samhällsekonomisk analys'!AJ18","v":40},"år"]
[null,null,null,null,null,null,null,null,null,null,null,null,null,null,null,null,null,null,null,"Restid pb, regionalt övr. privat",{"$f":"V561","v":-0.13730000000000001},"Mh/år",{"$f":"-V271","v":297.64402000000001},null,null,"Reskostnad pb yrkestrafik",{"$f":"Y583","v":-0.1489},"Mkr/år",{"$f":"-Y235","v":3.2505299999999999},null,null,"Banavgifter",{"$f":"AH466+AK466+AN466+AQ466","v":-4.8999999999999998E-4},"mnkr/år",{"$f":"-AH118-AK118-AN118-AQ118","v":1.048E-2},null,null,null,null,null,{"$f":"AO10+AO11+AH367+AK367+AN367+AQ367","v":55.545787114354098},null,null,"Annuitetskostnad exklusive skattefaktor beräknas:",null,null,{"$f":"AU10/((1-(1+AU11)^-AU12)/AU11)","v":3.6020986353077173},"mnkr",null,"Annuitetskostnad inklusive skattefaktor beräknas:",{"$f":"AY10/((1-(1+AY11)^-AY12)/AY11)","v":4.6827282259000329},"mnkr"]
[null,null,null,null,null,null,null,null,null,null,null,null,null,null,null,null,null,null,null,"Restid pb, långväga arbete & övr.",null,null,null,"Manuell inmatn enligt PM om långväga resor pb läggs inte in här utan direkt i flik 2",null,"Reskostnad lastbil (utan släp)",{"$f":"AB583","v":-3.0908699999999998},"Mkr/år",{"$f":"-AB235","v":67.473479999999995},null,null,null,null,null,{"$f":"SUM(AI10:AI13)","v":-4.9841699999999998},null,"Till \"HÄLSA\" i SEB","Kväveoxider",{"$f":"V669+Y669+AB669+AE669+AH669+AK669+AQ669","v":-0.30298999999999998},"ton/år",{"$f":"-V334-Y334-AB334-AE334-AH334-AK334-AN334-AQ334","v":3.8149999999999996E-2},null,null,"Uppgifter om D och AS hämtas automatiskt från inklistrade värden i denna flik (kommer från \"Resultat prognosår\" från SK-fil"]
[null,null,null,null,null,null,null,null,null,null,null,null,null,null,null,null,null,null,null,"Reskostnad pb, regionalt tjänste",{"$f":"V595","v":-4.7200000000000002E-3},"mnkr",{"$f":"-V247","v":0.10313},null,null,"Reskostnad lastbil (släp)",{"$f":"AE583","v":-0.32851000000000002},"Mkr/år",{"$f":"-AE235","v":7.1712800000000003},null,null,null,null,null,null,null,null,"Avgaspartiklar",{"$f":"V672+Y672+AB672+AE672+AH672+AK672+AQ672","v":-3.8899999999999994E-3},"ton/år",{"$f":"-V337-Y337-AB337-AE337-AH337-AK337-AN337-AQ337","v":2.4622899999999999},null,"Nya förutsättningar. Info hämtas direkt från SK-filens data som är inkopierad nedan","Förändrade antal D hämtas från inklistrad SK-fil i denna flik",null,null,{"$f":"AQ8","v":-5.3110000000000004E-2},"D/år"]
[null,null,null,null,null,null,null,null,null,null,null,null,null,null,null,null,null,null,null,"Reskostnad pb, långväga tjänste",null,null,null,"Manuell inmatn enligt PM om långväga resor pb läggs inte in här utan direkt i flik 2",null,"Transporttid gods pb yrkestrafik",{"$f":"Y646","v":-4.8460000000000003E-2},"Mkr/år",{"$f":"-Y298","v":1.0579400000000001},null,null,null,null,null,null,null,null,"Slitagepartiklar",{"$f":"V678+Y678+AB678+AE678+AH678+AK678+AQ678","v":-8.269E-2},"ton/år",{"$f":"-V343-Y343-AB343-AE343-AH343-AK343-AN343-AQ343","v":85.372259999999997},null,null,"Förändrade antal AS hämtas från inklistrad SK-fil i denna flik",null,null,{"$f":"AQ9+AQ10","v":-1.64821},"AS/år"]
[null,null,null,null,null,null,null,null,null,null,null,null,null,null,null,null,null,null,null,"Reskostnad pb, regionalt arbete",{"$f":"V601","v":-3.44E-2},"mnkr",{"$f":"-V253","v":0.75085000000000002},null,null,"Transporttid gods lastbil (u. släp)",{"$f":"AB646","v":-0.14482999999999999},"Mkr/år",{"$f":"-AB298","v":3.1616300000000002},null,null,null,null,null,null,null,null,null,null,null,null,null,null,"AS"]
[null,null,null,null,null,null,null,null,null,null,null,null,null,null,null,null,null,null,null,"Reskostnad pb, regionalt övr. privat",{"$f":"V598","v":-8.6400000000000005E-2},"mnkr",{"$f":"-V250","v":1.88615},null,null,"Transporttid gods lastbil (släp)",{"$f":"AE646","v":-0.44874000000000003},"Mkr/år",{"$f":"-AE298","v":9.7959099999999992},null,null,null,null,null,null,null,null,null,null,null,{"$f":"SUM(AO14:AO17)","v":87.872699999999995}]
[null,null,null,null,null,null,null,null,null,null,null,null,null,null,null,null,null,null,null,"Reskostnad pb, långväga arbete & övr.",null,null,null,"Manuell inmatn enligt PM om långväga resor pb läggs inte in här utan direkt i flik 2",null,"Vägavgifter/ vägskatt pb yrkestrafik",{"$f":"Y625","v":0},"Mkr/år",{"$f":"-Y277","v":0},null,null,null,null,null,null,null,null,null,null,null,null,null,null,"Kostnadseffektivitetens benämning och kortfattad beskrivning",null,"År som kostnads-effektiviteten redovisas för",null,"Effekter som ska klistras in i SEB-IT för beräkning av kostnadseffektivitetstal"]
[null,null,null,null,null,null,null,null,null,null,null,null,null,null,null,null,null,null,null,"Vägavgifter/vägskatt pb",{"$f":"V625","v":0},"mnkr",{"$f":"-V277","v":0},null,null,"Vägavgifter/ vägskatt lastbil (u. släp)",{"$f":"AB625","v":0},"Mkr/år",{"$f":"-AB277","v":0},null,null,null,null,null,null,null,"Till \"ÖVRIGA EXTERNA EFFEKTER\" i SEB","Mariginellt slitage ",{"$f":"V719+Y719+AB719+AE719+AH719+AK719+AQ719","v":-0.31492000000000003},"mnkr/år",{"$f":"-V371-Y371-AB371-AE371-AH371-AK371-AQ371","v":6.8743800000000004}]
[null,null,null,null,null,null,null,null,null,null,null,null,null,null,null,null,null,null,null,"Restid tåg, långväga",{"$f":"AK514","v":0},"Mh/år",{"$f":"-AK256","v":0},null,null,"Vägavgifter/ vägskatt lastbil (släp)",{"$f":"AE625","v":0},"Mkr/år",{"$f":"-AE277","v":6.0000000000000002E-5},null,null,null,null,null,null,null,null,null,null,null,null,null,null,"Trafik-säkerhet","Förändrade antal liv per mdrkr",{"$f":"AU15/(AU13/1000)","v":-14.744182593840318},"D/ mdrkr",{"$f":"AU15","v":-5.3110000000000004E-2},"Döda per år (för prognosår 1)"]
[null,null,null,null,null,null,null,null,null,null,null,null,null,null,null,null,null,null,null,"Reskostnad tåg, långväga",{"$f":"AK583","v":0},"mnkr",{"$f":"-AK235","v":0},null,null,null,null,null,{"$f":"SUM(AC10:AC21)","v":604.46276},null,null,null,null,null,null,null,"Till \"BUDGETEFFEKTER\" i SEB","Drivmedelsskatt för vägtrafik, regionalt",{"$f":"V479+Y479+AB479+AE479","v":1.0771700000000002},"mnkr/år",{"$f":"V131+Y131+AB131+AE131","v":23.514360000000003},null,null,"Trafik-säkerhet","Förändrade antal DAS (döda och allvarligt skadade) per mdrkr",{"$f":"(AU16+AU15)/(AU13/1000)","v":-472.31355169558287},"DAS/ mdrnkr",{"$f":"AU15+AU16","v":-1.7013199999999999},"DAS per år (för prognosår 1)"]
[null,null,null,null,null,null,null,null,null,null,null,null,null,null,null,null,null,null,null,"Restid kollektivtrafik, regionalt",{"$f":"AN514","v":0},"Mh/år",{"$f":"-AN256","v":0},null,null,null,null,null,null,null,null,null,null,null,null,null,null,"Drivmedelsskatt för vägtrafik, långväga",{"$f":"V469+Y469+AB469+AE469","v":0},"mnkr/år",{"$f":"V121+Y121+AB121+AE121","v":0},"Om långväga makro pb körts så gäller manuell inmatning enligt PM direkt i flik 2 (rad 222)",null,"Restid","Förändrade antal timmar (totalt) per tkr",{"$f":"1000000*(V514+Y514+AB514+AE514+AH514+AK514+AN514+AQ514)/(AU13*1000)","v":-68.343492203946681},"tim/ tkr",{"$f":"(V514+Y514+AB514+AE514+AH514+AK514+AN514+AQ514)*1000","v":-246.17999999999998},"Restid ktim per år (för prognosår 1)"]
[null,null,null,null,null,null,null,null,null,null,null,null,null,null,null,null,null,null,null,"Reskostnad kollektivtrafik, regionalt",{"$f":"AN583","v":0},"mnkr",{"$f":"-AN235","v":0},null,null,null,null,null,null,null,null,null,null,null,null,null,null,"Vägavgifter/vägskatt",{"$f":"V489+Y489+AB489+AE489","v":0},"mnkr/år",{"$f":"U743","v":-6.0000000000000002E-5},null,null,"CO2","Förändrade antal ton CO2 per mnkr",{"$f":"1000*(V675+Y675+AB675+AE675+AH675+AK675+AN675+AQ675)/AU13","v":-26.229154047562286},"ton/ mnkr",{"$f":"(V675+Y675+AB675+AE675+AH675+AK675+AN675+AQ675)","v":-9.4480000000000008E-2},"CO2 kton per år (för prognosår 1)"]
[null,null,null,null,null,null,null,null,null,null,null,null,null,null,null,null,null,null,null,"Restid buss, långväga",{"$f":"AH514","v":0},"Mh/år",{"$f":"-AH256","v":0},null,null,null,null,null,null,null,null,null,null,null,null,null,null,"Moms på biljettintäkter",{"$f":"AH510+AK510+AN510+AQ510","v":-1.6979999999999999E-2},"mnkr/år",{"$f":"U744","v":-0.3644}]
[null,null,null,null,null,null,null,null,null,null,null,null,null,null,null,null,null,null,null,"Reskostnad buss, långväga",{"$f":"AH583","v":0},"mnkr",{"$f":"-AH235","v":0},null,null,null,null,null,null,null,null,null,null,null,null,null,null,"Banavgifter",{"$f":"AK511+AN511","v":-4.8999999999999998E-4},"mnkr/år",{"$f":"U745","v":-1.048E-2}]
[null,null,null,null,null,null,null,null,null,null,null,null,null,null,null,null,null,null,null,"Restid flyg",{"$f":"AQ514","v":0},"Mh/år",{"$f":"-AQ256","v":0},null,null,null,null,null,null,null,null,null,null,null,null,null,null,"Moms fordonskostnader",{"$f":"V512","v":0},"mnkr/år",{"$f":"U746","v":0}]
[null,null,null,null,null,null,null,null,null,null,null,null,null,null,null,null,null,null,null,"Reskostnad flyg",{"$f":"AQ583","v":0},"mnkr",{"$f":"-AQ235","v":0},null,null,null,null,null,null,null,null,null,null,null,null,null,null,null,null,null,{"$f":"SUM(AO22:AO27)","v":23.139420000000001}]
["Verktyg"]
[{"$f":"\"Samkalk\"&\" \"&(RIGHT(S784,5))","v":"Samkalk 3.4.6"}]
[null,null,null,null,null,null,null,null,null,null,null,null,null,null,null,null,null,null,null,null,null,null,{"$f":"SUM(W10:W28)","v":499.88067000000001}]
[]
["Siffror hämtade från Bansek",null,null,null,null,null,null,null,null,null,null,null,null,null,null,null,null,null,null,null,null,null,null,null,null,null,null,null,null,null,null,null,null,null,null,null,null,null,null,null,{"$f":"SUM(AO30:AO32)","v":0}]
[null,"Genomsnitt"]
["Pb",0.39100000000000001,null,null,null,null,null,null,null,null,null,null,null,null,null,null,null,null,"Markera och klipp ut alla cellerna från A1 till Y336 i fliken \"Diskonterade resultat\". Ställ markören i cellen S36 i denna flik och klistra in dessa celler med funktionen \"Klistra in special\"/\"Värden\"."]
["lbu",0.81,null,null,null,null,null,null,null,null,null,null,null,null,null,null,null,null,"Diskonterade resultat"]
["lbs",0.81,null,null,null,null,null,null,null,null,null,null,null,null,null,null,null,null,"N A T I O N E L L   O C H   R E G I O N A L   T R A F I K"]
[null,null,null,null,null,null,null,null,null,null,null,null,null,null,null,null,null,null,"Effekter och värden","Pb",null,null,"Pby",null,null,"Lbu",null,null,"Lbs",null,null,"Buss",null,null,"Tåg",null,null,"RegKoll",null,null,"Flyg"]
[null,null,null,null,null,null,null,null,null,null,null,null,null,null,null,null,null,null,"Kalkylperiod 2025-2064","Effekter","Effekter","Differens","Effekter","Effekter","Differens","Effekter","Effekter","Differens","Effekter","Effekter","Differens","Effekter","Effekter","Differens","Effekter","Effekter","Differens","Effekter","Effekter","Differens","Effekter","Effekter","Differens"]
[null,null,null,null,null,null,null,null,null,null,null,null,null,null,null,null,null,null,null,"JA","UA","UA-JA","JA","UA","UA-JA","JA","UA","UA-JA","JA","UA","UA-JA","JA","UA","UA-JA","JA","UA","UA-JA","JA","UA","UA-JA","JA","UA","UA-JA"]
[null,null,null,null,null,null,null,null,null,null,null,null,null,null,null,null,null,null,"ANTAL RESOR"]
[null,null,null,null,null,null,null,null,null,null,null,null,null,null,null,null,null,null,"Antal resor, milj"]
[null,null,null,null,null,null,null,null,null,null,null,null,null,null,null,null,null,null,"|  nationellt"]
[null,null,null,null,null,null,null,null,null,null,null,null,null,null,null,null,null,null,"|  |  tjänste"]
[null,null,null,null,null,null,null,null,null,null,null,null,null,null,null,null,null,null,"|  |  |  existerande/kvarvarande trafik"]
[null,null,null,null,null,null,null,null,null,null,null,null,null,null,null,null,null,null,"|  |  |  tillkommande/försvinnande trafik"]
[null,null,null,null,null,null,null,null,null,null,null,null,null,null,null,null,null,null,"|  |  private"]
[null,null,null,null,null,null,null,null,null,null,null,null,null,null,null,null,null,null,"|  |  |  existerande/kvarvarande trafik"]
[null,null,null,null,null,null,null,null,null,null,null,null,null,null,null,null,null,null,"|  |  |  tillkommande/försvinnande trafik"]
[null,null,null,null,null,null,null,null,null,null,null,null,null,null,null,null,null,null,"|  |  arbete"]
[null,null,null,null,null,null,null,null,null,null,null,null,null,null,null,null,null,null,"|  |  |  existerande/kvarvarande trafik"]
[null,null,null,null,null,null,null,null,null,null,null,null,null,null,null,null,null,null,"|  |  |  tillkommande/försvinnande trafik"]
[null,null,null,null,null,null,null,null,null,null,null,null,null,null,null,null,null,null,"|  regionalt"]
[null,null,null,null,null,null,null,null,null,null,null,null,null,null,null,null,null,null,"|  |  tjänste"]
[null,null,null,null,null,null,null,null,null,null,null,null,null,null,null,null,null,null,"|  |  |  existerande/kvarvarande trafik"]
[null,null,null,null,null,null,null,null,null,null,null,null,null,null,null,null,null,null,"|  |  |  tillkommande/försvinnande trafik"]
[null,null,null,null,null,null,null,null,null,null,null,null,null,null,null,null,null,null,"|  |  private"]
[null,null,null,null,null,null,null,null,null,null,null,null,null,null,null,null,null,null,"|  |  |  existerande/kvarvarande trafik"]
[null,null,null,null,null,null,null,null,null,null,null,null,null,null,null,null,null,null,"|  |  |  tillkommande/försvinnande trafik"]
[null,null,null,null,null,null,null,null,null,null,null,null,null,null,null,null,null,null,"|  |  arbete"]
[null,null,null,null,null,null,null,null,null,null,null,null,null,null,null,null,null,null,"|  |  |  existerande/kvarvarande trafik"]
[null,null,null,null,null,null,null,null,null,null,null,null,null,null,null,null,null,null,"|  |  |  tillkommande/försvinnande trafik"]
[null,null,null,null,null,null,null,null,null,null,null,null,null,null,null,null,null,null,"TRAFIK- OCH TRANSPORTARBETSUPPGIFTER"]
[null,null,null,null,null,null,null,null,null,null,null,null,null,null,null,null,null,null,"Trafikarbete, milj fkm/vkm"]
[null,null,null,null,null,null,null,null,null,null,null,null,null,null,null,null,null,null,"|  nationellt"]
[null,null,null,null,null,null,null,null,null,null,null,null,null,null,null,null,null,null,"|  |  tjänste"]
[null,null,null,null,null,null,null,null,null,null,null,null,null,null,null,null,null,null,"|  |  |  existerande/kvarvarande trafik"]
[null,null,null,null,null,null,null,null,null,null,null,null,null,null,null,null,null,null,"|  |  |  tillkommande/försvinnande trafik"]
[null,null,null,null,null,null,null,null,null,null,null,null,null,null,null,null,null,null,"|  |  private"]
[null,null,null,null,null,null,null,null,null,null,null,null,null,null,null,null,null,null,"|  |  |  existerande/kvarvarande trafik"]
[null,null,null,null,null,null,null,null,null,null,null,null,null,null,null,null,null,null,"|  |  |  tillkommande/försvinnande trafik"]
[null,null,null,null,null,null,null,null,null,null,null,null,null,null,null,null,null,null,"|  |  arbete"]
[null,null,null,null,null,null,null,null,null,null,null,null,null,null,null,null,null,null,"|  |  |  existerande/kvarvarande trafik"]
[null,null,null,null,null,null,null,null,null,null,null,null,null,null,null,null,null,null,"|  |  |  tillkommande/försvinnande trafik"]
[null,null,null,null,null,null,null,null,null,null,null,null,null,null,null,null,null,null,"|  regionalt"]
[null,null,null,null,null,null,null,null,null,null,null,null,null,null,null,null,null,null,"|  |  tjänste"]
[null,null,null,null,null,null,null,null,null,null,null,null,null,null,null,null,null,null,"|  |  |  existerande/kvarvarande trafik"]
[null,null,null,null,null,null,null,null,null,null,null,null,null,null,null,null,null,null,"|  |  |  tillkommande/försvinnande trafik"]
[null,null,null,null,null,null,null,null,null,null,null,null,null,null,null,null,null,null,"|  |  private"]
[null,null,null,null,null,null,null,null,null,null,null,null,null,null,null,null,null,null,"|  |  |  existerande/kvarvarande trafik"]
[null,null,null,null,null,null,null,null,null,null,null,null,null,null,null,null,null,null,"|  |  |  tillkommande/försvinnande trafik"]
[null,null,null,null,null,null,null,null,null,null,null,null,null,null,null,null,null,null,"|  |  arbete"]
[null,null,null,null,null,null,null,null,null,null,null,null,null,null,null,null,null,null,"|  |  |  existerande/kvarvarande trafik"]
[null,null,null,null,null,null,null,null,null,null,null,null,null,null,null,null,null,null,"|  |  |  tillkommande/försvinnande trafik"]
[null,null,null,null,null,null,null,null,null,null,null,null,null,null,null,null,null,null,"Transportarbete, milj pkm"]
[null,null,null,null,null,null,null,null,null,null,null,null,null,null,null,null,null,null,"|  nationellt"]
[null,null,null,null,null,null,null,null,null,null,null,null,null,null,null,null,null,null,"|  |  tjänste"]
[null,null,null,null,null,null,null,null,null,null,null,null,null,null,null,null,null,null,"|  |  |  existerande/kvarvarande trafik"]
[null,null,null,null,null,null,null,null,null,null,null,null,null,null,null,null,null,null,"|  |  |  tillkommande/försvinnande trafik"]
[null,null,null,null,null,null,null,null,null,null,null,null,null,null,null,null,null,null,"|  |  private"]
[null,null,null,null,null,null,null,null,null,null,null,null,null,null,null,null,null,null,"|  |  |  existerande/kvarvarande trafik"]
[null,null,null,null,null,null,null,null,null,null,null,null,null,null,null,null,null,null,"|  |  |  tillkommande/försvinnande trafik"]
[null,null,null,null,null,null,null,null,null,null,null,null,null,null,null,null,null,null,"|  |  arbete"]
[null,null,null,null,null,null,null,null,null,null,null,null,null,null,null,null,null,null,"|  |  |  existerande/kvarvarande trafik"]
[null,null,null,null,null,null,null,null,null,null,null,null,null,null,null,null,null,null,"|  |  |  tillkommande/försvinnande trafik"]
[null,null,null,null,null,null,null,null,null,null,null,null,null,null,null,null,null,null,"|  regionalt"]
[null,null,null,null,null,null,null,null,null,null,null,null,null,null,null,null,null,null,"|  |  tjänste"]
[null,null,null,null,null,null,null,null,null,null,null,null,null,null,null,null,null,null,"|  |  |  existerande/kvarvarande trafik"]
[null,null,null,null,null,null,null,null,null,null,null,null,null,null,null,null,null,null,"|  |  |  tillkommande/försvinnande trafik"]
[null,null,null,null,null,null,null,null,null,null,null,null,null,null,null,null,null,null,"|  |  private"]
[null,null,null,null,null,null,null,null,null,null,null,null,null,null,null,null,null,null,"|  |  |  existerande/kvarvarande trafik"]
[null,null,null,null,null,null,null,null,null,null,null,null,null,null,null,null,null,null,"|  |  |  tillkommande/försvinnande trafik"]
[null,null,null,null,null,null,null,null,null,null,null,null,null,null,null,null,null,null,"|  |  arbete"]
[null,null,null,null,null,null,null,null,null,null,null,null,null,null,null,null,null,null,"|  |  |  existerande/kvarvarande trafik"]
[null,null,null,null,null,null,null,null,null,null,null,null,null,null,null,null,null,null,"|  |  |  tillkommande/försvinnande trafik"]
[null,null,null,null,null,null,null,null,null,null,null,null,null,null,null,null,null,null,"PRODUCENTOVERSKOTT"]
[null,null,null,null,null,null,null,null,null,null,null,null,null,null,null,null,null,null,"Biljettintäkter, MSEK",null,null,null,null,null,null,null,null,null,null,null,null,85737.039059999996,85731.28125,-5.7630499999999998,290588,290587.3125,-0.67467999999999995,null,null,null,155552.21875,155552.21875]
[null,null,null,null,null,null,null,null,null,null,null,null,null,null,null,null,null,null,"|  nationellt",null,null,null,null,null,null,null,null,null,null,null,null,46948.847659999999,46948.847659999999,null,285078.65625,285078.65625,null,null,null,null,155552.21875,155552.21875]
[null,null,null,null,null,null,null,null,null,null,null,null,null,null,null,null,null,null,"|  |  tjänste",null,null,null,null,null,null,null,null,null,null,null,null,813.12639999999999,813.12639999999999,null,110534.20312999999,110534.20312999999,null,null,null,null,100356.04687999999,100356.04687999999]
[null,null,null,null,null,null,null,null,null,null,null,null,null,null,null,null,null,null,"|  |  private",null,null,null,null,null,null,null,null,null,null,null,null,43575.15625,43575.15625,null,144361.64063000001,144361.64063000001,null,null,null,null,42794.589840000001,42794.589840000001]
[null,null,null,null,null,null,null,null,null,null,null,null,null,null,null,null,null,null,"|  |  arbete",null,null,null,null,null,null,null,null,null,null,null,null,2560.5664099999999,2560.5664099999999,null,30182.806639999999,30182.806639999999,null,null,null,null,12401.585940000001,12401.585940000001]
[null,null,null,null,null,null,null,null,null,null,null,null,null,null,null,null,null,null,"|  regionalt",null,null,null,null,null,null,null,null,null,null,null,null,38788.191409999999,38782.429689999997,-5.7630499999999998,5509.3456999999999,5508.6709000000001,-0.67467999999999995]
[null,null,null,null,null,null,null,null,null,null,null,null,null,null,null,null,null,null,"|  |  tjänste",null,null,null,null,null,null,null,null,null,null,null,null,1467.1556399999999,1466.9252899999999,-0.23036000000000001,261.08816999999999,261.07639,-1.175E-2]
[null,null,null,null,null,null,null,null,null,null,null,null,null,null,null,null,null,null,"|  |  private",null,null,null,null,null,null,null,null,null,null,null,null,30720.171880000002,30716.728520000001,-3.44293,3763.0815400000001,3762.9912100000001,-9.0149999999999994E-2]
[null,null,null,null,null,null,null,null,null,null,null,null,null,null,null,null,null,null,"|  |  arbete",null,null,null,null,null,null,null,null,null,null,null,null,6600.8632799999996,6598.7734399999999,-2.08975,1485.17578,1484.60303,-0.57277999999999996]
[null,null,null,null,null,null,null,null,null,null,null,null,null,null,null,null,null,null,"Fordonskostnader för kollektivtrafik, MSEK",null,null,null,null,null,null,null,null,null,null,null,null,275023.98908000003,275023.31917999999,-0.66990000000000005,301238.62479999999,301238.21601999999,-0.40877999999999998,null,null,null,261720.76663,261720.76663]
[null,null,null,null,null,null,null,null,null,null,null,null,null,null,null,null,null,null,"Moms på biljettintäkter, MSEK",null,null,null,null,null,null,null,null,null,null,null,null,4853.0400200000004,4852.7141099999999,-0.32621,16448.3776,16448.33869,-3.8190000000000002E-2,null,null,null,8804.8426999999992,8804.8426999999992]
[null,null,null,null,null,null,null,null,null,null,null,null,null,null,null,null,null,null,"Banavgifter, MSEK",null,null,null,null,null,null,null,null,null,null,null,null,null,null,null,24099.994650000001,24099.98417,-1.048E-2]
[null,null,null,null,null,null,null,null,null,null,null,null,null,null,null,null,null,null,"BUDGETEFFEKTER"]
[null,null,null,null,null,null,null,null,null,null,null,null,null,null,null,null,null,null,"Drivmedelsskatt för vägtrafik, MSEK",340359.47487999999,340394.60832,35.131990000000002,48200.311520000003,48200.022440000001,-0.33072000000000001,34713.030079999997,34703.341520000002,-9.6812100000000001,66666.128719999993,66664.452640000003,-1.6056999999999999]
[null,null,null,null,null,null,null,null,null,null,null,null,null,null,null,null,null,null,"|  nationellt",124557.92608,124557.92608]
[null,null,null,null,null,null,null,null,null,null,null,null,null,null,null,null,null,null,"|  |  tjänste",30127.902999999998,30127.902999999998]
[null,null,null,null,null,null,null,null,null,null,null,null,null,null,null,null,null,null,"|  |  |  existerande/kvarvarande trafik"]
[null,null,null,null,null,null,null,null,null,null,null,null,null,null,null,null,null,null,"|  |  |  tillkommande/försvinnande trafik"]
[null,null,null,null,null,null,null,null,null,null,null,null,null,null,null,null,null,null,"|  |  private",85797.489839999995,85797.489839999995]
[null,null,null,null,null,null,null,null,null,null,null,null,null,null,null,null,null,null,"|  |  |  existerande/kvarvarande trafik"]
[null,null,null,null,null,null,null,null,null,null,null,null,null,null,null,null,null,null,"|  |  |  tillkommande/försvinnande trafik"]
[null,null,null,null,null,null,null,null,null,null,null,null,null,null,null,null,null,null,"|  |  arbete",8632.5317799999993,8632.5317799999993]
[null,null,null,null,null,null,null,null,null,null,null,null,null,null,null,null,null,null,"|  |  |  existerande/kvarvarande trafik"]
[null,null,null,null,null,null,null,null,null,null,null,null,null,null,null,null,null,null,"|  |  |  tillkommande/försvinnande trafik"]
[null,null,null,null,null,null,null,null,null,null,null,null,null,null,null,null,null,null,"|  regionalt",215801.54879999999,215836.68223999999,35.131990000000002,48200.311520000003,48200.022440000001,-0.33072000000000001,34713.030079999997,34703.341520000002,-9.6812100000000001,66666.128719999993,66664.452640000003,-1.6056999999999999]
[null,null,null,null,null,null,null,null,null,null,null,null,null,null,null,null,null,null,"|  |  tjänste",12440.68628,12441.84114,1.16368,48200.311520000003,48200.022440000001,-0.33072000000000001,34713.030079999997,34703.341520000002,-9.6812100000000001,66666.128719999993,66664.452640000003,-1.6056999999999999]
[null,null,null,null,null,null,null,null,null,null,null,null,null,null,null,null,null,null,"|  |  |  existerande/kvarvarande trafik",null,null,3.4499999999999999E-3,null,null,-0.33072000000000001,null,null,-9.6812100000000001,null,null,-1.6056999999999999]
[null,null,null,null,null,null,null,null,null,null,null,null,null,null,null,null,null,null,"|  |  |  tillkommande/försvinnande trafik",null,null,1.1602399999999999]
[null,null,null,null,null,null,null,null,null,null,null,null,null,null,null,null,null,null,"|  |  private",117707.64112,117731.76032,24.09639]
[null,null,null,null,null,null,null,null,null,null,null,null,null,null,null,null,null,null,"|  |  |  existerande/kvarvarande trafik",null,null,0.20745]
[null,null,null,null,null,null,null,null,null,null,null,null,null,null,null,null,null,null,"|  |  |  tillkommande/försvinnande trafik",null,null,23.888929999999998]
[null,null,null,null,null,null,null,null,null,null,null,null,null,null,null,null,null,null,"|  |  arbete",85653.236000000004,85663.070559999993,9.8719099999999997]
[null,null,null,null,null,null,null,null,null,null,null,null,null,null,null,null,null,null,"|  |  |  existerande/kvarvarande trafik",null,null,0.14710000000000001]
[null,null,null,null,null,null,null,null,null,null,null,null,null,null,null,null,null,null,"|  |  |  tillkommande/försvinnande trafik",null,null,9.7248099999999997]
[null,null,null,null,null,null,null,null,null,null,null,null,null,null,null,null,null,null,"Vägavgifter/vägskatt, MSEK",null,null,null,null,null,null,null,null,null,null,null,-6.0000000000000002E-5]
[null,null,null,null,null,null,null,null,null,null,null,null,null,null,null,null,null,null,"|  nationellt"]
[null,null,null,null,null,null,null,null,null,null,null,null,null,null,null,null,null,null,"|  |  tjänste"]
[null,null,null,null,null,null,null,null,null,null,null,null,null,null,null,null,null,null,"|  |  |  existerande/kvarvarande trafik"]
[null,null,null,null,null,null,null,null,null,null,null,null,null,null,null,null,null,null,"|  |  |  tillkommande/försvinnande trafik"]
[null,null,null,null,null,null,null,null,null,null,null,null,null,null,null,null,null,null,"|  |  private"]
[null,null,null,null,null,null,null,null,null,null,null,null,null,null,null,null,null,null,"|  |  |  existerande/kvarvarande trafik"]
[null,null,null,null,null,null,null,null,null,null,null,null,null,null,null,null,null,null,"|  |  |  tillkommande/försvinnande trafik"]
[null,null,null,null,null,null,null,null,null,null,null,null,null,null,null,null,null,null,"|  |  arbete"]
[null,null,null,null,null,null,null,null,null,null,null,null,null,null,null,null,null,null,"|  |  |  existerande/kvarvarande trafik"]
[null,null,null,null,null,null,null,null,null,null,null,null,null,null,null,null,null,null,"|  |  |  tillkommande/försvinnande trafik"]
[null,null,null,null,null,null,null,null,null,null,null,null,null,null,null,null,null,null,"|  regionalt",null,null,null,null,null,null,null,null,null,null,null,-6.0000000000000002E-5]
[null,null,null,null,null,null,null,null,null,null,null,null,null,null,null,null,null,null,"|  |  tjänste",null,null,null,null,null,null,null,null,null,null,null,-6.0000000000000002E-5]
[null,null,null,null,null,null,null,null,null,null,null,null,null,null,null,null,null,null,"|  |  |  existerande/kvarvarande trafik",null,null,null,null,null,null,null,null,null,null,null,-6.0000000000000002E-5]
[null,null,null,null,null,null,null,null,null,null,null,null,null,null,null,null,null,null,"|  |  |  tillkommande/försvinnande trafik"]
[null,null,null,null,null,null,null,null,null,null,null,null,null,null,null,null,null,null,"|  |  private"]
[null,null,null,null,null,null,null,null,null,null,null,null,null,null,null,null,null,null,"|  |  |  existerande/kvarvarande trafik"]
[null,null,null,null,null,null,null,null,null,null,null,null,null,null,null,null,null,null,"|  |  |  tillkommande/försvinnande trafik"]
[null,null,null,null,null,null,null,null,null,null,null,null,null,null,null,null,null,null,"|  |  arbete"]
[null,null,null,null,null,null,null,null,null,null,null,null,null,null,null,null,null,null,"|  |  |  existerande/kvarvarande trafik"]
[null,null,null,null,null,null,null,null,null,null,null,null,null,null,null,null,null,null,"|  |  |  tillkommande/försvinnande trafik"]
[null,null,null,null,null,null,null,null,null,null,null,null,null,null,null,null,null,null,"Moms på biljettintäkter, MSEK",null,null,null,null,null,null,null,null,null,null,null,null,4853.0400200000004,4852.7141099999999,-0.32621,16448.3776,16448.33869,-3.8190000000000002E-2,null,null,null,8804.8426999999992,8804.8426999999992]
[null,null,null,null,null,null,null,null,null,null,null,null,null,null,null,null,null,null,"Banavgifter, MSEK",null,null,null,null,null,null,null,null,null,null,null,null,null,null,null,24099.994650000001,24099.98417,-1.048E-2]
[]
[null,null,null,null,null,null,null,null,null,null,null,null,null,null,null,null,null,null,"KONSUMENTOVERSKOTT"]
[null,null,null,null,null,null,null,null,null,null,null,null,null,null,null,null,null,null,"Restider, Mh"]
[null,null,null,null,null,null,null,null,null,null,null,null,null,null,null,null,null,null,"|  nationellt"]
[null,null,null,null,null,null,null,null,null,null,null,null,null,null,null,null,null,null,"|  |  tjänste"]
[null,null,null,null,null,null,null,null,null,null,null,null,null,null,null,null,null,null,"|  |  |  existerande/kvarvarande trafik"]
[null,null,null,null,null,null,null,null,null,null,null,null,null,null,null,null,null,null,"|  |  |  |  åktid"]
[null,null,null,null,null,null,null,null,null,null,null,null,null,null,null,null,null,null,"|  |  |  |  anslutningstid"]
[null,null,null,null,null,null,null,null,null,null,null,null,null,null,null,null,null,null,"|  |  |  |  bytestid"]
[null,null,null,null,null,null,null,null,null,null,null,null,null,null,null,null,null,null,"|  |  |  |  väntetid"]
[null,null,null,null,null,null,null,null,null,null,null,null,null,null,null,null,null,null,"|  |  |  tillkommande/försvinnande trafik"]
[null,null,null,null,null,null,null,null,null,null,null,null,null,null,null,null,null,null,"|  |  |  |  åktid"]
[null,null,null,null,null,null,null,null,null,null,null,null,null,null,null,null,null,null,"|  |  |  |  anslutningstid"]
[null,null,null,null,null,null,null,null,null,null,null,null,null,null,null,null,null,null,"|  |  |  |  bytestid"]
[null,null,null,null,null,null,null,null,null,null,null,null,null,null,null,null,null,null,"|  |  |  |  väntetid"]
[null,null,null,null,null,null,null,null,null,null,null,null,null,null,null,null,null,null,"|  |  private"]
[null,null,null,null,null,null,null,null,null,null,null,null,null,null,null,null,null,null,"|  |  |  existerande/kvarvarande trafik"]
[null,null,null,null,null,null,null,null,null,null,null,null,null,null,null,null,null,null,"|  |  |  |  åktid"]
[null,null,null,null,null,null,null,null,null,null,null,null,null,null,null,null,null,null,"|  |  |  |  anslutningstid"]
[null,null,null,null,null,null,null,null,null,null,null,null,null,null,null,null,null,null,"|  |  |  |  bytestid"]
[null,null,null,null,null,null,null,null,null,null,null,null,null,null,null,null,null,null,"|  |  |  |  väntetid"]
[null,null,null,null,null,null,null,null,null,null,null,null,null,null,null,null,null,null,"|  |  |  tillkommande/försvinnande trafik"]
[null,null,null,null,null,null,null,null,null,null,null,null,null,null,null,null,null,null,"|  |  |  |  åktid"]
[null,null,null,null,null,null,null,null,null,null,null,null,null,null,null,null,null,null,"|  |  |  |  anslutningstid"]
[null,null,null,null,null,null,null,null,null,null,null,null,null,null,null,null,null,null,"|  |  |  |  bytestid"]
[null,null,null,null,null,null,null,null,null,null,null,null,null,null,null,null,null,null,"|  |  |  |  väntetid"]
[null,null,null,null,null,null,null,null,null,null,null,null,null,null,null,null,null,null,"|  |  arbete"]
[null,null,null,null,null,null,null,null,null,null,null,null,null,null,null,null,null,null,"|  |  |  existerande/kvarvarande trafik"]
[null,null,null,null,null,null,null,null,null,null,null,null,null,null,null,null,null,null,"|  |  |  |  åktid"]
[null,null,null,null,null,null,null,null,null,null,null,null,null,null,null,null,null,null,"|  |  |  |  anslutningstid"]
[null,null,null,null,null,null,null,null,null,null,null,null,null,null,null,null,null,null,"|  |  |  |  bytestid"]
[null,null,null,null,null,null,null,null,null,null,null,null,null,null,null,null,null,null,"|  |  |  |  väntetid"]
[null,null,null,null,null,null,null,null,null,null,null,null,null,null,null,null,null,null,"|  |  |  tillkommande/försvinnande trafik"]
[null,null,null,null,null,null,null,null,null,null,null,null,null,null,null,null,null,null,"|  |  |  |  åktid"]
[null,null,null,null,null,null,null,null,null,null,null,null,null,null,null,null,null,null,"|  |  |  |  anslutningstid"]
[null,null,null,null,null,null,null,null,null,null,null,null,null,null,null,null,null,null,"|  |  |  |  bytestid"]
[null,null,null,null,null,null,null,null,null,null,null,null,null,null,null,null,null,null,"|  |  |  |  väntetid"]
[null,null,null,null,null,null,null,null,null,null,null,null,null,null,null,null,null,null,"|  regionalt"]
[null,null,null,null,null,null,null,null,null,null,null,null,null,null,null,null,null,null,"|  |  tjänste"]
[null,null,null,null,null,null,null,null,null,null,null,null,null,null,null,null,null,null,"|  |  |  existerande/kvarvarande trafik"]
[null,null,null,null,null,null,null,null,null,null,null,null,null,null,null,null,null,null,"|  |  |  |  åktid"]
[null,null,null,null,null,null,null,null,null,null,null,null,null,null,null,null,null,null,"|  |  |  |  anslutningstid"]
[null,null,null,null,null,null,null,null,null,null,null,null,null,null,null,null,null,null,"|  |  |  |  bytestid"]
[null,null,null,null,null,null,null,null,null,null,null,null,null,null,null,null,null,null,"|  |  |  |  väntetid"]
[null,null,null,null,null,null,null,null,null,null,null,null,null,null,null,null,null,null,"|  |  |  tillkommande/försvinnande trafik"]
[null,null,null,null,null,null,null,null,null,null,null,null,null,null,null,null,null,null,"|  |  |  |  åktid"]
[null,null,null,null,null,null,null,null,null,null,null,null,null,null,null,null,null,null,"|  |  |  |  anslutningstid"]
[null,null,null,null,null,null,null,null,null,null,null,null,null,null,null,null,null,null,"|  |  |  |  bytestid"]
[null,null,null,null,null,null,null,null,null,null,null,null,null,null,null,null,null,null,"|  |  |  |  väntetid"]
[null,null,null,null,null,null,null,null,null,null,null,null,null,null,null,null,null,null,"|  |  private"]
[null,null,null,null,null,null,null,null,null,null,null,null,null,null,null,null,null,null,"|  |  |  existerande/kvarvarande trafik"]
[null,null,null,null,null,null,null,null,null,null,null,null,null,null,null,null,null,null,"|  |  |  |  åktid"]
[null,null,null,null,null,null,null,null,null,null,null,null,null,null,null,null,null,null,"|  |  |  |  anslutningstid"]
[null,null,null,null,null,null,null,null,null,null,null,null,null,null,null,null,null,null,"|  |  |  |  bytestid"]
[null,null,null,null,null,null,null,null,null,null,null,null,null,null,null,null,null,null,"|  |  |  |  väntetid"]
[null,null,null,null,null,null,null,null,null,null,null,null,null,null,null,null,null,null,"|  |  |  tillkommande/försvinnande trafik"]
[null,null,null,null,null,null,null,null,null,null,null,null,null,null,null,null,null,null,"|  |  |  |  åktid"]
[null,null,null,null,null,null,null,null,null,null,null,null,null,null,null,null,null,null,"|  |  |  |  anslutningstid"]
[null,null,null,null,null,null,null,null,null,null,null,null,null,null,null,null,null,null,"|  |  |  |  bytestid"]
[null,null,null,null,null,null,null,null,null,null,null,null,null,null,null,null,null,null,"|  |  |  |  väntetid"]
[null,null,null,null,null,null,null,null,null,null,null,null,null,null,null,null,null,null,"|  |  arbete"]
[null,null,null,null,null,null,null,null,null,null,null,null,null,null,null,null,null,null,"|  |  |  existerande/kvarvarande trafik"]
[null,null,null,null,null,null,null,null,null,null,null,null,null,null,null,null,null,null,"|  |  |  |  åktid"]
[null,null,null,null,null,null,null,null,null,null,null,null,null,null,null,null,null,null,"|  |  |  |  anslutningstid"]
[null,null,null,null,null,null,null,null,null,null,null,null,null,null,null,null,null,null,"|  |  |  |  bytestid"]
[null,null,null,null,null,null,null,null,null,null,null,null,null,null,null,null,null,null,"|  |  |  |  väntetid"]
[null,null,null,null,null,null,null,null,null,null,null,null,null,null,null,null,null,null,"|  |  |  tillkommande/försvinnande trafik"]
[null,null,null,null,null,null,null,null,null,null,null,null,null,null,null,null,null,null,"|  |  |  |  åktid"]
[null,null,null,null,null,null,null,null,null,null,null,null,null,null,null,null,null,null,"|  |  |  |  anslutningstid"]
[null,null,null,null,null,null,null,null,null,null,null,null,null,null,null,null,null,null,"|  |  |  |  bytestid"]
[null,null,null,null,null,null,null,null,null,null,null,null,null,null,null,null,null,null,"|  |  |  |  väntetid"]
[null,null,null,null,null,null,null,null,null,null,null,null,null,null,null,null,null,null,"Reskostnader, MSEK",1224237.2377599999,1224237.2377599999,-2.7401300000000002,null,null,-3.2505299999999999,null,null,-67.473479999999995,null,null,-7.1712800000000003,47741.340080000002,47741.340080000002,null,284929.60544000001,284929.60544000001,null,237368.552,237368.552,null,161691.23903999999,161691.23903999999]
[null,null,null,null,null,null,null,null,null,null,null,null,null,null,null,null,null,null,"|  nationellt",1224237.2377599999,1224237.2377599999,null,null,null,null,null,null,null,null,null,null,47741.340080000002,47741.340080000002,null,284929.60544000001,284929.60544000001,null,null,null,null,161691.23903999999,161691.23903999999]
[null,null,null,null,null,null,null,null,null,null,null,null,null,null,null,null,null,null,"|  |  tjänste",296045.71840000001,296045.71840000001,null,null,null,null,null,null,null,null,null,null,824.31362999999999,824.31362999999999,null,110476.07424,110476.07424,null,null,null,null,80644.484079999995,80644.484079999995]
[null,null,null,null,null,null,null,null,null,null,null,null,null,null,null,null,null,null,"|  |  |  existerande/kvarvarande trafik"]
[null,null,null,null,null,null,null,null,null,null,null,null,null,null,null,null,null,null,"|  |  |  tillkommande/försvinnande trafik"]
[null,null,null,null,null,null,null,null,null,null,null,null,null,null,null,null,null,null,"|  |  private",843358.60479999997,843358.60479999997,null,null,null,null,null,null,null,null,null,null,46917.027000000002,46917.027000000002,null,174453.5312,174453.5312,null,null,null,null,81046.754960000006,81046.754960000006]
[null,null,null,null,null,null,null,null,null,null,null,null,null,null,null,null,null,null,"|  |  |  existerande/kvarvarande trafik"]
[null,null,null,null,null,null,null,null,null,null,null,null,null,null,null,null,null,null,"|  |  |  tillkommande/försvinnande trafik"]
[null,null,null,null,null,null,null,null,null,null,null,null,null,null,null,null,null,null,"|  |  arbete",84832.832800000004,84832.832800000004]
[null,null,null,null,null,null,null,null,null,null,null,null,null,null,null,null,null,null,"|  |  |  existerande/kvarvarande trafik"]
[null,null,null,null,null,null,null,null,null,null,null,null,null,null,null,null,null,null,"|  |  |  tillkommande/försvinnande trafik"]
[null,null,null,null,null,null,null,null,null,null,null,null,null,null,null,null,null,null,"|  regionalt",null,null,-2.7401300000000002,null,null,-3.2505299999999999,null,null,-67.473479999999995,null,null,-7.1712800000000003,null,null,null,null,null,null,237368.552,237368.552]
[null,null,null,null,null,null,null,null,null,null,null,null,null,null,null,null,null,null,"|  |  tjänste",null,null,-0.10313,null,null,-3.2505299999999999,null,null,-67.473479999999995,null,null,-7.1712800000000003,null,null,null,null,null,null,11128.3755,11128.3755]
[null,null,null,null,null,null,null,null,null,null,null,null,null,null,null,null,null,null,"|  |  |  existerande/kvarvarande trafik",null,null,2.1870000000000001E-2,null,null,-3.2505299999999999,null,null,-67.473479999999995,null,null,-7.1712800000000003]
[null,null,null,null,null,null,null,null,null,null,null,null,null,null,null,null,null,null,"|  |  |  tillkommande/försvinnande trafik",null,null,-0.125]
[null,null,null,null,null,null,null,null,null,null,null,null,null,null,null,null,null,null,"|  |  private",null,null,-1.88615,null,null,null,null,null,null,null,null,null,null,null,null,null,null,null,166684.60256,166684.60256]
[null,null,null,null,null,null,null,null,null,null,null,null,null,null,null,null,null,null,"|  |  |  existerande/kvarvarande trafik",null,null,1.3158300000000001]
[null,null,null,null,null,null,null,null,null,null,null,null,null,null,null,null,null,null,"|  |  |  tillkommande/försvinnande trafik",null,null,-3.2019799999999998]
[null,null,null,null,null,null,null,null,null,null,null,null,null,null,null,null,null,null,"|  |  arbete",null,null,-0.75085000000000002,null,null,null,null,null,null,null,null,null,null,null,null,null,null,null,59555.566639999997,59555.566639999997]
[null,null,null,null,null,null,null,null,null,null,null,null,null,null,null,null,null,null,"|  |  |  existerande/kvarvarande trafik",null,null,0.93305000000000005]
[null,null,null,null,null,null,null,null,null,null,null,null,null,null,null,null,null,null,"|  |  |  tillkommande/försvinnande trafik",null,null,-1.6839]
[null,null,null,null,null,null,null,null,null,null,null,null,null,null,null,null,null,null,"Restider, MSEK",null,null,-497.14053999999999,null,null,-169.29739000000001,null,null,-216.83833000000001,null,null,-126.41621000000001]
[null,null,null,null,null,null,null,null,null,null,null,null,null,null,null,null,null,null,"|  nationellt"]
[null,null,null,null,null,null,null,null,null,null,null,null,null,null,null,null,null,null,"|  |  tjänste"]
[null,null,null,null,null,null,null,null,null,null,null,null,null,null,null,null,null,null,"|  |  |  existerande/kvarvarande trafik"]
[null,null,null,null,null,null,null,null,null,null,null,null,null,null,null,null,null,null,"|  |  |  tillkommande/försvinnande trafik"]
[null,null,null,null,null,null,null,null,null,null,null,null,null,null,null,null,null,null,"|  |  private"]
[null,null,null,null,null,null,null,null,null,null,null,null,null,null,null,null,null,null,"|  |  |  existerande/kvarvarande trafik"]
[null,null,null,null,null,null,null,null,null,null,null,null,null,null,null,null,null,null,"|  |  |  tillkommande/försvinnande trafik"]
[null,null,null,null,null,null,null,null,null,null,null,null,null,null,null,null,null,null,"|  |  arbete"]
[null,null,null,null,null,null,null,null,null,null,null,null,null,null,null,null,null,null,"|  |  |  existerande/kvarvarande trafik"]
[null,null,null,null,null,null,null,null,null,null,null,null,null,null,null,null,null,null,"|  |  |  tillkommande/försvinnande trafik"]
[null,null,null,null,null,null,null,null,null,null,null,null,null,null,null,null,null,null,"|  regionalt",null,null,-497.14053999999999,null,null,-169.29739000000001,null,null,-216.83833000000001,null,null,-126.41621000000001]
[null,null,null,null,null,null,null,null,null,null,null,null,null,null,null,null,null,null,"|  |  tjänste",null,null,-57.323120000000003,null,null,-169.29739000000001,null,null,-216.83833000000001,null,null,-126.41621000000001]
[null,null,null,null,null,null,null,null,null,null,null,null,null,null,null,null,null,null,"|  |  |  existerande/kvarvarande trafik",null,null,-53.715870000000002,null,null,-169.29739000000001,null,null,-216.83833000000001,null,null,-126.41621000000001]
[null,null,null,null,null,null,null,null,null,null,null,null,null,null,null,null,null,null,"|  |  |  tillkommande/försvinnande trafik",null,null,-3.6072500000000001]
[null,null,null,null,null,null,null,null,null,null,null,null,null,null,null,null,null,null,"|  |  private",null,null,-297.64402000000001]
[null,null,null,null,null,null,null,null,null,null,null,null,null,null,null,null,null,null,"|  |  |  existerande/kvarvarande trafik",null,null,-277.13830000000002]
[null,null,null,null,null,null,null,null,null,null,null,null,null,null,null,null,null,null,"|  |  |  tillkommande/försvinnande trafik",null,null,-20.50572]
[null,null,null,null,null,null,null,null,null,null,null,null,null,null,null,null,null,null,"|  |  arbete",null,null,-142.17339999999999]
[null,null,null,null,null,null,null,null,null,null,null,null,null,null,null,null,null,null,"|  |  |  existerande/kvarvarande trafik",null,null,-133.06525999999999]
[null,null,null,null,null,null,null,null,null,null,null,null,null,null,null,null,null,null,"|  |  |  tillkommande/försvinnande trafik",null,null,-9.1081500000000002]
[null,null,null,null,null,null,null,null,null,null,null,null,null,null,null,null,null,null,"Vägavgifter/vägskatt, MSEK",null,null,null,null,null,null,null,null,null,null,null,-6.0000000000000002E-5]
[null,null,null,null,null,null,null,null,null,null,null,null,null,null,null,null,null,null,"|  nationellt"]
[null,null,null,null,null,null,null,null,null,null,null,null,null,null,null,null,null,null,"|  |  tjänste"]
[null,null,null,null,null,null,null,null,null,null,null,null,null,null,null,null,null,null,"|  |  |  existerande/kvarvarande trafik"]
[null,null,null,null,null,null,null,null,null,null,null,null,null,null,null,null,null,null,"|  |  |  tillkommande/försvinnande trafik"]
[null,null,null,null,null,null,null,null,null,null,null,null,null,null,null,null,null,null,"|  |  private"]
[null,null,null,null,null,null,null,null,null,null,null,null,null,null,null,null,null,null,"|  |  |  existerande/kvarvarande trafik"]
[null,null,null,null,null,null,null,null,null,null,null,null,null,null,null,null,null,null,"|  |  |  tillkommande/försvinnande trafik"]
[null,null,null,null,null,null,null,null,null,null,null,null,null,null,null,null,null,null,"|  |  arbete"]
[null,null,null,null,null,null,null,null,null,null,null,null,null,null,null,null,null,null,"|  |  |  existerande/kvarvarande trafik"]
[null,null,null,null,null,null,null,null,null,null,null,null,null,null,null,null,null,null,"|  |  |  tillkommande/försvinnande trafik"]
[null,null,null,null,null,null,null,null,null,null,null,null,null,null,null,null,null,null,"|  regionalt",null,null,null,null,null,null,null,null,null,null,null,-6.0000000000000002E-5]
[null,null,null,null,null,null,null,null,null,null,null,null,null,null,null,null,null,null,"|  |  tjänste",null,null,null,null,null,null,null,null,null,null,null,-6.0000000000000002E-5]
[null,null,null,null,null,null,null,null,null,null,null,null,null,null,null,null,null,null,"|  |  |  existerande/kvarvarande trafik",null,null,null,null,null,null,null,null,null,null,null,-6.0000000000000002E-5]
[null,null,null,null,null,null,null,null,null,null,null,null,null,null,null,null,null,null,"|  |  |  tillkommande/försvinnande trafik"]
[null,null,null,null,null,null,null,null,null,null,null,null,null,null,null,null,null,null,"|  |  private"]
[null,null,null,null,null,null,null,null,null,null,null,null,null,null,null,null,null,null,"|  |  |  existerande/kvarvarande trafik"]
[null,null,null,null,null,null,null,null,null,null,null,null,null,null,null,null,null,null,"|  |  |  tillkommande/försvinnande trafik"]
[null,null,null,null,null,null,null,null,null,null,null,null,null,null,null,null,null,null,"|  |  arbete"]
[null,null,null,null,null,null,null,null,null,null,null,null,null,null,null,null,null,null,"|  |  |  existerande/kvarvarande trafik"]
[null,null,null,null,null,null,null,null,null,null,null,null,null,null,null,null,null,null,"|  |  |  tillkommande/försvinnande trafik"]
[null,null,null,null,null,null,null,null,null,null,null,null,null,null,null,null,null,null,"Godskostnader, MSEK",null,null,null,null,null,-1.0579400000000001,null,null,-3.1616300000000002,null,null,-9.7959099999999992]
[null,null,null,null,null,null,null,null,null,null,null,null,null,null,null,null,null,null,"|  nationellt"]
[null,null,null,null,null,null,null,null,null,null,null,null,null,null,null,null,null,null,"|  |  tjänste"]
[null,null,null,null,null,null,null,null,null,null,null,null,null,null,null,null,null,null,"|  |  |  existerande/kvarvarande trafik"]
[null,null,null,null,null,null,null,null,null,null,null,null,null,null,null,null,null,null,"|  |  |  tillkommande/försvinnande trafik"]
[null,null,null,null,null,null,null,null,null,null,null,null,null,null,null,null,null,null,"|  |  private"]
[null,null,null,null,null,null,null,null,null,null,null,null,null,null,null,null,null,null,"|  |  |  existerande/kvarvarande trafik"]
[null,null,null,null,null,null,null,null,null,null,null,null,null,null,null,null,null,null,"|  |  |  tillkommande/försvinnande trafik"]
[null,null,null,null,null,null,null,null,null,null,null,null,null,null,null,null,null,null,"|  |  arbete"]
[null,null,null,null,null,null,null,null,null,null,null,null,null,null,null,null,null,null,"|  |  |  existerande/kvarvarande trafik"]
[null,null,null,null,null,null,null,null,null,null,null,null,null,null,null,null,null,null,"|  |  |  tillkommande/försvinnande trafik"]
[null,null,null,null,null,null,null,null,null,null,null,null,null,null,null,null,null,null,"|  regionalt",null,null,null,null,null,-1.0579400000000001,null,null,-3.1616300000000002,null,null,-9.7959099999999992]
[null,null,null,null,null,null,null,null,null,null,null,null,null,null,null,null,null,null,"|  |  tjänste",null,null,null,null,null,-1.0579400000000001,null,null,-3.1616300000000002,null,null,-9.7959099999999992]
[null,null,null,null,null,null,null,null,null,null,null,null,null,null,null,null,null,null,"|  |  |  existerande/kvarvarande trafik",null,null,null,null,null,-1.0579400000000001,null,null,-3.1616300000000002,null,null,-9.7959099999999992]
[null,null,null,null,null,null,null,null,null,null,null,null,null,null,null,null,null,null,"|  |  |  tillkommande/försvinnande trafik"]
[null,null,null,null,null,null,null,null,null,null,null,null,null,null,null,null,null,null,"|  |  private"]
[null,null,null,null,null,null,null,null,null,null,null,null,null,null,null,null,null,null,"|  |  |  existerande/kvarvarande trafik"]
[null,null,null,null,null,null,null,null,null,null,null,null,null,null,null,null,null,null,"|  |  |  tillkommande/försvinnande trafik"]
[null,null,null,null,null,null,null,null,null,null,null,null,null,null,null,null,null,null,"|  |  arbete"]
[null,null,null,null,null,null,null,null,null,null,null,null,null,null,null,null,null,null,"|  |  |  existerande/kvarvarande trafik"]
[null,null,null,null,null,null,null,null,null,null,null,null,null,null,null,null,null,null,"|  |  |  tillkommande/försvinnande trafik"]
[null,null,null,null,null,null,null,null,null,null,null,null,null,null,null,null,null,null,"EXTERNA EFFEKTER"]
[null,null,null,null,null,null,null,null,null,null,null,null,null,null,null,null,null,null,"Luftföroreningar o klimatgaser, mängder"]
[null,null,null,null,null,null,null,null,null,null,null,null,null,null,null,null,null,null,"|  NOx, ton"]
[null,null,null,null,null,null,null,null,null,null,null,null,null,null,null,null,null,null,"|  |  landsbygd"]
[null,null,null,null,null,null,null,null,null,null,null,null,null,null,null,null,null,null,"|  |  tätort"]
[null,null,null,null,null,null,null,null,null,null,null,null,null,null,null,null,null,null,"|  Avgaspartiklar, ton"]
[null,null,null,null,null,null,null,null,null,null,null,null,null,null,null,null,null,null,"|  |  landsbygd"]
[null,null,null,null,null,null,null,null,null,null,null,null,null,null,null,null,null,null,"|  |  tätort"]
[null,null,null,null,null,null,null,null,null,null,null,null,null,null,null,null,null,null,"|  CO2, kton"]
[null,null,null,null,null,null,null,null,null,null,null,null,null,null,null,null,null,null,"|  |  landsbygd"]
[null,null,null,null,null,null,null,null,null,null,null,null,null,null,null,null,null,null,"|  |  tätort"]
[null,null,null,null,null,null,null,null,null,null,null,null,null,null,null,null,null,null,"|  Slitagepartiklar, ton"]
[null,null,null,null,null,null,null,null,null,null,null,null,null,null,null,null,null,null,"|  |  landsbygd"]
[null,null,null,null,null,null,null,null,null,null,null,null,null,null,null,null,null,null,"|  |  tätort"]
[null,null,null,null,null,null,null,null,null,null,null,null,null,null,null,null,null,null,"Luftföroreningar o klimatgaser, MSEK",57562.277340000001,57492.652340000001,-69.625399999999999,7994.0815400000001,7987.375,-6.7066800000000004,13671.285159999999,13657.085940000001,-14.19979,21329.583979999999,21311.609380000002,-17.973500000000001,1735.9957300000001,1735.99316,-2.5600000000000002E-3,3389.9799800000001,3389.9799800000001,null,null,null,null,102201.71094,102201.71094]
[null,null,null,null,null,null,null,null,null,null,null,null,null,null,null,null,null,null,"|  NOx",33.881340000000002,33.87162,-9.7199999999999995E-3,4.4728599999999998,4.4714999999999998,-1.3600000000000001E-3,13.924810000000001,13.9102,-1.461E-2,19.791810000000002,19.779350000000001,-1.2460000000000001E-2,null,null,null,6.0606,6.0606,null,null,null,null,247.64864,247.64864]
[null,null,null,null,null,null,null,null,null,null,null,null,null,null,null,null,null,null,"|  |  landsbygd",23.22993,23.248609999999999,1.8679999999999999E-2,2.8783099999999999,2.87948,1.17E-3,9.4157100000000007,9.4187499999999993,3.0500000000000002E-3,17.480810000000002,17.49109,1.0279999999999999E-2,null,null,null,5.5757500000000002,5.5757500000000002,null,null,null,null,222.88377,222.88377]
[null,null,null,null,null,null,null,null,null,null,null,null,null,null,null,null,null,null,"|  |  tätort",10.651400000000001,10.623010000000001,-2.8389999999999999E-2,1.5945499999999999,1.59202,-2.5300000000000001E-3,4.5091099999999997,4.4914500000000004,-1.7659999999999999E-2,2.3109999999999999,2.2882600000000002,-2.274E-2,null,null,null,0.48485,0.48485,null,null,null,null,24.764859999999999,24.764859999999999]
[null,null,null,null,null,null,null,null,null,null,null,null,null,null,null,null,null,null,"|  Avgaspartiklar",418.66919000000001,417.55322000000001,-1.1159600000000001,62.676139999999997,62.57687,-9.9269999999999997E-2,114.44815,114.00002000000001,-0.44812999999999997,81.193280000000001,80.394350000000003,-0.79893000000000003,null,null,null,10.03102,10.03102]
[null,null,null,null,null,null,null,null,null,null,null,null,null,null,null,null,null,null,"|  |  landsbygd"]
[null,null,null,null,null,null,null,null,null,null,null,null,null,null,null,null,null,null,"|  |  tätort",418.66919000000001,417.55322000000001,-1.1159600000000001,62.676139999999997,62.57687,-9.9269999999999997E-2,114.44815,114.00002000000001,-0.44812999999999997,81.193280000000001,80.394350000000003,-0.79893000000000003,null,null,null,10.03102,10.03102]
[null,null,null,null,null,null,null,null,null,null,null,null,null,null,null,null,null,null,"|  CO2",32825.035159999999,32821.265630000002,-3.7688899999999999,4291.4350599999998,4290.5874000000003,-0.84760999999999997,11688.545899999999,11682.070309999999,-6.4760299999999997,20454.248049999998,20444.70508,-9.5426900000000003,null,null,null,3373.88843,3373.88843,null,null,null,null,101954.0625,101954.0625]
[null,null,null,null,null,null,null,null,null,null,null,null,null,null,null,null,null,null,"|  |  landsbygd",24132.894530000001,24152.29492,19.400379999999998,2990.1936000000001,2991.4069800000002,1.2134100000000001,9269.1679700000004,9272.1660200000006,2.9975200000000002,18385.251950000002,18396.066409999999,10.81579,null,null,null,3103.9772899999998,3103.9772899999998,null,null,null,null,91758.65625,91758.65625]
[null,null,null,null,null,null,null,null,null,null,null,null,null,null,null,null,null,null,"|  |  tätort",8692.1396499999992,8668.9697300000007,-23.169270000000001,1301.24146,1299.1805400000001,-2.0610200000000001,2419.37817,2409.90479,-9.4735499999999995,2068.99658,2048.6381799999999,-20.35848,null,null,null,269.91107,269.91107,null,null,null,null,10195.40625,10195.40625]
[null,null,null,null,null,null,null,null,null,null,null,null,null,null,null,null,null,null,"|  Slitagepartiklar",24284.691409999999,24219.960940000001,-64.730829999999997,3635.4975599999998,3629.7390099999998,-5.7584299999999997,1854.3665800000001,1847.1055899999999,-7.2610099999999997,774.35071000000005,766.73126000000002,-7.6194300000000004,1735.9957300000001,1735.99316,-2.5600000000000002E-3]
[null,null,null,null,null,null,null,null,null,null,null,null,null,null,null,null,null,null,"|  |  landsbygd"]
[null,null,null,null,null,null,null,null,null,null,null,null,null,null,null,null,null,null,"|  |  tätort",24284.691409999999,24219.960940000001,-64.730829999999997,3635.4975599999998,3629.7390099999998,-5.7584299999999997,1854.3665800000001,1847.1055899999999,-7.2610099999999997,774.35071000000005,766.73126000000002,-7.6194300000000004,1735.9957300000001,1735.99316,-2.5600000000000002E-3]
[null,null,null,null,null,null,null,null,null,null,null,null,null,null,null,null,null,null,"Trafikolyckor, antal"]
[null,null,null,null,null,null,null,null,null,null,null,null,null,null,null,null,null,null,"|  existerande/kvarvarande trafik"]
[null,null,null,null,null,null,null,null,null,null,null,null,null,null,null,null,null,null,"|  Från sjukvårdsrapporter (uppräknat för bortfall)"]
[null,null,null,null,null,null,null,null,null,null,null,null,null,null,null,null,null,null,"|  |  Dödade"]
[null,null,null,null,null,null,null,null,null,null,null,null,null,null,null,null,null,null,"|  |  Mycket allvarligt skadade (MAS)"]
[null,null,null,null,null,null,null,null,null,null,null,null,null,null,null,null,null,null,"|  |  Allvarligt skadade exkl. MAS"]
[null,null,null,null,null,null,null,null,null,null,null,null,null,null,null,null,null,null,"|  |  Ej allvarligt skadade"]
[null,null,null,null,null,null,null,null,null,null,null,null,null,null,null,null,null,null,"|  |  Egendomsskador"]
[null,null,null,null,null,null,null,null,null,null,null,null,null,null,null,null,null,null,"|  Från polisrapporter (uppräknat för bortfall)"]
[null,null,null,null,null,null,null,null,null,null,null,null,null,null,null,null,null,null,"|  |  Svårt skadade"]
[null,null,null,null,null,null,null,null,null,null,null,null,null,null,null,null,null,null,"|  |  Lindrigt skadade"]
[null,null,null,null,null,null,null,null,null,null,null,null,null,null,null,null,null,null,"|  tillkommande/försvinnande trafik"]
[null,null,null,null,null,null,null,null,null,null,null,null,null,null,null,null,null,null,"|  Från sjukvårdsrapporter (uppräknat för bortfall)"]
[null,null,null,null,null,null,null,null,null,null,null,null,null,null,null,null,null,null,"|  |  Dödade"]
[null,null,null,null,null,null,null,null,null,null,null,null,null,null,null,null,null,null,"|  |  Mycket allvarligt skadade (MAS)"]
[null,null,null,null,null,null,null,null,null,null,null,null,null,null,null,null,null,null,"|  |  Allvarligt skadade exkl. MAS"]
[null,null,null,null,null,null,null,null,null,null,null,null,null,null,null,null,null,null,"|  |  Ej allvarligt skadade"]
[null,null,null,null,null,null,null,null,null,null,null,null,null,null,null,null,null,null,"|  |  Egendomsskador"]
[null,null,null,null,null,null,null,null,null,null,null,null,null,null,null,null,null,null,"|  Från polisrapporter (uppräknat för bortfall)"]
[null,null,null,null,null,null,null,null,null,null,null,null,null,null,null,null,null,null,"|  |  Svårt skadade"]
[null,null,null,null,null,null,null,null,null,null,null,null,null,null,null,null,null,null,"|  |  Lindrigt skadade"]
[null,null,null,null,null,null,null,null,null,null,null,null,null,null,null,null,null,null,"Trafikolyckor, MSEK",null,null,-1223.1066900000001,null,null,-142.40711999999999,null,null,-195.18334999999999,null,null,-385.82641999999998]
[null,null,null,null,null,null,null,null,null,null,null,null,null,null,null,null,null,null,"|  extern olyckskostnad",588121.3125,586898.25,-1223.1066900000001,80836.1875,80693.78125,-142.40711999999999,59445.082029999998,59249.898439999997,-195.18334999999999,116701.23437999999,116315.40625,-385.82641999999998,8790.4482399999997,8790.4482399999997,null,13831.88184,13831.88184,null,null,null,null,87.332530000000006,87.332530000000006]
[null,null,null,null,null,null,null,null,null,null,null,null,null,null,null,null,null,null,"|  |  landsbygd",394020.28125,393774.625,-245.66945999999999,51175.414060000003,51122.558590000001,-52.853450000000002,43394.789060000003,43344.285159999999,-50.504759999999997,101365.01562999999,101224.85156,-140.16495,7032.3584000000001,7032.3584000000001,null,12725.33008,12725.33008,null,null,null,null,78.599270000000004,78.599270000000004]
[null,null,null,null,null,null,null,null,null,null,null,null,null,null,null,null,null,null,"|  |  tätort",194101.03125,193123.59375,-977.43726000000004,29660.773440000001,29571.220700000002,-89.553669999999997,16050.29297,15905.61426,-144.67859000000001,15336.217769999999,15090.55566,-245.66147000000001,1758.0896,1758.0896,null,1106.55151,1106.55151,null,null,null,null,8.73325,8.73325]
[null,null,null,null,null,null,null,null,null,null,null,null,null,null,null,null,null,null,"Marginellt slitage, MSEK",11552.57092,11553.00261,0.43169000000000002,1497.2680800000001,1497.1155200000001,-0.15256,3808.7437500000001,3807.0839299999998,-1.6598299999999999,19556.649720000001,19551.18159,-5.4681300000000004,8769.3200799999995,8769.3102500000005,-9.8300000000000002E-3,31617.862349999999,31617.84662,-1.5720000000000001E-2]
[]
[]
[]
[]
[]
[]
[]
[]
[]
[]
[]
[null,null,null,null,null,null,null,null,null,null,null,null,null,null,null,null,null,null,"Markera och klipp ut alla cellerna från A1 till Y336 i fliken \"Resultat prognosår\".  Ställ markören i cellen S384 i denna flik och klistra in dessa celler med funktionen \"Klistra in special\"/\"Värden\"."]
[null,null,null,null,null,null,null,null,null,null,null,null,null,null,null,null,null,null,"Resultat prognosår"]
[null,null,null,null,null,null,null,null,null,null,null,null,null,null,null,null,null,null,"N A T I O N E L L   O C H   R E G I O N A L   T R A F I K"]
[null,null,null,null,null,null,null,null,null,null,null,null,null,null,null,null,null,null,"Effekter och värden","Pb",null,null,"Pby",null,null,"Lbu",null,null,"Lbs",null,null,"Buss",null,null,"Tåg",null,null,"RegKoll",null,null,"Flyg"]
[null,null,null,null,null,null,null,null,null,null,null,null,null,null,null,null,null,null,"Kalkylperiod 2025-2064","Effekter","Effekter","Differens","Effekter","Effekter","Differens","Effekter","Effekter","Differens","Effekter","Effekter","Differens","Effekter","Effekter","Differens","Effekter","Effekter","Differens","Effekter","Effekter","Differens","Effekter","Effekter","Differens"]
[null,null,null,null,null,null,null,null,null,null,null,null,null,null,null,null,null,null,null,"JA","UA","UA-JA","JA","UA","UA-JA","JA","UA","UA-JA","JA","UA","UA-JA","JA","UA","UA-JA","JA","UA","UA-JA","JA","UA","UA-JA","JA","UA","UA-JA"]
[null,null,null,null,null,null,null,null,null,null,null,null,null,null,null,null,null,null,"ANTAL RESOR"]
[null,null,null,null,null,null,null,null,null,null,null,null,null,null,null,null,null,null,"Antal resor, milj per ar",2945.9962099999998,2946.11429,0.11801,473.60944999999998,473.60944999999998,null,49.37791,49.37791,null,11.48908,11.48908,null,13.47514,13.47514,null,38.878979999999999,38.878979999999999,null,407.63008000000002,407.61959000000002,-1.0500000000000001E-2,6.9651300000000003,6.9651300000000003]
[null,null,null,null,null,null,null,null,null,null,null,null,null,null,null,null,null,null,"|  nationellt",164.06787,164.06787,null,null,null,null,null,null,null,null,null,null,13.47514,13.47514,null,38.878979999999999,38.878979999999999,null,null,null,null,6.9651300000000003,6.9651300000000003]
[null,null,null,null,null,null,null,null,null,null,null,null,null,null,null,null,null,null,"|  |  tjänste",25.922799999999999,25.922799999999999,null,null,null,null,null,null,null,null,null,null,0.31101000000000001,0.31101000000000001,null,8.1208899999999993,8.1208899999999993,null,null,null,null,3.2154600000000002,3.2154600000000002]
[null,null,null,null,null,null,null,null,null,null,null,null,null,null,null,null,null,null,"|  |  |  existerande/kvarvarande trafik"]
[null,null,null,null,null,null,null,null,null,null,null,null,null,null,null,null,null,null,"|  |  |  tillkommande/försvinnande trafik"]
[null,null,null,null,null,null,null,null,null,null,null,null,null,null,null,null,null,null,"|  |  private",122.65016,122.65016,null,null,null,null,null,null,null,null,null,null,12.08957,12.08957,null,22.48058,22.48058,null,null,null,null,2.8586399999999998,2.8586399999999998]
[null,null,null,null,null,null,null,null,null,null,null,null,null,null,null,null,null,null,"|  |  |  existerande/kvarvarande trafik"]
[null,null,null,null,null,null,null,null,null,null,null,null,null,null,null,null,null,null,"|  |  |  tillkommande/försvinnande trafik"]
[null,null,null,null,null,null,null,null,null,null,null,null,null,null,null,null,null,null,"|  |  arbete",15.494910000000001,15.494910000000001,null,null,null,null,null,null,null,null,null,null,1.07457,1.07457,null,8.2775200000000009,8.2775200000000009,null,null,null,null,0.89102999999999999,0.89102999999999999]
[null,null,null,null,null,null,null,null,null,null,null,null,null,null,null,null,null,null,"|  |  |  existerande/kvarvarande trafik"]
[null,null,null,null,null,null,null,null,null,null,null,null,null,null,null,null,null,null,"|  |  |  tillkommande/försvinnande trafik"]
[null,null,null,null,null,null,null,null,null,null,null,null,null,null,null,null,null,null,"|  regionalt",2781.9283500000001,2782.0464299999999,0.11801,473.60944999999998,473.60944999999998,null,49.37791,49.37791,null,11.48908,11.48908,null,null,null,null,null,null,null,407.63008000000002,407.61959000000002,-1.0500000000000001E-2]
[null,null,null,null,null,null,null,null,null,null,null,null,null,null,null,null,null,null,"|  |  tjänste",152.03300999999999,152.03432000000001,1.32E-3,473.60944999999998,473.60944999999998,null,49.37791,49.37791,null,11.48908,11.48908,null,null,null,null,null,null,null,13.663019999999999,13.66272,-2.9999999999999997E-4]
[null,null,null,null,null,null,null,null,null,null,null,null,null,null,null,null,null,null,"|  |  |  existerande/kvarvarande trafik"]
[null,null,null,null,null,null,null,null,null,null,null,null,null,null,null,null,null,null,"|  |  |  tillkommande/försvinnande trafik",null,null,1.32E-3,null,null,null,null,null,null,null,null,null,null,null,null,null,null,null,null,null,-2.9999999999999997E-4]
[null,null,null,null,null,null,null,null,null,null,null,null,null,null,null,null,null,null,"|  |  private",1940.8395,1940.9344000000001,9.4799999999999995E-2,null,null,null,null,null,null,null,null,null,null,null,null,null,null,null,278.24826000000002,278.24164000000002,-6.6100000000000004E-3]
[null,null,null,null,null,null,null,null,null,null,null,null,null,null,null,null,null,null,"|  |  |  existerande/kvarvarande trafik"]
[null,null,null,null,null,null,null,null,null,null,null,null,null,null,null,null,null,null,"|  |  |  tillkommande/försvinnande trafik",null,null,9.4799999999999995E-2,null,null,null,null,null,null,null,null,null,null,null,null,null,null,null,null,null,-6.6100000000000004E-3]
[null,null,null,null,null,null,null,null,null,null,null,null,null,null,null,null,null,null,"|  |  arbete",689.05570999999998,689.07761000000005,2.189E-2,null,null,null,null,null,null,null,null,null,null,null,null,null,null,null,115.71878,115.7152,-3.5799999999999998E-3]
[null,null,null,null,null,null,null,null,null,null,null,null,null,null,null,null,null,null,"|  |  |  existerande/kvarvarande trafik"]
[null,null,null,null,null,null,null,null,null,null,null,null,null,null,null,null,null,null,"|  |  |  tillkommande/försvinnande trafik",null,null,2.189E-2,null,null,null,null,null,null,null,null,null,null,null,null,null,null,null,null,null,-3.5799999999999998E-3]
[null,null,null,null,null,null,null,null,null,null,null,null,null,null,null,null,null,null,"TRAFIK- OCH TRANSPORTARBETSUPPGIFTER"]
[null,null,null,null,null,null,null,null,null,null,null,null,null,null,null,null,null,null,"Trafikarbete, milj fkm/vkm per ar",44548.857360000002,44553.453439999997,4.5981800000000002,6309.1556700000001,6309.1118699999997,-4.3290000000000002E-2,1213.6838600000001,1213.3444099999999,-0.33855000000000002,1333.5199299999999,1333.4887200000001,-3.2120000000000003E-2]
[null,null,null,null,null,null,null,null,null,null,null,null,null,null,null,null,null,null,"|  nationellt",16303.363020000001,16303.363020000001]
[null,null,null,null,null,null,null,null,null,null,null,null,null,null,null,null,null,null,"|  |  tjänste",3942.50954,3942.50954]
[null,null,null,null,null,null,null,null,null,null,null,null,null,null,null,null,null,null,"|  |  |  existerande/kvarvarande trafik"]
[null,null,null,null,null,null,null,null,null,null,null,null,null,null,null,null,null,null,"|  |  |  tillkommande/försvinnande trafik"]
[null,null,null,null,null,null,null,null,null,null,null,null,null,null,null,null,null,null,"|  |  private",11231.12081,11231.12081]
[null,null,null,null,null,null,null,null,null,null,null,null,null,null,null,null,null,null,"|  |  |  existerande/kvarvarande trafik"]
[null,null,null,null,null,null,null,null,null,null,null,null,null,null,null,null,null,null,"|  |  |  tillkommande/försvinnande trafik"]
[null,null,null,null,null,null,null,null,null,null,null,null,null,null,null,null,null,null,"|  |  arbete",1129.7313899999999,1129.7313899999999]
[null,null,null,null,null,null,null,null,null,null,null,null,null,null,null,null,null,null,"|  |  |  existerande/kvarvarande trafik"]
[null,null,null,null,null,null,null,null,null,null,null,null,null,null,null,null,null,null,"|  |  |  tillkommande/försvinnande trafik"]
[null,null,null,null,null,null,null,null,null,null,null,null,null,null,null,null,null,null,"|  regionalt",28245.492880000002,28250.088960000001,4.5981800000000002,6309.1556700000001,6309.1118699999997,-4.3290000000000002E-2,1213.6838600000001,1213.3444099999999,-0.33855000000000002,1333.5199299999999,1333.4887200000001,-3.2120000000000003E-2]
[null,null,null,null,null,null,null,null,null,null,null,null,null,null,null,null,null,null,"|  |  tjänste",1628.26774,1628.41994,0.15231,6309.1556700000001,6309.1118699999997,-4.3290000000000002E-2,1213.6838600000001,1213.3444099999999,-0.33855000000000002,1333.5199299999999,1333.4887200000001,-3.2120000000000003E-2]
[null,null,null,null,null,null,null,null,null,null,null,null,null,null,null,null,null,null,"|  |  |  existerande/kvarvarande trafik",null,null,4.4999999999999999E-4,null,null,-4.3290000000000002E-2,null,null,-0.33855000000000002,null,null,-3.2120000000000003E-2]
[null,null,null,null,null,null,null,null,null,null,null,null,null,null,null,null,null,null,"|  |  |  tillkommande/försvinnande trafik",null,null,0.15185000000000001]
[null,null,null,null,null,null,null,null,null,null,null,null,null,null,null,null,null,null,"|  |  private",15405.96672,15409.11594,3.1537500000000001]
[null,null,null,null,null,null,null,null,null,null,null,null,null,null,null,null,null,null,"|  |  |  existerande/kvarvarande trafik",null,null,2.7150000000000001E-2]
[null,null,null,null,null,null,null,null,null,null,null,null,null,null,null,null,null,null,"|  |  |  tillkommande/försvinnande trafik",null,null,3.1265999999999998]
[null,null,null,null,null,null,null,null,null,null,null,null,null,null,null,null,null,null,"|  |  arbete",11211.258970000001,11212.552530000001,1.2921199999999999]
[null,null,null,null,null,null,null,null,null,null,null,null,null,null,null,null,null,null,"|  |  |  existerande/kvarvarande trafik",null,null,1.925E-2]
[null,null,null,null,null,null,null,null,null,null,null,null,null,null,null,null,null,null,"|  |  |  tillkommande/försvinnande trafik",null,null,1.2728699999999999]
[null,null,null,null,null,null,null,null,null,null,null,null,null,null,null,null,null,null,"Transportarbete, milj pkm per ar",76249.206640000004,76256.822,7.62026,7570.5248600000004,7570.4752200000003,-5.194E-2,1456.6190999999999,1456.21687,-0.40625,1333.5199299999999,1333.4887200000001,-3.2120000000000003E-2,3305.3352500000001,3305.3352500000001,null,10691.43765,10691.43765,null,10501.588739999999,10501.35952,-0.22986999999999999,4605.6079600000003,4605.6079600000003]
[null,null,null,null,null,null,null,null,null,null,null,null,null,null,null,null,null,null,"|  nationellt",32330.4444,32330.4444,null,null,null,null,null,null,null,null,null,null,3305.3352500000001,3305.3352500000001,null,10691.43765,10691.43765,null,null,null,null,4605.6079600000003,4605.6079600000003]
[null,null,null,null,null,null,null,null,null,null,null,null,null,null,null,null,null,null,"|  |  tjänste",4889.1647800000001,4889.1647800000001,null,null,null,null,null,null,null,null,null,null,55.04148,55.04148,null,2137.8591999999999,2137.8591999999999,null,null,null,null,2203.3907599999998,2203.3907599999998]
[null,null,null,null,null,null,null,null,null,null,null,null,null,null,null,null,null,null,"|  |  |  existerande/kvarvarande trafik"]
[null,null,null,null,null,null,null,null,null,null,null,null,null,null,null,null,null,null,"|  |  |  tillkommande/försvinnande trafik"]
[null,null,null,null,null,null,null,null,null,null,null,null,null,null,null,null,null,null,"|  |  private",24933.13248,24933.13248,null,null,null,null,null,null,null,null,null,null,3080.9011300000002,3080.9011300000002,null,7096.3927800000001,7096.3927800000001,null,null,null,null,1865.78017,1865.78017]
[null,null,null,null,null,null,null,null,null,null,null,null,null,null,null,null,null,null,"|  |  |  existerande/kvarvarande trafik"]
[null,null,null,null,null,null,null,null,null,null,null,null,null,null,null,null,null,null,"|  |  |  tillkommande/försvinnande trafik"]
[null,null,null,null,null,null,null,null,null,null,null,null,null,null,null,null,null,null,"|  |  arbete",2508.1458600000001,2508.1458600000001,null,null,null,null,null,null,null,null,null,null,169.39254,169.39254,null,1457.1859400000001,1457.1859400000001,null,null,null,null,536.43676000000005,536.43676000000005]
[null,null,null,null,null,null,null,null,null,null,null,null,null,null,null,null,null,null,"|  |  |  existerande/kvarvarande trafik"]
[null,null,null,null,null,null,null,null,null,null,null,null,null,null,null,null,null,null,"|  |  |  tillkommande/försvinnande trafik"]
[null,null,null,null,null,null,null,null,null,null,null,null,null,null,null,null,null,null,"|  regionalt",43918.762239999996,43926.3776,7.62026,7570.5248600000004,7570.4752200000003,-5.194E-2,1456.6190999999999,1456.21687,-0.40625,1333.5199299999999,1333.4887200000001,-3.2120000000000003E-2,null,null,null,null,null,null,10501.588739999999,10501.35952,-0.22986999999999999]
[null,null,null,null,null,null,null,null,null,null,null,null,null,null,null,null,null,null,"|  |  tjänste",2133.0267899999999,2133.2264399999999,0.19952,7570.5248600000004,7570.4752200000003,-5.194E-2,1456.6190999999999,1456.21687,-0.40625,1333.5199299999999,1333.4887200000001,-3.2120000000000003E-2,null,null,null,null,null,null,377.53897999999998,377.53375999999997,-5.2199999999999998E-3]
[null,null,null,null,null,null,null,null,null,null,null,null,null,null,null,null,null,null,"|  |  |  existerande/kvarvarande trafik",null,null,5.9000000000000003E-4,null,null,-5.194E-2,null,null,-0.40625,null,null,-3.2120000000000003E-2]
[null,null,null,null,null,null,null,null,null,null,null,null,null,null,null,null,null,null,"|  |  |  tillkommande/försvinnande trafik",null,null,0.19893,null,null,null,null,null,null,null,null,null,null,null,null,null,null,null,null,null,-5.2199999999999998E-3]
[null,null,null,null,null,null,null,null,null,null,null,null,null,null,null,null,null,null,"|  |  private",29117.150839999998,29123.110560000001,5.96061,null,null,null,null,null,null,null,null,null,null,null,null,null,null,null,6566.5617000000002,6566.4324900000001,-0.12926000000000001]
[null,null,null,null,null,null,null,null,null,null,null,null,null,null,null,null,null,null,"|  |  |  existerande/kvarvarande trafik",null,null,5.1319999999999998E-2]
[null,null,null,null,null,null,null,null,null,null,null,null,null,null,null,null,null,null,"|  |  |  tillkommande/försvinnande trafik",null,null,5.9092900000000004,null,null,null,null,null,null,null,null,null,null,null,null,null,null,null,null,null,-0.12926000000000001]
[null,null,null,null,null,null,null,null,null,null,null,null,null,null,null,null,null,null,"|  |  arbete",12668.58352,12670.04206,1.4601299999999999,null,null,null,null,null,null,null,null,null,null,null,null,null,null,null,3557.4881999999998,3557.39293,-9.5399999999999999E-2]
[null,null,null,null,null,null,null,null,null,null,null,null,null,null,null,null,null,null,"|  |  |  existerande/kvarvarande trafik",null,null,2.1760000000000002E-2]
[null,null,null,null,null,null,null,null,null,null,null,null,null,null,null,null,null,null,"|  |  |  tillkommande/försvinnande trafik",null,null,1.43838,null,null,null,null,null,null,null,null,null,null,null,null,null,null,null,null,null,-9.5399999999999999E-2]
[null,null,null,null,null,null,null,null,null,null,null,null,null,null,null,null,null,null,"PRODUCENTOVERSKOTT"]
[null,null,null,null,null,null,null,null,null,null,null,null,null,null,null,null,null,null,"Biljettintäkter, MSEK per ar",null,null,null,null,null,null,null,null,null,null,null,null,3993.8662100000001,3993.5976599999999,-0.26845999999999998,13536.38574,13536.35449,-3.143E-2,null,null,null,7246.0488299999997,7246.0488299999997]
[null,null,null,null,null,null,null,null,null,null,null,null,null,null,null,null,null,null,"|  nationellt",null,null,null,null,null,null,null,null,null,null,null,null,2187.0061000000001,2187.0061000000001,null,13279.74512,13279.74512,null,null,null,null,7246.0488299999997,7246.0488299999997]
[null,null,null,null,null,null,null,null,null,null,null,null,null,null,null,null,null,null,"|  |  tjänste",null,null,null,null,null,null,null,null,null,null,null,null,37.877659999999999,37.877659999999999,null,5148.9863299999997,5148.9863299999997,null,null,null,null,4674.8598599999996,4674.8598599999996]
[null,null,null,null,null,null,null,null,null,null,null,null,null,null,null,null,null,null,"|  |  private",null,null,null,null,null,null,null,null,null,null,null,null,2029.85022,2029.85022,null,6724.7607399999997,6724.7607399999997,null,null,null,null,1993.48938,1993.48938]
[null,null,null,null,null,null,null,null,null,null,null,null,null,null,null,null,null,null,"|  |  arbete",null,null,null,null,null,null,null,null,null,null,null,null,119.27821,119.27821,null,1405.9978000000001,1405.9978000000001,null,null,null,null,577.69983000000002,577.69983000000002]
[null,null,null,null,null,null,null,null,null,null,null,null,null,null,null,null,null,null,"|  regionalt",null,null,null,null,null,null,null,null,null,null,null,null,1806.86023,1806.59167,-0.26845999999999998,256.64040999999997,256.60897999999997,-3.143E-2]
[null,null,null,null,null,null,null,null,null,null,null,null,null,null,null,null,null,null,"|  |  tjänste",null,null,null,null,null,null,null,null,null,null,null,null,68.344130000000007,68.333399999999997,-1.073E-2,12.1622,12.16165,-5.5000000000000003E-4]
[null,null,null,null,null,null,null,null,null,null,null,null,null,null,null,null,null,null,"|  |  private",null,null,null,null,null,null,null,null,null,null,null,null,1431.02979,1430.8693800000001,-0.16037999999999999,175.29464999999999,175.29044999999999,-4.1999999999999997E-3]
[null,null,null,null,null,null,null,null,null,null,null,null,null,null,null,null,null,null,"|  |  arbete",null,null,null,null,null,null,null,null,null,null,null,null,307.48630000000003,307.38895000000002,-9.7350000000000006E-2,69.18356,69.156880000000001,-2.6679999999999999E-2]
[null,null,null,null,null,null,null,null,null,null,null,null,null,null,null,null,null,null,"Fordonskostnader för kollektivtrafik, MSEK per ar",null,null,null,null,null,null,null,null,null,null,null,null,12034.974609999999,12034.94629,-2.8320000000000001E-2,12521.17578,12521.162109999999,-1.367E-2,null,null,null,11542.219730000001,11542.219730000001]
[null,null,null,null,null,null,null,null,null,null,null,null,null,null,null,null,null,null,"Moms på biljettintäkter, MSEK per ar",null,null,null,null,null,null,null,null,null,null,null,null,226.06790000000001,226.05269999999999,-1.52E-2,766.21052999999995,766.20875999999998,-1.7799999999999999E-3,null,null,null,410.15370999999999,410.15370999999999]
[null,null,null,null,null,null,null,null,null,null,null,null,null,null,null,null,null,null,"Banavgifter, MSEK per ar",null,null,null,null,null,null,null,null,null,null,null,null,null,null,null,1122.6438000000001,1122.6433099999999,-4.8999999999999998E-4]
[null,null,null,null,null,null,null,null,null,null,null,null,null,null,null,null,null,null,"BUDGETEFFEKTER"]
[null,null,null,null,null,null,null,null,null,null,null,null,null,null,null,null,null,null,"Drivmedelsskatt för vägtrafik, MSEK per ar",15591.439280000001,15593.04674,1.6093500000000001,2207.99541,2207.98209,-1.515E-2,1590.1601000000001,1589.7162599999999,-0.44347999999999999,3053.89113,3053.8142899999998,-7.3550000000000004E-2]
[null,null,null,null,null,null,null,null,null,null,null,null,null,null,null,null,null,null,"|  nationellt",5705.8413300000002,5705.8413300000002]
[null,null,null,null,null,null,null,null,null,null,null,null,null,null,null,null,null,null,"|  |  tjänste",1380.12112,1380.12112]
[null,null,null,null,null,null,null,null,null,null,null,null,null,null,null,null,null,null,"|  |  |  existerande/kvarvarande trafik"]
[null,null,null,null,null,null,null,null,null,null,null,null,null,null,null,null,null,null,"|  |  |  tillkommande/försvinnande trafik"]
[null,null,null,null,null,null,null,null,null,null,null,null,null,null,null,null,null,null,"|  |  private",3930.2747399999998,3930.2747399999998]
[null,null,null,null,null,null,null,null,null,null,null,null,null,null,null,null,null,null,"|  |  |  existerande/kvarvarande trafik"]
[null,null,null,null,null,null,null,null,null,null,null,null,null,null,null,null,null,null,"|  |  |  tillkommande/försvinnande trafik"]
[null,null,null,null,null,null,null,null,null,null,null,null,null,null,null,null,null,null,"|  |  arbete",395.44538,395.44538]
[null,null,null,null,null,null,null,null,null,null,null,null,null,null,null,null,null,null,"|  |  |  existerande/kvarvarande trafik"]
[null,null,null,null,null,null,null,null,null,null,null,null,null,null,null,null,null,null,"|  |  |  tillkommande/försvinnande trafik"]
[null,null,null,null,null,null,null,null,null,null,null,null,null,null,null,null,null,null,"|  regionalt",9885.5972199999997,9887.2054100000005,1.6093500000000001,2207.99541,2207.98209,-1.515E-2,1590.1601000000001,1589.7162599999999,-0.44347999999999999,3053.89113,3053.8142899999998,-7.3550000000000004E-2]
[null,null,null,null,null,null,null,null,null,null,null,null,null,null,null,null,null,null,"|  |  tjänste",569.89215999999999,569.94498999999996,5.3310000000000003E-2,2207.99541,2207.98209,-1.515E-2,1590.1601000000001,1589.7162599999999,-0.44347999999999999,3053.89113,3053.8142899999998,-7.3550000000000004E-2]
[null,null,null,null,null,null,null,null,null,null,null,null,null,null,null,null,null,null,"|  |  |  existerande/kvarvarande trafik",null,null,1.6000000000000001E-4,null,null,-1.515E-2,null,null,-0.44347999999999999,null,null,-7.3550000000000004E-2]
[null,null,null,null,null,null,null,null,null,null,null,null,null,null,null,null,null,null,"|  |  |  tillkommande/försvinnande trafik",null,null,5.3150000000000003E-2]
[null,null,null,null,null,null,null,null,null,null,null,null,null,null,null,null,null,null,"|  |  private",5392.0380599999999,5393.1432800000002,1.1038300000000001]
[null,null,null,null,null,null,null,null,null,null,null,null,null,null,null,null,null,null,"|  |  |  existerande/kvarvarande trafik",null,null,9.4999999999999998E-3]
[null,null,null,null,null,null,null,null,null,null,null,null,null,null,null,null,null,null,"|  |  |  tillkommande/försvinnande trafik",null,null,1.09432]
[null,null,null,null,null,null,null,null,null,null,null,null,null,null,null,null,null,null,"|  |  arbete",3923.66678,3924.1171899999999,0.45222000000000001]
[null,null,null,null,null,null,null,null,null,null,null,null,null,null,null,null,null,null,"|  |  |  existerande/kvarvarande trafik",null,null,6.7400000000000003E-3]
[null,null,null,null,null,null,null,null,null,null,null,null,null,null,null,null,null,null,"|  |  |  tillkommande/försvinnande trafik",null,null,0.44547999999999999]
[null,null,null,null,null,null,null,null,null,null,null,null,null,null,null,null,null,null,"Vägavgifter/vägskatt, MSEK per ar",null,null,null,null,null,null,null,null,null,null,null,0]
[null,null,null,null,null,null,null,null,null,null,null,null,null,null,null,null,null,null,"|  nationellt"]
[null,null,null,null,null,null,null,null,null,null,null,null,null,null,null,null,null,null,"|  |  tjänste"]
[null,null,null,null,null,null,null,null,null,null,null,null,null,null,null,null,null,null,"|  |  |  existerande/kvarvarande trafik"]
[null,null,null,null,null,null,null,null,null,null,null,null,null,null,null,null,null,null,"|  |  |  tillkommande/försvinnande trafik"]
[null,null,null,null,null,null,null,null,null,null,null,null,null,null,null,null,null,null,"|  |  private"]
[null,null,null,null,null,null,null,null,null,null,null,null,null,null,null,null,null,null,"|  |  |  existerande/kvarvarande trafik"]
[null,null,null,null,null,null,null,null,null,null,null,null,null,null,null,null,null,null,"|  |  |  tillkommande/försvinnande trafik"]
[null,null,null,null,null,null,null,null,null,null,null,null,null,null,null,null,null,null,"|  |  arbete"]
[null,null,null,null,null,null,null,null,null,null,null,null,null,null,null,null,null,null,"|  |  |  existerande/kvarvarande trafik"]
[null,null,null,null,null,null,null,null,null,null,null,null,null,null,null,null,null,null,"|  |  |  tillkommande/försvinnande trafik"]
[null,null,null,null,null,null,null,null,null,null,null,null,null,null,null,null,null,null,"|  regionalt",null,null,null,null,null,null,null,null,null,null,null,0]
[null,null,null,null,null,null,null,null,null,null,null,null,null,null,null,null,null,null,"|  |  tjänste",null,null,null,null,null,null,null,null,null,null,null,0]
[null,null,null,null,null,null,null,null,null,null,null,null,null,null,null,null,null,null,"|  |  |  existerande/kvarvarande trafik",null,null,null,null,null,null,null,null,null,null,null,0]
[null,null,null,null,null,null,null,null,null,null,null,null,null,null,null,null,null,null,"|  |  |  tillkommande/försvinnande trafik"]
[null,null,null,null,null,null,null,null,null,null,null,null,null,null,null,null,null,null,"|  |  private"]
[null,null,null,null,null,null,null,null,null,null,null,null,null,null,null,null,null,null,"|  |  |  existerande/kvarvarande trafik"]
[null,null,null,null,null,null,null,null,null,null,null,null,null,null,null,null,null,null,"|  |  |  tillkommande/försvinnande trafik"]
[null,null,null,null,null,null,null,null,null,null,null,null,null,null,null,null,null,null,"|  |  arbete"]
[null,null,null,null,null,null,null,null,null,null,null,null,null,null,null,null,null,null,"|  |  |  existerande/kvarvarande trafik"]
[null,null,null,null,null,null,null,null,null,null,null,null,null,null,null,null,null,null,"|  |  |  tillkommande/försvinnande trafik"]
[null,null,null,null,null,null,null,null,null,null,null,null,null,null,null,null,null,null,"Moms på biljettintäkter, MSEK per ar",null,null,null,null,null,null,null,null,null,null,null,null,226.06790000000001,226.05269999999999,-1.52E-2,766.21052999999995,766.20875999999998,-1.7799999999999999E-3,null,null,null,410.15370999999999,410.15370999999999]
[null,null,null,null,null,null,null,null,null,null,null,null,null,null,null,null,null,null,"Banavgifter, MSEK per ar",null,null,null,null,null,null,null,null,null,null,null,null,null,null,null,1122.6438000000001,1122.6433099999999,-4.8999999999999998E-4]
[]
[null,null,null,null,null,null,null,null,null,null,null,null,null,null,null,null,null,null,"KONSUMENTOVERSKOTT"]
[null,null,null,null,null,null,null,null,null,null,null,null,null,null,null,null,null,null,"Restider, Mh per ar",962.17614000000003,961.98833999999999,-0.18748999999999999,106.30516,106.286,-1.9380000000000001E-2,21.705649999999999,21.680779999999999,-2.4830000000000001E-2,17.995819999999998,17.98133,-1.448E-2,111.9529,111.9529,null,153.1019,153.1019,null,401.10597999999999,401.10597999999999,null,38.4495,38.4495]
[null,null,null,null,null,null,null,null,null,null,null,null,null,null,null,null,null,null,"|  nationellt",345.98534999999998,345.98534999999998,null,null,null,null,null,null,null,null,null,null,111.9529,111.9529,null,153.1019,153.1019,null,null,null,null,38.4495,38.4495]
[null,null,null,null,null,null,null,null,null,null,null,null,null,null,null,null,null,null,"|  |  tjänste",52.076360000000001,52.076360000000001,null,null,null,null,null,null,null,null,null,null,1.9514199999999999,1.9514199999999999,null,30.322379999999999,30.322379999999999,null,null,null,null,17.949490000000001,17.949490000000001]
[null,null,null,null,null,null,null,null,null,null,null,null,null,null,null,null,null,null,"|  |  |  existerande/kvarvarande trafik"]
[null,null,null,null,null,null,null,null,null,null,null,null,null,null,null,null,null,null,"|  |  |  |  åktid"]
[null,null,null,null,null,null,null,null,null,null,null,null,null,null,null,null,null,null,"|  |  |  |  anslutningstid"]
[null,null,null,null,null,null,null,null,null,null,null,null,null,null,null,null,null,null,"|  |  |  |  bytestid"]
[null,null,null,null,null,null,null,null,null,null,null,null,null,null,null,null,null,null,"|  |  |  |  väntetid"]
[null,null,null,null,null,null,null,null,null,null,null,null,null,null,null,null,null,null,"|  |  |  tillkommande/försvinnande trafik"]
[null,null,null,null,null,null,null,null,null,null,null,null,null,null,null,null,null,null,"|  |  |  |  åktid"]
[null,null,null,null,null,null,null,null,null,null,null,null,null,null,null,null,null,null,"|  |  |  |  anslutningstid"]
[null,null,null,null,null,null,null,null,null,null,null,null,null,null,null,null,null,null,"|  |  |  |  bytestid"]
[null,null,null,null,null,null,null,null,null,null,null,null,null,null,null,null,null,null,"|  |  |  |  väntetid"]
[null,null,null,null,null,null,null,null,null,null,null,null,null,null,null,null,null,null,"|  |  private",266.99864000000002,266.99864000000002,null,null,null,null,null,null,null,null,null,null,104.11046,104.11046,null,101.81874999999999,101.81874999999999,null,null,null,null,16.371580000000002,16.371580000000002]
[null,null,null,null,null,null,null,null,null,null,null,null,null,null,null,null,null,null,"|  |  |  existerande/kvarvarande trafik"]
[null,null,null,null,null,null,null,null,null,null,null,null,null,null,null,null,null,null,"|  |  |  |  åktid"]
[null,null,null,null,null,null,null,null,null,null,null,null,null,null,null,null,null,null,"|  |  |  |  anslutningstid"]
[null,null,null,null,null,null,null,null,null,null,null,null,null,null,null,null,null,null,"|  |  |  |  bytestid"]
[null,null,null,null,null,null,null,null,null,null,null,null,null,null,null,null,null,null,"|  |  |  |  väntetid"]
[null,null,null,null,null,null,null,null,null,null,null,null,null,null,null,null,null,null,"|  |  |  tillkommande/försvinnande trafik"]
[null,null,null,null,null,null,null,null,null,null,null,null,null,null,null,null,null,null,"|  |  |  |  åktid"]
[null,null,null,null,null,null,null,null,null,null,null,null,null,null,null,null,null,null,"|  |  |  |  anslutningstid"]
[null,null,null,null,null,null,null,null,null,null,null,null,null,null,null,null,null,null,"|  |  |  |  bytestid"]
[null,null,null,null,null,null,null,null,null,null,null,null,null,null,null,null,null,null,"|  |  |  |  väntetid"]
[null,null,null,null,null,null,null,null,null,null,null,null,null,null,null,null,null,null,"|  |  arbete",26.910360000000001,26.910360000000001,null,null,null,null,null,null,null,null,null,null,5.8910299999999998,5.8910299999999998,null,20.96077,20.96077,null,null,null,null,4.1284299999999998,4.1284299999999998]
[null,null,null,null,null,null,null,null,null,null,null,null,null,null,null,null,null,null,"|  |  |  existerande/kvarvarande trafik"]
[null,null,null,null,null,null,null,null,null,null,null,null,null,null,null,null,null,null,"|  |  |  |  åktid"]
[null,null,null,null,null,null,null,null,null,null,null,null,null,null,null,null,null,null,"|  |  |  |  anslutningstid"]
[null,null,null,null,null,null,null,null,null,null,null,null,null,null,null,null,null,null,"|  |  |  |  bytestid"]
[null,null,null,null,null,null,null,null,null,null,null,null,null,null,null,null,null,null,"|  |  |  |  väntetid"]
[null,null,null,null,null,null,null,null,null,null,null,null,null,null,null,null,null,null,"|  |  |  tillkommande/försvinnande trafik"]
[null,null,null,null,null,null,null,null,null,null,null,null,null,null,null,null,null,null,"|  |  |  |  åktid"]
[null,null,null,null,null,null,null,null,null,null,null,null,null,null,null,null,null,null,"|  |  |  |  anslutningstid"]
[null,null,null,null,null,null,null,null,null,null,null,null,null,null,null,null,null,null,"|  |  |  |  bytestid"]
[null,null,null,null,null,null,null,null,null,null,null,null,null,null,null,null,null,null,"|  |  |  |  väntetid"]
[null,null,null,null,null,null,null,null,null,null,null,null,null,null,null,null,null,null,"|  regionalt",616.19081000000006,616.00301999999999,-0.18748999999999999,106.30516,106.286,-1.9380000000000001E-2,21.705649999999999,21.680779999999999,-2.4830000000000001E-2,17.995819999999998,17.98133,-1.448E-2,null,null,null,null,null,null,401.10597999999999,401.10597999999999]
[null,null,null,null,null,null,null,null,null,null,null,null,null,null,null,null,null,null,"|  |  tjänste",28.969819999999999,28.96444,-5.3800000000000002E-3,106.30516,106.286,-1.9380000000000001E-2,21.705649999999999,21.680779999999999,-2.4830000000000001E-2,17.995819999999998,17.98133,-1.448E-2,null,null,null,null,null,null,14.4046,14.4046]
[null,null,null,null,null,null,null,null,null,null,null,null,null,null,null,null,null,null,"|  |  |  existerande/kvarvarande trafik",null,null,-5.0400000000000002E-3,null,null,-1.9380000000000001E-2,null,null,-2.4830000000000001E-2,null,null,-1.448E-2]
[null,null,null,null,null,null,null,null,null,null,null,null,null,null,null,null,null,null,"|  |  |  |  åktid",null,null,-5.0400000000000002E-3,null,null,-1.9380000000000001E-2,null,null,-2.4830000000000001E-2,null,null,-1.448E-2]
[null,null,null,null,null,null,null,null,null,null,null,null,null,null,null,null,null,null,"|  |  |  |  anslutningstid"]
[null,null,null,null,null,null,null,null,null,null,null,null,null,null,null,null,null,null,"|  |  |  |  bytestid"]
[null,null,null,null,null,null,null,null,null,null,null,null,null,null,null,null,null,null,"|  |  |  |  väntetid"]
[null,null,null,null,null,null,null,null,null,null,null,null,null,null,null,null,null,null,"|  |  |  tillkommande/försvinnande trafik",null,null,-3.4000000000000002E-4]
[null,null,null,null,null,null,null,null,null,null,null,null,null,null,null,null,null,null,"|  |  |  |  åktid",null,null,-3.4000000000000002E-4]
[null,null,null,null,null,null,null,null,null,null,null,null,null,null,null,null,null,null,"|  |  |  |  anslutningstid"]
[null,null,null,null,null,null,null,null,null,null,null,null,null,null,null,null,null,null,"|  |  |  |  bytestid"]
[null,null,null,null,null,null,null,null,null,null,null,null,null,null,null,null,null,null,"|  |  |  |  väntetid"]
[null,null,null,null,null,null,null,null,null,null,null,null,null,null,null,null,null,null,"|  |  private",408.29338000000001,408.15564000000001,-0.13730000000000001,null,null,null,null,null,null,null,null,null,null,null,null,null,null,null,269.02069999999998,269.02069999999998]
[null,null,null,null,null,null,null,null,null,null,null,null,null,null,null,null,null,null,"|  |  |  existerande/kvarvarande trafik",null,null,-0.12784000000000001]
[null,null,null,null,null,null,null,null,null,null,null,null,null,null,null,null,null,null,"|  |  |  |  åktid",null,null,-0.12784000000000001]
[null,null,null,null,null,null,null,null,null,null,null,null,null,null,null,null,null,null,"|  |  |  |  anslutningstid"]
[null,null,null,null,null,null,null,null,null,null,null,null,null,null,null,null,null,null,"|  |  |  |  bytestid"]
[null,null,null,null,null,null,null,null,null,null,null,null,null,null,null,null,null,null,"|  |  |  |  väntetid"]
[null,null,null,null,null,null,null,null,null,null,null,null,null,null,null,null,null,null,"|  |  |  tillkommande/försvinnande trafik",null,null,-9.4599999999999997E-3]
[null,null,null,null,null,null,null,null,null,null,null,null,null,null,null,null,null,null,"|  |  |  |  åktid",null,null,-9.4599999999999997E-3]
[null,null,null,null,null,null,null,null,null,null,null,null,null,null,null,null,null,null,"|  |  |  |  anslutningstid"]
[null,null,null,null,null,null,null,null,null,null,null,null,null,null,null,null,null,null,"|  |  |  |  bytestid"]
[null,null,null,null,null,null,null,null,null,null,null,null,null,null,null,null,null,null,"|  |  |  |  väntetid"]
[null,null,null,null,null,null,null,null,null,null,null,null,null,null,null,null,null,null,"|  |  arbete",178.92760999999999,178.88293999999999,-4.4810000000000003E-2,null,null,null,null,null,null,null,null,null,null,null,null,null,null,null,117.68069,117.68069]
[null,null,null,null,null,null,null,null,null,null,null,null,null,null,null,null,null,null,"|  |  |  existerande/kvarvarande trafik",null,null,-4.1939999999999998E-2]
[null,null,null,null,null,null,null,null,null,null,null,null,null,null,null,null,null,null,"|  |  |  |  åktid",null,null,-4.1939999999999998E-2]
[null,null,null,null,null,null,null,null,null,null,null,null,null,null,null,null,null,null,"|  |  |  |  anslutningstid"]
[null,null,null,null,null,null,null,null,null,null,null,null,null,null,null,null,null,null,"|  |  |  |  bytestid"]
[null,null,null,null,null,null,null,null,null,null,null,null,null,null,null,null,null,null,"|  |  |  |  väntetid"]
[null,null,null,null,null,null,null,null,null,null,null,null,null,null,null,null,null,null,"|  |  |  tillkommande/försvinnande trafik",null,null,-2.8700000000000002E-3]
[null,null,null,null,null,null,null,null,null,null,null,null,null,null,null,null,null,null,"|  |  |  |  åktid",null,null,-2.8700000000000002E-3]
[null,null,null,null,null,null,null,null,null,null,null,null,null,null,null,null,null,null,"|  |  |  |  anslutningstid"]
[null,null,null,null,null,null,null,null,null,null,null,null,null,null,null,null,null,null,"|  |  |  |  bytestid"]
[null,null,null,null,null,null,null,null,null,null,null,null,null,null,null,null,null,null,"|  |  |  |  väntetid"]
[null,null,null,null,null,null,null,null,null,null,null,null,null,null,null,null,null,null,"Reskostnader, MSEK per ar",56080.760799999996,56080.760799999996,-0.12551999999999999,null,null,-0.1489,null,null,-3.0908699999999998,null,null,-0.32851000000000002,2223.9223699999998,2223.9223699999998,null,13272.801600000001,13272.801600000001,null,11057.27715,11057.27715,null,7532.0210100000004,7532.0210100000004]
[null,null,null,null,null,null,null,null,null,null,null,null,null,null,null,null,null,null,"|  nationellt",56080.760799999996,56080.760799999996,null,null,null,null,null,null,null,null,null,null,2223.9223699999998,2223.9223699999998,null,13272.801600000001,13272.801600000001,null,null,null,null,7532.0210100000004,7532.0210100000004]
[null,null,null,null,null,null,null,null,null,null,null,null,null,null,null,null,null,null,"|  |  tjänste",13561.480100000001,13561.480100000001,null,null,null,null,null,null,null,null,null,null,38.398789999999998,38.398789999999998,null,5146.27808,5146.27808,null,null,null,null,3756.6409600000002,3756.6409600000002]
[null,null,null,null,null,null,null,null,null,null,null,null,null,null,null,null,null,null,"|  |  |  existerande/kvarvarande trafik"]
[null,null,null,null,null,null,null,null,null,null,null,null,null,null,null,null,null,null,"|  |  |  tillkommande/försvinnande trafik"]
[null,null,null,null,null,null,null,null,null,null,null,null,null,null,null,null,null,null,"|  |  private",38633.191400000003,38633.191400000003,null,null,null,null,null,null,null,null,null,null,2185.5236399999999,2185.5236399999999,null,8126.5235199999997,8126.5235199999997,null,null,null,null,3775.38006,3775.38006]
[null,null,null,null,null,null,null,null,null,null,null,null,null,null,null,null,null,null,"|  |  |  existerande/kvarvarande trafik"]
[null,null,null,null,null,null,null,null,null,null,null,null,null,null,null,null,null,null,"|  |  |  tillkommande/försvinnande trafik"]
[null,null,null,null,null,null,null,null,null,null,null,null,null,null,null,null,null,null,"|  |  arbete",3886.0849199999998,3886.0849199999998]
[null,null,null,null,null,null,null,null,null,null,null,null,null,null,null,null,null,null,"|  |  |  existerande/kvarvarande trafik"]
[null,null,null,null,null,null,null,null,null,null,null,null,null,null,null,null,null,null,"|  |  |  tillkommande/försvinnande trafik"]
[null,null,null,null,null,null,null,null,null,null,null,null,null,null,null,null,null,null,"|  regionalt",null,null,-0.12551999999999999,null,null,-0.1489,null,null,-3.0908699999999998,null,null,-0.32851000000000002,null,null,null,null,null,null,11057.27715,11057.27715]
[null,null,null,null,null,null,null,null,null,null,null,null,null,null,null,null,null,null,"|  |  tjänste",null,null,-4.7200000000000002E-3,null,null,-0.1489,null,null,-3.0908699999999998,null,null,-0.32851000000000002,null,null,null,null,null,null,518.39025000000004,518.39025000000004]
[null,null,null,null,null,null,null,null,null,null,null,null,null,null,null,null,null,null,"|  |  |  existerande/kvarvarande trafik",null,null,1E-3,null,null,-0.1489,null,null,-3.0908699999999998,null,null,-0.32851000000000002]
[null,null,null,null,null,null,null,null,null,null,null,null,null,null,null,null,null,null,"|  |  |  tillkommande/försvinnande trafik",null,null,-5.7299999999999999E-3]
[null,null,null,null,null,null,null,null,null,null,null,null,null,null,null,null,null,null,"|  |  private",null,null,-8.6400000000000005E-2,null,null,null,null,null,null,null,null,null,null,null,null,null,null,null,7764.6252899999999,7764.6252899999999]
[null,null,null,null,null,null,null,null,null,null,null,null,null,null,null,null,null,null,"|  |  |  existerande/kvarvarande trafik",null,null,6.028E-2]
[null,null,null,null,null,null,null,null,null,null,null,null,null,null,null,null,null,null,"|  |  |  tillkommande/försvinnande trafik",null,null,-0.14668]
[null,null,null,null,null,null,null,null,null,null,null,null,null,null,null,null,null,null,"|  |  arbete",null,null,-3.44E-2,null,null,null,null,null,null,null,null,null,null,null,null,null,null,null,2774.26134,2774.26134]
[null,null,null,null,null,null,null,null,null,null,null,null,null,null,null,null,null,null,"|  |  |  existerande/kvarvarande trafik",null,null,4.274E-2]
[null,null,null,null,null,null,null,null,null,null,null,null,null,null,null,null,null,null,"|  |  |  tillkommande/försvinnande trafik",null,null,-7.714E-2]
[null,null,null,null,null,null,null,null,null,null,null,null,null,null,null,null,null,null,"Restider, MSEK per ar",null,null,-22.2866,null,null,-7.5895299999999999,null,null,-9.7207699999999999,null,null,-5.6671899999999997]
[null,null,null,null,null,null,null,null,null,null,null,null,null,null,null,null,null,null,"|  nationellt"]
[null,null,null,null,null,null,null,null,null,null,null,null,null,null,null,null,null,null,"|  |  tjänste"]
[null,null,null,null,null,null,null,null,null,null,null,null,null,null,null,null,null,null,"|  |  |  existerande/kvarvarande trafik"]
[null,null,null,null,null,null,null,null,null,null,null,null,null,null,null,null,null,null,"|  |  |  tillkommande/försvinnande trafik"]
[null,null,null,null,null,null,null,null,null,null,null,null,null,null,null,null,null,null,"|  |  private"]
[null,null,null,null,null,null,null,null,null,null,null,null,null,null,null,null,null,null,"|  |  |  existerande/kvarvarande trafik"]
[null,null,null,null,null,null,null,null,null,null,null,null,null,null,null,null,null,null,"|  |  |  tillkommande/försvinnande trafik"]
[null,null,null,null,null,null,null,null,null,null,null,null,null,null,null,null,null,null,"|  |  arbete"]
[null,null,null,null,null,null,null,null,null,null,null,null,null,null,null,null,null,null,"|  |  |  existerande/kvarvarande trafik"]
[null,null,null,null,null,null,null,null,null,null,null,null,null,null,null,null,null,null,"|  |  |  tillkommande/försvinnande trafik"]
[null,null,null,null,null,null,null,null,null,null,null,null,null,null,null,null,null,null,"|  regionalt",null,null,-22.2866,null,null,-7.5895299999999999,null,null,-9.7207699999999999,null,null,-5.6671899999999997]
[null,null,null,null,null,null,null,null,null,null,null,null,null,null,null,null,null,null,"|  |  tjänste",null,null,-2.5697700000000001,null,null,-7.5895299999999999,null,null,-9.7207699999999999,null,null,-5.6671899999999997]
[null,null,null,null,null,null,null,null,null,null,null,null,null,null,null,null,null,null,"|  |  |  existerande/kvarvarande trafik",null,null,-2.4080599999999999,null,null,-7.5895299999999999,null,null,-9.7207699999999999,null,null,-5.6671899999999997]
[null,null,null,null,null,null,null,null,null,null,null,null,null,null,null,null,null,null,"|  |  |  tillkommande/försvinnande trafik",null,null,-0.16170999999999999]
[null,null,null,null,null,null,null,null,null,null,null,null,null,null,null,null,null,null,"|  |  private",null,null,-13.343260000000001]
[null,null,null,null,null,null,null,null,null,null,null,null,null,null,null,null,null,null,"|  |  |  existerande/kvarvarande trafik",null,null,-12.42399]
[null,null,null,null,null,null,null,null,null,null,null,null,null,null,null,null,null,null,"|  |  |  tillkommande/försvinnande trafik",null,null,-0.91925999999999997]
[null,null,null,null,null,null,null,null,null,null,null,null,null,null,null,null,null,null,"|  |  arbete",null,null,-6.37357]
[null,null,null,null,null,null,null,null,null,null,null,null,null,null,null,null,null,null,"|  |  |  existerande/kvarvarande trafik",null,null,-5.9652599999999998]
[null,null,null,null,null,null,null,null,null,null,null,null,null,null,null,null,null,null,"|  |  |  tillkommande/försvinnande trafik",null,null,-0.40831000000000001]
[null,null,null,null,null,null,null,null,null,null,null,null,null,null,null,null,null,null,"Vägavgifter/vägskatt, MSEK per ar",null,null,null,null,null,null,null,null,null,null,null,0]
[null,null,null,null,null,null,null,null,null,null,null,null,null,null,null,null,null,null,"|  nationellt"]
[null,null,null,null,null,null,null,null,null,null,null,null,null,null,null,null,null,null,"|  |  tjänste"]
[null,null,null,null,null,null,null,null,null,null,null,null,null,null,null,null,null,null,"|  |  |  existerande/kvarvarande trafik"]
[null,null,null,null,null,null,null,null,null,null,null,null,null,null,null,null,null,null,"|  |  |  tillkommande/försvinnande trafik"]
[null,null,null,null,null,null,null,null,null,null,null,null,null,null,null,null,null,null,"|  |  private"]
[null,null,null,null,null,null,null,null,null,null,null,null,null,null,null,null,null,null,"|  |  |  existerande/kvarvarande trafik"]
[null,null,null,null,null,null,null,null,null,null,null,null,null,null,null,null,null,null,"|  |  |  tillkommande/försvinnande trafik"]
[null,null,null,null,null,null,null,null,null,null,null,null,null,null,null,null,null,null,"|  |  arbete"]
[null,null,null,null,null,null,null,null,null,null,null,null,null,null,null,null,null,null,"|  |  |  existerande/kvarvarande trafik"]
[null,null,null,null,null,null,null,null,null,null,null,null,null,null,null,null,null,null,"|  |  |  tillkommande/försvinnande trafik"]
[null,null,null,null,null,null,null,null,null,null,null,null,null,null,null,null,null,null,"|  regionalt",null,null,null,null,null,null,null,null,null,null,null,0]
[null,null,null,null,null,null,null,null,null,null,null,null,null,null,null,null,null,null,"|  |  tjänste",null,null,null,null,null,null,null,null,null,null,null,0]
[null,null,null,null,null,null,null,null,null,null,null,null,null,null,null,null,null,null,"|  |  |  existerande/kvarvarande trafik",null,null,null,null,null,null,null,null,null,null,null,0]
[null,null,null,null,null,null,null,null,null,null,null,null,null,null,null,null,null,null,"|  |  |  tillkommande/försvinnande trafik"]
[null,null,null,null,null,null,null,null,null,null,null,null,null,null,null,null,null,null,"|  |  private"]
[null,null,null,null,null,null,null,null,null,null,null,null,null,null,null,null,null,null,"|  |  |  existerande/kvarvarande trafik"]
[null,null,null,null,null,null,null,null,null,null,null,null,null,null,null,null,null,null,"|  |  |  tillkommande/försvinnande trafik"]
[null,null,null,null,null,null,null,null,null,null,null,null,null,null,null,null,null,null,"|  |  arbete"]
[null,null,null,null,null,null,null,null,null,null,null,null,null,null,null,null,null,null,"|  |  |  existerande/kvarvarande trafik"]
[null,null,null,null,null,null,null,null,null,null,null,null,null,null,null,null,null,null,"|  |  |  tillkommande/försvinnande trafik"]
[null,null,null,null,null,null,null,null,null,null,null,null,null,null,null,null,null,null,"Godskostnader, MSEK per ar",null,null,null,null,null,-4.8460000000000003E-2,null,null,-0.14482999999999999,null,null,-0.44874000000000003]
[null,null,null,null,null,null,null,null,null,null,null,null,null,null,null,null,null,null,"|  nationellt"]
[null,null,null,null,null,null,null,null,null,null,null,null,null,null,null,null,null,null,"|  |  tjänste"]
[null,null,null,null,null,null,null,null,null,null,null,null,null,null,null,null,null,null,"|  |  |  existerande/kvarvarande trafik"]
[null,null,null,null,null,null,null,null,null,null,null,null,null,null,null,null,null,null,"|  |  |  tillkommande/försvinnande trafik"]
[null,null,null,null,null,null,null,null,null,null,null,null,null,null,null,null,null,null,"|  |  private"]
[null,null,null,null,null,null,null,null,null,null,null,null,null,null,null,null,null,null,"|  |  |  existerande/kvarvarande trafik"]
[null,null,null,null,null,null,null,null,null,null,null,null,null,null,null,null,null,null,"|  |  |  tillkommande/försvinnande trafik"]
[null,null,null,null,null,null,null,null,null,null,null,null,null,null,null,null,null,null,"|  |  arbete"]
[null,null,null,null,null,null,null,null,null,null,null,null,null,null,null,null,null,null,"|  |  |  existerande/kvarvarande trafik"]
[null,null,null,null,null,null,null,null,null,null,null,null,null,null,null,null,null,null,"|  |  |  tillkommande/försvinnande trafik"]
[null,null,null,null,null,null,null,null,null,null,null,null,null,null,null,null,null,null,"|  regionalt",null,null,null,null,null,-4.8460000000000003E-2,null,null,-0.14482999999999999,null,null,-0.44874000000000003]
[null,null,null,null,null,null,null,null,null,null,null,null,null,null,null,null,null,null,"|  |  tjänste",null,null,null,null,null,-4.8460000000000003E-2,null,null,-0.14482999999999999,null,null,-0.44874000000000003]
[null,null,null,null,null,null,null,null,null,null,null,null,null,null,null,null,null,null,"|  |  |  existerande/kvarvarande trafik",null,null,null,null,null,-4.8460000000000003E-2,null,null,-0.14482999999999999,null,null,-0.44874000000000003]
[null,null,null,null,null,null,null,null,null,null,null,null,null,null,null,null,null,null,"|  |  |  tillkommande/försvinnande trafik"]
[null,null,null,null,null,null,null,null,null,null,null,null,null,null,null,null,null,null,"|  |  private"]
[null,null,null,null,null,null,null,null,null,null,null,null,null,null,null,null,null,null,"|  |  |  existerande/kvarvarande trafik"]
[null,null,null,null,null,null,null,null,null,null,null,null,null,null,null,null,null,null,"|  |  |  tillkommande/försvinnande trafik"]
[null,null,null,null,null,null,null,null,null,null,null,null,null,null,null,null,null,null,"|  |  arbete"]
[null,null,null,null,null,null,null,null,null,null,null,null,null,null,null,null,null,null,"|  |  |  existerande/kvarvarande trafik"]
[null,null,null,null,null,null,null,null,null,null,null,null,null,null,null,null,null,null,"|  |  |  tillkommande/försvinnande trafik"]
[null,null,null,null,null,null,null,null,null,null,null,null,null,null,null,null,null,null,"EXTERNA EFFEKTER"]
[null,null,null,null,null,null,null,null,null,null,null,null,null,null,null,null,null,null,"Luftföroreningar o klimatgaser, mängder"]
[null,null,null,null,null,null,null,null,null,null,null,null,null,null,null,null,null,null,"|  NOx, ton per ar",200.65582000000001,200.59827999999999,-5.7549999999999997E-2,26.48968,26.481639999999999,-8.0400000000000003E-3,111.72551,111.60829,-0.11723,190.95937000000001,190.83919,-0.12017,null,null,null,64.236720000000005,64.236720000000005,null,null,null,null,2624.84692,2624.84692]
[null,null,null,null,null,null,null,null,null,null,null,null,null,null,null,null,null,null,"|  |  landsbygd",137.57489000000001,137.68548999999999,0.1106,17.04626,17.053170000000001,6.9199999999999999E-3,75.546769999999995,75.571209999999994,2.444E-2,168.66193999999999,168.76116999999999,9.9229999999999999E-2,null,null,null,59.097790000000003,59.097790000000003,null,null,null,null,2362.3622999999998,2362.3622999999998]
[null,null,null,null,null,null,null,null,null,null,null,null,null,null,null,null,null,null,"|  |  tätort",63.080939999999998,62.912799999999997,-0.16814000000000001,9.4434199999999997,9.4284599999999994,-1.4959999999999999E-2,36.178750000000001,36.037080000000003,-0.14166000000000001,22.297419999999999,22.078019999999999,-0.21940000000000001,null,null,null,5.1389399999999998,5.1389399999999998,null,null,null,null,262.48471000000001,262.48471000000001]
[null,null,null,null,null,null,null,null,null,null,null,null,null,null,null,null,null,null,"|  Avgaspartiklar, ton per ar",5.2124600000000001,5.2114200000000004,-1.0399999999999999E-3,0.68476999999999999,0.68459999999999999,-1.7000000000000001E-4,1.6528,1.65167,-1.1199999999999999E-3,3.2948499999999998,3.2932899999999998,-1.56E-3,null,null,null,0.57782,0.57782]
[null,null,null,null,null,null,null,null,null,null,null,null,null,null,null,null,null,null,"|  |  landsbygd",3.7037900000000001,3.7067600000000001,2.98E-3,0.45891999999999999,0.45911000000000002,1.9000000000000001E-4,1.26152,1.26193,4.0999999999999999E-4,2.9598200000000001,2.96157,1.74E-3,null,null,null,0.53159999999999996,0.53159999999999996]
[null,null,null,null,null,null,null,null,null,null,null,null,null,null,null,null,null,null,"|  |  tätort",1.50867,1.50465,-4.0200000000000001E-3,0.22585,0.22550000000000001,-3.6000000000000002E-4,0.39127000000000001,0.38973999999999998,-1.5299999999999999E-3,0.33501999999999998,0.33173000000000002,-3.3E-3,null,null,null,4.623E-2,4.623E-2]
[null,null,null,null,null,null,null,null,null,null,null,null,null,null,null,null,null,null,"|  CO2, kton per ar",100.39337999999999,100.38185,-1.153E-2,13.12509,13.1225,-2.5899999999999999E-3,48.178159999999998,48.151470000000003,-2.6689999999999998E-2,115.04716000000001,114.99348000000001,-5.3670000000000002E-2,null,null,null,21.58445,21.58445,null,null,null,null,652.25103999999999,652.25103999999999]
[null,null,null,null,null,null,null,null,null,null,null,null,null,null,null,null,null,null,"|  |  landsbygd",73.808999999999997,73.86833,5.9330000000000001E-2,9.1453299999999995,9.1490399999999994,3.7100000000000002E-3,38.2059,38.218260000000001,1.2359999999999999E-2,103.40985999999999,103.47069999999999,6.0839999999999998E-2,null,null,null,19.857690000000002,19.857690000000002,null,null,null,null,587.02593999999999,587.02593999999999]
[null,null,null,null,null,null,null,null,null,null,null,null,null,null,null,null,null,null,"|  |  tätort",26.584379999999999,26.51352,-7.0860000000000006E-2,3.9797699999999998,3.9734600000000002,-6.3E-3,9.9722600000000003,9.9332100000000008,-3.9050000000000001E-2,11.6373,11.522790000000001,-0.11451,null,null,null,1.7267600000000001,1.7267600000000001,null,null,null,null,65.225110000000001,65.225110000000001]
[null,null,null,null,null,null,null,null,null,null,null,null,null,null,null,null,null,null,"|  Slitagepartiklar, ton per ar",2035.41797,2035.49414,7.6170000000000002E-2,263.79987,263.77298000000002,-2.69E-2,191.72939,191.64583999999999,-8.3549999999999999E-2,172.28181000000001,172.23365999999999,-4.8160000000000001E-2,160.55806999999999,160.55783,-2.5000000000000001E-4]
[null,null,null,null,null,null,null,null,null,null,null,null,null,null,null,null,null,null,"|  |  landsbygd",1585.7391399999999,1587.0139200000001,1.27478,196.48149000000001,196.56121999999999,7.9729999999999995E-2,157.39214999999999,157.44305,5.0900000000000001E-2,157.94318999999999,158.03612000000001,9.2929999999999999E-2,128.44646,128.44626,-2.0000000000000001E-4]
[null,null,null,null,null,null,null,null,null,null,null,null,null,null,null,null,null,null,"|  |  tätort",449.67876999999999,448.48016000000001,-1.19861,67.318380000000005,67.211749999999995,-0.10663,34.337240000000001,34.20279,-0.13444999999999999,14.338620000000001,14.19753,-0.14108999999999999,32.111609999999999,32.111559999999997,-5.0000000000000002E-5]
[null,null,null,null,null,null,null,null,null,null,null,null,null,null,null,null,null,null,"Luftföroreningar o klimatgaser, MSEK per ar",1806.9349400000001,1803.91309,-3.0218699999999998,257.16019,256.88037000000003,-0.27981,424.65195,424.12421000000001,-0.52773999999999999,844.10637999999994,843.35663,-0.74983999999999995,77.742230000000006,77.742109999999997,-1.1E-4,151.81178,151.81178,null,null,null,null,4576.8476600000004,4576.8476600000004]
[null,null,null,null,null,null,null,null,null,null,null,null,null,null,null,null,null,null,"|  NOx",0.8478,0.84755000000000003,-2.4000000000000001E-4,0.11192000000000001,0.11189,-3.0000000000000001E-5,0.47205000000000003,0.47155999999999998,-5.0000000000000001E-4,0.80683000000000005,0.80632000000000004,-5.1000000000000004E-4,null,null,null,0.27140999999999998,0.27140999999999998,null,null,null,null,11.09032,11.09032]
[null,null,null,null,null,null,null,null,null,null,null,null,null,null,null,null,null,null,"|  |  landsbygd",0.58126999999999995,0.58174000000000003,4.6999999999999999E-4,7.2020000000000001E-2,7.2050000000000003E-2,3.0000000000000001E-5,0.31919999999999998,0.31929999999999997,1E-4,0.71262000000000003,0.71304000000000001,4.2000000000000002E-4,null,null,null,0.24970000000000001,0.24970000000000001,null,null,null,null,9.9812899999999996,9.9812899999999996]
[null,null,null,null,null,null,null,null,null,null,null,null,null,null,null,null,null,null,"|  |  tätort",0.26652999999999999,0.26580999999999999,-7.1000000000000002E-4,3.9899999999999998E-2,3.984E-2,-6.0000000000000002E-5,0.15286,0.15226000000000001,-5.9999999999999995E-4,9.4210000000000002E-2,9.3280000000000002E-2,-9.3000000000000005E-4,null,null,null,2.171E-2,2.171E-2,null,null,null,null,1.10903,1.10903]
[null,null,null,null,null,null,null,null,null,null,null,null,null,null,null,null,null,null,"|  Avgaspartiklar",14.66098,14.6219,-3.9079999999999997E-2,2.1947999999999999,2.1913200000000002,-3.48E-3,3.8023099999999999,3.78742,-1.489E-2,3.2556799999999999,3.2236400000000001,-3.2039999999999999E-2,null,null,null,0.44921,0.44921]
[null,null,null,null,null,null,null,null,null,null,null,null,null,null,null,null,null,null,"|  |  landsbygd"]
[null,null,null,null,null,null,null,null,null,null,null,null,null,null,null,null,null,null,"|  |  tätort",14.66098,14.6219,-3.9079999999999997E-2,2.1947999999999999,2.1913200000000002,-3.48E-3,3.8023099999999999,3.78742,-1.489E-2,3.2556799999999999,3.2236400000000001,-3.2039999999999999E-2,null,null,null,0.44921,0.44921]
[null,null,null,null,null,null,null,null,null,null,null,null,null,null,null,null,null,null,"|  CO2",702.75365999999997,702.67296999999996,-8.0689999999999998E-2,91.875659999999996,91.857510000000005,-1.8149999999999999E-2,337.24713000000003,337.06027,-0.18684999999999999,805.33007999999995,804.95441000000005,-0.37572,null,null,null,151.09116,151.09116,null,null,null,null,4565.7573199999997,4565.7573199999997]
[null,null,null,null,null,null,null,null,null,null,null,null,null,null,null,null,null,null,"|  |  landsbygd",516.66296,517.07830999999999,0.41533999999999999,64.01728,64.043260000000004,2.598E-2,267.44130999999999,267.52780000000001,8.6489999999999997E-2,723.86901999999998,724.29485999999997,0.42584,null,null,null,139.00386,139.00386,null,null,null,null,4109.1816399999998,4109.1816399999998]
[null,null,null,null,null,null,null,null,null,null,null,null,null,null,null,null,null,null,"|  |  tätort",186.09066999999999,185.59464,-0.49603000000000003,27.85838,27.814250000000001,-4.4119999999999999E-2,69.805800000000005,69.53246,-0.27334000000000003,81.461089999999999,80.659530000000004,-0.80156000000000005,null,null,null,12.087289999999999,12.087289999999999,null,null,null,null,456.57574,456.57574]
[null,null,null,null,null,null,null,null,null,null,null,null,null,null,null,null,null,null,"|  Slitagepartiklar",1088.6724899999999,1085.77063,-2.9018600000000001,162.97781000000001,162.71967000000001,-0.25814999999999999,83.130470000000003,82.804959999999994,-0.32551000000000002,34.713810000000002,34.372239999999998,-0.34157999999999999,77.742230000000006,77.742109999999997,-1.1E-4]
[null,null,null,null,null,null,null,null,null,null,null,null,null,null,null,null,null,null,"|  |  landsbygd"]
[null,null,null,null,null,null,null,null,null,null,null,null,null,null,null,null,null,null,"|  |  tätort",1088.6724899999999,1085.77063,-2.9018600000000001,162.97781000000001,162.71967000000001,-0.25814999999999999,83.130470000000003,82.804959999999994,-0.32551000000000002,34.713810000000002,34.372239999999998,-0.34157999999999999,77.742230000000006,77.742109999999997,-1.1E-4]
[null,null,null,null,null,null,null,null,null,null,null,null,null,null,null,null,null,null,"Trafikolyckor, antal"]
[null,null,null,null,null,null,null,null,null,null,null,null,null,null,null,null,null,null,"|  existerande/kvarvarande trafik"]
[null,null,null,null,null,null,null,null,null,null,null,null,null,null,null,null,null,null,"|  Från sjukvårdsrapporter (uppräknat för bortfall)"]
[null,null,null,null,null,null,null,null,null,null,null,null,null,null,null,null,null,null,"|  |  Dödade",20.568259999999999,20.538709999999998,-2.955E-2,2.8393299999999999,2.83528,-4.0499999999999998E-3,2.2366199999999998,2.2309000000000001,-5.7200000000000003E-3,4.92164,4.9078499999999998,-1.379E-2]
[null,null,null,null,null,null,null,null,null,null,null,null,null,null,null,null,null,null,"|  |  Mycket allvarligt skadade (MAS)",86.022649999999999,85.840739999999997,-0.18192,11.889099999999999,11.867000000000001,-2.2100000000000002E-2,8.7909500000000005,8.7611500000000007,-2.98E-2,17.401890000000002,17.341270000000002,-6.062E-2]
[null,null,null,null,null,null,null,null,null,null,null,null,null,null,null,null,null,null,"|  |  Allvarligt skadade exkl. MAS",412.39807000000002,411.55389000000002,-0.84418000000000004,56.842390000000002,56.742100000000001,-0.10029,41.859810000000003,41.723880000000001,-0.13593,82.278499999999994,82.005129999999994,-0.27337]
[null,null,null,null,null,null,null,null,null,null,null,null,null,null,null,null,null,null,"|  |  Ej allvarligt skadade",2620.6816399999998,2615.4301799999998,-5.2514599999999998,358.89731,358.28662000000003,-0.61068999999999996,264.97226000000001,264.11914000000002,-0.85311999999999999,524.12798999999995,522.50531000000001,-1.6226799999999999]
[null,null,null,null,null,null,null,null,null,null,null,null,null,null,null,null,null,null,"|  |  Egendomsskador",36807.367189999997,36775.496090000001,-31.871089999999999,4465.8915999999999,4463.2973599999996,-2.5942400000000001,3387.8085900000001,3383.1406299999999,-4.6679700000000004,7089.9853499999999,7079.0551800000003,-10.93018]
[null,null,null,null,null,null,null,null,null,null,null,null,null,null,null,null,null,null,"|  Från polisrapporter (uppräknat för bortfall)"]
[null,null,null,null,null,null,null,null,null,null,null,null,null,null,null,null,null,null,"|  |  Svårt skadade",376.52544999999998,375.56887999999998,-0.95657000000000003,52.243879999999997,52.122999999999998,-0.12088,38.705039999999997,38.544159999999998,-0.16088,76.481489999999994,76.176699999999997,-0.30479000000000001]
[null,null,null,null,null,null,null,null,null,null,null,null,null,null,null,null,null,null,"|  |  Lindrigt skadade",2715.5668900000001,2710.4785200000001,-5.0883799999999999,371.64398,371.06121999999999,-0.58275999999999994,274.37353999999999,273.55572999999998,-0.81781000000000004,543.19359999999995,541.58758999999998,-1.60602]
[null,null,null,null,null,null,null,null,null,null,null,null,null,null,null,null,null,null,"|  tillkommande/försvinnande trafik"]
[null,null,null,null,null,null,null,null,null,null,null,null,null,null,null,null,null,null,"|  Från sjukvårdsrapporter (uppräknat för bortfall)"]
[null,null,null,null,null,null,null,null,null,null,null,null,null,null,null,null,null,null,"|  |  Dödade"]
[null,null,null,null,null,null,null,null,null,null,null,null,null,null,null,null,null,null,"|  |  Mycket allvarligt skadade (MAS)"]
[null,null,null,null,null,null,null,null,null,null,null,null,null,null,null,null,null,null,"|  |  Allvarligt skadade exkl. MAS"]
[null,null,null,null,null,null,null,null,null,null,null,null,null,null,null,null,null,null,"|  |  Ej allvarligt skadade"]
[null,null,null,null,null,null,null,null,null,null,null,null,null,null,null,null,null,null,"|  |  Egendomsskador"]
[null,null,null,null,null,null,null,null,null,null,null,null,null,null,null,null,null,null,"|  Från polisrapporter (uppräknat för bortfall)"]
[null,null,null,null,null,null,null,null,null,null,null,null,null,null,null,null,null,null,"|  |  Svårt skadade"]
[null,null,null,null,null,null,null,null,null,null,null,null,null,null,null,null,null,null,"|  |  Lindrigt skadade"]
[null,null,null,null,null,null,null,null,null,null,null,null,null,null,null,null,null,null,"Trafikolyckor, MSEK per ar",null,null,-56.068359999999998,null,null,-6.5280800000000001,null,null,-8.9473900000000004,null,null,-17.68665]
[null,null,null,null,null,null,null,null,null,null,null,null,null,null,null,null,null,null,"|  extern olyckskostnad",26960.033200000002,26903.964840000001,-56.068359999999998,3705.6066900000001,3699.07861,-6.5280800000000001,2725.0185499999998,2716.0710399999998,-8.9473900000000004,5349.69434,5332.0073199999997,-17.68665,393.65820000000002,393.65820000000002,null,619.42620999999997,619.42620999999997,null,null,null,null,3.9109699999999998,3.9109699999999998]
[null,null,null,null,null,null,null,null,null,null,null,null,null,null,null,null,null,null,"|  |  landsbygd",18062.259770000001,18050.998049999998,-11.26172,2345.9289600000002,2343.5061000000001,-2.4228499999999999,1989.25793,1986.9427499999999,-2.3151899999999999,4646.6674800000001,4640.2421899999999,-6.4252900000000004,314.92657000000003,314.92657000000003,null,569.87207000000001,569.87207000000001,null,null,null,null,3.5198700000000001,3.5198700000000001]
[null,null,null,null,null,null,null,null,null,null,null,null,null,null,null,null,null,null,"|  |  tätort",8897.7734400000008,8852.9668000000001,-44.806640000000002,1359.6777300000001,1355.57251,-4.1052200000000001,735.76049999999998,729.12829999999997,-6.6322000000000001,703.02661000000001,691.76526000000001,-11.26135,78.731639999999999,78.731639999999999,null,49.554139999999997,49.554139999999997,null,null,null,null,0.3911,0.3911]
[null,null,null,null,null,null,null,null,null,null,null,null,null,null,null,null,null,null,"Marginellt slitage, MSEK per ar",529.20867999999996,529.22844999999995,1.9779999999999999E-2,68.587959999999995,68.580969999999994,-6.9899999999999997E-3,174.47373999999999,174.39770999999999,-7.603E-2,895.86541999999997,895.61492999999996,-0.25048999999999999,408.49896000000001,408.49849999999998,-4.6000000000000001E-4,1472.8466800000001,1472.8459499999999,-7.2999999999999996E-4]
[]
[]
[]
[]
[]
[]
[]
[]
[]
[]
[]
[null,null,null,null,null,null,null,null,null,null,null,null,null,null,null,null,null,null,"Markera och klipp ut alla cellerna från A1 till G44 i fliken \"Lönsamhetsberäkning\". Ställ markören i cellen S732 i denna flik och klistra in dessa celler med funktionen \"Klistra in special\"/\"Värden\"."]
[null,null,null,null,null,null,null,null,null,null,null,null,null,null,null,null,null,null,"Sammanställning av resultat"]
[null,null,null,null,null,null,null,null,null,null,null,null,null,null,null,null,null,null,"NATIONELL OCH REGIONAL TRAFIK"]
[null,null,null,null,null,null,null,null,null,null,null,null,null,null,null,null,null,null,"Miljoner SEK"]
[null,null,null,null,null,null,null,null,null,null,null,null,null,null,null,null,null,null,null,null,"TOTALT","PERSONBIL","LASTBIL*","BUSS OCH TÅG","FLYG"]
[null,null,null,null,null,null,null,null,null,null,null,null,null,null,null,null,null,null,"1) Producentöverskott",null,-4.9841699999999998,null,null,-4.9841699999999998]
[null,null,null,null,null,null,null,null,null,null,null,null,null,null,null,null,null,null,"  Biljettintäkter",null,-6.4377300000000002,null,null,-6.4377300000000002]
[null,null,null,null,null,null,null,null,null,null,null,null,null,null,null,null,null,null,"  Fordonskostnader kollektivtrafik",null,1.0786800000000001,null,null,1.0786800000000001]
[null,null,null,null,null,null,null,null,null,null,null,null,null,null,null,null,null,null,"  Moms på biljettintäkter",null,0.3644,null,null,0.3644]
[null,null,null,null,null,null,null,null,null,null,null,null,null,null,null,null,null,null,"  Banavgifter",null,1.048E-2,null,null,1.048E-2]
[null,null,null,null,null,null,null,null,null,null,null,null,null,null,null,null,null,null,"2) Budgeteffekter (inkl. Skattefaktor)",null,23.139420000000001,35.131990000000002,-11.61769,-0.37487999999999999]
[null,null,null,null,null,null,null,null,null,null,null,null,null,null,null,null,null,null,"  Drivmedelsskatt för vägtrafik",null,23.51436,35.131990000000002,-11.61763]
[null,null,null,null,null,null,null,null,null,null,null,null,null,null,null,null,null,null,"  Vägavgifter/vägskatt",null,-6.0000000000000002E-5,null,-6.0000000000000002E-5]
[null,null,null,null,null,null,null,null,null,null,null,null,null,null,null,null,null,null,"  Moms på biljettintäkter",null,-0.3644,null,null,-0.3644]
[null,null,null,null,null,null,null,null,null,null,null,null,null,null,null,null,null,null,"  Banavgifter",null,-1.048E-2,null,null,-1.048E-2]
[]
[null,null,null,null,null,null,null,null,null,null,null,null,null,null,null,null,null,null,"3) Konsumentöverskott",null,1104.3434299999999,499.88067000000001,604.46276]
[null,null,null,null,null,null,null,null,null,null,null,null,null,null,null,null,null,null,"  Reskostnader",null,80.635419999999996,2.7401300000000002,77.895290000000003]
[null,null,null,null,null,null,null,null,null,null,null,null,null,null,null,null,null,null,"  Restider",null,1009.69247,497.14053999999999,512.55192999999997]
[null,null,null,null,null,null,null,null,null,null,null,null,null,null,null,null,null,null,"  Vägavgifter/vägskatt",null,6.0000000000000002E-5,null,6.0000000000000002E-5]
[null,null,null,null,null,null,null,null,null,null,null,null,null,null,null,null,null,null,"  Godskostnader",null,14.01548,null,14.01548]
[null,null,null,null,null,null,null,null,null,null,null,null,null,null,null,null,null,null,"4) Externa effekter",null,2061.90589,1292.3004000000001,769.57737999999995,2.811E-2]
[null,null,null,null,null,null,null,null,null,null,null,null,null,null,null,null,null,null,"  Luftföroreningar o klimatgaser",null,108.50793,69.625399999999999,38.87997,2.5600000000000002E-3]
[null,null,null,null,null,null,null,null,null,null,null,null,null,null,null,null,null,null,"  Trafikolyckor**",null,1946.52358,1223.1066900000001,723.41688999999997]
[null,null,null,null,null,null,null,null,null,null,null,null,null,null,null,null,null,null,"  Marginellt slitage",null,6.8743800000000004,-0.43169000000000002,7.2805200000000001,2.555E-2]
[]
[]
[]
[]
[null,null,null,null,null,null,null,null,null,null,null,null,null,null,null,null,null,null,"SUMMA",null,3184.4045700000001]
[]
[null,null,null,null,null,null,null,null,null,null,null,null,null,null,null,null,null,null,"6) Investeringskostnader"]
[null,null,null,null,null,null,null,null,null,null,null,null,null,null,null,null,null,null,"  Diskonterat inkl. skattefaktor",null,100]
[null,null,null,null,null,null,null,null,null,null,null,null,null,null,null,null,null,null,"  Rak summering"]
[]
[null,null,null,null,null,null,null,null,null,null,null,null,null,null,null,null,null,null,"NNK_idu ****"]
[]
[]
[null,null,null,null,null,null,null,null,null,null,null,null,null,null,null,null,null,null,"NNK_idu beräknas som: (n-k)/k=(1+2+3+4+5-6)/(6-5)"]
[]
[null,null,null,null,null,null,null,null,null,null,null,null,null,null,null,null,null,null,"*","Inklusive personbilar i yrkestrafik"]
[null,null,null,null,null,null,null,null,null,null,null,null,null,null,null,null,null,null,"**","Inkluderar intern olyckskostnad. Inkluderar ej plankorsningsolyckor"]
[null,null,null,null,null,null,null,null,null,null,null,null,null,null,null,null,null,null,"***","Inkluderar skattefaktor. DoU för flyg ingår i fordonskostnaderna. Det som"]
[null,null,null,null,null,null,null,null,null,null,null,null,null,null,null,null,null,null,null,"benämns 'DoU vägtrafik' inkluderar både trafikberoende och trafikoberoende DoU"]
[null,null,null,null,null,null,null,null,null,null,null,null,null,null,null,null,null,null,"****","kvot med avseende på investerings- och drift och underhållskostnad"]
[]
[null,null,null,null,null,null,null,null,null,null,null,null,null,null,null,null,null,null,"Markera och klipp ut alla cellerna från A1 till E1048 i fliken \"Förutsättningar\".  Ställ markören i cellen S778 i denna flik och klistra in dessa celler med funktionen \"Klistra in special\"/\"Värden\"."]
[null,null,null,null,null,null,null,null,null,null,null,null,null,null,null,null,null,null,"Samkalk, indata SK46       === SAMKALK==="]
[null,null,null,null,null,null,null,null,null,null,null,null,null,null,null,null,null,null,"Projekt P42 Standardriggning 2040 (Basprognoser 2020-06-15) version 2021-01-01"]
[null,null,null,null,null,null,null,null,null,null,null,null,null,null,null,null,null,null,"Scenario S117 UA      Indata till Samkalk"]
[null,null,null,null,null,null,null,null,null,null,null,null,null,null,null,null,null,null,"Användare selemm01"]
[null,null,null,null,null,null,null,null,null,null,null,null,null,null,null,null,null,null,"Exekv.tillfälle 2023-03-01 09:32:09"]
[null,null,null,null,null,null,null,null,null,null,null,null,null,null,null,null,null,null,"Exekv.tid 2:34:06"]
[null,null,null,null,null,null,null,null,null,null,null,null,null,null,null,null,null,null,"Version av Sampers.exe 3.4.6"]
[null,null,null,null,null,null,null,null,null,null,null,null,null,null,null,null,null,null,"Version av KAN-modeller.mdb 0"]
[null,null,null,null,null,null,null,null,null,null,null,null,null,null,null,null,null,null,"Version av EffektModellDatabas.mdb 13"]
[null,null,null,null,null,null,null,null,null,null,null,null,null,null,null,null,null,null,"Exekveringstyp Bil+Kollektivtrafik"]
[null,null,null,null,null,null,null,null,null,null,null,null,null,null,null,null,null,null,"Beskrivning "]
[null,null,null,null,null,null,null,null,null,null,null,null,null,null,null,null,null,null,"Avbryt effektberäkning",false]
[null,null,null,null,null,null,null,null,null,null,null,null,null,null,null,null,null,null,"Geografiskt KÖ Ingen beräkning"]
[]
[]
[null,null,null,null,null,null,null,null,null,null,null,null,null,null,null,null,null,null,"Databasfil","C:\\Ske\\Person2040_210101_v11_Huvudkalkyl (2040_111)\\Riggning\\Person2040_210101_v11_enkel.Mdb"]
[null,null,null,null,null,null,null,null,null,null,null,null,null,null,null,null,null,null,"Antal centroider",0]
[null,null,null,null,null,null,null,null,null,null,null,null,null,null,null,null,null,null,"Large Treshold",0]
[null,null,null,null,null,null,null,null,null,null,null,null,null,null,null,null,null,null,"Small Treshold",0]
[null,null,null,null,null,null,null,null,null,null,null,null,null,null,null,null,null,null,"Projekt","Standardriggning 2040 (Basprognoser 2020-06-15) version 2021-01-01"]
[null,null,null,null,null,null,null,null,null,null,null,null,null,null,null,null,null,null,"Scenario","UA      Indata till Samkalk"]
[null,null,null,null,null,null,null,null,null,null,null,null,null,null,null,null,null,null,"SAMS databas","C:\\Ske\\Person2040_210101_v11_Huvudkalkyl (2040_111)\\Markanv\\Samp2040_200423.mdb"]
[null,null,null,null,null,null,null,null,null,null,null,null,null,null,null,null,null,null,"EMACPATH",".\\Makro\\","C:\\Ske\\Person2040_210101_v11_Huvudkalkyl (2040_111)\\Makro\\Std\\","C:\\Ske\\Person2040_210101_v11_Huvudkalkyl (2040_111)\\Makro\\Prj\\"]
[null,null,null,null,null,null,null,null,null,null,null,null,null,null,null,null,null,null,null,"CentralOrtKommun","2015-09-02T14:02:22"]
[null,null,null,null,null,null,null,null,null,null,null,null,null,null,null,null,null,null,null,"CentralOrtLan","2015-09-02T14:04:38"]
[null,null,null,null,null,null,null,null,null,null,null,null,null,null,null,null,null,null,null,"Disagg_Palt","2015-07-14T08:24:11"]
[null,null,null,null,null,null,null,null,null,null,null,null,null,null,null,null,null,null,null,"Disagg_Samm","2019-12-18T11:27:13"]
[null,null,null,null,null,null,null,null,null,null,null,null,null,null,null,null,null,null,null,"Disagg_Skane","2015-07-14T08:25:05"]
[null,null,null,null,null,null,null,null,null,null,null,null,null,null,null,null,null,null,null,"Disagg_Sydost","2019-12-18T11:27:11"]
[null,null,null,null,null,null,null,null,null,null,null,null,null,null,null,null,null,null,null,"Disagg_Vast","2019-04-25T13:43:06"]
[null,null,null,null,null,null,null,null,null,null,null,null,null,null,null,null,null,null,null,"Emme2Error","2006-05-15T10:33:32"]
[null,null,null,null,null,null,null,null,null,null,null,null,null,null,null,null,null,null,null,"FaktorPalt","2019-03-04T16:51:40"]
[null,null,null,null,null,null,null,null,null,null,null,null,null,null,null,null,null,null,null,"FaktorSamm","2019-03-04T16:50:30"]
[null,null,null,null,null,null,null,null,null,null,null,null,null,null,null,null,null,null,null,"FaktorSkåne","2019-03-04T16:43:35"]
[null,null,null,null,null,null,null,null,null,null,null,null,null,null,null,null,null,null,null,"FaktorSydost","2019-03-04T16:44:43"]
[null,null,null,null,null,null,null,null,null,null,null,null,null,null,null,null,null,null,null,"FaktorVäst","2019-03-04T16:49:24"]
[null,null,null,null,null,null,null,null,null,null,null,null,null,null,null,null,null,null,null,"InternationalZoneData","2006-05-15T10:33:33"]
[null,null,null,null,null,null,null,null,null,null,null,null,null,null,null,null,null,null,null,"KEY_Länsnamn/nummer","2006-05-15T10:33:33"]
[null,null,null,null,null,null,null,null,null,null,null,null,null,null,null,null,null,null,null,"Key_Nationell","2015-09-02T11:38:35"]
[null,null,null,null,null,null,null,null,null,null,null,null,null,null,null,null,null,null,null,"Key_Palt","2018-12-17T10:20:31"]
[null,null,null,null,null,null,null,null,null,null,null,null,null,null,null,null,null,null,null,"Key_Samm","2015-09-02T11:38:53"]
[null,null,null,null,null,null,null,null,null,null,null,null,null,null,null,null,null,null,null,"Key_Skane","2018-12-17T10:22:25"]
[null,null,null,null,null,null,null,null,null,null,null,null,null,null,null,null,null,null,null,"Key_Sydost","2015-09-02T11:39:13"]
[null,null,null,null,null,null,null,null,null,null,null,null,null,null,null,null,null,null,null,"Key_Utrikes","2015-09-02T11:40:04"]
[null,null,null,null,null,null,null,null,null,null,null,null,null,null,null,null,null,null,null,"Key_Vast","2015-09-02T11:40:15"]
[null,null,null,null,null,null,null,null,null,null,null,null,null,null,null,null,null,null,null,"KeyStor","2006-05-15T10:33:35"]
[null,null,null,null,null,null,null,null,null,null,null,null,null,null,null,null,null,null,null,"Kommun","2015-09-20T10:46:21"]
[null,null,null,null,null,null,null,null,null,null,null,null,null,null,null,null,null,null,null,"Lan","2015-09-02T13:33:33"]
[null,null,null,null,null,null,null,null,null,null,null,null,null,null,null,null,null,null,null,"Parkering_PA_AIR","2006-05-15T10:33:35"]
[null,null,null,null,null,null,null,null,null,null,null,null,null,null,null,null,null,null,null,"Parkering_PA_JVG","2015-07-14T08:53:22"]
[null,null,null,null,null,null,null,null,null,null,null,null,null,null,null,null,null,null,null,"Parkering_SA_AIR","2015-07-14T08:55:50"]
[null,null,null,null,null,null,null,null,null,null,null,null,null,null,null,null,null,null,null,"Parkering_SA_JVG","2015-07-14T08:56:23"]
[null,null,null,null,null,null,null,null,null,null,null,null,null,null,null,null,null,null,null,"Parkering_SK_AIR","2015-07-16T13:44:20"]
[null,null,null,null,null,null,null,null,null,null,null,null,null,null,null,null,null,null,null,"Parkering_SK_JVG","2015-07-14T08:57:33"]
[null,null,null,null,null,null,null,null,null,null,null,null,null,null,null,null,null,null,null,"Parkering_SO_AIR","2006-05-15T10:33:36"]
[null,null,null,null,null,null,null,null,null,null,null,null,null,null,null,null,null,null,null,"Parkering_SO_JVG","2015-07-14T08:58:19"]
[null,null,null,null,null,null,null,null,null,null,null,null,null,null,null,null,null,null,null,"Parkering_VT_AIR","2006-05-15T10:33:36"]
[null,null,null,null,null,null,null,null,null,null,null,null,null,null,null,null,null,null,null,"Parkering_VT_JVG","2015-07-14T08:59:10"]
[null,null,null,null,null,null,null,null,null,null,null,null,null,null,null,null,null,null,null,"PropertyLimit","2020-06-15T16:40:08"]
[null,null,null,null,null,null,null,null,null,null,null,null,null,null,null,null,null,null,null,"Region","2006-05-15T10:33:37"]
[null,null,null,null,null,null,null,null,null,null,null,null,null,null,null,null,null,null,null,"RegionalCardSharePalt","2019-03-04T15:42:53"]
[null,null,null,null,null,null,null,null,null,null,null,null,null,null,null,null,null,null,null,"RegionalCardShareSamm","2019-03-04T15:34:11"]
[null,null,null,null,null,null,null,null,null,null,null,null,null,null,null,null,null,null,null,"RegionalCardShareSkåne","2019-03-06T08:24:09"]
[null,null,null,null,null,null,null,null,null,null,null,null,null,null,null,null,null,null,null,"RegionalCardShareSydost","2018-12-17T10:35:45"]
[null,null,null,null,null,null,null,null,null,null,null,null,null,null,null,null,null,null,null,"RegionalCardShareVäst","2018-12-17T10:36:07"]
[null,null,null,null,null,null,null,null,null,null,null,null,null,null,null,null,null,null,null,"RegionalTimeShare","2006-05-15T10:33:37"]
[null,null,null,null,null,null,null,null,null,null,null,null,null,null,null,null,null,null,null,"SAMSAr","2015-09-01T10:39:45"]
[null,null,null,null,null,null,null,null,null,null,null,null,null,null,null,null,null,null,null,"SAMSBilAntal","2020-04-23T14:26:57"]
[null,null,null,null,null,null,null,null,null,null,null,null,null,null,null,null,null,null,null,"SAMSBO","2006-05-15T10:33:38"]
[null,null,null,null,null,null,null,null,null,null,null,null,null,null,null,null,null,null,null,"SAMSDag","2020-03-27T15:06:39"]
[null,null,null,null,null,null,null,null,null,null,null,null,null,null,null,null,null,null,null,"SAMSExtraAttraktion","2018-12-17T10:43:52"]
[null,null,null,null,null,null,null,null,null,null,null,null,null,null,null,null,null,null,null,"SAMSFAM","2006-05-15T10:33:39"]
[null,null,null,null,null,null,null,null,null,null,null,null,null,null,null,null,null,null,null,"SAMSInk","2020-04-16T12:43:13"]
[null,null,null,null,null,null,null,null,null,null,null,null,null,null,null,null,null,null,null,"SAMSSyss","2020-03-20T17:33:26"]
[null,null,null,null,null,null,null,null,null,null,null,null,null,null,null,null,null,null,null,"SAMSTax","2019-03-04T15:49:02"]
[null,null,null,null,null,null,null,null,null,null,null,null,null,null,null,null,null,null,null,"SAMSxy","2019-03-06T08:26:43"]
[null,null,null,null,null,null,null,null,null,null,null,null,null,null,null,null,null,null,null,"UtilityAddNational","2018-12-17T10:50:34"]
[null,null,null,null,null,null,null,null,null,null,null,null,null,null,null,null,null,null,null,"UtilityAddPalt","2018-12-17T10:53:02"]
[null,null,null,null,null,null,null,null,null,null,null,null,null,null,null,null,null,null,null,"UtilityAddSamm","2019-03-04T15:37:38"]
[null,null,null,null,null,null,null,null,null,null,null,null,null,null,null,null,null,null,null,"UtilityAddSkåne","2018-12-17T10:54:37"]
[null,null,null,null,null,null,null,null,null,null,null,null,null,null,null,null,null,null,null,"UtilityAddSydost","2018-12-17T10:55:36"]
[null,null,null,null,null,null,null,null,null,null,null,null,null,null,null,null,null,null,null,"UtilityAddVäst","2018-12-17T10:56:19"]
[null,null,null,null,null,null,null,null,null,null,null,null,null,null,null,null,null,null,null,"Version_2020_02_03","2020-04-23T14:22:43"]
[]
[null,null,null,null,null,null,null,null,null,null,null,null,null,null,null,null,null,null,"Steg","      === SAMKALK==="]
[null,null,null,null,null,null,null,null,null,null,null,null,null,null,null,null,null,null,"ID","SK46"]
[null,null,null,null,null,null,null,null,null,null,null,null,null,null,null,null,null,null,"Användare","selemm01"]
[null,null,null,null,null,null,null,null,null,null,null,null,null,null,null,null,null,null,"Filnamn","Förutsättningar.txt"]
[]
[]
[null,null,null,null,null,null,null,null,null,null,null,null,null,null,null,null,null,null,"KONSUMENTÖVERSKOTT - Pb - nationellt - tjänste"]
[null,null,null,null,null,null,null,null,null,null,null,null,null,null,null,null,null,null," Tidsvärde åktid",null,339,"kr/tim"]
[null,null,null,null,null,null,null,null,null,null,null,null,null,null,null,null,null,null," Andel intern olyckskostnad",null,0]
[null,null,null,null,null,null,null,null,null,null,null,null,null,null,null,null,null,null," Beläggningsgrad",null,1.24,"personer/fordon"]
[null,null,null,null,null,null,null,null,null,null,null,null,null,null,null,null,null,null,"KONSUMENTÖVERSKOTT - Pb - nationellt - private"]
[null,null,null,null,null,null,null,null,null,null,null,null,null,null,null,null,null,null,"*Tidsvärde åktid",126,null,"kr/tim"]
[null,null,null,null,null,null,null,null,null,null,null,null,null,null,null,null,null,null," Andel intern olyckskostnad",null,0]
[null,null,null,null,null,null,null,null,null,null,null,null,null,null,null,null,null,null,"*Beläggningsgrad",2.2200000000000002,null,"personer/fordon"]
[null,null,null,null,null,null,null,null,null,null,null,null,null,null,null,null,null,null,"KONSUMENTÖVERSKOTT - Pb - nationellt - arbete"]
[null,null,null,null,null,null,null,null,null,null,null,null,null,null,null,null,null,null,"*Tidsvärde åktid",126,null,"kr/tim"]
[null,null,null,null,null,null,null,null,null,null,null,null,null,null,null,null,null,null," Andel intern olyckskostnad",null,0]
[null,null,null,null,null,null,null,null,null,null,null,null,null,null,null,null,null,null,"*Beläggningsgrad",2.2200000000000002,null,"personer/fordon"]
[null,null,null,null,null,null,null,null,null,null,null,null,null,null,null,null,null,null,"KONSUMENTÖVERSKOTT - Pb - regionalt - tjänste"]
[null,null,null,null,null,null,null,null,null,null,null,null,null,null,null,null,null,null," Tidsvärde åktid",null,339,"kr/tim"]
[null,null,null,null,null,null,null,null,null,null,null,null,null,null,null,null,null,null," Andel intern olyckskostnad",null,0]
[null,null,null,null,null,null,null,null,null,null,null,null,null,null,null,null,null,null,"*Beläggningsgrad",1.31,null,"personer/fordon"]
[null,null,null,null,null,null,null,null,null,null,null,null,null,null,null,null,null,null,"KONSUMENTÖVERSKOTT - Pb - regionalt - private"]
[null,null,null,null,null,null,null,null,null,null,null,null,null,null,null,null,null,null,"*Tidsvärde åktid",69,null,"kr/tim"]
[null,null,null,null,null,null,null,null,null,null,null,null,null,null,null,null,null,null," Andel intern olyckskostnad",null,0]
[null,null,null,null,null,null,null,null,null,null,null,null,null,null,null,null,null,null,"*Beläggningsgrad",1.89,null,"personer/fordon"]
[null,null,null,null,null,null,null,null,null,null,null,null,null,null,null,null,null,null,"KONSUMENTÖVERSKOTT - Pb - regionalt - arbete"]
[null,null,null,null,null,null,null,null,null,null,null,null,null,null,null,null,null,null,"*Tidsvärde åktid",101,null,"kr/tim"]
[null,null,null,null,null,null,null,null,null,null,null,null,null,null,null,null,null,null," Andel intern olyckskostnad",null,0]
[null,null,null,null,null,null,null,null,null,null,null,null,null,null,null,null,null,null,"*Beläggningsgrad",1.1299999999999999,null,"personer/fordon"]
[null,null,null,null,null,null,null,null,null,null,null,null,null,null,null,null,null,null,"KONSUMENTÖVERSKOTT - Pby - nationellt - tjänste"]
[null,null,null,null,null,null,null,null,null,null,null,null,null,null,null,null,null,null,"*Tidsvärde åktid",278,null,"kr/tim"]
[null,null,null,null,null,null,null,null,null,null,null,null,null,null,null,null,null,null," Andel intern olyckskostnad",null,0]
[null,null,null,null,null,null,null,null,null,null,null,null,null,null,null,null,null,null,"*Beläggningsgrad",1.2,null,"personer/fordon"]
[null,null,null,null,null,null,null,null,null,null,null,null,null,null,null,null,null,null,"*Godskostnader",3,null,"kr/tim"]
[null,null,null,null,null,null,null,null,null,null,null,null,null,null,null,null,null,null,"KONSUMENTÖVERSKOTT - Pby - regionalt - tjänste"]
[null,null,null,null,null,null,null,null,null,null,null,null,null,null,null,null,null,null,"*Tidsvärde åktid",278,null,"kr/tim"]
[null,null,null,null,null,null,null,null,null,null,null,null,null,null,null,null,null,null," Andel intern olyckskostnad",null,0]
[null,null,null,null,null,null,null,null,null,null,null,null,null,null,null,null,null,null,"*Beläggningsgrad",1.2,null,"personer/fordon"]
[null,null,null,null,null,null,null,null,null,null,null,null,null,null,null,null,null,null,"*Godskostnader",3,null,"kr/tim"]
[null,null,null,null,null,null,null,null,null,null,null,null,null,null,null,null,null,null,"KONSUMENTÖVERSKOTT - Lbu - nationellt - tjänste"]
[null,null,null,null,null,null,null,null,null,null,null,null,null,null,null,null,null,null,"*Tidsvärde åktid",278,null,"kr/tim"]
[null,null,null,null,null,null,null,null,null,null,null,null,null,null,null,null,null,null," Andel intern olyckskostnad",null,0]
[null,null,null,null,null,null,null,null,null,null,null,null,null,null,null,null,null,null,"*Beläggningsgrad",1.2,null,"personer/fordon"]
[null,null,null,null,null,null,null,null,null,null,null,null,null,null,null,null,null,null,"*Godskostnader",7,null,"kr/tim"]
[null,null,null,null,null,null,null,null,null,null,null,null,null,null,null,null,null,null,"KONSUMENTÖVERSKOTT - Lbu - regionalt - tjänste"]
[null,null,null,null,null,null,null,null,null,null,null,null,null,null,null,null,null,null,"*Tidsvärde åktid",278,null,"kr/tim"]
[null,null,null,null,null,null,null,null,null,null,null,null,null,null,null,null,null,null," Andel intern olyckskostnad",null,0]
[null,null,null,null,null,null,null,null,null,null,null,null,null,null,null,null,null,null,"*Beläggningsgrad",1.2,null,"personer/fordon"]
[null,null,null,null,null,null,null,null,null,null,null,null,null,null,null,null,null,null,"*Godskostnader",7,null,"kr/tim"]
[null,null,null,null,null,null,null,null,null,null,null,null,null,null,null,null,null,null,"KONSUMENTÖVERSKOTT - Lbs - nationellt - tjänste"]
[null,null,null,null,null,null,null,null,null,null,null,null,null,null,null,null,null,null,"*Tidsvärde åktid",278,null,"kr/tim"]
[null,null,null,null,null,null,null,null,null,null,null,null,null,null,null,null,null,null," Andel intern olyckskostnad",null,0]
[null,null,null,null,null,null,null,null,null,null,null,null,null,null,null,null,null,null,"*Beläggningsgrad",1,null,"personer/fordon"]
[null,null,null,null,null,null,null,null,null,null,null,null,null,null,null,null,null,null,"*Godskostnader",31,null,"kr/tim"]
[null,null,null,null,null,null,null,null,null,null,null,null,null,null,null,null,null,null,"KONSUMENTÖVERSKOTT - Lbs - regionalt - tjänste"]
[null,null,null,null,null,null,null,null,null,null,null,null,null,null,null,null,null,null,"*Tidsvärde åktid",278,null,"kr/tim"]
[null,null,null,null,null,null,null,null,null,null,null,null,null,null,null,null,null,null," Andel intern olyckskostnad",null,0]
[null,null,null,null,null,null,null,null,null,null,null,null,null,null,null,null,null,null,"*Beläggningsgrad",1,null,"personer/fordon"]
[null,null,null,null,null,null,null,null,null,null,null,null,null,null,null,null,null,null,"*Godskostnader",31,null,"kr/tim"]
[null,null,null,null,null,null,null,null,null,null,null,null,null,null,null,null,null,null,"KONSUMENTÖVERSKOTT - Buss - nationellt - tjänste"]
[null,null,null,null,null,null,null,null,null,null,null,null,null,null,null,null,null,null," Tidsvärde åktid",null,339,"kr/tim"]
[null,null,null,null,null,null,null,null,null,null,null,null,null,null,null,null,null,null,"*Tidsvärde bytestid",339,null,"kr/tim"]
[null,null,null,null,null,null,null,null,null,null,null,null,null,null,null,null,null,null,"*Tidsvärde anslutningsresa",339,null,"kr/tim"]
[null,null,null,null,null,null,null,null,null,null,null,null,null,null,null,null,null,null,"*Tidsvärde väntetid period 1",182,null,"kr/tim"]
[null,null,null,null,null,null,null,null,null,null,null,null,null,null,null,null,null,null,"*Tidsvärde väntetid period 2",182,null,"kr/tim"]
[null,null,null,null,null,null,null,null,null,null,null,null,null,null,null,null,null,null,"*Tidsvärde väntetid period 3",182,null,"kr/tim"]
[null,null,null,null,null,null,null,null,null,null,null,null,null,null,null,null,null,null,"*Tidsvärde väntetid period 4",182,null,"kr/tim"]
[null,null,null,null,null,null,null,null,null,null,null,null,null,null,null,null,null,null,"*Tidsvärde väntetid period 5",150,null,"kr/tim"]
[null,null,null,null,null,null,null,null,null,null,null,null,null,null,null,null,null,null,"*Tidsvärde väntetid period 6",150,null,"kr/tim"]
[null,null,null,null,null,null,null,null,null,null,null,null,null,null,null,null,null,null," Andel intern olyckskostnad",null,0]
[null,null,null,null,null,null,null,null,null,null,null,null,null,null,null,null,null,null,"KONSUMENTÖVERSKOTT - Buss - nationellt - private"]
[null,null,null,null,null,null,null,null,null,null,null,null,null,null,null,null,null,null,"*Tidsvärde åktid",45,null,"kr/tim"]
[null,null,null,null,null,null,null,null,null,null,null,null,null,null,null,null,null,null,"*Tidsvärde bytestid",114,null,"kr/tim"]
[null,null,null,null,null,null,null,null,null,null,null,null,null,null,null,null,null,null,"*Tidsvärde anslutningsresa",62,null,"kr/tim"]
[null,null,null,null,null,null,null,null,null,null,null,null,null,null,null,null,null,null,"*Tidsvärde väntetid period 1",23,null,"kr/tim"]
[null,null,null,null,null,null,null,null,null,null,null,null,null,null,null,null,null,null,"*Tidsvärde väntetid period 2",23,null,"kr/tim"]
[null,null,null,null,null,null,null,null,null,null,null,null,null,null,null,null,null,null,"*Tidsvärde väntetid period 3",23,null,"kr/tim"]
[null,null,null,null,null,null,null,null,null,null,null,null,null,null,null,null,null,null,"*Tidsvärde väntetid period 4",12,null,"kr/tim"]
[null,null,null,null,null,null,null,null,null,null,null,null,null,null,null,null,null,null,"*Tidsvärde väntetid period 5",12,null,"kr/tim"]
[null,null,null,null,null,null,null,null,null,null,null,null,null,null,null,null,null,null,"*Tidsvärde väntetid period 6",9,null,"kr/tim"]
[null,null,null,null,null,null,null,null,null,null,null,null,null,null,null,null,null,null," Andel intern olyckskostnad",null,0]
[null,null,null,null,null,null,null,null,null,null,null,null,null,null,null,null,null,null,"KONSUMENTÖVERSKOTT - Buss - nationellt - arbete"]
[null,null,null,null,null,null,null,null,null,null,null,null,null,null,null,null,null,null,"*Tidsvärde åktid",45,null,"kr/tim"]
[null,null,null,null,null,null,null,null,null,null,null,null,null,null,null,null,null,null,"*Tidsvärde bytestid",114,null,"kr/tim"]
[null,null,null,null,null,null,null,null,null,null,null,null,null,null,null,null,null,null,"*Tidsvärde anslutningsresa",62,null,"kr/tim"]
[null,null,null,null,null,null,null,null,null,null,null,null,null,null,null,null,null,null,"*Tidsvärde väntetid period 1",23,null,"kr/tim"]
[null,null,null,null,null,null,null,null,null,null,null,null,null,null,null,null,null,null,"*Tidsvärde väntetid period 2",23,null,"kr/tim"]
[null,null,null,null,null,null,null,null,null,null,null,null,null,null,null,null,null,null,"*Tidsvärde väntetid period 3",23,null,"kr/tim"]
[null,null,null,null,null,null,null,null,null,null,null,null,null,null,null,null,null,null,"*Tidsvärde väntetid period 4",12,null,"kr/tim"]
[null,null,null,null,null,null,null,null,null,null,null,null,null,null,null,null,null,null,"*Tidsvärde väntetid period 5",12,null,"kr/tim"]
[null,null,null,null,null,null,null,null,null,null,null,null,null,null,null,null,null,null,"*Tidsvärde väntetid period 6",9,null,"kr/tim"]
[null,null,null,null,null,null,null,null,null,null,null,null,null,null,null,null,null,null," Andel intern olyckskostnad",null,0]
[null,null,null,null,null,null,null,null,null,null,null,null,null,null,null,null,null,null,"KONSUMENTÖVERSKOTT - Buss - regionalt - tjänste"]
[null,null,null,null,null,null,null,null,null,null,null,null,null,null,null,null,null,null,"*Tidsvärde åktid",51,null,"kr/tim"]
[null,null,null,null,null,null,null,null,null,null,null,null,null,null,null,null,null,null,"*Tidsvärde bytestid",102,null,"kr/tim"]
[null,null,null,null,null,null,null,null,null,null,null,null,null,null,null,null,null,null,"*Tidsvärde anslutningsresa",51,null,"kr/tim"]
[null,null,null,null,null,null,null,null,null,null,null,null,null,null,null,null,null,null,"*Tidsvärde väntetid period 1",87,null,"kr/tim"]
[null,null,null,null,null,null,null,null,null,null,null,null,null,null,null,null,null,null,"*Tidsvärde väntetid period 2",28,null,"kr/tim"]
[null,null,null,null,null,null,null,null,null,null,null,null,null,null,null,null,null,null,"*Tidsvärde väntetid period 3",24,null,"kr/tim"]
[null,null,null,null,null,null,null,null,null,null,null,null,null,null,null,null,null,null,"*Tidsvärde väntetid period 4",15,null,"kr/tim"]
[null,null,null,null,null,null,null,null,null,null,null,null,null,null,null,null,null,null," Tidsvärde väntetid period 5",null,0,"kr/tim"]
[null,null,null,null,null,null,null,null,null,null,null,null,null,null,null,null,null,null," Tidsvärde väntetid period 6",null,0,"kr/tim"]
[null,null,null,null,null,null,null,null,null,null,null,null,null,null,null,null,null,null," Andel intern olyckskostnad",null,0]
[null,null,null,null,null,null,null,null,null,null,null,null,null,null,null,null,null,null,"KONSUMENTÖVERSKOTT - Buss - regionalt - private"]
[null,null,null,null,null,null,null,null,null,null,null,null,null,null,null,null,null,null,"*Tidsvärde åktid",0,null,"kr/tim"]
[null,null,null,null,null,null,null,null,null,null,null,null,null,null,null,null,null,null," Tidsvärde bytestid",null,0,"kr/tim"]
[null,null,null,null,null,null,null,null,null,null,null,null,null,null,null,null,null,null," Tidsvärde anslutningsresa",null,0,"kr/tim"]
[null,null,null,null,null,null,null,null,null,null,null,null,null,null,null,null,null,null," Tidsvärde väntetid period 1",null,0,"kr/tim"]
[null,null,null,null,null,null,null,null,null,null,null,null,null,null,null,null,null,null," Tidsvärde väntetid period 2",null,0,"kr/tim"]
[null,null,null,null,null,null,null,null,null,null,null,null,null,null,null,null,null,null," Tidsvärde väntetid period 3",null,0,"kr/tim"]
[null,null,null,null,null,null,null,null,null,null,null,null,null,null,null,null,null,null," Tidsvärde väntetid period 4",null,0,"kr/tim"]
[null,null,null,null,null,null,null,null,null,null,null,null,null,null,null,null,null,null," Tidsvärde väntetid period 5",null,0,"kr/tim"]
[null,null,null,null,null,null,null,null,null,null,null,null,null,null,null,null,null,null," Tidsvärde väntetid period 6",null,0,"kr/tim"]
[null,null,null,null,null,null,null,null,null,null,null,null,null,null,null,null,null,null," Andel intern olyckskostnad",null,0]
[null,null,null,null,null,null,null,null,null,null,null,null,null,null,null,null,null,null,"KONSUMENTÖVERSKOTT - Buss - regionalt - arbete"]
[null,null,null,null,null,null,null,null,null,null,null,null,null,null,null,null,null,null,"*Tidsvärde åktid",0,null,"kr/tim"]
[null,null,null,null,null,null,null,null,null,null,null,null,null,null,null,null,null,null," Tidsvärde bytestid",null,0,"kr/tim"]
[null,null,null,null,null,null,null,null,null,null,null,null,null,null,null,null,null,null," Tidsvärde anslutningsresa",null,0,"kr/tim"]
[null,null,null,null,null,null,null,null,null,null,null,null,null,null,null,null,null,null," Tidsvärde väntetid period 1",null,0,"kr/tim"]
[null,null,null,null,null,null,null,null,null,null,null,null,null,null,null,null,null,null," Tidsvärde väntetid period 2",null,0,"kr/tim"]
[null,null,null,null,null,null,null,null,null,null,null,null,null,null,null,null,null,null," Tidsvärde väntetid period 3",null,0,"kr/tim"]
[null,null,null,null,null,null,null,null,null,null,null,null,null,null,null,null,null,null," Tidsvärde väntetid period 4",null,0,"kr/tim"]
[null,null,null,null,null,null,null,null,null,null,null,null,null,null,null,null,null,null," Tidsvärde väntetid period 5",null,0,"kr/tim"]
[null,null,null,null,null,null,null,null,null,null,null,null,null,null,null,null,null,null," Tidsvärde väntetid period 6",null,0,"kr/tim"]
[null,null,null,null,null,null,null,null,null,null,null,null,null,null,null,null,null,null," Andel intern olyckskostnad",null,0]
[null,null,null,null,null,null,null,null,null,null,null,null,null,null,null,null,null,null,"KONSUMENTÖVERSKOTT - Tåg - nationellt - tjänste"]
[null,null,null,null,null,null,null,null,null,null,null,null,null,null,null,null,null,null,"*Tidsvärde åktid",288,null,"kr/tim"]
[null,null,null,null,null,null,null,null,null,null,null,null,null,null,null,null,null,null,"*Tidsvärde bytestid",339,null,"kr/tim"]
[null,null,null,null,null,null,null,null,null,null,null,null,null,null,null,null,null,null,"*Tidsvärde anslutningsresa",339,null,"kr/tim"]
[null,null,null,null,null,null,null,null,null,null,null,null,null,null,null,null,null,null,"*Tidsvärde väntetid period 1",237,null,"kr/tim"]
[null,null,null,null,null,null,null,null,null,null,null,null,null,null,null,null,null,null,"*Tidsvärde väntetid period 2",237,null,"kr/tim"]
[null,null,null,null,null,null,null,null,null,null,null,null,null,null,null,null,null,null,"*Tidsvärde väntetid period 3",237,null,"kr/tim"]
[null,null,null,null,null,null,null,null,null,null,null,null,null,null,null,null,null,null,"*Tidsvärde väntetid period 4",166,null,"kr/tim"]
[null,null,null,null,null,null,null,null,null,null,null,null,null,null,null,null,null,null,"*Tidsvärde väntetid period 5",142,null,"kr/tim"]
[null,null,null,null,null,null,null,null,null,null,null,null,null,null,null,null,null,null,"*Tidsvärde väntetid period 6",142,null,"kr/tim"]
[null,null,null,null,null,null,null,null,null,null,null,null,null,null,null,null,null,null," Andel intern olyckskostnad",null,0]
[null,null,null,null,null,null,null,null,null,null,null,null,null,null,null,null,null,null,"KONSUMENTÖVERSKOTT - Tåg - nationellt - private"]
[null,null,null,null,null,null,null,null,null,null,null,null,null,null,null,null,null,null,"*Tidsvärde åktid",85,null,"kr/tim"]
[null,null,null,null,null,null,null,null,null,null,null,null,null,null,null,null,null,null,"*Tidsvärde bytestid",213,null,"kr/tim"]
[null,null,null,null,null,null,null,null,null,null,null,null,null,null,null,null,null,null,"*Tidsvärde anslutningsresa",117,null,"kr/tim"]
[null,null,null,null,null,null,null,null,null,null,null,null,null,null,null,null,null,null,"*Tidsvärde väntetid period 1",44,null,"kr/tim"]
[null,null,null,null,null,null,null,null,null,null,null,null,null,null,null,null,null,null,"*Tidsvärde väntetid period 2",44,null,"kr/tim"]
[null,null,null,null,null,null,null,null,null,null,null,null,null,null,null,null,null,null,"*Tidsvärde väntetid period 3",44,null,"kr/tim"]
[null,null,null,null,null,null,null,null,null,null,null,null,null,null,null,null,null,null,"*Tidsvärde väntetid period 4",23,null,"kr/tim"]
[null,null,null,null,null,null,null,null,null,null,null,null,null,null,null,null,null,null,"*Tidsvärde väntetid period 5",23,null,"kr/tim"]
[null,null,null,null,null,null,null,null,null,null,null,null,null,null,null,null,null,null,"*Tidsvärde väntetid period 6",17,null,"kr/tim"]
[null,null,null,null,null,null,null,null,null,null,null,null,null,null,null,null,null,null," Andel intern olyckskostnad",null,0]
[null,null,null,null,null,null,null,null,null,null,null,null,null,null,null,null,null,null,"KONSUMENTÖVERSKOTT - Tåg - nationellt - arbete"]
[null,null,null,null,null,null,null,null,null,null,null,null,null,null,null,null,null,null,"*Tidsvärde åktid",85,null,"kr/tim"]
[null,null,null,null,null,null,null,null,null,null,null,null,null,null,null,null,null,null,"*Tidsvärde bytestid",213,null,"kr/tim"]
[null,null,null,null,null,null,null,null,null,null,null,null,null,null,null,null,null,null,"*Tidsvärde anslutningsresa",117,null,"kr/tim"]
[null,null,null,null,null,null,null,null,null,null,null,null,null,null,null,null,null,null,"*Tidsvärde väntetid period 1",44,null,"kr/tim"]
[null,null,null,null,null,null,null,null,null,null,null,null,null,null,null,null,null,null,"*Tidsvärde väntetid period 2",44,null,"kr/tim"]
[null,null,null,null,null,null,null,null,null,null,null,null,null,null,null,null,null,null,"*Tidsvärde väntetid period 3",44,null,"kr/tim"]
[null,null,null,null,null,null,null,null,null,null,null,null,null,null,null,null,null,null,"*Tidsvärde väntetid period 4",23,null,"kr/tim"]
[null,null,null,null,null,null,null,null,null,null,null,null,null,null,null,null,null,null,"*Tidsvärde väntetid period 5",23,null,"kr/tim"]
[null,null,null,null,null,null,null,null,null,null,null,null,null,null,null,null,null,null,"*Tidsvärde väntetid period 6",17,null,"kr/tim"]
[null,null,null,null,null,null,null,null,null,null,null,null,null,null,null,null,null,null," Andel intern olyckskostnad",null,0]
[null,null,null,null,null,null,null,null,null,null,null,null,null,null,null,null,null,null,"KONSUMENTÖVERSKOTT - Tåg - regionalt - tjänste"]
[null,null,null,null,null,null,null,null,null,null,null,null,null,null,null,null,null,null,"*Tidsvärde åktid",0,null,"kr/tim"]
[null,null,null,null,null,null,null,null,null,null,null,null,null,null,null,null,null,null," Tidsvärde bytestid",null,0,"kr/tim"]
[null,null,null,null,null,null,null,null,null,null,null,null,null,null,null,null,null,null," Tidsvärde anslutningsresa",null,0,"kr/tim"]
[null,null,null,null,null,null,null,null,null,null,null,null,null,null,null,null,null,null," Tidsvärde väntetid period 1",null,0,"kr/tim"]
[null,null,null,null,null,null,null,null,null,null,null,null,null,null,null,null,null,null," Tidsvärde väntetid period 2",null,0,"kr/tim"]
[null,null,null,null,null,null,null,null,null,null,null,null,null,null,null,null,null,null," Tidsvärde väntetid period 3",null,0,"kr/tim"]
[null,null,null,null,null,null,null,null,null,null,null,null,null,null,null,null,null,null," Tidsvärde väntetid period 4",null,0,"kr/tim"]
[null,null,null,null,null,null,null,null,null,null,null,null,null,null,null,null,null,null," Tidsvärde väntetid period 5",null,0,"kr/tim"]
[null,null,null,null,null,null,null,null,null,null,null,null,null,null,null,null,null,null," Tidsvärde väntetid period 6",null,0,"kr/tim"]
[null,null,null,null,null,null,null,null,null,null,null,null,null,null,null,null,null,null," Andel intern olyckskostnad",null,0]
[null,null,null,null,null,null,null,null,null,null,null,null,null,null,null,null,null,null,"KONSUMENTÖVERSKOTT - Tåg - regionalt - private"]
[null,null,null,null,null,null,null,null,null,null,null,null,null,null,null,null,null,null,"*Tidsvärde åktid",0,null,"kr/tim"]
[null,null,null,null,null,null,null,null,null,null,null,null,null,null,null,null,null,null," Tidsvärde bytestid",null,0,"kr/tim"]
[null,null,null,null,null,null,null,null,null,null,null,null,null,null,null,null,null,null," Tidsvärde anslutningsresa",null,0,"kr/tim"]
[null,null,null,null,null,null,null,null,null,null,null,null,null,null,null,null,null,null," Tidsvärde väntetid period 1",null,0,"kr/tim"]
[null,null,null,null,null,null,null,null,null,null,null,null,null,null,null,null,null,null," Tidsvärde väntetid period 2",null,0,"kr/tim"]
[null,null,null,null,null,null,null,null,null,null,null,null,null,null,null,null,null,null," Tidsvärde väntetid period 3",null,0,"kr/tim"]
[null,null,null,null,null,null,null,null,null,null,null,null,null,null,null,null,null,null," Tidsvärde väntetid period 4",null,0,"kr/tim"]
[null,null,null,null,null,null,null,null,null,null,null,null,null,null,null,null,null,null," Tidsvärde väntetid period 5",null,0,"kr/tim"]
[null,null,null,null,null,null,null,null,null,null,null,null,null,null,null,null,null,null," Tidsvärde väntetid period 6",null,0,"kr/tim"]
[null,null,null,null,null,null,null,null,null,null,null,null,null,null,null,null,null,null," Andel intern olyckskostnad",null,0]
[null,null,null,null,null,null,null,null,null,null,null,null,null,null,null,null,null,null,"KONSUMENTÖVERSKOTT - Tåg - regionalt - arbete"]
[null,null,null,null,null,null,null,null,null,null,null,null,null,null,null,null,null,null,"*Tidsvärde åktid",0,null,"kr/tim"]
[null,null,null,null,null,null,null,null,null,null,null,null,null,null,null,null,null,null," Tidsvärde bytestid",null,0,"kr/tim"]
[null,null,null,null,null,null,null,null,null,null,null,null,null,null,null,null,null,null," Tidsvärde anslutningsresa",null,0,"kr/tim"]
[null,null,null,null,null,null,null,null,null,null,null,null,null,null,null,null,null,null," Tidsvärde väntetid period 1",null,0,"kr/tim"]
[null,null,null,null,null,null,null,null,null,null,null,null,null,null,null,null,null,null," Tidsvärde väntetid period 2",null,0,"kr/tim"]
[null,null,null,null,null,null,null,null,null,null,null,null,null,null,null,null,null,null," Tidsvärde väntetid period 3",null,0,"kr/tim"]
[null,null,null,null,null,null,null,null,null,null,null,null,null,null,null,null,null,null," Tidsvärde väntetid period 4",null,0,"kr/tim"]
[null,null,null,null,null,null,null,null,null,null,null,null,null,null,null,null,null,null," Tidsvärde väntetid period 5",null,0,"kr/tim"]
[null,null,null,null,null,null,null,null,null,null,null,null,null,null,null,null,null,null," Tidsvärde väntetid period 6",null,0,"kr/tim"]
[null,null,null,null,null,null,null,null,null,null,null,null,null,null,null,null,null,null," Andel intern olyckskostnad",null,0]
[null,null,null,null,null,null,null,null,null,null,null,null,null,null,null,null,null,null,"KONSUMENTÖVERSKOTT - RegKoll - nationellt - tjänste"]
[null,null,null,null,null,null,null,null,null,null,null,null,null,null,null,null,null,null,"*Tidsvärde åktid",0,null,"kr/tim"]
[null,null,null,null,null,null,null,null,null,null,null,null,null,null,null,null,null,null," Tidsvärde bytestid",null,0,"kr/tim"]
[null,null,null,null,null,null,null,null,null,null,null,null,null,null,null,null,null,null," Tidsvärde anslutningsresa",null,0,"kr/tim"]
[null,null,null,null,null,null,null,null,null,null,null,null,null,null,null,null,null,null," Tidsvärde väntetid period 1",null,0,"kr/tim"]
[null,null,null,null,null,null,null,null,null,null,null,null,null,null,null,null,null,null," Tidsvärde väntetid period 2",null,0,"kr/tim"]
[null,null,null,null,null,null,null,null,null,null,null,null,null,null,null,null,null,null," Tidsvärde väntetid period 3",null,0,"kr/tim"]
[null,null,null,null,null,null,null,null,null,null,null,null,null,null,null,null,null,null," Tidsvärde väntetid period 4",null,0,"kr/tim"]
[null,null,null,null,null,null,null,null,null,null,null,null,null,null,null,null,null,null," Tidsvärde väntetid period 5",null,0,"kr/tim"]
[null,null,null,null,null,null,null,null,null,null,null,null,null,null,null,null,null,null," Tidsvärde väntetid period 6",null,0,"kr/tim"]
[null,null,null,null,null,null,null,null,null,null,null,null,null,null,null,null,null,null," Andel intern olyckskostnad",null,0]
[null,null,null,null,null,null,null,null,null,null,null,null,null,null,null,null,null,null,"KONSUMENTÖVERSKOTT - RegKoll - nationellt - private"]
[null,null,null,null,null,null,null,null,null,null,null,null,null,null,null,null,null,null,"*Tidsvärde åktid",0,null,"kr/tim"]
[null,null,null,null,null,null,null,null,null,null,null,null,null,null,null,null,null,null," Tidsvärde bytestid",null,0,"kr/tim"]
[null,null,null,null,null,null,null,null,null,null,null,null,null,null,null,null,null,null," Tidsvärde anslutningsresa",null,0,"kr/tim"]
[null,null,null,null,null,null,null,null,null,null,null,null,null,null,null,null,null,null," Tidsvärde väntetid period 1",null,0,"kr/tim"]
[null,null,null,null,null,null,null,null,null,null,null,null,null,null,null,null,null,null," Tidsvärde väntetid period 2",null,0,"kr/tim"]
[null,null,null,null,null,null,null,null,null,null,null,null,null,null,null,null,null,null," Tidsvärde väntetid period 3",null,0,"kr/tim"]
[null,null,null,null,null,null,null,null,null,null,null,null,null,null,null,null,null,null," Tidsvärde väntetid period 4",null,0,"kr/tim"]
[null,null,null,null,null,null,null,null,null,null,null,null,null,null,null,null,null,null," Tidsvärde väntetid period 5",null,0,"kr/tim"]
[null,null,null,null,null,null,null,null,null,null,null,null,null,null,null,null,null,null," Tidsvärde väntetid period 6",null,0,"kr/tim"]
[null,null,null,null,null,null,null,null,null,null,null,null,null,null,null,null,null,null," Andel intern olyckskostnad",null,0]
[null,null,null,null,null,null,null,null,null,null,null,null,null,null,null,null,null,null,"KONSUMENTÖVERSKOTT - RegKoll - nationellt - arbete"]
[null,null,null,null,null,null,null,null,null,null,null,null,null,null,null,null,null,null,"*Tidsvärde åktid",0,null,"kr/tim"]
[null,null,null,null,null,null,null,null,null,null,null,null,null,null,null,null,null,null," Tidsvärde bytestid",null,0,"kr/tim"]
[null,null,null,null,null,null,null,null,null,null,null,null,null,null,null,null,null,null," Tidsvärde anslutningsresa",null,0,"kr/tim"]
[null,null,null,null,null,null,null,null,null,null,null,null,null,null,null,null,null,null," Tidsvärde väntetid period 1",null,0,"kr/tim"]
[null,null,null,null,null,null,null,null,null,null,null,null,null,null,null,null,null,null," Tidsvärde väntetid period 2",null,0,"kr/tim"]
[null,null,null,null,null,null,null,null,null,null,null,null,null,null,null,null,null,null," Tidsvärde väntetid period 3",null,0,"kr/tim"]
[null,null,null,null,null,null,null,null,null,null,null,null,null,null,null,null,null,null," Tidsvärde väntetid period 4",null,0,"kr/tim"]
[null,null,null,null,null,null,null,null,null,null,null,null,null,null,null,null,null,null," Tidsvärde väntetid period 5",null,0,"kr/tim"]
[null,null,null,null,null,null,null,null,null,null,null,null,null,null,null,null,null,null," Tidsvärde väntetid period 6",null,0,"kr/tim"]
[null,null,null,null,null,null,null,null,null,null,null,null,null,null,null,null,null,null," Andel intern olyckskostnad",null,0]
[null,null,null,null,null,null,null,null,null,null,null,null,null,null,null,null,null,null,"KONSUMENTÖVERSKOTT - RegKoll - regionalt - tjänste"]
[null,null,null,null,null,null,null,null,null,null,null,null,null,null,null,null,null,null,"*Tidsvärde åktid",288,null,"kr/tim"]
[null,null,null,null,null,null,null,null,null,null,null,null,null,null,null,null,null,null,"*Tidsvärde bytestid",339,null,"kr/tim"]
[null,null,null,null,null,null,null,null,null,null,null,null,null,null,null,null,null,null,"*Tidsvärde anslutningsresa",339,null,"kr/tim"]
[null,null,null,null,null,null,null,null,null,null,null,null,null,null,null,null,null,null,"*Tidsvärde väntetid period 1",301,null,"kr/tim"]
[null,null,null,null,null,null,null,null,null,null,null,null,null,null,null,null,null,null,"*Tidsvärde väntetid period 2",301,null,"kr/tim"]
[null,null,null,null,null,null,null,null,null,null,null,null,null,null,null,null,null,null,"*Tidsvärde väntetid period 3",301,null,"kr/tim"]
[null,null,null,null,null,null,null,null,null,null,null,null,null,null,null,null,null,null,"*Tidsvärde väntetid period 4",211,null,"kr/tim"]
[null,null,null,null,null,null,null,null,null,null,null,null,null,null,null,null,null,null,"*Tidsvärde väntetid period 5",211,null,"kr/tim"]
[null,null,null,null,null,null,null,null,null,null,null,null,null,null,null,null,null,null,"*Tidsvärde väntetid period 6",211,null,"kr/tim"]
[null,null,null,null,null,null,null,null,null,null,null,null,null,null,null,null,null,null," Andel intern olyckskostnad",null,0]
[null,null,null,null,null,null,null,null,null,null,null,null,null,null,null,null,null,null,"KONSUMENTÖVERSKOTT - RegKoll - regionalt - private"]
[null,null,null,null,null,null,null,null,null,null,null,null,null,null,null,null,null,null,"*Tidsvärde åktid",62,null,"kr/tim"]
[null,null,null,null,null,null,null,null,null,null,null,null,null,null,null,null,null,null,"*Tidsvärde bytestid",155,null,"kr/tim"]
[null,null,null,null,null,null,null,null,null,null,null,null,null,null,null,null,null,null,"*Tidsvärde anslutningsresa",62,null,"kr/tim"]
[null,null,null,null,null,null,null,null,null,null,null,null,null,null,null,null,null,null,"*Tidsvärde väntetid period 1",70,null,"kr/tim"]
[null,null,null,null,null,null,null,null,null,null,null,null,null,null,null,null,null,null,"*Tidsvärde väntetid period 2",57,null,"kr/tim"]
[null,null,null,null,null,null,null,null,null,null,null,null,null,null,null,null,null,null,"*Tidsvärde väntetid period 3",28,null,"kr/tim"]
[null,null,null,null,null,null,null,null,null,null,null,null,null,null,null,null,null,null,"*Tidsvärde väntetid period 4",18,null,"kr/tim"]
[null,null,null,null,null,null,null,null,null,null,null,null,null,null,null,null,null,null,"*Tidsvärde väntetid period 5",8,null,"kr/tim"]
[null,null,null,null,null,null,null,null,null,null,null,null,null,null,null,null,null,null,"*Tidsvärde väntetid period 6",8,null,"kr/tim"]
[null,null,null,null,null,null,null,null,null,null,null,null,null,null,null,null,null,null," Andel intern olyckskostnad",null,0]
[null,null,null,null,null,null,null,null,null,null,null,null,null,null,null,null,null,null,"KONSUMENTÖVERSKOTT - RegKoll - regionalt - arbete"]
[null,null,null,null,null,null,null,null,null,null,null,null,null,null,null,null,null,null,"*Tidsvärde åktid",81,null,"kr/tim"]
[null,null,null,null,null,null,null,null,null,null,null,null,null,null,null,null,null,null,"*Tidsvärde bytestid",202,null,"kr/tim"]
[null,null,null,null,null,null,null,null,null,null,null,null,null,null,null,null,null,null,"*Tidsvärde anslutningsresa",81,null,"kr/tim"]
[null,null,null,null,null,null,null,null,null,null,null,null,null,null,null,null,null,null,"*Tidsvärde väntetid period 1",93,null,"kr/tim"]
[null,null,null,null,null,null,null,null,null,null,null,null,null,null,null,null,null,null,"*Tidsvärde väntetid period 2",76,null,"kr/tim"]
[null,null,null,null,null,null,null,null,null,null,null,null,null,null,null,null,null,null,"*Tidsvärde väntetid period 3",37,null,"kr/tim"]
[null,null,null,null,null,null,null,null,null,null,null,null,null,null,null,null,null,null,"*Tidsvärde väntetid period 4",22,null,"kr/tim"]
[null,null,null,null,null,null,null,null,null,null,null,null,null,null,null,null,null,null,"*Tidsvärde väntetid period 5",12,null,"kr/tim"]
[null,null,null,null,null,null,null,null,null,null,null,null,null,null,null,null,null,null,"*Tidsvärde väntetid period 6",12,null,"kr/tim"]
[null,null,null,null,null,null,null,null,null,null,null,null,null,null,null,null,null,null," Andel intern olyckskostnad",null,0]
[null,null,null,null,null,null,null,null,null,null,null,null,null,null,null,null,null,null,"KONSUMENTÖVERSKOTT - Flyg - nationellt - tjänste"]
[null,null,null,null,null,null,null,null,null,null,null,null,null,null,null,null,null,null,"*Tidsvärde åktid",339,null,"kr/tim"]
[null,null,null,null,null,null,null,null,null,null,null,null,null,null,null,null,null,null,"*Tidsvärde bytestid",339,null,"kr/tim"]
[null,null,null,null,null,null,null,null,null,null,null,null,null,null,null,null,null,null,"*Tidsvärde anslutningsresa",339,null,"kr/tim"]
[null,null,null,null,null,null,null,null,null,null,null,null,null,null,null,null,null,null,"*Tidsvärde väntetid period 1",260,null,"kr/tim"]
[null,null,null,null,null,null,null,null,null,null,null,null,null,null,null,null,null,null,"*Tidsvärde väntetid period 2",260,null,"kr/tim"]
[null,null,null,null,null,null,null,null,null,null,null,null,null,null,null,null,null,null,"*Tidsvärde väntetid period 3",260,null,"kr/tim"]
[null,null,null,null,null,null,null,null,null,null,null,null,null,null,null,null,null,null,"*Tidsvärde väntetid period 4",217,null,"kr/tim"]
[null,null,null,null,null,null,null,null,null,null,null,null,null,null,null,null,null,null,"*Tidsvärde väntetid period 5",173,null,"kr/tim"]
[null,null,null,null,null,null,null,null,null,null,null,null,null,null,null,null,null,null,"*Tidsvärde väntetid period 6",173,null,"kr/tim"]
[null,null,null,null,null,null,null,null,null,null,null,null,null,null,null,null,null,null," Andel intern olyckskostnad",null,0]
[null,null,null,null,null,null,null,null,null,null,null,null,null,null,null,null,null,null,"KONSUMENTÖVERSKOTT - Flyg - nationellt - private"]
[null,null,null,null,null,null,null,null,null,null,null,null,null,null,null,null,null,null,"*Tidsvärde åktid",126,null,"kr/tim"]
[null,null,null,null,null,null,null,null,null,null,null,null,null,null,null,null,null,null,"*Tidsvärde bytestid",315,null,"kr/tim"]
[null,null,null,null,null,null,null,null,null,null,null,null,null,null,null,null,null,null,"*Tidsvärde anslutningsresa",171,null,"kr/tim"]
[null,null,null,null,null,null,null,null,null,null,null,null,null,null,null,null,null,null,"*Tidsvärde väntetid period 1",65,null,"kr/tim"]
[null,null,null,null,null,null,null,null,null,null,null,null,null,null,null,null,null,null,"*Tidsvärde väntetid period 2",65,null,"kr/tim"]
[null,null,null,null,null,null,null,null,null,null,null,null,null,null,null,null,null,null,"*Tidsvärde väntetid period 3",65,null,"kr/tim"]
[null,null,null,null,null,null,null,null,null,null,null,null,null,null,null,null,null,null,"*Tidsvärde väntetid period 4",34,null,"kr/tim"]
[null,null,null,null,null,null,null,null,null,null,null,null,null,null,null,null,null,null,"*Tidsvärde väntetid period 5",34,null,"kr/tim"]
[null,null,null,null,null,null,null,null,null,null,null,null,null,null,null,null,null,null,"*Tidsvärde väntetid period 6",26,null,"kr/tim"]
[null,null,null,null,null,null,null,null,null,null,null,null,null,null,null,null,null,null," Andel intern olyckskostnad",null,0]
[null,null,null,null,null,null,null,null,null,null,null,null,null,null,null,null,null,null,"KONSUMENTÖVERSKOTT - Flyg - nationellt - arbete"]
[null,null,null,null,null,null,null,null,null,null,null,null,null,null,null,null,null,null,"*Tidsvärde åktid",126,null,"kr/tim"]
[null,null,null,null,null,null,null,null,null,null,null,null,null,null,null,null,null,null,"*Tidsvärde bytestid",315,null,"kr/tim"]
[null,null,null,null,null,null,null,null,null,null,null,null,null,null,null,null,null,null,"*Tidsvärde anslutningsresa",171,null,"kr/tim"]
[null,null,null,null,null,null,null,null,null,null,null,null,null,null,null,null,null,null,"*Tidsvärde väntetid period 1",65,null,"kr/tim"]
[null,null,null,null,null,null,null,null,null,null,null,null,null,null,null,null,null,null,"*Tidsvärde väntetid period 2",65,null,"kr/tim"]
[null,null,null,null,null,null,null,null,null,null,null,null,null,null,null,null,null,null,"*Tidsvärde väntetid period 3",65,null,"kr/tim"]
[null,null,null,null,null,null,null,null,null,null,null,null,null,null,null,null,null,null,"*Tidsvärde väntetid period 4",34,null,"kr/tim"]
[null,null,null,null,null,null,null,null,null,null,null,null,null,null,null,null,null,null,"*Tidsvärde väntetid period 5",34,null,"kr/tim"]
[null,null,null,null,null,null,null,null,null,null,null,null,null,null,null,null,null,null,"*Tidsvärde väntetid period 6",26,null,"kr/tim"]
[null,null,null,null,null,null,null,null,null,null,null,null,null,null,null,null,null,null," Andel intern olyckskostnad",null,0]
[null,null,null,null,null,null,null,null,null,null,null,null,null,null,null,null,null,null,"KONSUMENTÖVERSKOTT - Flyg - regionalt - tjänste"]
[null,null,null,null,null,null,null,null,null,null,null,null,null,null,null,null,null,null,"*Tidsvärde åktid",0,null,"kr/tim"]
[null,null,null,null,null,null,null,null,null,null,null,null,null,null,null,null,null,null," Tidsvärde bytestid",null,0,"kr/tim"]
[null,null,null,null,null,null,null,null,null,null,null,null,null,null,null,null,null,null," Tidsvärde anslutningsresa",null,0,"kr/tim"]
[null,null,null,null,null,null,null,null,null,null,null,null,null,null,null,null,null,null," Tidsvärde väntetid period 1",null,0,"kr/tim"]
[null,null,null,null,null,null,null,null,null,null,null,null,null,null,null,null,null,null," Tidsvärde väntetid period 2",null,0,"kr/tim"]
[null,null,null,null,null,null,null,null,null,null,null,null,null,null,null,null,null,null," Tidsvärde väntetid period 3",null,0,"kr/tim"]
[null,null,null,null,null,null,null,null,null,null,null,null,null,null,null,null,null,null," Tidsvärde väntetid period 4",null,0,"kr/tim"]
[null,null,null,null,null,null,null,null,null,null,null,null,null,null,null,null,null,null," Tidsvärde väntetid period 5",null,0,"kr/tim"]
[null,null,null,null,null,null,null,null,null,null,null,null,null,null,null,null,null,null," Tidsvärde väntetid period 6",null,0,"kr/tim"]
[null,null,null,null,null,null,null,null,null,null,null,null,null,null,null,null,null,null," Andel intern olyckskostnad",null,0]
[null,null,null,null,null,null,null,null,null,null,null,null,null,null,null,null,null,null,"KONSUMENTÖVERSKOTT - Flyg - regionalt - private"]
[null,null,null,null,null,null,null,null,null,null,null,null,null,null,null,null,null,null,"*Tidsvärde åktid",0,null,"kr/tim"]
[null,null,null,null,null,null,null,null,null,null,null,null,null,null,null,null,null,null," Tidsvärde bytestid",null,0,"kr/tim"]
[null,null,null,null,null,null,null,null,null,null,null,null,null,null,null,null,null,null," Tidsvärde anslutningsresa",null,0,"kr/tim"]
[null,null,null,null,null,null,null,null,null,null,null,null,null,null,null,null,null,null," Tidsvärde väntetid period 1",null,0,"kr/tim"]
[null,null,null,null,null,null,null,null,null,null,null,null,null,null,null,null,null,null," Tidsvärde väntetid period 2",null,0,"kr/tim"]
[null,null,null,null,null,null,null,null,null,null,null,null,null,null,null,null,null,null," Tidsvärde väntetid period 3",null,0,"kr/tim"]
[null,null,null,null,null,null,null,null,null,null,null,null,null,null,null,null,null,null," Tidsvärde väntetid period 4",null,0,"kr/tim"]
[null,null,null,null,null,null,null,null,null,null,null,null,null,null,null,null,null,null," Tidsvärde väntetid period 5",null,0,"kr/tim"]
[null,null,null,null,null,null,null,null,null,null,null,null,null,null,null,null,null,null," Tidsvärde väntetid period 6",null,0,"kr/tim"]
[null,null,null,null,null,null,null,null,null,null,null,null,null,null,null,null,null,null," Andel intern olyckskostnad",null,0]
[null,null,null,null,null,null,null,null,null,null,null,null,null,null,null,null,null,null,"KONSUMENTÖVERSKOTT - Flyg - regionalt - arbete"]
[null,null,null,null,null,null,null,null,null,null,null,null,null,null,null,null,null,null,"*Tidsvärde åktid",0,null,"kr/tim"]
[null,null,null,null,null,null,null,null,null,null,null,null,null,null,null,null,null,null," Tidsvärde bytestid",null,0,"kr/tim"]
[null,null,null,null,null,null,null,null,null,null,null,null,null,null,null,null,null,null," Tidsvärde anslutningsresa",null,0,"kr/tim"]
[null,null,null,null,null,null,null,null,null,null,null,null,null,null,null,null,null,null," Tidsvärde väntetid period 1",null,0,"kr/tim"]
[null,null,null,null,null,null,null,null,null,null,null,null,null,null,null,null,null,null," Tidsvärde väntetid period 2",null,0,"kr/tim"]
[null,null,null,null,null,null,null,null,null,null,null,null,null,null,null,null,null,null," Tidsvärde väntetid period 3",null,0,"kr/tim"]
[null,null,null,null,null,null,null,null,null,null,null,null,null,null,null,null,null,null," Tidsvärde väntetid period 4",null,0,"kr/tim"]
[null,null,null,null,null,null,null,null,null,null,null,null,null,null,null,null,null,null," Tidsvärde väntetid period 5",null,0,"kr/tim"]
[null,null,null,null,null,null,null,null,null,null,null,null,null,null,null,null,null,null," Tidsvärde väntetid period 6",null,0,"kr/tim"]
[null,null,null,null,null,null,null,null,null,null,null,null,null,null,null,null,null,null," Andel intern olyckskostnad",null,0]
[null,null,null,null,null,null,null,null,null,null,null,null,null,null,null,null,null,null,"EMISSIONER - Landsbygd"]
[null,null,null,null,null,null,null,null,null,null,null,null,null,null,null,null,null,null," Kväveoxider (NOx)",null,3,"kr/kg"]
[null,null,null,null,null,null,null,null,null,null,null,null,null,null,null,null,null,null," Avgaspartiklar",null,0,"kr/kg"]
[null,null,null,null,null,null,null,null,null,null,null,null,null,null,null,null,null,null," Slitagepartiklar",null,0,"kr/kg"]
[null,null,null,null,null,null,null,null,null,null,null,null,null,null,null,null,null,null," Koldioxid (CO2)",null,7,"kr/kg"]
[null,null,null,null,null,null,null,null,null,null,null,null,null,null,null,null,null,null,"EMISSIONER - Tätort"]
[null,null,null,null,null,null,null,null,null,null,null,null,null,null,null,null,null,null," Kväveoxider (NOx)",null,3,"kr/kg"]
[null,null,null,null,null,null,null,null,null,null,null,null,null,null,null,null,null,null," Avgaspartiklar",null,6900,"kr/kg"]
[null,null,null,null,null,null,null,null,null,null,null,null,null,null,null,null,null,null," Slitagepartiklar",null,1719,"kr/kg"]
[null,null,null,null,null,null,null,null,null,null,null,null,null,null,null,null,null,null," Koldioxid (CO2)",null,7,"kr/kg"]
[null,null,null,null,null,null,null,null,null,null,null,null,null,null,null,null,null,null,"FORDONSKOSTNADER - Pb"]
[null,null,null,null,null,null,null,null,null,null,null,null,null,null,null,null,null,null," Bränslekostnad JA exkl. skatt",null,0.86,"kr/fkm"]
[null,null,null,null,null,null,null,null,null,null,null,null,null,null,null,null,null,null,"*Bränslekostnad UA exkl. skatt",0.86,null,"kr/fkm"]
[null,null,null,null,null,null,null,null,null,null,null,null,null,null,null,null,null,null," Skatt och moms JA",null,0.35,"kr/fkm"]
[null,null,null,null,null,null,null,null,null,null,null,null,null,null,null,null,null,null," Skatt och moms UA",null,0.35,"kr/fkm"]
[null,null,null,null,null,null,null,null,null,null,null,null,null,null,null,null,null,null," Marginalkostnad JA exkl. moms",null,1.01,"kr/fkm"]
[null,null,null,null,null,null,null,null,null,null,null,null,null,null,null,null,null,null," Marginalkostnad UA exkl. moms",null,1.01,"kr/fkm"]
[null,null,null,null,null,null,null,null,null,null,null,null,null,null,null,null,null,null," Marginellt slitage",null,0.04,"kr/fkm"]
[null,null,null,null,null,null,null,null,null,null,null,null,null,null,null,null,null,null," Kväveoxider (NOx) Landsbygd",null,1.7351516000000001E-2,"g/fkm"]
[null,null,null,null,null,null,null,null,null,null,null,null,null,null,null,null,null,null," Kväveoxider (NOx) Tätort",null,2.8056000000000001E-2,"g/fkm"]
[null,null,null,null,null,null,null,null,null,null,null,null,null,null,null,null,null,null," Avgaspartiklar Landsbygd",null,4.6713700000000001E-4,"g/fkm"]
[null,null,null,null,null,null,null,null,null,null,null,null,null,null,null,null,null,null," Avgaspartiklar Tätort",null,6.7100000000000005E-4,"g/fkm"]
[null,null,null,null,null,null,null,null,null,null,null,null,null,null,null,null,null,null," Slitagepartiklar Landsbygd",null,0.2,"g/fkm"]
[null,null,null,null,null,null,null,null,null,null,null,null,null,null,null,null,null,null," Slitagepartiklar Tätort",null,0.2,"g/fkm"]
[null,null,null,null,null,null,null,null,null,null,null,null,null,null,null,null,null,null," Koldioxid (CO2) Landsbygd",null,9.309096727,"g/fkm"]
[null,null,null,null,null,null,null,null,null,null,null,null,null,null,null,null,null,null," Koldioxid (CO2) Tätort",null,11.82372,"g/fkm"]
[null,null,null,null,null,null,null,null,null,null,null,null,null,null,null,null,null,null,"FORDONSKOSTNADER - Pby"]
[null,null,null,null,null,null,null,null,null,null,null,null,null,null,null,null,null,null," Bränslekostnad JA exkl. skatt",null,0.86,"kr/fkm"]
[null,null,null,null,null,null,null,null,null,null,null,null,null,null,null,null,null,null,"*Bränslekostnad UA exkl. skatt",0.86,null,"kr/fkm"]
[null,null,null,null,null,null,null,null,null,null,null,null,null,null,null,null,null,null," Skatt och moms JA",null,0.35,"kr/fkm"]
[null,null,null,null,null,null,null,null,null,null,null,null,null,null,null,null,null,null," Skatt och moms UA",null,0.35,"kr/fkm"]
[null,null,null,null,null,null,null,null,null,null,null,null,null,null,null,null,null,null," Marginalkostnad JA exkl. moms",null,2.23,"kr/fkm"]
[null,null,null,null,null,null,null,null,null,null,null,null,null,null,null,null,null,null," Marginalkostnad UA exkl. moms",null,2.23,"kr/fkm"]
[null,null,null,null,null,null,null,null,null,null,null,null,null,null,null,null,null,null," Marginellt slitage",null,0.04,"kr/fkm"]
[null,null,null,null,null,null,null,null,null,null,null,null,null,null,null,null,null,null," Godskostnader",null,3,"kr/h"]
[null,null,null,null,null,null,null,null,null,null,null,null,null,null,null,null,null,null," Kväveoxider (NOx) Landsbygd",null,1.7351516000000001E-2,"g/fkm"]
[null,null,null,null,null,null,null,null,null,null,null,null,null,null,null,null,null,null," Kväveoxider (NOx) Tätort",null,2.8056000000000001E-2,"g/fkm"]
[null,null,null,null,null,null,null,null,null,null,null,null,null,null,null,null,null,null," Avgaspartiklar Landsbygd",null,4.6713700000000001E-4,"g/fkm"]
[null,null,null,null,null,null,null,null,null,null,null,null,null,null,null,null,null,null," Avgaspartiklar Tätort",null,6.7100000000000005E-4,"g/fkm"]
[null,null,null,null,null,null,null,null,null,null,null,null,null,null,null,null,null,null," Slitagepartiklar Landsbygd",null,0.2,"g/fkm"]
[null,null,null,null,null,null,null,null,null,null,null,null,null,null,null,null,null,null," Slitagepartiklar Tätort",null,0.2,"g/fkm"]
[null,null,null,null,null,null,null,null,null,null,null,null,null,null,null,null,null,null," Koldioxid (CO2) Landsbygd",null,9.309096727,"g/fkm"]
[null,null,null,null,null,null,null,null,null,null,null,null,null,null,null,null,null,null," Koldioxid (CO2) Tätort",null,11.82372,"g/fkm"]
[null,null,null,null,null,null,null,null,null,null,null,null,null,null,null,null,null,null,"FORDONSKOSTNADER - Lbu"]
[null,null,null,null,null,null,null,null,null,null,null,null,null,null,null,null,null,null," Bränslekostnad JA exkl. skatt",null,2.92,"kr/fkm"]
[null,null,null,null,null,null,null,null,null,null,null,null,null,null,null,null,null,null,"*Bränslekostnad UA exkl. skatt",2.92,null,"kr/fkm"]
[null,null,null,null,null,null,null,null,null,null,null,null,null,null,null,null,null,null," Skatt och moms JA",null,1.31,"kr/fkm"]
[null,null,null,null,null,null,null,null,null,null,null,null,null,null,null,null,null,null," Skatt och moms UA",null,1.31,"kr/fkm"]
[null,null,null,null,null,null,null,null,null,null,null,null,null,null,null,null,null,null," Marginalkostnad JA exkl. moms",null,4.9000000000000004,"kr/fkm"]
[null,null,null,null,null,null,null,null,null,null,null,null,null,null,null,null,null,null," Marginalkostnad UA exkl. moms",null,4.9000000000000004,"kr/fkm"]
[null,null,null,null,null,null,null,null,null,null,null,null,null,null,null,null,null,null," Marginellt slitage",null,0.14000000000000001,"kr/fkm"]
[null,null,null,null,null,null,null,null,null,null,null,null,null,null,null,null,null,null," Godskostnader",null,7,"kr/h"]
[null,null,null,null,null,null,null,null,null,null,null,null,null,null,null,null,null,null," Kväveoxider (NOx) Landsbygd",null,9.5998144999999993E-2,"g/fkm"]
[null,null,null,null,null,null,null,null,null,null,null,null,null,null,null,null,null,null," Kväveoxider (NOx) Tätort",null,0.210726,"g/fkm"]
[null,null,null,null,null,null,null,null,null,null,null,null,null,null,null,null,null,null," Avgaspartiklar Landsbygd",null,1.6030339999999999E-3,"g/fkm"]
[null,null,null,null,null,null,null,null,null,null,null,null,null,null,null,null,null,null," Avgaspartiklar Tätort",null,2.2790000000000002E-3,"g/fkm"]
[null,null,null,null,null,null,null,null,null,null,null,null,null,null,null,null,null,null," Slitagepartiklar Landsbygd",null,0.2,"g/fkm"]
[null,null,null,null,null,null,null,null,null,null,null,null,null,null,null,null,null,null," Slitagepartiklar Tätort",null,0.2,"g/fkm"]
[null,null,null,null,null,null,null,null,null,null,null,null,null,null,null,null,null,null," Koldioxid (CO2) Landsbygd",null,48.548673999999998,"g/fkm"]
[null,null,null,null,null,null,null,null,null,null,null,null,null,null,null,null,null,null," Koldioxid (CO2) Tätort",null,58.084209999999999,"g/fkm"]
[null,null,null,null,null,null,null,null,null,null,null,null,null,null,null,null,null,null,"FORDONSKOSTNADER - Lbs"]
[null,null,null,null,null,null,null,null,null,null,null,null,null,null,null,null,null,null," Bränslekostnad JA exkl. skatt",null,4.8099999999999996,"kr/fkm"]
[null,null,null,null,null,null,null,null,null,null,null,null,null,null,null,null,null,null,"*Bränslekostnad UA exkl. skatt",4.8099999999999996,null,"kr/fkm"]
[null,null,null,null,null,null,null,null,null,null,null,null,null,null,null,null,null,null," Skatt och moms JA",null,2.29,"kr/fkm"]
[null,null,null,null,null,null,null,null,null,null,null,null,null,null,null,null,null,null," Skatt och moms UA",null,2.29,"kr/fkm"]
[null,null,null,null,null,null,null,null,null,null,null,null,null,null,null,null,null,null," Marginalkostnad JA exkl. moms",null,3.13,"kr/fkm"]
[null,null,null,null,null,null,null,null,null,null,null,null,null,null,null,null,null,null," Marginalkostnad UA exkl. moms",null,3.13,"kr/fkm"]
[null,null,null,null,null,null,null,null,null,null,null,null,null,null,null,null,null,null," Marginellt slitage",null,0.8,"kr/fkm"]
[null,null,null,null,null,null,null,null,null,null,null,null,null,null,null,null,null,null,"*Godskostnader",31,null,"kr/h"]
[null,null,null,null,null,null,null,null,null,null,null,null,null,null,null,null,null,null," Kväveoxider (NOx) Landsbygd",null,0.21357290600000001,"g/fkm"]
[null,null,null,null,null,null,null,null,null,null,null,null,null,null,null,null,null,null," Kväveoxider (NOx) Tätort",null,0.31101200000000001,"g/fkm"]
[null,null,null,null,null,null,null,null,null,null,null,null,null,null,null,null,null,null," Avgaspartiklar Landsbygd",null,3.7479610000000002E-3,"g/fkm"]
[null,null,null,null,null,null,null,null,null,null,null,null,null,null,null,null,null,null," Avgaspartiklar Tätort",null,4.6730000000000001E-3,"g/fkm"]
[null,null,null,null,null,null,null,null,null,null,null,null,null,null,null,null,null,null," Slitagepartiklar Landsbygd",null,0.2,"g/fkm"]
[null,null,null,null,null,null,null,null,null,null,null,null,null,null,null,null,null,null," Slitagepartiklar Tätort",null,0.2,"g/fkm"]
[null,null,null,null,null,null,null,null,null,null,null,null,null,null,null,null,null,null," Koldioxid (CO2) Landsbygd",null,130.94562930000001,"g/fkm"]
[null,null,null,null,null,null,null,null,null,null,null,null,null,null,null,null,null,null," Koldioxid (CO2) Tätort",null,162.321,"g/fkm"]
[null,null,null,null,null,null,null,null,null,null,null,null,null,null,null,null,null,null,"FORDONSKOSTNADER - Buss"]
[null,null,null,null,null,null,null,null,null,null,null,null,null,null,null,null,null,null,"*Vehicletype",11]
[null,null,null,null,null,null,null,null,null,null,null,null,null,null,null,null,null,null,"*Mode","a"]
[null,null,null,null,null,null,null,null,null,null,null,null,null,null,null,null,null,null,"*Fast sträckkostnad",6.17,null,"kr/km"]
[null,null,null,null,null,null,null,null,null,null,null,null,null,null,null,null,null,null,"*Fast tidskostnad",5.69,null,"kr/minut"]
[null,null,null,null,null,null,null,null,null,null,null,null,null,null,null,null,null,null,"*Fast slitagekostnad",0.4,null,"kr/km"]
[null,null,null,null,null,null,null,null,null,null,null,null,null,null,null,null,null,null,"*Marginell sträckkostnad",0.154,null,"kr/personkm"]
[null,null,null,null,null,null,null,null,null,null,null,null,null,null,null,null,null,null,"*Marginell tidskostnad",0.14199999999999999,null,"kr/personminut"]
[null,null,null,null,null,null,null,null,null,null,null,null,null,null,null,null,null,null,"*Marginell slitagekostnad",8.0000000000000002E-3,null,"kr/personkm"]
[null,null,null,null,null,null,null,null,null,null,null,null,null,null,null,null,null,null," Fast banavgift",null,0,"kr/km"]
[null,null,null,null,null,null,null,null,null,null,null,null,null,null,null,null,null,null," Marginell banavgift",null,0,"kr/km"]
[null,null,null,null,null,null,null,null,null,null,null,null,null,null,null,null,null,null,"*Antal platser",40,null,"styck"]
[null,null,null,null,null,null,null,null,null,null,null,null,null,null,null,null,null,null,"*Beläggningsgrad",0.6,null,"andel"]
[null,null,null,null,null,null,null,null,null,null,null,null,null,null,null,null,null,null,"*Olyckskostnad",0.39,null,"kr/fkm"]
[null,null,null,null,null,null,null,null,null,null,null,null,null,null,null,null,null,null,"*TätortsFaktor",0.2]
[null,null,null,null,null,null,null,null,null,null,null,null,null,null,null,null,null,null," Fast NOx",null,0,"g/fkm"]
[null,null,null,null,null,null,null,null,null,null,null,null,null,null,null,null,null,null," Fast Part",null,0,"g/fkm"]
[null,null,null,null,null,null,null,null,null,null,null,null,null,null,null,null,null,null,"*Fast SlitagePart",0.2,null,"g/fkm"]
[null,null,null,null,null,null,null,null,null,null,null,null,null,null,null,null,null,null," Fast CO2",null,0,"g/fkm"]
[null,null,null,null,null,null,null,null,null,null,null,null,null,null,null,null,null,null," Marg NOx",null,0,"g/pkm"]
[null,null,null,null,null,null,null,null,null,null,null,null,null,null,null,null,null,null," Marg Part",null,0,"g/pkm"]
[null,null,null,null,null,null,null,null,null,null,null,null,null,null,null,null,null,null,"*Marg SlitagePart",5.0000000000000001E-3,null,"g/pkm"]
[null,null,null,null,null,null,null,null,null,null,null,null,null,null,null,null,null,null," Marg CO2",null,0,"g/pkm"]
[null,null,null,null,null,null,null,null,null,null,null,null,null,null,null,null,null,null," Kostnadsförändring trafikstartår-prognosår 1",null,0,"procent"]
[null,null,null,null,null,null,null,null,null,null,null,null,null,null,null,null,null,null,"FORDONSKOSTNADER - Flyg"]
[null,null,null,null,null,null,null,null,null,null,null,null,null,null,null,null,null,null,"*Vehicletype",9]
[null,null,null,null,null,null,null,null,null,null,null,null,null,null,null,null,null,null,"*Mode","f"]
[null,null,null,null,null,null,null,null,null,null,null,null,null,null,null,null,null,null,"*Fast sträckkostnad",10.02,null,"kr/km"]
[null,null,null,null,null,null,null,null,null,null,null,null,null,null,null,null,null,null,"*Fast tidskostnad",327,null,"kr/minut"]
[null,null,null,null,null,null,null,null,null,null,null,null,null,null,null,null,null,null," Fast slitagekostnad",null,0,"kr/km"]
[null,null,null,null,null,null,null,null,null,null,null,null,null,null,null,null,null,null,"*Marginell sträckkostnad",0.2,null,"kr/personkm"]
[null,null,null,null,null,null,null,null,null,null,null,null,null,null,null,null,null,null,"*Marginell tidskostnad",12.88,null,"kr/personminut"]
[null,null,null,null,null,null,null,null,null,null,null,null,null,null,null,null,null,null," Marginell slitagekostnad",null,0,"kr/personkm"]
[null,null,null,null,null,null,null,null,null,null,null,null,null,null,null,null,null,null," Fast banavgift",null,0,"kr/km"]
[null,null,null,null,null,null,null,null,null,null,null,null,null,null,null,null,null,null," Marginell banavgift",null,0,"kr/km"]
[null,null,null,null,null,null,null,null,null,null,null,null,null,null,null,null,null,null,"*Antal platser",18,null,"styck"]
[null,null,null,null,null,null,null,null,null,null,null,null,null,null,null,null,null,null,"*Beläggningsgrad",0.8,null,"andel"]
[null,null,null,null,null,null,null,null,null,null,null,null,null,null,null,null,null,null,"*Olyckskostnad",4.2700000000000002E-2,null,"kr/fkm"]
[null,null,null,null,null,null,null,null,null,null,null,null,null,null,null,null,null,null,"*TätortsFaktor",0.1]
[null,null,null,null,null,null,null,null,null,null,null,null,null,null,null,null,null,null,"*Fast NOx",7.3840000000000003,null,"g/fkm"]
[null,null,null,null,null,null,null,null,null,null,null,null,null,null,null,null,null,null," Fast Part",null,0,"g/fkm"]
[null,null,null,null,null,null,null,null,null,null,null,null,null,null,null,null,null,null," Fast SlitagePart",null,0,"g/fkm"]
[null,null,null,null,null,null,null,null,null,null,null,null,null,null,null,null,null,null,"*Fast CO2",2267.5,null,"g/fkm"]
[null,null,null,null,null,null,null,null,null,null,null,null,null,null,null,null,null,null,"*Marg NOx",0.57299999999999995,null,"g/pkm"]
[null,null,null,null,null,null,null,null,null,null,null,null,null,null,null,null,null,null," Marg Part",null,0,"g/pkm"]
[null,null,null,null,null,null,null,null,null,null,null,null,null,null,null,null,null,null," Marg SlitagePart",null,0,"g/pkm"]
[null,null,null,null,null,null,null,null,null,null,null,null,null,null,null,null,null,null,"*Marg CO2",134.86799999999999,null,"g/pkm"]
[null,null,null,null,null,null,null,null,null,null,null,null,null,null,null,null,null,null," Kostnadsförändring trafikstartår-prognosår 1",null,0,"procent"]
[null,null,null,null,null,null,null,null,null,null,null,null,null,null,null,null,null,null,"FORDONSKOSTNADER - Snabbtåg"]
[null,null,null,null,null,null,null,null,null,null,null,null,null,null,null,null,null,null,"*Vehicletype",2]
[null,null,null,null,null,null,null,null,null,null,null,null,null,null,null,null,null,null,"*Mode","k"]
[null,null,null,null,null,null,null,null,null,null,null,null,null,null,null,null,null,null,"*Fast sträckkostnad",29.41,null,"kr/km"]
[null,null,null,null,null,null,null,null,null,null,null,null,null,null,null,null,null,null,"*Fast tidskostnad",91.78,null,"kr/minut"]
[null,null,null,null,null,null,null,null,null,null,null,null,null,null,null,null,null,null,"*Fast slitagekostnad",7.17,null,"kr/km"]
[null,null,null,null,null,null,null,null,null,null,null,null,null,null,null,null,null,null,"*Marginell sträckkostnad",0.11,null,"kr/personkm"]
[null,null,null,null,null,null,null,null,null,null,null,null,null,null,null,null,null,null,"*Marginell tidskostnad",0.28999999999999998,null,"kr/personminut"]
[null,null,null,null,null,null,null,null,null,null,null,null,null,null,null,null,null,null,"*Marginell slitagekostnad",1.4E-2,null,"kr/personkm"]
[null,null,null,null,null,null,null,null,null,null,null,null,null,null,null,null,null,null,"*Fast banavgift",7.17,null,"kr/km"]
[null,null,null,null,null,null,null,null,null,null,null,null,null,null,null,null,null,null,"*Marginell banavgift",0.01,null,"kr/km"]
[null,null,null,null,null,null,null,null,null,null,null,null,null,null,null,null,null,null,"*Antal platser",240,null,"styck"]
[null,null,null,null,null,null,null,null,null,null,null,null,null,null,null,null,null,null,"*Beläggningsgrad",0.65,null,"andel"]
[null,null,null,null,null,null,null,null,null,null,null,null,null,null,null,null,null,null,"*Olyckskostnad",1.97,null,"kr/fkm"]
[null,null,null,null,null,null,null,null,null,null,null,null,null,null,null,null,null,null,"*TätortsFaktor",0.08]
[null,null,null,null,null,null,null,null,null,null,null,null,null,null,null,null,null,null," Fast NOx",null,0,"g/fkm"]
[null,null,null,null,null,null,null,null,null,null,null,null,null,null,null,null,null,null," Fast Part",null,0,"g/fkm"]
[null,null,null,null,null,null,null,null,null,null,null,null,null,null,null,null,null,null," Fast SlitagePart",null,0,"g/fkm"]
[null,null,null,null,null,null,null,null,null,null,null,null,null,null,null,null,null,null," Fast CO2",null,0,"g/fkm"]
[null,null,null,null,null,null,null,null,null,null,null,null,null,null,null,null,null,null," Marg NOx",null,0,"g/pkm"]
[null,null,null,null,null,null,null,null,null,null,null,null,null,null,null,null,null,null," Marg Part",null,0,"g/pkm"]
[null,null,null,null,null,null,null,null,null,null,null,null,null,null,null,null,null,null," Marg SlitagePart",null,0,"g/pkm"]
[null,null,null,null,null,null,null,null,null,null,null,null,null,null,null,null,null,null," Marg CO2",null,0,"g/pkm"]
[null,null,null,null,null,null,null,null,null,null,null,null,null,null,null,null,null,null," Kostnadsförändring trafikstartår-prognosår 1",null,-0.51,"procent"]
[null,null,null,null,null,null,null,null,null,null,null,null,null,null,null,null,null,null,"FORDONSKOSTNADER - Interregional"]
[null,null,null,null,null,null,null,null,null,null,null,null,null,null,null,null,null,null,"*Vehicletype",1]
[null,null,null,null,null,null,null,null,null,null,null,null,null,null,null,null,null,null,"*Mode","j"]
[null,null,null,null,null,null,null,null,null,null,null,null,null,null,null,null,null,null,"*Fast sträckkostnad",15.38,null,"kr/km"]
[null,null,null,null,null,null,null,null,null,null,null,null,null,null,null,null,null,null,"*Fast tidskostnad",48.06,null,"kr/minut"]
[null,null,null,null,null,null,null,null,null,null,null,null,null,null,null,null,null,null,"*Fast slitagekostnad",5.41,null,"kr/km"]
[null,null,null,null,null,null,null,null,null,null,null,null,null,null,null,null,null,null,"*Marginell sträckkostnad",0.08,null,"kr/personkm"]
[null,null,null,null,null,null,null,null,null,null,null,null,null,null,null,null,null,null,"*Marginell tidskostnad",0.13,null,"kr/personminut"]
[null,null,null,null,null,null,null,null,null,null,null,null,null,null,null,null,null,null,"*Marginell slitagekostnad",1.0999999999999999E-2,null,"kr/personkm"]
[null,null,null,null,null,null,null,null,null,null,null,null,null,null,null,null,null,null,"*Fast banavgift",5.41,null,"kr/km"]
[null,null,null,null,null,null,null,null,null,null,null,null,null,null,null,null,null,null,"*Marginell banavgift",0.01,null,"kr/km"]
[null,null,null,null,null,null,null,null,null,null,null,null,null,null,null,null,null,null,"*Antal platser",150,null,"styck"]
[null,null,null,null,null,null,null,null,null,null,null,null,null,null,null,null,null,null,"*Beläggningsgrad",0.5,null,"andel"]
[null,null,null,null,null,null,null,null,null,null,null,null,null,null,null,null,null,null,"*Olyckskostnad",2.2999999999999998,null,"kr/fkm"]
[null,null,null,null,null,null,null,null,null,null,null,null,null,null,null,null,null,null,"*TätortsFaktor",0.08]
[null,null,null,null,null,null,null,null,null,null,null,null,null,null,null,null,null,null," Fast NOx",null,0,"g/fkm"]
[null,null,null,null,null,null,null,null,null,null,null,null,null,null,null,null,null,null," Fast Part",null,0,"g/fkm"]
[null,null,null,null,null,null,null,null,null,null,null,null,null,null,null,null,null,null," Fast SlitagePart",null,0,"g/fkm"]
[null,null,null,null,null,null,null,null,null,null,null,null,null,null,null,null,null,null," Fast CO2",null,0,"g/fkm"]
[null,null,null,null,null,null,null,null,null,null,null,null,null,null,null,null,null,null," Marg NOx",null,0,"g/pkm"]
[null,null,null,null,null,null,null,null,null,null,null,null,null,null,null,null,null,null," Marg Part",null,0,"g/pkm"]
[null,null,null,null,null,null,null,null,null,null,null,null,null,null,null,null,null,null," Marg SlitagePart",null,0,"g/pkm"]
[null,null,null,null,null,null,null,null,null,null,null,null,null,null,null,null,null,null," Marg CO2",null,0,"g/pkm"]
[null,null,null,null,null,null,null,null,null,null,null,null,null,null,null,null,null,null," Kostnadsförändring trafikstartår-prognosår 1",null,-1.83,"procent"]
[null,null,null,null,null,null,null,null,null,null,null,null,null,null,null,null,null,null,"FORDONSKOSTNADER - Pendeltåg"]
[null,null,null,null,null,null,null,null,null,null,null,null,null,null,null,null,null,null,"*Vehicletype",15]
[null,null,null,null,null,null,null,null,null,null,null,null,null,null,null,null,null,null,"*Mode","j"]
[null,null,null,null,null,null,null,null,null,null,null,null,null,null,null,null,null,null,"*Fast sträckkostnad",18.09,null,"kr/km"]
[null,null,null,null,null,null,null,null,null,null,null,null,null,null,null,null,null,null,"*Fast tidskostnad",43.58,null,"kr/minut"]
[null,null,null,null,null,null,null,null,null,null,null,null,null,null,null,null,null,null,"*Fast slitagekostnad",5.97,null,"kr/km"]
[null,null,null,null,null,null,null,null,null,null,null,null,null,null,null,null,null,null,"*Marginell sträckkostnad",0.08,null,"kr/personkm"]
[null,null,null,null,null,null,null,null,null,null,null,null,null,null,null,null,null,null,"*Marginell tidskostnad",0.1,null,"kr/personminut"]
[null,null,null,null,null,null,null,null,null,null,null,null,null,null,null,null,null,null,"*Marginell slitagekostnad",1.2E-2,null,"kr/personkm"]
[null,null,null,null,null,null,null,null,null,null,null,null,null,null,null,null,null,null,"*Fast banavgift",5.97,null,"kr/km"]
[null,null,null,null,null,null,null,null,null,null,null,null,null,null,null,null,null,null,"*Marginell banavgift",0.01,null,"kr/km"]
[null,null,null,null,null,null,null,null,null,null,null,null,null,null,null,null,null,null,"*Antal platser",215,null,"styck"]
[null,null,null,null,null,null,null,null,null,null,null,null,null,null,null,null,null,null,"*Beläggningsgrad",0.35,null,"andel"]
[null,null,null,null,null,null,null,null,null,null,null,null,null,null,null,null,null,null,"*Olyckskostnad",3.26,null,"kr/fkm"]
[null,null,null,null,null,null,null,null,null,null,null,null,null,null,null,null,null,null,"*TätortsFaktor",0.08]
[null,null,null,null,null,null,null,null,null,null,null,null,null,null,null,null,null,null," Fast NOx",null,0,"g/fkm"]
[null,null,null,null,null,null,null,null,null,null,null,null,null,null,null,null,null,null," Fast Part",null,0,"g/fkm"]
[null,null,null,null,null,null,null,null,null,null,null,null,null,null,null,null,null,null," Fast SlitagePart",null,0,"g/fkm"]
[null,null,null,null,null,null,null,null,null,null,null,null,null,null,null,null,null,null," Fast CO2",null,0,"g/fkm"]
[null,null,null,null,null,null,null,null,null,null,null,null,null,null,null,null,null,null," Marg NOx",null,0,"g/pkm"]
[null,null,null,null,null,null,null,null,null,null,null,null,null,null,null,null,null,null," Marg Part",null,0,"g/pkm"]
[null,null,null,null,null,null,null,null,null,null,null,null,null,null,null,null,null,null," Marg SlitagePart",null,0,"g/pkm"]
[null,null,null,null,null,null,null,null,null,null,null,null,null,null,null,null,null,null," Marg CO2",null,0,"g/pkm"]
[null,null,null,null,null,null,null,null,null,null,null,null,null,null,null,null,null,null," Kostnadsförändring trafikstartår-prognosår 1",null,-0.47,"procent"]
[null,null,null,null,null,null,null,null,null,null,null,null,null,null,null,null,null,null,"FORDONSKOSTNADER - Bimodaltåg"]
[null,null,null,null,null,null,null,null,null,null,null,null,null,null,null,null,null,null,"*Vehicletype",17]
[null,null,null,null,null,null,null,null,null,null,null,null,null,null,null,null,null,null,"*Mode","j"]
[null,null,null,null,null,null,null,null,null,null,null,null,null,null,null,null,null,null,"*Fast sträckkostnad",23.49,null,"kr/km"]
[null,null,null,null,null,null,null,null,null,null,null,null,null,null,null,null,null,null,"*Fast tidskostnad",50.08,null,"kr/minut"]
[null,null,null,null,null,null,null,null,null,null,null,null,null,null,null,null,null,null,"*Fast slitagekostnad",5.25,null,"kr/km"]
[null,null,null,null,null,null,null,null,null,null,null,null,null,null,null,null,null,null,"*Marginell sträckkostnad",0.14000000000000001,null,"kr/personkm"]
[null,null,null,null,null,null,null,null,null,null,null,null,null,null,null,null,null,null,"*Marginell tidskostnad",0.17,null,"kr/personminut"]
[null,null,null,null,null,null,null,null,null,null,null,null,null,null,null,null,null,null,"*Marginell slitagekostnad",1.2E-2,null,"kr/personkm"]
[null,null,null,null,null,null,null,null,null,null,null,null,null,null,null,null,null,null,"*Fast banavgift",5.25,null,"kr/km"]
[null,null,null,null,null,null,null,null,null,null,null,null,null,null,null,null,null,null,"*Marginell banavgift",1.2E-2,null,"kr/km"]
[null,null,null,null,null,null,null,null,null,null,null,null,null,null,null,null,null,null,"*Antal platser",150,null,"styck"]
[null,null,null,null,null,null,null,null,null,null,null,null,null,null,null,null,null,null,"*Beläggningsgrad",0.35,null,"andel"]
[null,null,null,null,null,null,null,null,null,null,null,null,null,null,null,null,null,null,"*Olyckskostnad",5.93,null,"kr/fkm"]
[null,null,null,null,null,null,null,null,null,null,null,null,null,null,null,null,null,null,"*TätortsFaktor",0.08]
[null,null,null,null,null,null,null,null,null,null,null,null,null,null,null,null,null,null,"*Fast NOx",8.1300000000000008,null,"g/fkm"]
[null,null,null,null,null,null,null,null,null,null,null,null,null,null,null,null,null,null,"*Fast Part",7.2999999999999995E-2,null,"g/fkm"]
[null,null,null,null,null,null,null,null,null,null,null,null,null,null,null,null,null,null," Fast SlitagePart",null,0,"g/fkm"]
[null,null,null,null,null,null,null,null,null,null,null,null,null,null,null,null,null,null,"*Fast CO2",2732.25,null,"g/fkm"]
[null,null,null,null,null,null,null,null,null,null,null,null,null,null,null,null,null,null,"*Marg NOx",5.3999999999999999E-2,null,"g/pkm"]
[null,null,null,null,null,null,null,null,null,null,null,null,null,null,null,null,null,null,"*Marg Part",4.8999999999999998E-4,null,"g/pkm"]
[null,null,null,null,null,null,null,null,null,null,null,null,null,null,null,null,null,null," Marg SlitagePart",null,0,"g/pkm"]
[null,null,null,null,null,null,null,null,null,null,null,null,null,null,null,null,null,null,"*Marg CO2",18.13,null,"g/pkm"]
[null,null,null,null,null,null,null,null,null,null,null,null,null,null,null,null,null,null," Kostnadsförändring trafikstartår-prognosår 1",null,-2.36,"procent"]
[null,null,null,null,null,null,null,null,null,null,null,null,null,null,null,null,null,null,"FORDONSKOSTNADER - Nattåg"]
[null,null,null,null,null,null,null,null,null,null,null,null,null,null,null,null,null,null,"*Vehicletype",16]
[null,null,null,null,null,null,null,null,null,null,null,null,null,null,null,null,null,null,"*Mode","j"]
[null,null,null,null,null,null,null,null,null,null,null,null,null,null,null,null,null,null,"*Fast sträckkostnad",44.97,null,"kr/km"]
[null,null,null,null,null,null,null,null,null,null,null,null,null,null,null,null,null,null,"*Fast tidskostnad",103.14,null,"kr/minut"]
[null,null,null,null,null,null,null,null,null,null,null,null,null,null,null,null,null,null,"*Fast slitagekostnad",10.69,null,"kr/km"]
[null,null,null,null,null,null,null,null,null,null,null,null,null,null,null,null,null,null,"*Marginell sträckkostnad",0.15,null,"kr/personkm"]
[null,null,null,null,null,null,null,null,null,null,null,null,null,null,null,null,null,null,"*Marginell tidskostnad",0.26,null,"kr/personminut"]
[null,null,null,null,null,null,null,null,null,null,null,null,null,null,null,null,null,null,"*Marginell slitagekostnad",2.3E-2,null,"kr/personkm"]
[null,null,null,null,null,null,null,null,null,null,null,null,null,null,null,null,null,null,"*Fast banavgift",10.69,null,"kr/km"]
[null,null,null,null,null,null,null,null,null,null,null,null,null,null,null,null,null,null,"*Marginell banavgift",2.3E-2,null,"kr/km"]
[null,null,null,null,null,null,null,null,null,null,null,null,null,null,null,null,null,null,"*Antal platser",250,null,"styck"]
[null,null,null,null,null,null,null,null,null,null,null,null,null,null,null,null,null,null,"*Beläggningsgrad",0.5,null,"andel"]
[null,null,null,null,null,null,null,null,null,null,null,null,null,null,null,null,null,null,"*Olyckskostnad",2.4500000000000002,null,"kr/fkm"]
[null,null,null,null,null,null,null,null,null,null,null,null,null,null,null,null,null,null,"*TätortsFaktor",0.08]
[null,null,null,null,null,null,null,null,null,null,null,null,null,null,null,null,null,null," Fast NOx",null,0,"g/fkm"]
[null,null,null,null,null,null,null,null,null,null,null,null,null,null,null,null,null,null," Fast Part",null,0,"g/fkm"]
[null,null,null,null,null,null,null,null,null,null,null,null,null,null,null,null,null,null," Fast SlitagePart",null,0,"g/fkm"]
[null,null,null,null,null,null,null,null,null,null,null,null,null,null,null,null,null,null," Fast CO2",null,0,"g/fkm"]
[null,null,null,null,null,null,null,null,null,null,null,null,null,null,null,null,null,null," Marg NOx",null,0,"g/pkm"]
[null,null,null,null,null,null,null,null,null,null,null,null,null,null,null,null,null,null," Marg Part",null,0,"g/pkm"]
[null,null,null,null,null,null,null,null,null,null,null,null,null,null,null,null,null,null," Marg SlitagePart",null,0,"g/pkm"]
[null,null,null,null,null,null,null,null,null,null,null,null,null,null,null,null,null,null," Marg CO2",null,0,"g/pkm"]
[null,null,null,null,null,null,null,null,null,null,null,null,null,null,null,null,null,null," Kostnadsförändring trafikstartår-prognosår 1",null,-0.23,"procent"]
[null,null,null,null,null,null,null,null,null,null,null,null,null,null,null,null,null,null,"FORDONSKOSTNADER - Tbana"]
[null,null,null,null,null,null,null,null,null,null,null,null,null,null,null,null,null,null,"*Vehicletype",26]
[null,null,null,null,null,null,null,null,null,null,null,null,null,null,null,null,null,null,"*Mode","t"]
[null,null,null,null,null,null,null,null,null,null,null,null,null,null,null,null,null,null,"*Fast sträckkostnad",18.09,null,"kr/km"]
[null,null,null,null,null,null,null,null,null,null,null,null,null,null,null,null,null,null,"*Fast tidskostnad",43.58,null,"kr/minut"]
[null,null,null,null,null,null,null,null,null,null,null,null,null,null,null,null,null,null,"*Fast slitagekostnad",5.97,null,"kr/km"]
[null,null,null,null,null,null,null,null,null,null,null,null,null,null,null,null,null,null,"*Marginell sträckkostnad",0.08,null,"kr/personkm"]
[null,null,null,null,null,null,null,null,null,null,null,null,null,null,null,null,null,null,"*Marginell tidskostnad",0.1,null,"kr/personminut"]
[null,null,null,null,null,null,null,null,null,null,null,null,null,null,null,null,null,null,"*Marginell slitagekostnad",1.2E-2,null,"kr/personkm"]
[null,null,null,null,null,null,null,null,null,null,null,null,null,null,null,null,null,null,"*Fast banavgift",5.97,null,"kr/km"]
[null,null,null,null,null,null,null,null,null,null,null,null,null,null,null,null,null,null,"*Marginell banavgift",0.01,null,"kr/km"]
[null,null,null,null,null,null,null,null,null,null,null,null,null,null,null,null,null,null,"*Antal platser",215,null,"styck"]
[null,null,null,null,null,null,null,null,null,null,null,null,null,null,null,null,null,null,"*Beläggningsgrad",0.35,null,"andel"]
[null,null,null,null,null,null,null,null,null,null,null,null,null,null,null,null,null,null," Olyckskostnad",null,0,"kr/fkm"]
[null,null,null,null,null,null,null,null,null,null,null,null,null,null,null,null,null,null,"*TätortsFaktor",0.08]
[null,null,null,null,null,null,null,null,null,null,null,null,null,null,null,null,null,null," Fast NOx",null,0,"g/fkm"]
[null,null,null,null,null,null,null,null,null,null,null,null,null,null,null,null,null,null," Fast Part",null,0,"g/fkm"]
[null,null,null,null,null,null,null,null,null,null,null,null,null,null,null,null,null,null," Fast SlitagePart",null,0,"g/fkm"]
[null,null,null,null,null,null,null,null,null,null,null,null,null,null,null,null,null,null," Fast CO2",null,0,"g/fkm"]
[null,null,null,null,null,null,null,null,null,null,null,null,null,null,null,null,null,null," Marg NOx",null,0,"g/pkm"]
[null,null,null,null,null,null,null,null,null,null,null,null,null,null,null,null,null,null," Marg Part",null,0,"g/pkm"]
[null,null,null,null,null,null,null,null,null,null,null,null,null,null,null,null,null,null," Marg SlitagePart",null,0,"g/pkm"]
[null,null,null,null,null,null,null,null,null,null,null,null,null,null,null,null,null,null," Marg CO2",null,0,"g/pkm"]
[null,null,null,null,null,null,null,null,null,null,null,null,null,null,null,null,null,null," Kostnadsförändring trafikstartår-prognosår 1",null,0,"procent"]
[null,null,null,null,null,null,null,null,null,null,null,null,null,null,null,null,null,null,"FORDONSKOSTNADER - ÖvrSpår"]
[null,null,null,null,null,null,null,null,null,null,null,null,null,null,null,null,null,null,"*Vehicletype",60]
[null,null,null,null,null,null,null,null,null,null,null,null,null,null,null,null,null,null,"*Mode","s"]
[null,null,null,null,null,null,null,null,null,null,null,null,null,null,null,null,null,null,"*Fast sträckkostnad",18.09,null,"kr/km"]
[null,null,null,null,null,null,null,null,null,null,null,null,null,null,null,null,null,null,"*Fast tidskostnad",43.58,null,"kr/minut"]
[null,null,null,null,null,null,null,null,null,null,null,null,null,null,null,null,null,null,"*Fast slitagekostnad",5.97,null,"kr/km"]
[null,null,null,null,null,null,null,null,null,null,null,null,null,null,null,null,null,null,"*Marginell sträckkostnad",0.08,null,"kr/personkm"]
[null,null,null,null,null,null,null,null,null,null,null,null,null,null,null,null,null,null,"*Marginell tidskostnad",0.1,null,"kr/personminut"]
[null,null,null,null,null,null,null,null,null,null,null,null,null,null,null,null,null,null,"*Marginell slitagekostnad",1.2E-2,null,"kr/personkm"]
[null,null,null,null,null,null,null,null,null,null,null,null,null,null,null,null,null,null,"*Fast banavgift",5.97,null,"kr/km"]
[null,null,null,null,null,null,null,null,null,null,null,null,null,null,null,null,null,null,"*Marginell banavgift",0.01,null,"kr/km"]
[null,null,null,null,null,null,null,null,null,null,null,null,null,null,null,null,null,null,"*Antal platser",215,null,"styck"]
[null,null,null,null,null,null,null,null,null,null,null,null,null,null,null,null,null,null,"*Beläggningsgrad",0.35,null,"andel"]
[null,null,null,null,null,null,null,null,null,null,null,null,null,null,null,null,null,null," Olyckskostnad",null,0,"kr/fkm"]
[null,null,null,null,null,null,null,null,null,null,null,null,null,null,null,null,null,null,"*TätortsFaktor",0.08]
[null,null,null,null,null,null,null,null,null,null,null,null,null,null,null,null,null,null," Fast NOx",null,0,"g/fkm"]
[null,null,null,null,null,null,null,null,null,null,null,null,null,null,null,null,null,null," Fast Part",null,0,"g/fkm"]
[null,null,null,null,null,null,null,null,null,null,null,null,null,null,null,null,null,null," Fast SlitagePart",null,0,"g/fkm"]
[null,null,null,null,null,null,null,null,null,null,null,null,null,null,null,null,null,null," Fast CO2",null,0,"g/fkm"]
[null,null,null,null,null,null,null,null,null,null,null,null,null,null,null,null,null,null," Marg NOx",null,0,"g/pkm"]
[null,null,null,null,null,null,null,null,null,null,null,null,null,null,null,null,null,null," Marg Part",null,0,"g/pkm"]
[null,null,null,null,null,null,null,null,null,null,null,null,null,null,null,null,null,null," Marg SlitagePart",null,0,"g/pkm"]
[null,null,null,null,null,null,null,null,null,null,null,null,null,null,null,null,null,null," Marg CO2",null,0,"g/pkm"]
[null,null,null,null,null,null,null,null,null,null,null,null,null,null,null,null,null,null," Kostnadsförändring trafikstartår-prognosår 1",null,0,"procent"]
[null,null,null,null,null,null,null,null,null,null,null,null,null,null,null,null,null,null,"FORDONSKOSTNADER - ny1"]
[null,null,null,null,null,null,null,null,null,null,null,null,null,null,null,null,null,null,"*Vehicletype",18]
[null,null,null,null,null,null,null,null,null,null,null,null,null,null,null,null,null,null,"*Mode","i"]
[null,null,null,null,null,null,null,null,null,null,null,null,null,null,null,null,null,null,"*Fast sträckkostnad",29.78,null,"kr/km"]
[null,null,null,null,null,null,null,null,null,null,null,null,null,null,null,null,null,null,"*Fast tidskostnad",37.04,null,"kr/minut"]
[null,null,null,null,null,null,null,null,null,null,null,null,null,null,null,null,null,null,"*Fast slitagekostnad",6.79,null,"kr/km"]
[null,null,null,null,null,null,null,null,null,null,null,null,null,null,null,null,null,null,"*Marginell sträckkostnad",7.0000000000000007E-2,null,"kr/personkm"]
[null,null,null,null,null,null,null,null,null,null,null,null,null,null,null,null,null,null,"*Marginell tidskostnad",0.05,null,"kr/personminut"]
[null,null,null,null,null,null,null,null,null,null,null,null,null,null,null,null,null,null," Marginell slitagekostnad",null,8.0000000000000002E-3,"kr/personkm"]
[null,null,null,null,null,null,null,null,null,null,null,null,null,null,null,null,null,null,"*Fast banavgift",6.79,null,"kr/km"]
[null,null,null,null,null,null,null,null,null,null,null,null,null,null,null,null,null,null,"*Marginell banavgift",8.0000000000000002E-3,null,"kr/km"]
[null,null,null,null,null,null,null,null,null,null,null,null,null,null,null,null,null,null,"*Antal platser",375,null,"styck"]
[null,null,null,null,null,null,null,null,null,null,null,null,null,null,null,null,null,null,"*Beläggningsgrad",0.35,null,"andel"]
[null,null,null,null,null,null,null,null,null,null,null,null,null,null,null,null,null,null,"*Olyckskostnad",1.53,null,"kr/fkm"]
[null,null,null,null,null,null,null,null,null,null,null,null,null,null,null,null,null,null,"*TätortsFaktor",0.08]
[null,null,null,null,null,null,null,null,null,null,null,null,null,null,null,null,null,null," Fast NOx",null,0,"g/fkm"]
[null,null,null,null,null,null,null,null,null,null,null,null,null,null,null,null,null,null," Fast Part",null,0,"g/fkm"]
[null,null,null,null,null,null,null,null,null,null,null,null,null,null,null,null,null,null,"*Fast SlitagePart",0,null,"g/fkm"]
[null,null,null,null,null,null,null,null,null,null,null,null,null,null,null,null,null,null," Fast CO2",null,0,"g/fkm"]
[null,null,null,null,null,null,null,null,null,null,null,null,null,null,null,null,null,null," Marg NOx",null,0,"g/pkm"]
[null,null,null,null,null,null,null,null,null,null,null,null,null,null,null,null,null,null," Marg Part",null,0,"g/pkm"]
[null,null,null,null,null,null,null,null,null,null,null,null,null,null,null,null,null,null,"*Marg SlitagePart",0,null,"g/pkm"]
[null,null,null,null,null,null,null,null,null,null,null,null,null,null,null,null,null,null," Marg CO2",null,0,"g/pkm"]
[null,null,null,null,null,null,null,null,null,null,null,null,null,null,null,null,null,null," Kostnadsförändring trafikstartår-prognosår 1",null,-0.9,"procent"]
[null,null,null,null,null,null,null,null,null,null,null,null,null,null,null,null,null,null,"FORDONSKOSTNADER - ny2"]
[null,null,null,null,null,null,null,null,null,null,null,null,null,null,null,null,null,null,"*Vehicletype",4]
[null,null,null,null,null,null,null,null,null,null,null,null,null,null,null,null,null,null,"*Mode","j"]
[null,null,null,null,null,null,null,null,null,null,null,null,null,null,null,null,null,null,"*Fast sträckkostnad",21.94,null,"kr/km"]
[null,null,null,null,null,null,null,null,null,null,null,null,null,null,null,null,null,null,"*Fast tidskostnad",80.16,null,"kr/minut"]
[null,null,null,null,null,null,null,null,null,null,null,null,null,null,null,null,null,null,"*Fast slitagekostnad",6.21,null,"kr/km"]
[null,null,null,null,null,null,null,null,null,null,null,null,null,null,null,null,null,null,"*Marginell sträckkostnad",0.09,null,"kr/personkm"]
[null,null,null,null,null,null,null,null,null,null,null,null,null,null,null,null,null,null,"*Marginell tidskostnad",0.23,null,"kr/personminut"]
[null,null,null,null,null,null,null,null,null,null,null,null,null,null,null,null,null,null,"*Marginell slitagekostnad",1.2E-2,null,"kr/personkm"]
[null,null,null,null,null,null,null,null,null,null,null,null,null,null,null,null,null,null,"*Fast banavgift",6.21,null,"kr/km"]
[null,null,null,null,null,null,null,null,null,null,null,null,null,null,null,null,null,null,"*Marginell banavgift",1.2E-2,null,"kr/km"]
[null,null,null,null,null,null,null,null,null,null,null,null,null,null,null,null,null,null,"*Antal platser",220,null,"styck"]
[null,null,null,null,null,null,null,null,null,null,null,null,null,null,null,null,null,null,"*Beläggningsgrad",0.65,null,"andel"]
[null,null,null,null,null,null,null,null,null,null,null,null,null,null,null,null,null,null,"*Olyckskostnad",2.37,null,"kr/fkm"]
[null,null,null,null,null,null,null,null,null,null,null,null,null,null,null,null,null,null,"*TätortsFaktor",0.08]
[null,null,null,null,null,null,null,null,null,null,null,null,null,null,null,null,null,null," Fast NOx",null,0,"g/fkm"]
[null,null,null,null,null,null,null,null,null,null,null,null,null,null,null,null,null,null," Fast Part",null,0,"g/fkm"]
[null,null,null,null,null,null,null,null,null,null,null,null,null,null,null,null,null,null,"*Fast SlitagePart",0,null,"g/fkm"]
[null,null,null,null,null,null,null,null,null,null,null,null,null,null,null,null,null,null," Fast CO2",null,0,"g/fkm"]
[null,null,null,null,null,null,null,null,null,null,null,null,null,null,null,null,null,null," Marg NOx",null,0,"g/pkm"]
[null,null,null,null,null,null,null,null,null,null,null,null,null,null,null,null,null,null," Marg Part",null,0,"g/pkm"]
[null,null,null,null,null,null,null,null,null,null,null,null,null,null,null,null,null,null,"*Marg SlitagePart",0,null,"g/pkm"]
[null,null,null,null,null,null,null,null,null,null,null,null,null,null,null,null,null,null," Marg CO2",null,0,"g/pkm"]
[null,null,null,null,null,null,null,null,null,null,null,null,null,null,null,null,null,null," Kostnadsförändring trafikstartår-prognosår 1",null,-1.1100000000000001,"procent"]
[null,null,null,null,null,null,null,null,null,null,null,null,null,null,null,null,null,null,"FORDONSKOSTNADER - ny3"]
[null,null,null,null,null,null,null,null,null,null,null,null,null,null,null,null,null,null,"*Vehicletype",3]
[null,null,null,null,null,null,null,null,null,null,null,null,null,null,null,null,null,null,"*Mode","k"]
[null,null,null,null,null,null,null,null,null,null,null,null,null,null,null,null,null,null,"*Fast sträckkostnad",33.36,null,"kr/km"]
[null,null,null,null,null,null,null,null,null,null,null,null,null,null,null,null,null,null,"*Fast tidskostnad",97.33,null,"kr/minut"]
[null,null,null,null,null,null,null,null,null,null,null,null,null,null,null,null,null,null,"*Fast slitagekostnad",7.65,null,"kr/km"]
[null,null,null,null,null,null,null,null,null,null,null,null,null,null,null,null,null,null,"*Marginell sträckkostnad",0.11,null,"kr/personkm"]
[null,null,null,null,null,null,null,null,null,null,null,null,null,null,null,null,null,null,"*Marginell tidskostnad",0.28000000000000003,null,"kr/personminut"]
[null,null,null,null,null,null,null,null,null,null,null,null,null,null,null,null,null,null,"*Marginell slitagekostnad",1.4E-2,null,"kr/personkm"]
[null,null,null,null,null,null,null,null,null,null,null,null,null,null,null,null,null,null,"*Fast banavgift",7.65,null,"kr/km"]
[null,null,null,null,null,null,null,null,null,null,null,null,null,null,null,null,null,null,"*Marginell banavgift",1.4E-2,null,"kr/km"]
[null,null,null,null,null,null,null,null,null,null,null,null,null,null,null,null,null,null,"*Antal platser",250,null,"styck"]
[null,null,null,null,null,null,null,null,null,null,null,null,null,null,null,null,null,null,"*Beläggningsgrad",0.65,null,"andel"]
[null,null,null,null,null,null,null,null,null,null,null,null,null,null,null,null,null,null,"*Olyckskostnad",1.4,null,"kr/fkm"]
[null,null,null,null,null,null,null,null,null,null,null,null,null,null,null,null,null,null,"*TätortsFaktor",0]
[null,null,null,null,null,null,null,null,null,null,null,null,null,null,null,null,null,null," Fast NOx",null,0,"g/fkm"]
[null,null,null,null,null,null,null,null,null,null,null,null,null,null,null,null,null,null," Fast Part",null,0,"g/fkm"]
[null,null,null,null,null,null,null,null,null,null,null,null,null,null,null,null,null,null,"*Fast SlitagePart",0,null,"g/fkm"]
[null,null,null,null,null,null,null,null,null,null,null,null,null,null,null,null,null,null," Fast CO2",null,0,"g/fkm"]
[null,null,null,null,null,null,null,null,null,null,null,null,null,null,null,null,null,null," Marg NOx",null,0,"g/pkm"]
[null,null,null,null,null,null,null,null,null,null,null,null,null,null,null,null,null,null," Marg Part",null,0,"g/pkm"]
[null,null,null,null,null,null,null,null,null,null,null,null,null,null,null,null,null,null,"*Marg SlitagePart",0,null,"g/pkm"]
[null,null,null,null,null,null,null,null,null,null,null,null,null,null,null,null,null,null," Marg CO2",null,0,"g/pkm"]
[null,null,null,null,null,null,null,null,null,null,null,null,null,null,null,null,null,null," Kostnadsförändring trafikstartår-prognosår 1",null,-0.99,"procent"]
[null,null,null,null,null,null,null,null,null,null,null,null,null,null,null,null,null,null,"FORDONSKOSTNADER - ny4"]
[null,null,null,null,null,null,null,null,null,null,null,null,null,null,null,null,null,null,"*Vehicletype",0]
[null,null,null,null,null,null,null,null,null,null,null,null,null,null,null,null,null,null,"*Mode","s"]
[null,null,null,null,null,null,null,null,null,null,null,null,null,null,null,null,null,null,"*Fast sträckkostnad",0,null,"kr/km"]
[null,null,null,null,null,null,null,null,null,null,null,null,null,null,null,null,null,null,"*Fast tidskostnad",0,null,"kr/minut"]
[null,null,null,null,null,null,null,null,null,null,null,null,null,null,null,null,null,null,"*Fast slitagekostnad",0,null,"kr/km"]
[null,null,null,null,null,null,null,null,null,null,null,null,null,null,null,null,null,null,"*Marginell sträckkostnad",0,null,"kr/personkm"]
[null,null,null,null,null,null,null,null,null,null,null,null,null,null,null,null,null,null,"*Marginell tidskostnad",0,null,"kr/personminut"]
[null,null,null,null,null,null,null,null,null,null,null,null,null,null,null,null,null,null,"*Marginell slitagekostnad",0,null,"kr/personkm"]
[null,null,null,null,null,null,null,null,null,null,null,null,null,null,null,null,null,null," Fast banavgift",null,0,"kr/km"]
[null,null,null,null,null,null,null,null,null,null,null,null,null,null,null,null,null,null," Marginell banavgift",null,0,"kr/km"]
[null,null,null,null,null,null,null,null,null,null,null,null,null,null,null,null,null,null,"*Antal platser",0,null,"styck"]
[null,null,null,null,null,null,null,null,null,null,null,null,null,null,null,null,null,null,"*Beläggningsgrad",0,null,"andel"]
[null,null,null,null,null,null,null,null,null,null,null,null,null,null,null,null,null,null,"*Olyckskostnad",0,null,"kr/fkm"]
[null,null,null,null,null,null,null,null,null,null,null,null,null,null,null,null,null,null,"*TätortsFaktor",0]
[null,null,null,null,null,null,null,null,null,null,null,null,null,null,null,null,null,null," Fast NOx",null,0,"g/fkm"]
[null,null,null,null,null,null,null,null,null,null,null,null,null,null,null,null,null,null," Fast Part",null,0,"g/fkm"]
[null,null,null,null,null,null,null,null,null,null,null,null,null,null,null,null,null,null,"*Fast SlitagePart",0,null,"g/fkm"]
[null,null,null,null,null,null,null,null,null,null,null,null,null,null,null,null,null,null," Fast CO2",null,0,"g/fkm"]
[null,null,null,null,null,null,null,null,null,null,null,null,null,null,null,null,null,null," Marg NOx",null,0,"g/pkm"]
[null,null,null,null,null,null,null,null,null,null,null,null,null,null,null,null,null,null," Marg Part",null,0,"g/pkm"]
[null,null,null,null,null,null,null,null,null,null,null,null,null,null,null,null,null,null,"*Marg SlitagePart",0,null,"g/pkm"]
[null,null,null,null,null,null,null,null,null,null,null,null,null,null,null,null,null,null," Marg CO2",null,0,"g/pkm"]
[null,null,null,null,null,null,null,null,null,null,null,null,null,null,null,null,null,null," Kostnadsförändring trafikstartår-prognosår 1",null,0,"procent"]
[null,null,null,null,null,null,null,null,null,null,null,null,null,null,null,null,null,null,"FORDONSKOSTNADER - ny5"]
[null,null,null,null,null,null,null,null,null,null,null,null,null,null,null,null,null,null,"*Vehicletype",0]
[null,null,null,null,null,null,null,null,null,null,null,null,null,null,null,null,null,null,"*Mode","a"]
[null,null,null,null,null,null,null,null,null,null,null,null,null,null,null,null,null,null,"*Fast sträckkostnad",0,null,"kr/km"]
[null,null,null,null,null,null,null,null,null,null,null,null,null,null,null,null,null,null,"*Fast tidskostnad",0,null,"kr/minut"]
[null,null,null,null,null,null,null,null,null,null,null,null,null,null,null,null,null,null,"*Fast slitagekostnad",0,null,"kr/km"]
[null,null,null,null,null,null,null,null,null,null,null,null,null,null,null,null,null,null,"*Marginell sträckkostnad",0,null,"kr/personkm"]
[null,null,null,null,null,null,null,null,null,null,null,null,null,null,null,null,null,null,"*Marginell tidskostnad",0,null,"kr/personminut"]
[null,null,null,null,null,null,null,null,null,null,null,null,null,null,null,null,null,null,"*Marginell slitagekostnad",0,null,"kr/personkm"]
[null,null,null,null,null,null,null,null,null,null,null,null,null,null,null,null,null,null," Fast banavgift",null,0,"kr/km"]
[null,null,null,null,null,null,null,null,null,null,null,null,null,null,null,null,null,null," Marginell banavgift",null,0,"kr/km"]
[null,null,null,null,null,null,null,null,null,null,null,null,null,null,null,null,null,null,"*Antal platser",0,null,"styck"]
[null,null,null,null,null,null,null,null,null,null,null,null,null,null,null,null,null,null,"*Beläggningsgrad",0,null,"andel"]
[null,null,null,null,null,null,null,null,null,null,null,null,null,null,null,null,null,null,"*Olyckskostnad",0,null,"kr/fkm"]
[null,null,null,null,null,null,null,null,null,null,null,null,null,null,null,null,null,null,"*TätortsFaktor",0]
[null,null,null,null,null,null,null,null,null,null,null,null,null,null,null,null,null,null," Fast NOx",null,0,"g/fkm"]
[null,null,null,null,null,null,null,null,null,null,null,null,null,null,null,null,null,null," Fast Part",null,0,"g/fkm"]
[null,null,null,null,null,null,null,null,null,null,null,null,null,null,null,null,null,null,"*Fast SlitagePart",0,null,"g/fkm"]
[null,null,null,null,null,null,null,null,null,null,null,null,null,null,null,null,null,null," Fast CO2",null,0,"g/fkm"]
[null,null,null,null,null,null,null,null,null,null,null,null,null,null,null,null,null,null," Marg NOx",null,0,"g/pkm"]
[null,null,null,null,null,null,null,null,null,null,null,null,null,null,null,null,null,null," Marg Part",null,0,"g/pkm"]
[null,null,null,null,null,null,null,null,null,null,null,null,null,null,null,null,null,null,"*Marg SlitagePart",0,null,"g/pkm"]
[null,null,null,null,null,null,null,null,null,null,null,null,null,null,null,null,null,null," Marg CO2",null,0,"g/pkm"]
[null,null,null,null,null,null,null,null,null,null,null,null,null,null,null,null,null,null," Kostnadsförändring trafikstartår-prognosår 1",null,0,"procent"]
[null,null,null,null,null,null,null,null,null,null,null,null,null,null,null,null,null,null,"FORDONSKOSTNADER - ny6"]
[null,null,null,null,null,null,null,null,null,null,null,null,null,null,null,null,null,null,"*Vehicletype",0]
[null,null,null,null,null,null,null,null,null,null,null,null,null,null,null,null,null,null,"*Mode","j"]
[null,null,null,null,null,null,null,null,null,null,null,null,null,null,null,null,null,null,"*Fast sträckkostnad",0,null,"kr/km"]
[null,null,null,null,null,null,null,null,null,null,null,null,null,null,null,null,null,null,"*Fast tidskostnad",0,null,"kr/minut"]
[null,null,null,null,null,null,null,null,null,null,null,null,null,null,null,null,null,null,"*Fast slitagekostnad",0,null,"kr/km"]
[null,null,null,null,null,null,null,null,null,null,null,null,null,null,null,null,null,null,"*Marginell sträckkostnad",0,null,"kr/personkm"]
[null,null,null,null,null,null,null,null,null,null,null,null,null,null,null,null,null,null,"*Marginell tidskostnad",0,null,"kr/personminut"]
[null,null,null,null,null,null,null,null,null,null,null,null,null,null,null,null,null,null,"*Marginell slitagekostnad",0,null,"kr/personkm"]
[null,null,null,null,null,null,null,null,null,null,null,null,null,null,null,null,null,null," Fast banavgift",null,0,"kr/km"]
[null,null,null,null,null,null,null,null,null,null,null,null,null,null,null,null,null,null," Marginell banavgift",null,0,"kr/km"]
[null,null,null,null,null,null,null,null,null,null,null,null,null,null,null,null,null,null,"*Antal platser",0,null,"styck"]
[null,null,null,null,null,null,null,null,null,null,null,null,null,null,null,null,null,null,"*Beläggningsgrad",0,null,"andel"]
[null,null,null,null,null,null,null,null,null,null,null,null,null,null,null,null,null,null,"*Olyckskostnad",0,null,"kr/fkm"]
[null,null,null,null,null,null,null,null,null,null,null,null,null,null,null,null,null,null,"*TätortsFaktor",0]
[null,null,null,null,null,null,null,null,null,null,null,null,null,null,null,null,null,null," Fast NOx",null,0,"g/fkm"]
[null,null,null,null,null,null,null,null,null,null,null,null,null,null,null,null,null,null," Fast Part",null,0,"g/fkm"]
[null,null,null,null,null,null,null,null,null,null,null,null,null,null,null,null,null,null,"*Fast SlitagePart",0,null,"g/fkm"]
[null,null,null,null,null,null,null,null,null,null,null,null,null,null,null,null,null,null," Fast CO2",null,0,"g/fkm"]
[null,null,null,null,null,null,null,null,null,null,null,null,null,null,null,null,null,null," Marg NOx",null,0,"g/pkm"]
[null,null,null,null,null,null,null,null,null,null,null,null,null,null,null,null,null,null," Marg Part",null,0,"g/pkm"]
[null,null,null,null,null,null,null,null,null,null,null,null,null,null,null,null,null,null,"*Marg SlitagePart",0,null,"g/pkm"]
[null,null,null,null,null,null,null,null,null,null,null,null,null,null,null,null,null,null," Marg CO2",null,0,"g/pkm"]
[null,null,null,null,null,null,null,null,null,null,null,null,null,null,null,null,null,null," Kostnadsförändring trafikstartår-prognosår 1",null,0,"procent"]
[null,null,null,null,null,null,null,null,null,null,null,null,null,null,null,null,null,null,"FORDONSKOSTNADER - ny7"]
[null,null,null,null,null,null,null,null,null,null,null,null,null,null,null,null,null,null,"*Vehicletype",0]
[null,null,null,null,null,null,null,null,null,null,null,null,null,null,null,null,null,null,"*Mode","a"]
[null,null,null,null,null,null,null,null,null,null,null,null,null,null,null,null,null,null,"*Fast sträckkostnad",0,null,"kr/km"]
[null,null,null,null,null,null,null,null,null,null,null,null,null,null,null,null,null,null,"*Fast tidskostnad",0,null,"kr/minut"]
[null,null,null,null,null,null,null,null,null,null,null,null,null,null,null,null,null,null,"*Fast slitagekostnad",0,null,"kr/km"]
[null,null,null,null,null,null,null,null,null,null,null,null,null,null,null,null,null,null,"*Marginell sträckkostnad",0,null,"kr/personkm"]
[null,null,null,null,null,null,null,null,null,null,null,null,null,null,null,null,null,null,"*Marginell tidskostnad",0,null,"kr/personminut"]
[null,null,null,null,null,null,null,null,null,null,null,null,null,null,null,null,null,null,"*Marginell slitagekostnad",0,null,"kr/personkm"]
[null,null,null,null,null,null,null,null,null,null,null,null,null,null,null,null,null,null," Fast banavgift",null,0,"kr/km"]
[null,null,null,null,null,null,null,null,null,null,null,null,null,null,null,null,null,null," Marginell banavgift",null,0,"kr/km"]
[null,null,null,null,null,null,null,null,null,null,null,null,null,null,null,null,null,null,"*Antal platser",0,null,"styck"]
[null,null,null,null,null,null,null,null,null,null,null,null,null,null,null,null,null,null,"*Beläggningsgrad",0,null,"andel"]
[null,null,null,null,null,null,null,null,null,null,null,null,null,null,null,null,null,null,"*Olyckskostnad",0,null,"kr/fkm"]
[null,null,null,null,null,null,null,null,null,null,null,null,null,null,null,null,null,null,"*TätortsFaktor",0]
[null,null,null,null,null,null,null,null,null,null,null,null,null,null,null,null,null,null," Fast NOx",null,0,"g/fkm"]
[null,null,null,null,null,null,null,null,null,null,null,null,null,null,null,null,null,null," Fast Part",null,0,"g/fkm"]
[null,null,null,null,null,null,null,null,null,null,null,null,null,null,null,null,null,null,"*Fast SlitagePart",0,null,"g/fkm"]
[null,null,null,null,null,null,null,null,null,null,null,null,null,null,null,null,null,null," Fast CO2",null,0,"g/fkm"]
[null,null,null,null,null,null,null,null,null,null,null,null,null,null,null,null,null,null," Marg NOx",null,0,"g/pkm"]
[null,null,null,null,null,null,null,null,null,null,null,null,null,null,null,null,null,null," Marg Part",null,0,"g/pkm"]
[null,null,null,null,null,null,null,null,null,null,null,null,null,null,null,null,null,null,"*Marg SlitagePart",0,null,"g/pkm"]
[null,null,null,null,null,null,null,null,null,null,null,null,null,null,null,null,null,null," Marg CO2",null,0,"g/pkm"]
[null,null,null,null,null,null,null,null,null,null,null,null,null,null,null,null,null,null," Kostnadsförändring trafikstartår-prognosår 1",null,0,"procent"]
[null,null,null,null,null,null,null,null,null,null,null,null,null,null,null,null,null,null,"FORDONSKOSTNADER - ny8"]
[null,null,null,null,null,null,null,null,null,null,null,null,null,null,null,null,null,null,"*Vehicletype",0]
[null,null,null,null,null,null,null,null,null,null,null,null,null,null,null,null,null,null,"*Mode","j"]
[null,null,null,null,null,null,null,null,null,null,null,null,null,null,null,null,null,null,"*Fast sträckkostnad",0,null,"kr/km"]
[null,null,null,null,null,null,null,null,null,null,null,null,null,null,null,null,null,null,"*Fast tidskostnad",0,null,"kr/minut"]
[null,null,null,null,null,null,null,null,null,null,null,null,null,null,null,null,null,null,"*Fast slitagekostnad",0,null,"kr/km"]
[null,null,null,null,null,null,null,null,null,null,null,null,null,null,null,null,null,null,"*Marginell sträckkostnad",0,null,"kr/personkm"]
[null,null,null,null,null,null,null,null,null,null,null,null,null,null,null,null,null,null,"*Marginell tidskostnad",0,null,"kr/personminut"]
[null,null,null,null,null,null,null,null,null,null,null,null,null,null,null,null,null,null,"*Marginell slitagekostnad",0,null,"kr/personkm"]
[null,null,null,null,null,null,null,null,null,null,null,null,null,null,null,null,null,null," Fast banavgift",null,0,"kr/km"]
[null,null,null,null,null,null,null,null,null,null,null,null,null,null,null,null,null,null," Marginell banavgift",null,0,"kr/km"]
[null,null,null,null,null,null,null,null,null,null,null,null,null,null,null,null,null,null,"*Antal platser",0,null,"styck"]
[null,null,null,null,null,null,null,null,null,null,null,null,null,null,null,null,null,null,"*Beläggningsgrad",0,null,"andel"]
[null,null,null,null,null,null,null,null,null,null,null,null,null,null,null,null,null,null,"*Olyckskostnad",0,null,"kr/fkm"]
[null,null,null,null,null,null,null,null,null,null,null,null,null,null,null,null,null,null,"*TätortsFaktor",0]
[null,null,null,null,null,null,null,null,null,null,null,null,null,null,null,null,null,null," Fast NOx",null,0,"g/fkm"]
[null,null,null,null,null,null,null,null,null,null,null,null,null,null,null,null,null,null," Fast Part",null,0,"g/fkm"]
[null,null,null,null,null,null,null,null,null,null,null,null,null,null,null,null,null,null,"*Fast SlitagePart",0,null,"g/fkm"]
[null,null,null,null,null,null,null,null,null,null,null,null,null,null,null,null,null,null," Fast CO2",null,0,"g/fkm"]
[null,null,null,null,null,null,null,null,null,null,null,null,null,null,null,null,null,null," Marg NOx",null,0,"g/pkm"]
[null,null,null,null,null,null,null,null,null,null,null,null,null,null,null,null,null,null," Marg Part",null,0,"g/pkm"]
[null,null,null,null,null,null,null,null,null,null,null,null,null,null,null,null,null,null,"*Marg SlitagePart",0,null,"g/pkm"]
[null,null,null,null,null,null,null,null,null,null,null,null,null,null,null,null,null,null," Marg CO2",null,0,"g/pkm"]
[null,null,null,null,null,null,null,null,null,null,null,null,null,null,null,null,null,null," Kostnadsförändring trafikstartår-prognosår 1",null,0,"procent"]
[null,null,null,null,null,null,null,null,null,null,null,null,null,null,null,null,null,null,"FORDONSKOSTNADER - ny9"]
[null,null,null,null,null,null,null,null,null,null,null,null,null,null,null,null,null,null," Vehicletype",null,0]
[null,null,null,null,null,null,null,null,null,null,null,null,null,null,null,null,null,null," Mode"]
[null,null,null,null,null,null,null,null,null,null,null,null,null,null,null,null,null,null," Fast sträckkostnad",null,0,"kr/km"]
[null,null,null,null,null,null,null,null,null,null,null,null,null,null,null,null,null,null," Fast tidskostnad",null,0,"kr/minut"]
[null,null,null,null,null,null,null,null,null,null,null,null,null,null,null,null,null,null," Fast slitagekostnad",null,0,"kr/km"]
[null,null,null,null,null,null,null,null,null,null,null,null,null,null,null,null,null,null," Marginell sträckkostnad",null,0,"kr/personkm"]
[null,null,null,null,null,null,null,null,null,null,null,null,null,null,null,null,null,null," Marginell tidskostnad",null,0,"kr/personminut"]
[null,null,null,null,null,null,null,null,null,null,null,null,null,null,null,null,null,null," Marginell slitagekostnad",null,0,"kr/personkm"]
[null,null,null,null,null,null,null,null,null,null,null,null,null,null,null,null,null,null," Fast banavgift",null,0,"kr/km"]
[null,null,null,null,null,null,null,null,null,null,null,null,null,null,null,null,null,null," Marginell banavgift",null,0,"kr/km"]
[null,null,null,null,null,null,null,null,null,null,null,null,null,null,null,null,null,null," Antal platser",null,0,"styck"]
[null,null,null,null,null,null,null,null,null,null,null,null,null,null,null,null,null,null," Beläggningsgrad",null,0,"andel"]
[null,null,null,null,null,null,null,null,null,null,null,null,null,null,null,null,null,null," Olyckskostnad",null,0,"kr/fkm"]
[null,null,null,null,null,null,null,null,null,null,null,null,null,null,null,null,null,null," TätortsFaktor",null,0]
[null,null,null,null,null,null,null,null,null,null,null,null,null,null,null,null,null,null," Fast NOx",null,0,"g/fkm"]
[null,null,null,null,null,null,null,null,null,null,null,null,null,null,null,null,null,null," Fast Part",null,0,"g/fkm"]
[null,null,null,null,null,null,null,null,null,null,null,null,null,null,null,null,null,null," Fast SlitagePart",null,0,"g/fkm"]
[null,null,null,null,null,null,null,null,null,null,null,null,null,null,null,null,null,null," Fast CO2",null,0,"g/fkm"]
[null,null,null,null,null,null,null,null,null,null,null,null,null,null,null,null,null,null," Marg NOx",null,0,"g/pkm"]
[null,null,null,null,null,null,null,null,null,null,null,null,null,null,null,null,null,null," Marg Part",null,0,"g/pkm"]
[null,null,null,null,null,null,null,null,null,null,null,null,null,null,null,null,null,null," Marg SlitagePart",null,0,"g/pkm"]
[null,null,null,null,null,null,null,null,null,null,null,null,null,null,null,null,null,null," Marg CO2",null,0,"g/pkm"]
[null,null,null,null,null,null,null,null,null,null,null,null,null,null,null,null,null,null," Kostnadsförändring trafikstartår-prognosår 1",null,0,"procent"]
[null,null,null,null,null,null,null,null,null,null,null,null,null,null,null,null,null,null,"FORDONSKOSTNADER - ny10"]
[null,null,null,null,null,null,null,null,null,null,null,null,null,null,null,null,null,null,"*Vehicletype",0]
[null,null,null,null,null,null,null,null,null,null,null,null,null,null,null,null,null,null,"*Mode","t"]
[null,null,null,null,null,null,null,null,null,null,null,null,null,null,null,null,null,null,"*Fast sträckkostnad",0,null,"kr/km"]
[null,null,null,null,null,null,null,null,null,null,null,null,null,null,null,null,null,null,"*Fast tidskostnad",0,null,"kr/minut"]
[null,null,null,null,null,null,null,null,null,null,null,null,null,null,null,null,null,null," Fast slitagekostnad",null,0,"kr/km"]
[null,null,null,null,null,null,null,null,null,null,null,null,null,null,null,null,null,null,"*Marginell sträckkostnad",0,null,"kr/personkm"]
[null,null,null,null,null,null,null,null,null,null,null,null,null,null,null,null,null,null,"*Marginell tidskostnad",0,null,"kr/personminut"]
[null,null,null,null,null,null,null,null,null,null,null,null,null,null,null,null,null,null," Marginell slitagekostnad",null,0,"kr/personkm"]
[null,null,null,null,null,null,null,null,null,null,null,null,null,null,null,null,null,null," Fast banavgift",null,0,"kr/km"]
[null,null,null,null,null,null,null,null,null,null,null,null,null,null,null,null,null,null," Marginell banavgift",null,0,"kr/km"]
[null,null,null,null,null,null,null,null,null,null,null,null,null,null,null,null,null,null,"*Antal platser",0,null,"styck"]
[null,null,null,null,null,null,null,null,null,null,null,null,null,null,null,null,null,null,"*Beläggningsgrad",0,null,"andel"]
[null,null,null,null,null,null,null,null,null,null,null,null,null,null,null,null,null,null,"*Olyckskostnad",0,null,"kr/fkm"]
[null,null,null,null,null,null,null,null,null,null,null,null,null,null,null,null,null,null,"*TätortsFaktor",0]
[null,null,null,null,null,null,null,null,null,null,null,null,null,null,null,null,null,null,"*Fast NOx",0,null,"g/fkm"]
[null,null,null,null,null,null,null,null,null,null,null,null,null,null,null,null,null,null," Fast Part",null,0,"g/fkm"]
[null,null,null,null,null,null,null,null,null,null,null,null,null,null,null,null,null,null," Fast SlitagePart",null,0,"g/fkm"]
[null,null,null,null,null,null,null,null,null,null,null,null,null,null,null,null,null,null,"*Fast CO2",0,null,"g/fkm"]
[null,null,null,null,null,null,null,null,null,null,null,null,null,null,null,null,null,null,"*Marg NOx",0,null,"g/pkm"]
[null,null,null,null,null,null,null,null,null,null,null,null,null,null,null,null,null,null," Marg Part",null,0,"g/pkm"]
[null,null,null,null,null,null,null,null,null,null,null,null,null,null,null,null,null,null," Marg SlitagePart",null,0,"g/pkm"]
[null,null,null,null,null,null,null,null,null,null,null,null,null,null,null,null,null,null,"*Marg CO2",0,null,"g/pkm"]
[null,null,null,null,null,null,null,null,null,null,null,null,null,null,null,null,null,null," Kostnadsförändring trafikstartår-prognosår 1",null,0,"procent"]
[null,null,null,null,null,null,null,null,null,null,null,null,null,null,null,null,null,null,"FORDONSKOSTNADER - ny11"]
[null,null,null,null,null,null,null,null,null,null,null,null,null,null,null,null,null,null,"*Vehicletype",0]
[null,null,null,null,null,null,null,null,null,null,null,null,null,null,null,null,null,null,"*Mode","f"]
[null,null,null,null,null,null,null,null,null,null,null,null,null,null,null,null,null,null,"*Fast sträckkostnad",0,null,"kr/km"]
[null,null,null,null,null,null,null,null,null,null,null,null,null,null,null,null,null,null,"*Fast tidskostnad",0,null,"kr/minut"]
[null,null,null,null,null,null,null,null,null,null,null,null,null,null,null,null,null,null," Fast slitagekostnad",null,0,"kr/km"]
[null,null,null,null,null,null,null,null,null,null,null,null,null,null,null,null,null,null,"*Marginell sträckkostnad",0,null,"kr/personkm"]
[null,null,null,null,null,null,null,null,null,null,null,null,null,null,null,null,null,null,"*Marginell tidskostnad",0,null,"kr/personminut"]
[null,null,null,null,null,null,null,null,null,null,null,null,null,null,null,null,null,null," Marginell slitagekostnad",null,0,"kr/personkm"]
[null,null,null,null,null,null,null,null,null,null,null,null,null,null,null,null,null,null," Fast banavgift",null,0,"kr/km"]
[null,null,null,null,null,null,null,null,null,null,null,null,null,null,null,null,null,null," Marginell banavgift",null,0,"kr/km"]
[null,null,null,null,null,null,null,null,null,null,null,null,null,null,null,null,null,null,"*Antal platser",0,null,"styck"]
[null,null,null,null,null,null,null,null,null,null,null,null,null,null,null,null,null,null,"*Beläggningsgrad",0,null,"andel"]
[null,null,null,null,null,null,null,null,null,null,null,null,null,null,null,null,null,null,"*Olyckskostnad",0,null,"kr/fkm"]
[null,null,null,null,null,null,null,null,null,null,null,null,null,null,null,null,null,null,"*TätortsFaktor",0]
[null,null,null,null,null,null,null,null,null,null,null,null,null,null,null,null,null,null,"*Fast NOx",0,null,"g/fkm"]
[null,null,null,null,null,null,null,null,null,null,null,null,null,null,null,null,null,null," Fast Part",null,0,"g/fkm"]
[null,null,null,null,null,null,null,null,null,null,null,null,null,null,null,null,null,null," Fast SlitagePart",null,0,"g/fkm"]
[null,null,null,null,null,null,null,null,null,null,null,null,null,null,null,null,null,null,"*Fast CO2",0,null,"g/fkm"]
[null,null,null,null,null,null,null,null,null,null,null,null,null,null,null,null,null,null,"*Marg NOx",0,null,"g/pkm"]
[null,null,null,null,null,null,null,null,null,null,null,null,null,null,null,null,null,null," Marg Part",null,0,"g/pkm"]
[null,null,null,null,null,null,null,null,null,null,null,null,null,null,null,null,null,null," Marg SlitagePart",null,0,"g/pkm"]
[null,null,null,null,null,null,null,null,null,null,null,null,null,null,null,null,null,null,"*Marg CO2",0,null,"g/pkm"]
[null,null,null,null,null,null,null,null,null,null,null,null,null,null,null,null,null,null," Kostnadsförändring trafikstartår-prognosår 1",null,0,"procent"]
[null,null,null,null,null,null,null,null,null,null,null,null,null,null,null,null,null,null,"FORDONSKOSTNADER - ny12"]
[null,null,null,null,null,null,null,null,null,null,null,null,null,null,null,null,null,null,"*Vehicletype",0]
[null,null,null,null,null,null,null,null,null,null,null,null,null,null,null,null,null,null,"*Mode","f"]
[null,null,null,null,null,null,null,null,null,null,null,null,null,null,null,null,null,null,"*Fast sträckkostnad",0,null,"kr/km"]
[null,null,null,null,null,null,null,null,null,null,null,null,null,null,null,null,null,null,"*Fast tidskostnad",0,null,"kr/minut"]
[null,null,null,null,null,null,null,null,null,null,null,null,null,null,null,null,null,null," Fast slitagekostnad",null,0,"kr/km"]
[null,null,null,null,null,null,null,null,null,null,null,null,null,null,null,null,null,null,"*Marginell sträckkostnad",0,null,"kr/personkm"]
[null,null,null,null,null,null,null,null,null,null,null,null,null,null,null,null,null,null,"*Marginell tidskostnad",0,null,"kr/personminut"]
[null,null,null,null,null,null,null,null,null,null,null,null,null,null,null,null,null,null," Marginell slitagekostnad",null,0,"kr/personkm"]
[null,null,null,null,null,null,null,null,null,null,null,null,null,null,null,null,null,null," Fast banavgift",null,0,"kr/km"]
[null,null,null,null,null,null,null,null,null,null,null,null,null,null,null,null,null,null," Marginell banavgift",null,0,"kr/km"]
[null,null,null,null,null,null,null,null,null,null,null,null,null,null,null,null,null,null,"*Antal platser",0,null,"styck"]
[null,null,null,null,null,null,null,null,null,null,null,null,null,null,null,null,null,null,"*Beläggningsgrad",0,null,"andel"]
[null,null,null,null,null,null,null,null,null,null,null,null,null,null,null,null,null,null,"*Olyckskostnad",0,null,"kr/fkm"]
[null,null,null,null,null,null,null,null,null,null,null,null,null,null,null,null,null,null,"*TätortsFaktor",0]
[null,null,null,null,null,null,null,null,null,null,null,null,null,null,null,null,null,null,"*Fast NOx",0,null,"g/fkm"]
[null,null,null,null,null,null,null,null,null,null,null,null,null,null,null,null,null,null," Fast Part",null,0,"g/fkm"]
[null,null,null,null,null,null,null,null,null,null,null,null,null,null,null,null,null,null," Fast SlitagePart",null,0,"g/fkm"]
[null,null,null,null,null,null,null,null,null,null,null,null,null,null,null,null,null,null,"*Fast CO2",0,null,"g/fkm"]
[null,null,null,null,null,null,null,null,null,null,null,null,null,null,null,null,null,null,"*Marg NOx",0,null,"g/pkm"]
[null,null,null,null,null,null,null,null,null,null,null,null,null,null,null,null,null,null," Marg Part",null,0,"g/pkm"]
[null,null,null,null,null,null,null,null,null,null,null,null,null,null,null,null,null,null," Marg SlitagePart",null,0,"g/pkm"]
[null,null,null,null,null,null,null,null,null,null,null,null,null,null,null,null,null,null,"*Marg CO2",0,null,"g/pkm"]
[null,null,null,null,null,null,null,null,null,null,null,null,null,null,null,null,null,null," Kostnadsförändring trafikstartår-prognosår 1",null,0,"procent"]
[null,null,null,null,null,null,null,null,null,null,null,null,null,null,null,null,null,null,"ÖVRIGT"]
[null,null,null,null,null,null,null,null,null,null,null,null,null,null,null,null,null,null," Kalkylränta",null,3.5,"procent"]
[null,null,null,null,null,null,null,null,null,null,null,null,null,null,null,null,null,null," Byggstartår",null,2017,"åååå"]
[null,null,null,null,null,null,null,null,null,null,null,null,null,null,null,null,null,null," Prognosår",null,2040,"åååå"]
[null,null,null,null,null,null,null,null,null,null,null,null,null,null,null,null,null,null," Diskonteringsår",null,2025,"åååå"]
[null,null,null,null,null,null,null,null,null,null,null,null,null,null,null,null,null,null," Omkostnader nationellt",null,0.1,"kr/personkm"]
[null,null,null,null,null,null,null,null,null,null,null,null,null,null,null,null,null,null," Omkostnader regionalt",null,0.05,"kr/personkm"]
[null,null,null,null,null,null,null,null,null,null,null,null,null,null,null,null,null,null," Trafikstartår",null,2025,"åååå"]
[null,null,null,null,null,null,null,null,null,null,null,null,null,null,null,null,null,null," Värdeuppräkningsår",null,2017,"åååå"]
[null,null,null,null,null,null,null,null,null,null,null,null,null,null,null,null,null,null," Värdeökning",null,1.5,"procent"]
[null,null,null,null,null,null,null,null,null,null,null,null,null,null,null,null,null,null,"*Trafiktillväxt före brytår 1 bil",0.55000001192092896,null,"procent"]
[null,null,null,null,null,null,null,null,null,null,null,null,null,null,null,null,null,null," Trafiktillväxt före brytår 1 koll",null,1.87000000476837,"procent"]
[null,null,null,null,null,null,null,null,null,null,null,null,null,null,null,null,null,null," Brytår1",null,2040,"åååå"]
[null,null,null,null,null,null,null,null,null,null,null,null,null,null,null,null,null,null,"*Trafiktillväxt mellan brytåren bil",0.259999990463257,null,"procent"]
[null,null,null,null,null,null,null,null,null,null,null,null,null,null,null,null,null,null," Trafiktillväxt mellan brytåren koll",null,0.980000019073486,"procent"]
[null,null,null,null,null,null,null,null,null,null,null,null,null,null,null,null,null,null," Brytår2",null,2065,"åååå"]
[null,null,null,null,null,null,null,null,null,null,null,null,null,null,null,null,null,null," Trafiktillväxt efter brytår 2 bil",null,0,"procent"]
[null,null,null,null,null,null,null,null,null,null,null,null,null,null,null,null,null,null," Trafiktillväxt efter brytår 2 koll",null,0,"procent"]
[null,null,null,null,null,null,null,null,null,null,null,null,null,null,null,null,null,null," Kalkylperiod",null,40,"år"]
[null,null,null,null,null,null,null,null,null,null,null,null,null,null,null,null,null,null," Kostnad dödad totalt",null,50249000,"kr"]
[null,null,null,null,null,null,null,null,null,null,null,null,null,null,null,null,null,null," Kostnad MAS totalt",null,17795900,"kr"]
[null,null,null,null,null,null,null,null,null,null,null,null,null,null,null,null,null,null," Kostnad AS exkl. MAS totalt",null,11886700,"kr"]
[null,null,null,null,null,null,null,null,null,null,null,null,null,null,null,null,null,null," Kostnad ej allvarligt skadad totalt",null,4604000,"kr"]
[null,null,null,null,null,null,null,null,null,null,null,null,null,null,null,null,null,null," Kostnad egendomsskada totalt",null,15000,"kr"]
[null,null,null,null,null,null,null,null,null,null,null,null,null,null,null,null,null,null," Riskvärde dödad",null,44024000,"kr"]
[null,null,null,null,null,null,null,null,null,null,null,null,null,null,null,null,null,null," Riskvärde MAS",null,13261000,"kr"]
[null,null,null,null,null,null,null,null,null,null,null,null,null,null,null,null,null,null," Riskvärde AS exkl. MAS",null,11522000,"kr"]
[null,null,null,null,null,null,null,null,null,null,null,null,null,null,null,null,null,null," Riskvärde ej allvarligt skadade",null,4565000,"kr"]
[null,null,null,null,null,null,null,null,null,null,null,null,null,null,null,null,null,null," Riskvärde egendomsskada",null,0,"kr"]
[null,null,null,null,null,null,null,null,null,null,null,null,null,null,null,null,null,null,"*Emme/2 mode för tåg","ijkst"]
[null,null,null,null,null,null,null,null,null,null,null,null,null,null,null,null,null,null,"*Emme/2 mode för buss","abx"]
[null,null,null,null,null,null,null,null,null,null,null,null,null,null,null,null,null,null,"*Emme/2 mode för flyg","f"]
[null,null,null,null,null,null,null,null,null,null,null,null,null,null,null,null,null,null," Nationell dygnsfaktor",null,1]
[null,null,null,null,null,null,null,null,null,null,null,null,null,null,null,null,null,null," Regional dygnsfaktor",null,1]
[null,null,null,null,null,null,null,null,null,null,null,null,null,null,null,null,null,null,"*Höghöjdsfaktor flyg CO2",0]
[null,null,null,null,null,null,null,null,null,null,null,null,null,null,null,null,null,null," Skattefaktor",null,1.3]
[null,null,null,null,null,null,null,null,null,null,null,null,null,null,null,null,null,null," Generellt momspåslag",null,1.21]
[null,null,null,null,null,null,null,null,null,null,null,null,null,null,null,null,null,null," Andel invest som skattejusteras",null,1]
[null,null,null,null,null,null,null,null,null,null,null,null,null,null,null,null,null,null," Moms på biljetter",null,6,"procent"]
[null,null,null,null,null,null,null,null,null,null,null,null,null,null,null,null,null,null,"INVESTERINGSKOSTNADER"]
[null,null,null,null,null,null,null,null,null,null,null,null,null,null,null,null,null,null," År 1 (byggstart)",null,0,"milj kr"]
[null,null,null,null,null,null,null,null,null,null,null,null,null,null,null,null,null,null," År 2",null,0,"milj kr"]
[null,null,null,null,null,null,null,null,null,null,null,null,null,null,null,null,null,null," År 3",null,0,"milj kr"]
[null,null,null,null,null,null,null,null,null,null,null,null,null,null,null,null,null,null," År 4",null,0,"milj kr"]
[null,null,null,null,null,null,null,null,null,null,null,null,null,null,null,null,null,null," År 5",null,0,"milj kr"]
[null,null,null,null,null,null,null,null,null,null,null,null,null,null,null,null,null,null," År 6",null,0,"milj kr"]
[null,null,null,null,null,null,null,null,null,null,null,null,null,null,null,null,null,null," År 7",null,0,"milj kr"]
[null,null,null,null,null,null,null,null,null,null,null,null,null,null,null,null,null,null," År 8",null,0,"milj kr"]
[null,null,null,null,null,null,null,null,null,null,null,null,null,null,null,null,null,null," År 9",null,0,"milj kr"]
[null,null,null,null,null,null,null,null,null,null,null,null,null,null,null,null,null,null," År 10",null,0,"milj kr"]
[null,null,null,null,null,null,null,null,null,null,null,null,null,null,null,null,null,null,"TEKNISK UTVECKLING"]
[null,null,null,null,null,null,null,null,null,null,null,null,null,null,null,null,null,null," Tekn utv personbil år 2008",null,100,"index"]
[null,null,null,null,null,null,null,null,null,null,null,null,null,null,null,null,null,null," Tekn utv personbil år 2015",null,85,"index"]
[null,null,null,null,null,null,null,null,null,null,null,null,null,null,null,null,null,null," Tekn utv personbil år 2030",null,52,"index"]
[null,null,null,null,null,null,null,null,null,null,null,null,null,null,null,null,null,null," Tekn utv personbil år 2040",null,49,"index"]
[null,null,null,null,null,null,null,null,null,null,null,null,null,null,null,null,null,null," Tekn utv personbil år 2060",null,46,"index"]
[null,null,null,null,null,null,null,null,null,null,null,null,null,null,null,null,null,null," Tekn utv lastbil år 2008",null,100,"index"]
[null,null,null,null,null,null,null,null,null,null,null,null,null,null,null,null,null,null," Tekn utv lastbil år 2040",null,88,"index"]
[null,null,null,null,null,null,null,null,null,null,null,null,null,null,null,null,null,null," Tekn utv lastbil år 2060",null,83,"index"]

{"sheet":"2. Samhällsekonomisk analys","index":1,"n_rows":275,"n_cols":74,"rows_kept":275,"cut":false,"hidden":false,"merged":[[69,37,69,45],[265,0,265,63],[28,68,31,68],[58,0,58,63],[59,0,59,63],[33,0,33,34],[34,0,34,34],[35,0,35,34],[36,0,36,34],[24,0,24,34],[31,0,31,34],[32,0,32,34],[25,0,25,34],[26,0,26,34],[27,0,27,34],[28,0,28,34],[29,0,29,34],[30,0,30,34],[56,0,56,63],[57,0,57,63],[54,59,54,63],[46,59,46,63],[55,59,55,63],[48,59,48,63],[49,44,49,52],[252,0,252,63],[250,6,250,17],[250,18,250,21],[250,26,250,30],[250,22,250,25],[251,52,251,63],[251,37,251,45],[250,37,250,63],[238,6,238,17],[239,6,239,17],[240,6,240,17],[113,37,113,45],[114,37,114,45],[232,6,232,17],[127,6,127,17],[220,26,220,30],[211,6,211,17],[212,6,212,17],[213,6,213,17],[214,6,214,17],[215,6,215,17],[218,6,218,17],[219,6,219,17],[124,6,124,17],[125,6,125,17],[126,6,126,17],[119,18,119,21],[115,37,115,45],[116,37,116,45],[117,37,117,45],[228,26,228,30],[227,26,227,30],[183,37,183,45],[184,37,184,45],[129,37,129,45],[205,26,205,30],[206,26,206,30],[207,26,207,30],[208,26,208,30],[191,37,191,45],[195,26,195,30],[196,26,196,30],[197,26,197,30],[198,26,198,30],[201,26,201,30],[202,26,202,30],[198,37,198,45],[199,37,199,45],[200,37,200,45],[201,37,201,45],[202,37,202,45],[193,37,193,45],[190,26,190,30],[195,37,195,45],[209,37,209,45],[205,37,205,45],[206,37,206,45],[207,37,207,45],[208,37,208,45],[200,26,200,30],[174,37,174,45],[175,37,175,45],[132,52,148,63],[172,52,187,63],[188,52,202,63],[203,52,219,63],[177,26,177,30],[178,26,178,30],[179,26,179,30],[161,37,161,45],[162,37,162,45],[163,37,163,45],[164,37,164,45],[165,37,165,45],[166,37,166,45],[188,26,188,30],[189,26,189,30],[182,26,182,30],[183,26,183,30],[184,26,184,30],[185,26,185,30],[188,37,188,45],[189,37,189,45],[203,37,203,45],[204,37,204,45],[179,37,179,45],[180,37,180,45],[209,26,209,30],[210,26,210,30],[192,37,192,45],[211,26,211,30],[190,37,190,45],[176,37,176,45],[69,26,69,30],[160,37,160,45],[241,22,241,25],[245,22,245,25],[218,26,218,30],[239,37,239,45],[240,37,240,45],[241,37,241,45],[242,37,242,45],[233,26,233,30],[232,26,232,30],[231,26,231,30],[230,26,230,30],[229,26,229,30],[243,37,243,45],[244,37,244,45],[202,22,202,25],[187,26,187,30],[240,22,240,25],[245,26,245,30],[223,26,223,30],[222,26,222,30],[221,26,221,30],[217,26,217,30],[199,26,199,30],[194,37,194,45],[134,37,134,45],[177,37,177,45],[178,37,178,45],[167,37,167,45],[173,37,173,45],[237,26,237,30],[238,26,238,30],[239,26,239,30],[240,26,240,30],[241,26,241,30],[242,26,242,30],[243,26,243,30],[244,26,244,30],[89,37,89,45],[67,52,89,63],[89,26,89,30],[113,6,113,17],[114,6,114,17],[115,6,115,17],[116,6,116,17],[117,6,117,17],[118,6,118,17],[119,6,119,17],[120,6,120,17],[121,6,121,17],[122,6,122,17],[123,6,123,17],[109,37,109,45],[108,6,108,17],[109,6,109,17],[110,6,110,17],[110,26,110,30],[181,37,181,45],[182,37,182,45],[185,37,185,45],[186,37,186,45],[187,37,187,45],[243,22,243,25],[243,18,243,21],[239,18,239,21],[242,18,242,21],[242,22,242,25],[237,18,237,21],[240,18,240,21],[247,18,247,21],[128,6,128,17],[220,52,233,63],[221,37,221,45],[222,37,222,45],[223,37,223,45],[235,52,249,63],[235,46,249,51],[168,37,168,45],[169,37,169,45],[170,37,170,45],[172,37,172,45],[234,52,234,63],[234,46,234,51],[235,31,249,35],[241,6,241,17],[242,6,242,17],[243,6,243,17],[244,6,244,17],[245,6,245,17],[245,37,245,45],[213,37,213,45],[214,37,214,45],[236,22,236,25],[235,22,235,25],[246,6,246,17],[247,6,247,17],[248,6,248,17],[249,6,249,17],[236,26,236,30],[191,26,191,30],[192,26,192,30],[193,26,193,30],[182,18,182,21],[197,18,197,21],[230,22,230,25],[228,18,228,21],[246,26,246,30],[247,26,247,30],[236,37,236,45],[248,26,248,30],[249,26,249,30],[235,6,235,17],[246,18,246,21],[241,18,241,21],[237,37,237,45],[238,37,238,45],[247,37,247,45],[248,37,248,45],[249,37,249,45],[246,37,246,45],[224,37,224,45],[225,37,225,45],[226,37,226,45],[227,37,227,45],[228,37,228,45],[229,37,229,45],[230,37,230,45],[231,37,231,45],[232,37,232,45],[215,37,215,45],[216,37,216,45],[217,37,217,45],[218,37,218,45],[219,37,219,45],[235,37,235,45],[220,37,220,45],[234,37,234,45],[234,26,234,30],[235,26,235,30],[210,37,210,45],[234,31,234,35],[219,26,219,30],[211,37,211,45],[212,37,212,45],[233,37,233,45],[226,26,226,30],[225,26,225,30],[224,26,224,30],[157,26,157,30],[158,26,158,30],[159,26,159,30],[160,26,160,30],[161,26,161,30],[162,26,162,30],[163,26,163,30],[164,26,164,30],[165,26,165,30],[166,26,166,30],[167,26,167,30],[168,26,168,30],[169,26,169,30],[170,26,170,30],[172,26,172,30],[173,26,173,30],[166,6,166,17],[167,6,167,17],[168,6,168,17],[169,6,169,17],[234,6,234,17],[179,6,179,17],[180,6,180,17],[181,6,181,17],[182,6,182,17],[183,6,183,17],[184,6,184,17],[185,6,185,17],[186,6,186,17],[187,6,187,17],[190,6,190,17],[191,6,191,17],[192,6,192,17],[193,6,193,17],[194,6,194,17],[195,6,195,17],[217,6,217,17],[203,6,203,17],[204,6,204,17],[202,6,202,17],[205,6,205,17],[206,6,206,17],[207,6,207,17],[208,6,208,17],[209,6,209,17],[210,6,210,17],[199,6,199,17],[200,6,200,17],[201,6,201,17],[228,6,228,17],[220,6,220,17],[233,6,233,17],[216,6,216,17],[196,6,196,17],[197,6,197,17],[198,6,198,17],[160,6,160,17],[161,6,161,17],[162,6,162,17],[163,6,163,17],[164,6,164,17],[165,6,165,17],[171,6,171,17],[150,22,150,25],[164,22,164,25],[165,18,165,21],[165,22,165,25],[158,18,158,21],[162,18,162,21],[160,18,160,21],[153,18,153,21],[161,22,161,25],[154,22,154,25],[158,22,158,25],[164,18,164,21],[168,22,168,25],[169,18,169,21],[161,18,161,21],[166,18,166,21],[157,18,157,21],[210,18,210,21],[171,18,171,21],[170,22,170,25],[199,18,199,21],[150,37,150,45],[151,37,151,45],[152,37,152,45],[153,37,153,45],[154,37,154,45],[155,37,155,45],[156,37,156,45],[157,37,157,45],[158,37,158,45],[159,37,159,45],[146,37,146,45],[154,18,154,21],[156,22,156,25],[128,22,128,25],[136,37,136,45],[137,37,137,45],[138,37,138,45],[139,37,139,45],[140,37,140,45],[141,37,141,45],[142,37,142,45],[144,37,144,45],[145,37,145,45],[137,18,137,21],[137,22,137,25],[136,18,136,21],[149,26,149,30],[144,22,144,25],[147,22,147,25],[133,26,133,30],[134,26,134,30],[142,18,142,21],[147,26,147,30],[148,26,148,30],[121,37,121,45],[122,37,122,45],[123,37,123,45],[132,26,132,30],[132,37,132,45],[113,26,113,30],[114,26,114,30],[135,37,135,45],[122,26,122,30],[123,26,123,30],[124,26,124,30],[143,37,143,45],[125,26,125,30],[126,26,126,30],[115,26,115,30],[125,37,125,45],[130,37,130,45],[124,37,124,45],[126,37,126,45],[127,37,127,45],[116,26,116,30],[117,26,117,30],[118,26,118,30],[119,26,119,30],[120,26,120,30],[121,26,121,30],[118,37,118,45],[119,37,119,45],[120,37,120,45],[128,37,128,45],[110,37,110,45],[112,26,112,30],[93,37,93,45],[94,37,94,45],[95,37,95,45],[96,37,96,45],[97,37,97,45],[98,37,98,45],[99,37,99,45],[100,37,100,45],[101,37,101,45],[102,37,102,45],[103,37,103,45],[104,37,104,45],[105,37,105,45],[106,37,106,45],[107,37,107,45],[108,37,108,45],[96,26,96,30],[95,26,95,30],[94,26,94,30],[93,26,93,30],[100,26,100,30],[107,26,107,30],[106,26,106,30],[105,26,105,30],[109,26,109,30],[122,22,122,25],[122,18,122,21],[117,18,117,21],[120,18,120,21],[115,22,115,25],[104,26,104,30],[103,26,103,30],[102,26,102,30],[108,26,108,30],[97,26,97,30],[101,26,101,30],[99,26,99,30],[98,26,98,30],[85,26,85,30],[86,26,86,30],[87,18,87,21],[90,26,90,30],[101,18,101,21],[99,18,99,21],[107,18,107,21],[106,22,106,25],[92,22,92,25],[109,22,109,25],[119,22,119,25],[111,22,111,25],[115,18,115,21],[100,18,100,21],[103,22,103,25],[105,18,105,21],[106,18,106,21],[99,22,99,25],[112,18,112,21],[93,6,93,17],[94,6,94,17],[95,6,95,17],[96,6,96,17],[97,6,97,17],[93,22,93,25],[96,22,96,25],[93,18,93,21],[98,6,98,17],[118,22,118,25],[121,18,121,21],[108,18,108,21],[120,22,120,25],[113,22,113,25],[107,6,107,17],[105,22,105,25],[110,22,110,25],[117,22,117,25],[101,6,101,17],[102,6,102,17],[103,6,103,17],[104,6,104,17],[105,6,105,17],[116,22,116,25],[103,18,103,21],[87,37,87,45],[88,37,88,45],[86,18,86,21],[86,22,86,25],[83,18,83,21],[87,26,87,30],[88,26,88,30],[82,37,82,45],[83,37,83,45],[68,26,68,30],[73,6,73,17],[74,6,74,17],[75,6,75,17],[76,6,76,17],[77,6,77,17],[78,6,78,17],[72,18,72,21],[74,22,74,25],[76,22,76,25],[77,18,77,21],[76,18,76,21],[70,22,70,25],[77,22,77,25],[80,6,80,17],[81,6,81,17],[82,6,82,17],[70,26,70,30],[71,26,71,30],[72,26,72,30],[88,6,88,17],[84,6,84,17],[85,6,85,17],[78,26,78,30],[79,26,79,30],[80,26,80,30],[70,37,70,45],[71,37,71,45],[72,37,72,45],[73,37,73,45],[74,37,74,45],[75,37,75,45],[76,37,76,45],[73,22,73,25],[73,18,73,21],[78,18,78,21],[80,18,80,21],[79,18,79,21],[79,22,79,25],[78,22,78,25],[70,18,70,21],[80,22,80,25],[71,18,71,21],[71,22,71,25],[74,18,74,21],[75,18,75,21],[75,22,75,25],[78,37,78,45],[79,37,79,45],[72,22,72,25],[112,3,131,5],[235,0,249,5],[249,22,249,25],[2,0,2,63],[62,0,62,63],[61,0,61,63],[63,0,63,63],[257,0,257,63],[259,0,259,63],[43,0,43,63],[149,6,149,17],[45,59,45,63],[47,59,47,63],[133,6,133,17],[134,6,134,17],[90,37,90,45],[91,37,91,45],[92,37,92,45],[112,37,112,45],[133,37,133,45],[68,37,68,45],[67,37,67,45],[80,37,80,45],[81,37,81,45],[73,26,73,30],[74,26,74,30],[75,26,75,30],[76,26,76,30],[79,6,79,17],[83,6,83,17],[5,0,5,34],[77,26,77,30],[263,0,263,49],[260,0,260,24],[260,25,260,49],[261,0,261,24],[261,25,261,49],[258,0,258,49],[262,0,262,49],[170,18,170,21],[159,18,159,21],[135,26,135,30],[136,26,136,30],[137,26,137,30],[138,26,138,30],[139,26,139,30],[125,18,125,21],[121,22,121,25],[84,18,84,21],[102,22,102,25],[95,22,95,25],[110,18,110,21],[86,6,86,17],[87,6,87,17],[90,18,90,21],[99,6,99,17],[90,6,90,17],[91,6,91,17],[92,6,92,17],[91,26,91,30],[92,26,92,30],[86,37,86,45],[67,3,89,5],[96,18,96,21],[1,0,1,46],[90,3,111,5],[67,0,131,2],[132,3,148,5],[101,22,101,25],[82,18,82,21],[89,22,89,25],[65,6,66,17],[65,18,65,25],[66,18,66,25],[65,26,66,30],[70,6,70,17],[71,6,71,17],[72,6,72,17],[65,0,66,5],[67,6,67,17],[112,22,112,25],[107,22,107,25],[100,22,100,25],[97,18,97,21],[65,37,66,45],[64,37,64,63],[64,0,64,17],[42,0,42,49],[44,59,44,63],[53,59,53,63],[50,59,50,63],[3,0,3,49],[4,0,4,49],[139,22,139,25],[84,37,84,45],[85,37,85,45],[6,0,6,34],[7,0,7,34],[8,0,8,34],[9,0,9,34],[10,0,10,34],[11,0,11,34],[50,53,50,58],[23,0,23,34],[44,53,44,58],[16,0,16,34],[19,0,19,34],[20,0,20,34],[21,0,21,34],[65,31,66,35],[44,44,44,52],[17,0,17,34],[52,53,52,58],[53,53,53,58],[54,53,54,58],[47,53,47,58],[31,35,31,53],[32,35,32,53],[33,35,33,53],[34,35,34,53],[35,35,35,53],[36,35,36,53],[37,35,37,53],[5,54,37,63],[21,35,21,53],[24,35,24,53],[48,0,48,43],[50,44,50,52],[81,22,81,25],[68,6,68,17],[68,18,68,21],[68,22,68,25],[112,6,112,17],[98,18,98,21],[98,22,98,25],[91,22,91,25],[92,18,92,21],[88,18,88,21],[88,22,88,25],[87,22,87,25],[85,22,85,25],[94,18,94,21],[114,18,114,21],[114,22,114,25],[109,18,109,21],[108,22,108,25],[85,18,85,21],[95,18,95,21],[89,18,89,21],[69,6,69,17],[69,18,69,21],[69,22,69,25],[82,22,82,25],[81,18,81,21],[106,6,106,17],[89,6,89,17],[94,22,94,25],[97,22,97,25],[104,18,104,21],[102,18,102,21],[67,18,67,21],[67,22,67,25],[238,18,238,21],[238,22,238,25],[234,18,234,21],[215,22,215,25],[203,18,203,21],[196,18,196,21],[185,18,185,21],[231,18,231,21],[186,22,186,25],[189,18,189,21],[189,22,189,25],[231,22,231,25],[217,22,217,25],[225,18,225,21],[234,0,234,5],[132,0,219,2],[217,18,217,21],[207,22,207,25],[216,18,216,21],[204,18,204,21],[147,18,147,21],[148,22,148,25],[145,18,145,21],[204,22,204,25],[233,22,233,25],[144,18,144,21],[146,18,146,21],[213,22,213,25],[218,22,218,25],[183,22,183,25],[236,18,236,21],[174,18,174,21],[178,18,178,21],[182,22,182,25],[194,22,194,25],[195,18,195,21],[195,22,195,25],[219,22,219,25],[206,22,206,25],[200,22,200,25],[193,18,193,21],[193,22,193,25],[185,22,185,25],[229,22,229,25],[233,18,233,21],[197,22,197,25],[218,18,218,21],[208,22,208,25],[209,18,209,21],[208,18,208,21],[175,22,175,25],[180,18,180,21],[180,22,180,25],[181,18,181,21],[181,22,181,25],[222,18,222,21],[219,18,219,21],[221,18,221,21],[184,22,184,25],[183,18,183,21],[201,18,201,21],[198,22,198,25],[210,22,210,25],[247,22,247,25],[172,18,172,21],[176,22,176,25],[177,18,177,21],[177,22,177,25],[163,22,163,25],[149,22,149,25],[162,22,162,25],[157,22,157,25],[155,18,155,21],[128,18,128,21],[141,18,141,21],[129,22,129,25],[166,22,166,25],[149,18,149,21],[150,18,150,21],[246,22,246,25],[187,18,187,21],[205,22,205,25],[200,18,200,21],[205,18,205,21],[207,18,207,21],[215,18,215,21],[245,18,245,21],[234,22,234,25],[227,22,227,25],[244,22,244,25],[143,18,143,21],[173,18,173,21],[244,18,244,21],[203,22,203,25],[125,22,125,25],[248,22,248,25],[220,0,233,5],[203,3,219,5],[149,3,171,5],[239,22,239,25],[237,22,237,25],[228,22,228,25],[226,18,226,21],[214,18,214,21],[214,22,214,25],[232,22,232,25],[194,26,194,30],[209,22,209,25],[201,22,201,25],[235,18,235,21],[104,22,104,25],[111,18,111,21],[159,22,159,25],[113,18,113,21],[170,6,170,17],[172,6,172,17],[173,6,173,17],[174,6,174,17],[175,6,175,17],[176,6,176,17],[177,6,177,17],[178,6,178,17],[188,6,188,17],[189,6,189,17],[156,18,156,21],[184,18,184,21],[147,6,147,17],[138,22,138,25],[136,22,136,25],[152,22,152,25],[132,6,132,17],[130,18,130,21],[130,22,130,25],[140,6,140,17],[135,18,135,21],[135,22,135,25],[138,18,138,21],[126,22,126,25],[141,6,141,17],[142,6,142,17],[143,6,143,17],[129,6,129,17],[130,6,130,17],[142,22,142,25],[140,18,140,21],[144,6,144,17],[145,6,145,17],[146,6,146,17],[146,22,146,25],[148,18,148,21],[135,6,135,17],[136,6,136,17],[137,6,137,17],[138,6,138,17],[139,6,139,17],[132,22,132,25],[140,22,140,25],[149,37,149,45],[196,37,196,45],[197,37,197,45],[139,18,139,21],[133,18,133,21],[143,22,143,25],[141,22,141,25],[145,22,145,25],[153,22,153,25],[186,18,186,21],[127,26,127,30],[128,26,128,30],[129,26,129,30],[130,26,130,30],[147,37,147,45],[148,37,148,45],[140,26,140,30],[141,26,141,30],[142,26,142,30],[143,26,143,30],[144,26,144,30],[145,26,145,30],[146,26,146,30],[163,18,163,21],[167,18,167,21],[169,22,169,25],[196,22,196,25],[174,22,174,25],[175,18,175,21],[187,22,187,25],[151,22,151,25],[129,18,129,21],[188,18,188,21],[188,22,188,25],[194,18,194,21],[81,26,81,30],[82,26,82,30],[83,26,83,30],[172,22,172,25],[151,18,151,21],[148,6,148,17],[150,6,150,17],[151,6,151,17],[152,6,152,17],[153,6,153,17],[154,6,154,17],[155,6,155,17],[156,6,156,17],[157,6,157,17],[158,6,158,17],[159,6,159,17],[152,18,152,21],[91,18,91,21],[90,22,90,25],[84,26,84,30],[83,22,83,25],[84,22,84,25],[127,22,127,25],[116,18,116,21],[123,22,123,25],[171,22,171,25],[131,22,131,25],[131,18,131,21],[123,18,123,21],[1,47,1,63],[251,0,251,25],[52,59,52,63],[51,59,51,63],[12,0,12,34],[13,0,13,34],[14,0,14,34],[15,0,15,34],[45,53,45,58],[111,26,111,30],[90,31,111,35],[111,37,111,45],[112,31,131,35],[131,6,131,17],[131,26,131,30],[251,46,251,51],[55,53,55,58],[39,0,39,63],[188,31,202,35],[40,0,40,63],[65,46,66,51],[232,18,232,21],[77,37,77,45],[251,31,251,35],[156,26,156,30],[221,6,221,17],[64,36,251,36],[111,6,111,17],[220,22,220,25],[151,26,151,30],[152,26,152,30],[134,22,134,25],[229,6,229,17],[181,26,181,30],[178,22,178,25],[179,18,179,21],[179,22,179,25],[202,18,202,21],[224,18,224,21],[211,22,211,25],[206,18,206,21],[211,18,211,21],[227,18,227,21],[224,22,224,25],[216,22,216,25],[223,22,223,25],[226,22,226,25],[171,26,171,30],[153,26,153,30],[154,26,154,30],[167,22,167,25],[173,22,173,25],[160,22,160,25],[198,18,198,21],[199,22,199,25],[175,26,175,30],[176,26,176,30],[212,26,212,30],[213,26,213,30]],"merged_total":1157,"flags":["merged_cut"]}
["Samlad effektbedömning v 1.17",null,null,null,null,null,null,null,null,null,null,null,null,null,null,null,null,null,null,null,null,null,null,null,null,null,null,null,null,null,null,null,null,null,null,null,null,null,null,null,null,null,null,null,null,null,null,null,null,null,null,null,null,null,null,null,null,null,null,null,null,null,null,null,null,"m","u",null,"Instruktioner",null,null,"Kommentar Upprättaren","Kommentar Regional granskare","Kommentar Nationell granskare"]
["Objektnummer: Objekt-id, Ärendenummer: Ärendenr\nKontaktperson: Ej skickad till granskning\nSkede: Ej angett\nStatus: Ej granskad av Trafikverket, Ej godkänd",null,null,null,null,null,null,null,null,null,null,null,null,null,null,null,null,null,null,null,null,null,null,null,null,null,null,null,null,null,null,null,null,null,null,null,null,null,null,null,null,null,null,null,null,null,null,"\n\nSamlad Effektbedömning"]
["2. Samhällsekonomisk analys"]
[]
["Tabell 2.1 Allmänna kalkylförutsättningar för samhällsekonomisk kalkyl"]
["Prognos persontrafik - huvudanalys",null,null,null,null,null,null,null,null,null,null,null,null,null,null,null,null,null,null,null,null,null,null,null,null,null,null,null,null,null,null,null,null,null,null,"Basprognoser 2023-04-01"]
["Avvikelse från prognos persontrafik",null,null,null,null,null,null,null,null,null,null,null,null,null,null,null,null,null,null,null,null,null,null,null,null,null,null,null,null,null,null,null,null,null,null,"Nej"]
["Prognos godstrafik - huvudanalys",null,null,null,null,null,null,null,null,null,null,null,null,null,null,null,null,null,null,null,null,null,null,null,null,null,null,null,null,null,null,null,null,null,null,"Basprognoser 2023-04-01"]
["Avvikelse från prognos godstrafik",null,null,null,null,null,null,null,null,null,null,null,null,null,null,null,null,null,null,null,null,null,null,null,null,null,null,null,null,null,null,null,null,null,null,"Nej"]
["ASEK-version",null,null,null,null,null,null,null,null,null,null,null,null,null,null,null,null,null,null,null,null,null,null,null,null,null,null,null,null,null,null,null,null,null,null,"ASEK 7.1"]
["Avvikelse från ASEK",null,null,null,null,null,null,null,null,null,null,null,null,null,null,null,null,null,null,null,null,null,null,null,null,null,null,null,null,null,null,null,null,null,null,"Nej"]
["Prisnivå för kalkylvärden",null,null,null,null,null,null,null,null,null,null,null,null,null,null,null,null,null,null,null,null,null,null,null,null,null,null,null,null,null,null,null,null,null,null,"2017-medel"]
["Kalkylränta %",null,null,null,null,null,null,null,null,null,null,null,null,null,null,null,null,null,null,null,null,null,null,null,null,null,null,null,null,null,null,null,null,null,null,{"$f":"'0.5. Importera data fr. verktyg'!AU11","v":3.5000000000000003E-2}]
["Prognosår 1",null,null,null,null,null,null,null,null,null,null,null,null,null,null,null,null,null,null,null,null,null,null,null,null,null,null,null,null,null,null,null,null,null,null,{"$f":"'0.5. Importera data fr. verktyg'!U1809","v":0}]
["Diskonteringsår",null,null,null,null,null,null,null,null,null,null,null,null,null,null,null,null,null,null,null,null,null,null,null,null,null,null,null,null,null,null,null,null,null,null,{"$f":"'0.5. Importera data fr. verktyg'!U1810","v":0}]
["Öppningsår",null,null,null,null,null,null,null,null,null,null,null,null,null,null,null,null,null,null,null,null,null,null,null,null,null,null,null,null,null,null,null,null,null,null,{"$f":"'0.5. Importera data fr. verktyg'!U1813","v":0}]
["Utförandetid/byggtid, antal år (projektspecifik)",null,null,null,null,null,null,null,null,null,null,null,null,null,null,null,null,null,null,null,null,null,null,null,null,null,null,null,null,null,null,null,null,null,null,"Ej angett"]
["Kalkylperiod från startår för effekter",null,null,null,null,null,null,null,null,null,null,null,null,null,null,null,null,null,null,null,null,null,null,null,null,null,null,null,null,null,null,null,null,null,null,{"$f":"IF('0.5. Importera data fr. verktyg'!T1785=0,'0.5. Importera data fr. verktyg'!U1785,'0.5. Importera data fr. verktyg'!T1785)","v":40}]
["Kalkylverktyg - samhällsekonomi",null,null,null,null,null,null,null,null,null,null,null,null,null,null,null,null,null,null,null,null,null,null,null,null,null,null,null,null,null,null,null,null,null,null,{"$f":"'0.5. Importera data fr. verktyg'!A30","v":"Samkalk 3.4.6"}]
["Datum för samhällsekonomisk kalkyl",null,null,null,null,null,null,null,null,null,null,null,null,null,null,null,null,null,null,null,null,null,null,null,null,null,null,null,null,null,null,null,null,null,null,{"$f":"RIGHT('0.5. Importera data fr. verktyg'!S782,19)","v":"2023-03-01 09:32:09"}]
["Trafiktillväxttal Väg (pb,pby, lbu, lbs) period 2017-2040, % per år",null,null,null,null,null,null,null,null,null,null,null,null,null,null,null,null,null,null,null,null,null,null,null,null,null,null,null,null,null,null,null,null,null,null,{"$f":"IF('0.5. Importera data fr. verktyg'!T1777>0,'0.5. Importera data fr. verktyg'!T1777,'0.5. Importera data fr. verktyg'!U1777)","v":0.55000001192092896}]
["Trafiktillväxttal Väg (pb,pby, lbu, lbs) period 2040-2065, % per år",null,null,null,null,null,null,null,null,null,null,null,null,null,null,null,null,null,null,null,null,null,null,null,null,null,null,null,null,null,null,null,null,null,null,{"$f":"IF('0.5. Importera data fr. verktyg'!T1780>0,'0.5. Importera data fr. verktyg'!T1780,'0.5. Importera data fr. verktyg'!U1780)","v":0.259999990463257}]
["Trafiktillväxttal Kollektivtrafik period 2017-2040, % per år",null,null,null,null,null,null,null,null,null,null,null,null,null,null,null,null,null,null,null,null,null,null,null,null,null,null,null,null,null,null,null,null,null,null,{"$f":"IF('0.5. Importera data fr. verktyg'!T1778>0,'0.5. Importera data fr. verktyg'!T1778,'0.5. Importera data fr. verktyg'!U1778)","v":1.87000000476837}]
["Trafiktillväxttal Kollektivtrafik period 2040-2065, % per år",null,null,null,null,null,null,null,null,null,null,null,null,null,null,null,null,null,null,null,null,null,null,null,null,null,null,null,null,null,null,null,null,null,null,{"$f":"IF('0.5. Importera data fr. verktyg'!T1781>0,'0.5. Importera data fr. verktyg'!T1781,'0.5. Importera data fr. verktyg'!U1781)","v":0.980000019073486}]
["Trafiktillväxttal",null,null,null,null,null,null,null,null,null,null,null,null,null,null,null,null,null,null,null,null,null,null,null,null,null,null,null,null,null,null,null,null,null,null,"Ej angett"]
["Trafiktillväxttal",null,null,null,null,null,null,null,null,null,null,null,null,null,null,null,null,null,null,null,null,null,null,null,null,null,null,null,null,null,null,null,null,null,null,"Ej angett"]
["Trafiktillväxttal",null,null,null,null,null,null,null,null,null,null,null,null,null,null,null,null,null,null,null,null,null,null,null,null,null,null,null,null,null,null,null,null,null,null,"Ej angett"]
["Trafiktillväxttal",null,null,null,null,null,null,null,null,null,null,null,null,null,null,null,null,null,null,null,null,null,null,null,null,null,null,null,null,null,null,null,null,null,null,"Ej angett"]
["Trafiktillväxttal",null,null,null,null,null,null,null,null,null,null,null,null,null,null,null,null,null,null,null,null,null,null,null,null,null,null,null,null,null,null,null,null,null,null,"Ej angett",null,null,null,null,null,null,null,null,null,null,null,null,null,null,null,null,null,null,null,null,null,null,null,null,null,null,null,null,null,null,null,null,"Här finns möjlighet att själv välja fler trafikslag för vilka det finns trafiktillväxttal i analysen"]
["Trafiktillväxttal",null,null,null,null,null,null,null,null,null,null,null,null,null,null,null,null,null,null,null,null,null,null,null,null,null,null,null,null,null,null,null,null,null,null,"Ej angett"]
["Trafiktillväxttal",null,null,null,null,null,null,null,null,null,null,null,null,null,null,null,null,null,null,null,null,null,null,null,null,null,null,null,null,null,null,null,null,null,null,"Ej angett"]
["Trafiktillväxttal",null,null,null,null,null,null,null,null,null,null,null,null,null,null,null,null,null,null,null,null,null,null,null,null,null,null,null,null,null,null,null,null,null,null,"Ej angett"]
["Trafiktillväxttal",null,null,null,null,null,null,null,null,null,null,null,null,null,null,null,null,null,null,null,null,null,null,null,null,null,null,null,null,null,null,null,null,null,null,"Ej angett"]
["Trafiktillväxttal",null,null,null,null,null,null,null,null,null,null,null,null,null,null,null,null,null,null,null,null,null,null,null,null,null,null,null,null,null,null,null,null,null,null,"Ej angett"]
["Trafiktillväxttal",null,null,null,null,null,null,null,null,null,null,null,null,null,null,null,null,null,null,null,null,null,null,null,null,null,null,null,null,null,null,null,null,null,null,"Ej angett"]
["Trafiktillväxttal",null,null,null,null,null,null,null,null,null,null,null,null,null,null,null,null,null,null,null,null,null,null,null,null,null,null,null,null,null,null,null,null,null,null,"Ej angett"]
["Trafiktillväxttal",null,null,null,null,null,null,null,null,null,null,null,null,null,null,null,null,null,null,null,null,null,null,null,null,null,null,null,null,null,null,null,null,null,null,"Ej angett"]
["Trafiktillväxttal",null,null,null,null,null,null,null,null,null,null,null,null,null,null,null,null,null,null,null,null,null,null,null,null,null,null,null,null,null,null,null,null,null,null,"Ej angett"]
[]
["Kommentar"]
["Ej angett",null,null,null,null,null,null,null,null,null,null,null,null,null,null,null,null,null,null,null,null,null,null,null,null,null,null,null,null,null,null,null,null,null,null,null,null,null,null,null,null,null,null,null,null,null,null,null,null,null,null,null,null,null,null,null,null,null,null,null,null,null,null,null,null,null,null,null,"Avvikelser från gällande förutsättningar beskrivs här "]
[]
[]
["Tabell 2.2 Nyckeltal samhällsekonomi"]
[null,null,null,null,null,null,null,null,null,null,null,null,null,null,null,null,null,null,null,null,null,null,null,null,null,null,null,null,null,null,null,null,null,null,null,null,null,null,null,null,null,null,null,null,"Samhälls-ekonomisk investerings-kostnad inkl skattefaktor (mnkr)",null,null,null,null,null,null,null,null,"Netto-nuvärde* (mnkr)",null,null,null,null,null,"NNK-idu**",null,null,null,null,"Dou-kostnad (mnkr)","Summa nyttor (mnkr)",null,null,"För mer information se flik Instruktioner\nOm NNK-idu är under noll ska  < 0 skrivas ut Gäller både huvudanalys och alla känslighetsanalyser"]
["Huvudanalys",null,null,null,null,null,null,null,null,null,null,null,null,null,null,null,null,null,null,null,null,null,null,null,null,null,null,null,null,null,null,null,null,null,null,null,null,null,null,null,null,null,null,null,{"$f":"ABS(AF251)","v":100},null,null,null,null,null,null,null,null,{"$f":"AF252","v":1082.3351928856455},null,null,null,null,null,{"$f":"IF(AS46=0,\" -\",IF(BB46=\" -\",\" -\", IF(BB46/(-(AF236)+AS46)<0, \" < 0\",BB46/(-(AF236)+AS46))))","v":10.823351928856455},null,null,null,null,{"$f":"AF236","v":0},{"$f":"SUM(AF68:AJ250)","v":1182.3351928856455}]
["Känslighetsanalys Högre investeringskostnad t.ex. successivkalkyl 85% eller motsvarande ",null,null,null,null,null,null,null,null,null,null,null,null,null,null,null,null,null,null,null,null,null,null,null,null,null,null,null,null,null,null,null,null,null,null,null,null,null,null,null,null,null,null,null,{"$f":"ABS(AF251)*1.3","v":130},null,null,null,null,null,null,null,null,{"$f":"IF((SUM(AF68,AF91,AF113,AF133,AF150,AF173,AF189,AF204,AF221,AF235,AF236)=0),\" -\", (SUM(AF68,AF91,AF113,AF133,AF150,AF173,AF189,AF204,AF221,AF235,AF236)-AS47))","v":1052.3351928856455},null,null,null,null,null,{"$f":"IF(AS47=0,\" -\",IF(BB47=\" -\",\" -\", IF(BB47/(-(AF236)+AS47)<0, \" < 0\",BB47/(-(AF236)+AS47))))","v":8.09488609912035},null,null,null,null,{"$f":"AF236","v":0},{"$f":"SUM(AF68:AJ250)","v":1182.3351928856455},null,null,"Känslighetsanalys högre invkostnad är defalut 1,3 * huvudanalysens kostnad, detta ska ersättas med uppgifter för 85% nivån om sådant underlag finns."]
[null,null,null,null,null,null,null,null,null,null,null,null,null,null,null,null,null,null,null,null,null,null,null,null,null,null,null,null,null,null,null,null,null,null,null,null,null,null,null,null,null,null,null,null,null,null,null,null,null,null,null,null,null," -",null,null,null,null,null," -",null,null,null,null,{"$f":"IF([6]SEB!D28<>\"\",[6]SEB!D28/1000,\"\")","v":""},{"$f":"IF([6]SEB!E28 <>\"\",[6]SEB!E28/1000,\"\")","v":""}]
["Känslighetsanalys Trafiktillväxt 0% från basåret",null,null,null,null,null,null,null,null,null,null,null,null,null,null,null,null,null,null,null,null,null,null,null,null,null,null,null,null,null,null,null,null,null,null,null,null,null,null,null,null,null,null,null,null,null,null,null,null,null,null,null,null," -",null,null,null,null,null," -"]
["Känslighetsanalys Trafiktillväxt 50% högre från basåret och jämfört med huvudkalkylen ",null,null,null,null,null,null,null,null,null,null,null,null,null,null,null,null,null,null,null,null,null,null,null,null,null,null,null,null,null,null,null,null,null,null,null,null,null,null,null,null,null,null,null,null,null,null,null,null,null,null,null,null," -",null,null,null,null,null," -"]
["Ej angett",null,null,null,null,null,null,null,null,null,null,null,null,null,null,null,null,null,null,null,null,null,null,null,null,null,null,null,null,null,null,null,null,null,null,null,null,null,null,null,null,null,null,null,null,null,null,null,null,null,null,null,null," -",null,null,null,null,null," -"]
["Ej angett",null,null,null,null,null,null,null,null,null,null,null,null,null,null,null,null,null,null,null,null,null,null,null,null,null,null,null,null,null,null,null,null,null,null,null,null,null,null,null,null,null,null,null,null,null,null,null,null,null,null,null,null," -",null,null,null,null,null," -"]
["Ej angett",null,null,null,null,null,null,null,null,null,null,null,null,null,null,null,null,null,null,null,null,null,null,null,null,null,null,null,null,null,null,null,null,null,null,null,null,null,null,null,null,null,null,null,null,null,null,null,null,null,null,null,null," -",null,null,null,null,null," -"]
["Ej angett",null,null,null,null,null,null,null,null,null,null,null,null,null,null,null,null,null,null,null,null,null,null,null,null,null,null,null,null,null,null,null,null,null,null,null,null,null,null,null,null,null,null,null,null,null,null,null,null,null,null,null,null," -",null,null,null,null,null," -"]
["Ej angett",null,null,null,null,null,null,null,null,null,null,null,null,null,null,null,null,null,null,null,null,null,null,null,null,null,null,null,null,null,null,null,null,null,null,null,null,null,null,null,null,null,null,null,null,null,null,null,null,null,null,null,null," -",null,null,null,null,null," -"]
["Ej angett",null,null,null,null,null,null,null,null,null,null,null,null,null,null,null,null,null,null,null,null,null,null,null,null,null,null,null,null,null,null,null,null,null,null,null,null,null,null,null,null,null,null,null,null,null,null,null,null,null,null,null,null," -",null,null,null,null,null," -"]
["* Nettonuvärdet är lika med summan av nuvärdet av alla positiva och negativa nyttoeffekter (årliga samhällsekonomiska intäkter och kostnader) minus investeringskostnaden."]
["**Nettonuvärdeskvoten NNK-idu  är lika med nettonuvärdet dividerat med summan av den samhällsekonomiska investeringskostnaden och nuvärdet av nettoförändringen av drift- och underhållskostnader för infrastrukturhållaren."]
["Kommentar"]
["Ej angett"]
[]
["Samhällsekonomisk analys"]
["I tabell 2.5a redovisas de effekter av åtgärden som är samhällsekonomiskt relevanta och som har kvantifierats och värderats monetärt (genom marknadspris eller skuggprisvärdering, direkt kostnadsberäkning eller alternativkostnadsvärdering). Samhällsekonomiskt relevanta effekter ska finnas med i den samhällsekonomiska analysen antingen som värderade effekter i tabell 2.5a eller som svårvärderade effekter i tabell 2.6a. I de fall en effekt är konstaterad och eventuellt kvantifierad men inte värderad redovisas den verbalt och bedöms i tabell 2.6a. Normalt redovisas en viss effekt antingen monetärt värderad i tabell 2.5a eller enbart beskriven i tabell 2.6a. I vissa fall omfattar emellertid den monetära värderingen av en effekt endast vissa delar av effektens samhällsekonomiska konsekvenser. I sådana fall kan man komplettera den monetära värderingen av effekten i tabell 2.5a med en beskrivning i tabell 2.6a av de delar av effekten som inte ingår i värderingen. \nBeräkningarna i avsnitt 2.1 och bedömningarna i avsnitt 2.2 är underlag för den sammanvägda bedömningen av om åtgärden är lönsam eller olönsam. Den bedömningan görs i avsnitt 2.3.",null,null,null,null,null,null,null,null,null,null,null,null,null,null,null,null,null,null,null,null,null,null,null,null,null,null,null,null,null,null,null,null,null,null,null,null,null,null,null,null,null,null,null,null,null,null,null,null,null,null,null,null,null,null,null,null,null,null,null,null,null,null,null,"Den här texten behöver slås ihop med den nedan."]
["Tabell 2.3 Samhällsekonomisk analys",null,null,null,null,null,null,null,null,null,null,null,null,null,null,null,null,null,null,null,null,null,null,null,null,null,null,null,null,null,null,null,null,null,null,null,null,null,null,null,null,null,null,null,null,null,null,null,null,null,null,null,null,null,null,null,null,null,null,null,null,null,null,null,null,null,null,null,"Vad är inte obligatoriskt vid enkel SEB."]
[null,null,null,null,null,null,null,null,null,null,null,null,null,null,null,null,null,null,"Effekter som värderats monetärt och som ingår i beräkning av nettonuvärde",null,null,null,null,null,null,null,null,null,null,null,null,null,null,null,null,null,null,"Effekter som inte ingår i beräkningen av nettonuvärde men som ingår i den sammanvägda bedömningen",null,null,null,null,null,null,null,null,null,null,null,null,null,null,null,null,null,null,null,null,null,null,null,null,null,null,null,null,null,null,"Vid SEB utan samhällsekonomisk kalyl används endast den högra sidan av tabellen."]
["Berörd/ påverkad av effekt",null,null,null,null,null,"Effektbenämning och kortfattad beskrivning",null,null,null,null,null,null,null,null,null,null,null,"Ex på årlig effekt för prognosår 1",null,null,null,null,null,null,null,"Nuvärde detaljerat (mnkr)",null,null,null,null,"Nuvärde över-\nsiktligt \n(mnkr)",null,null,null,null,null,"Bedömning",null,null,null,null,null,null,null,null,"Samman-\nvägd \nbedömning",null,null,null,null,null,"Kortfattad beskrivning"]
[null,null,null,null,null,null,null,null,null,null,null,null,null,null,null,null,null,null,{"$f":"AJ14","v":0}]
["TRAFIKANT EFFEKTER",null,null,"RESENÄRER",null,null,"Restid pb, regionalt tjänste",null,null,null,null,null,null,null,null,null,null,null,{"$f":"'0.5. Importera data fr. verktyg'!U10*1000","v":-5.38},null,null,null,"kptim/år",null,null,null,{"$f":"'0.5. Importera data fr. verktyg'!W10","v":57.323120000000003},null,null,null,null,{"$f":"IF(ISNUMBER(SUM(AA68:AE90)),SUM(AA68:AE90),0)","v":499.88067000000001},null,null,null,null,null,"Ej bedömt",null,null,null,null,null,null,null,null,"Ej bedömt",null,null,null,null,null,"Ej angett",null,null,null,null,null,null,null,null,null,null,null,{"$f":"$AJ$19","v":"Samkalk 3.4.6"},null,null,null,"I kolumn \"Bedömning\" görs bedömning av effekten på skalan Negativt/Försumbart/Positivt/Ingen effekt och kommentar till bedömningen skrivs därefter. Om effekten fångas i de monetärt värderade effekterna anges istället \"-\". \nI kolumn \"Sammanvägd bedömning\" görs på skalan Negativt/Försumbart/Positivt (obs alltså kan inte vara \"ingen effekt\")\nI kolumn \"kortfattad beskrivning\" skrivs en kortfattad text om bedömningen obs att denna går till sammanfattningen som har begränsat utrymme."]
[null,null,null,null,null,null,"Restid pb, långväga tjänste",null,null,null,null,null,null,null,null,null,null,null,"Ej angett",null,null,null,"kptim/år",null,null,null,"Ej beräknat",null,null,null,null,null,null,null,null,null,null,"Ej bedömt",null,null,null,null,null,null,null,null,null,null,null,null,null,null,null,null,null,null,null,null,null,null,null,null,null,null,{"$f":"$AJ$19","v":"Samkalk 3.4.6"}]
[null,null,null,null,null,null,"Restid pb, regionalt arbete",null,null,null,null,null,null,null,null,null,null,null,{"$f":"'0.5. Importera data fr. verktyg'!U12*1000","v":-44.81},null,null,null,"kptim/år",null,null,null,{"$f":"'0.5. Importera data fr. verktyg'!W12","v":142.17339999999999},null,null,null,null,null,null,null,null,null,null,"Ej bedömt",null,null,null,null,null,null,null,null,null,null,null,null,null,null,null,null,null,null,null,null,null,null,null,null,null,null,"Samkalk 3.4.6"]
[null,null,null,null,null,null,"Restid pb, regionalt övr. privat",null,null,null,null,null,null,null,null,null,null,null,{"$f":"'0.5. Importera data fr. verktyg'!U13*1000","v":-137.30000000000001},null,null,null,"kptim/år",null,null,null,{"$f":"'0.5. Importera data fr. verktyg'!W13","v":297.64402000000001},null,null,null,null,null,null,null,null,null,null,"Ej bedömt",null,null,null,null,null,null,null,null,null,null,null,null,null,null,null,null,null,null,null,null,null,null,null,null,null,null,"Samkalk 3.4.6"]
[null,null,null,null,null,null,"Restid pb, långväga arbete & övr.",null,null,null,null,null,null,null,null,null,null,null,"Ej angett",null,null,null,"kptim/år",null,null,null,"Ej beräknat",null,null,null,null,null,null,null,null,null,null,"Ej bedömt",null,null,null,null,null,null,null,null,null,null,null,null,null,null,null,null,null,null,null,null,null,null,null,null,null,null,"Samkalk 3.4.6"]
[null,null,null,null,null,null,"Reskostnad pb, regionalt tjänste",null,null,null,null,null,null,null,null,null,null,null,{"$f":"'0.5. Importera data fr. verktyg'!U15","v":-4.7200000000000002E-3},null,null,null,"mnkr/år",null,null,null,{"$f":"'0.5. Importera data fr. verktyg'!W15","v":0.10313},null,null,null,null,null,null,null,null,null,null,"Ej bedömt",null,null,null,null,null,null,null,null,null,null,null,null,null,null,null,null,null,null,null,null,null,null,null,null,null,null,"Samkalk 3.4.6"]
[null,null,null,null,null,null,"Reskostnad pb, långväga tjänste",null,null,null,null,null,null,null,null,null,null,null,"Ej angett",null,null,null,"mnkr/år",null,null,null,"Ej beräknat",null,null,null,null,null,null,null,null,null,null,"Ej bedömt",null,null,null,null,null,null,null,null,null,null,null,null,null,null,null,null,null,null,null,null,null,null,null,null,null,null,"Samkalk 3.4.6"]
[null,null,null,null,null,null,"Reskostnad pb, regionalt arbete",null,null,null,null,null,null,null,null,null,null,null,{"$f":"'0.5. Importera data fr. verktyg'!U17","v":-3.44E-2},null,null,null,"mnkr/år",null,null,null,{"$f":"'0.5. Importera data fr. verktyg'!W17","v":0.75085000000000002},null,null,null,null,null,null,null,null,null,null,"Ej bedömt",null,null,null,null,null,null,null,null,null,null,null,null,null,null,null,null,null,null,null,null,null,null,null,null,null,null,"Samkalk 3.4.6"]
[null,null,null,null,null,null,"Reskostnad pb, regionalt övr. privat",null,null,null,null,null,null,null,null,null,null,null,{"$f":"'0.5. Importera data fr. verktyg'!U18","v":-8.6400000000000005E-2},null,null,null,"mnkr/år",null,null,null,{"$f":"'0.5. Importera data fr. verktyg'!W18","v":1.88615},null,null,null,null,null,null,null,null,null,null,"Ej bedömt",null,null,null,null,null,null,null,null,null,null,null,null,null,null,null,null,null,null,null,null,null,null,null,null,null,null,"Samkalk 3.4.6"]
[null,null,null,null,null,null,"Reskostnad pb, långväga arbete & övr.",null,null,null,null,null,null,null,null,null,null,null,"Ej angett",null,null,null,"mnkr/år",null,null,null,"Ej beräknat",null,null,null,null,null,null,null,null,null,null,"Ej bedömt",null,null,null,null,null,null,null,null,null,null,null,null,null,null,null,null,null,null,null,null,null,null,null,null,null,null,"Samkalk 3.4.6"]
[null,null,null,null,null,null,"Vägavgifter/ vägskatt pb",null,null,null,null,null,null,null,null,null,null,null,{"$f":"'0.5. Importera data fr. verktyg'!U20","v":0},null,null,null,"mnkr/år",null,null,null,{"$f":"'0.5. Importera data fr. verktyg'!W20","v":0},null,null,null,null,null,null,null,null,null,null,"Ej bedömt",null,null,null,null,null,null,null,null,null,null,null,null,null,null,null,null,null,null,null,null,null,null,null,null,null,null,"Samkalk 3.4.6"]
[null,null,null,null,null,null,"Restid tåg, långväga",null,null,null,null,null,null,null,null,null,null,null,{"$f":"'0.5. Importera data fr. verktyg'!U21*1000","v":0},null,null,null,"kptim/år",null,null,null,{"$f":"'0.5. Importera data fr. verktyg'!W21","v":0},null,null,null,null,null,null,null,null,null,null,"Ej bedömt",null,null,null,null,null,null,null,null,null,null,null,null,null,null,null,null,null,null,null,null,null,null,null,null,null,null,"Samkalk 3.4.6"]
[null,null,null,null,null,null,"Reskostnad tåg, långväga",null,null,null,null,null,null,null,null,null,null,null,{"$f":"'0.5. Importera data fr. verktyg'!U22","v":0},null,null,null,"mnkr/år",null,null,null,{"$f":"'0.5. Importera data fr. verktyg'!W22","v":0},null,null,null,null,null,null,null,null,null,null,"Ej bedömt",null,null,null,null,null,null,null,null,null,null,null,null,null,null,null,null,null,null,null,null,null,null,null,null,null,null,"Samkalk 3.4.6"]
[null,null,null,null,null,null,"Restid kollektivtrafik, regionalt",null,null,null,null,null,null,null,null,null,null,null,{"$f":"'0.5. Importera data fr. verktyg'!U23*1000","v":0},null,null,null,"kptim/år",null,null,null,{"$f":"'0.5. Importera data fr. verktyg'!W23","v":0},null,null,null,null,null,null,null,null,null,null,"Ej bedömt",null,null,null,null,null,null,null,null,null,null,null,null,null,null,null,null,null,null,null,null,null,null,null,null,null,null,"Samkalk 3.4.6"]
[null,null,null,null,null,null,"Reskostnad kollektivtrafik, regionalt",null,null,null,null,null,null,null,null,null,null,null,{"$f":"'0.5. Importera data fr. verktyg'!U24","v":0},null,null,null,"mnkr/år",null,null,null,{"$f":"'0.5. Importera data fr. verktyg'!W24","v":0},null,null,null,null,null,null,null,null,null,null,"Ej bedömt",null,null,null,null,null,null,null,null,null,null,null,null,null,null,null,null,null,null,null,null,null,null,null,null,null,null,"Samkalk 3.4.6"]
[null,null,null,null,null,null,"Restid buss, långväga ",null,null,null,null,null,null,null,null,null,null,null,{"$f":"'0.5. Importera data fr. verktyg'!U25*1000","v":0},null,null,null,"kptim/år",null,null,null,{"$f":"'0.5. Importera data fr. verktyg'!W25","v":0},null,null,null,null,null,null,null,null,null,null,"Ej bedömt",null,null,null,null,null,null,null,null,null,null,null,null,null,null,null,null,null,null,null,null,null,null,null,null,null,null,"Samkalk 3.4.6"]
[null,null,null,null,null,null,"Reskostnad buss, långväga",null,null,null,null,null,null,null,null,null,null,null,{"$f":"'0.5. Importera data fr. verktyg'!U26","v":0},null,null,null,"mnkr/år",null,null,null,{"$f":"'0.5. Importera data fr. verktyg'!W26","v":0},null,null,null,null,null,null,null,null,null,null,"Ej bedömt",null,null,null,null,null,null,null,null,null,null,null,null,null,null,null,null,null,null,null,null,null,null,null,null,null,null,"Samkalk 3.4.6"]
[null,null,null,null,null,null,"Restid flyg ",null,null,null,null,null,null,null,null,null,null,null,{"$f":"'0.5. Importera data fr. verktyg'!U27*1000","v":0},null,null,null,"kptim/år",null,null,null,{"$f":"'0.5. Importera data fr. verktyg'!W27","v":0},null,null,null,null,null,null,null,null,null,null,"Ej bedömt",null,null,null,null,null,null,null,null,null,null,null,null,null,null,null,null,null,null,null,null,null,null,null,null,null,null,"Samkalk 3.4.6"]
[null,null,null,null,null,null,"Reskostnad flyg",null,null,null,null,null,null,null,null,null,null,null,{"$f":"'0.5. Importera data fr. verktyg'!U28","v":0},null,null,null,"mnkr/år",null,null,null,{"$f":"'0.5. Importera data fr. verktyg'!W28","v":0},null,null,null,null,null,null,null,null,null,null,"Ej bedömt",null,null,null,null,null,null,null,null,null,null,null,null,null,null,null,null,null,null,null,null,null,null,null,null,null,null,"Samkalk 3.4.6"]
[null,null,null,null,null,null,"Ej angett",null,null,null,null,null,null,null,null,null,null,null,"Ej angett",null,null,null,"Ej angett",null,null,null,"Ej beräknat",null,null,null,null,null,null,null,null,null,null,"Ej bedömt",null,null,null,null,null,null,null,null,null,null,null,null,null,null,null,null,null,null,null,null,null,null,null,null,null,null,"Samkalk 3.4.6"]
[null,null,null,null,null,null,"Ej angett",null,null,null,null,null,null,null,null,null,null,null,"Ej angett",null,null,null,"Ej angett",null,null,null,"Ej beräknat",null,null,null,null,null,null,null,null,null,null,"Ej bedömt",null,null,null,null,null,null,null,null,null,null,null,null,null,null,null,null,null,null,null,null,null,null,null,null,null,null,"Samkalk 3.4.6"]
[null,null,null,null,null,null,"Ej angett",null,null,null,null,null,null,null,null,null,null,null,"Ej angett",null,null,null,"Ej angett",null,null,null,"Ej beräknat",null,null,null,null,null,null,null,null,null,null,"Ej bedömt",null,null,null,null,null,null,null,null,null,null,null,null,null,null,null,null,null,null,null,null,null,null,null,null,null,null,"Samkalk 3.4.6"]
[null,null,null,null,null,null,"Ej angett",null,null,null,null,null,null,null,null,null,null,null,"Ej angett",null,null,null,"Ej angett",null,null,null,"Ej beräknat",null,null,null,null,null,null,null,null,null,null,"Ej bedömt",null,null,null,null,null,null,null,null,null,null,null,null,null,null,null,null,null,null,null,null,null,null,null,null,null,null,"Samkalk 3.4.6"]
[null,null,null,"GODSTRANSPORTER",null,null,"Restid pb yrkestrafik",null,null,null,null,null,null,null,null,null,null,null,{"$f":"'0.5. Importera data fr. verktyg'!AA10*1000","v":-19.380000000000003},null,null,null,"kptim/år",null,null,null,{"$f":"'0.5. Importera data fr. verktyg'!AC10","v":169.29739000000001},null,null,null,null,{"$f":"IF(ISNUMBER(SUM(AA91:AE112)),SUM(AA91:AE112),0)","v":604.46276},null,null,null,null,null,"Ej bedömt",null,null,null,null,null,null,null,null,"Ej bedömt",null,null,null,null,null,"Ej angett",null,null,null,null,null,null,null,null,null,null,null,"Samkalk 3.4.6"]
[null,null,null,null,null,null,"Restid lastbil (utan släp)",null,null,null,null,null,null,null,null,null,null,null,{"$f":"'0.5. Importera data fr. verktyg'!AA11*1000","v":-24.830000000000002},null,null,null,"kptim/år",null,null,null,{"$f":"'0.5. Importera data fr. verktyg'!AC11","v":216.83833000000001},null,null,null,null,null,null,null,null,null,null,"Ej bedömt",null,null,null,null,null,null,null,null,null,null,null,null,null,null,null,null,null,null,null,null,null,null,null,null,null,null,"Samkalk 3.4.6"]
[null,null,null,null,null,null,"Restid lastbil (släp)",null,null,null,null,null,null,null,null,null,null,null,{"$f":"'0.5. Importera data fr. verktyg'!AA12*1000","v":-14.48},null,null,null,"kptim/år",null,null,null,{"$f":"'0.5. Importera data fr. verktyg'!AC12","v":126.41621000000001},null,null,null,null,null,null,null,null,null,null,"Ej bedömt",null,null,null,null,null,null,null,null,null,null,null,null,null,null,null,null,null,null,null,null,null,null,null,null,null,null,"Samkalk 3.4.6"]
[null,null,null,null,null,null,"Reskostnad pb yrkestrafik",null,null,null,null,null,null,null,null,null,null,null,{"$f":"'0.5. Importera data fr. verktyg'!AA13","v":-0.1489},null,null,null,"mnkr/år",null,null,null,{"$f":"'0.5. Importera data fr. verktyg'!AC13","v":3.2505299999999999},null,null,null,null,null,null,null,null,null,null,"Ej bedömt",null,null,null,null,null,null,null,null,null,null,null,null,null,null,null,null,null,null,null,null,null,null,null,null,null,null,"Samkalk 3.4.6"]
[null,null,null,null,null,null,"Reskostnad lastbil (utan släp)",null,null,null,null,null,null,null,null,null,null,null,{"$f":"'0.5. Importera data fr. verktyg'!AA14","v":-3.0908699999999998},null,null,null,"mnkr/år",null,null,null,{"$f":"'0.5. Importera data fr. verktyg'!AC14","v":67.473479999999995},null,null,null,null,null,null,null,null,null,null,"Ej bedömt",null,null,null,null,null,null,null,null,null,null,null,null,null,null,null,null,null,null,null,null,null,null,null,null,null,null,"Samkalk 3.4.6"]
[null,null,null,null,null,null,"Reskostnad lastbil (släp)",null,null,null,null,null,null,null,null,null,null,null,{"$f":"'0.5. Importera data fr. verktyg'!AA15","v":-0.32851000000000002},null,null,null,"mnkr/år",null,null,null,{"$f":"'0.5. Importera data fr. verktyg'!AC15","v":7.1712800000000003},null,null,null,null,null,null,null,null,null,null,"Ej bedömt",null,null,null,null,null,null,null,null,null,null,null,null,null,null,null,null,null,null,null,null,null,null,null,null,null,null,"Samkalk 3.4.6"]
[null,null,null,null,null,null,"Transporttid gods pb yrkestrafik",null,null,null,null,null,null,null,null,null,null,null,{"$f":"'0.5. Importera data fr. verktyg'!AA16","v":-4.8460000000000003E-2},null,null,null,"mnkr/år",null,null,null,{"$f":"'0.5. Importera data fr. verktyg'!AC16","v":1.0579400000000001},null,null,null,null,null,null,null,null,null,null,"Ej bedömt",null,null,null,null,null,null,null,null,null,null,null,null,null,null,null,null,null,null,null,null,null,null,null,null,null,null,"Samkalk 3.4.6"]
[null,null,null,null,null,null,"Transporttid gods lastbil (u. släp)",null,null,null,null,null,null,null,null,null,null,null,{"$f":"'0.5. Importera data fr. verktyg'!AA17","v":-0.14482999999999999},null,null,null,"mnkr/år",null,null,null,{"$f":"'0.5. Importera data fr. verktyg'!AC17","v":3.1616300000000002},null,null,null,null,null,null,null,null,null,null,"Ej bedömt",null,null,null,null,null,null,null,null,null,null,null,null,null,null,null,null,null,null,null,null,null,null,null,null,null,null,"Samkalk 3.4.6"]
[null,null,null,null,null,null,"Transporttid gods lastbil (släp)",null,null,null,null,null,null,null,null,null,null,null,{"$f":"'0.5. Importera data fr. verktyg'!AA18","v":-0.44874000000000003},null,null,null,"mnkr/år",null,null,null,{"$f":"'0.5. Importera data fr. verktyg'!AC18","v":9.7959099999999992},null,null,null,null,null,null,null,null,null,null,"Ej bedömt",null,null,null,null,null,null,null,null,null,null,null,null,null,null,null,null,null,null,null,null,null,null,null,null,null,null,"Samkalk 3.4.6"]
[null,null,null,null,null,null,"Vägavgifter/vägskatt pb yrkestrafik",null,null,null,null,null,null,null,null,null,null,null,{"$f":"'0.5. Importera data fr. verktyg'!AA19","v":0},null,null,null,"mnkr/år",null,null,null,{"$f":"'0.5. Importera data fr. verktyg'!AC19","v":0},null,null,null,null,null,null,null,null,null,null,"Ej bedömt",null,null,null,null,null,null,null,null,null,null,null,null,null,null,null,null,null,null,null,null,null,null,null,null,null,null,"Samkalk 3.4.6"]
[null,null,null,null,null,null,"Vägavgifter/vägskatt lastbil (u. släp)",null,null,null,null,null,null,null,null,null,null,null,{"$f":"'0.5. Importera data fr. verktyg'!AA20","v":0},null,null,null,"mnkr/år",null,null,null,{"$f":"'0.5. Importera data fr. verktyg'!AC20","v":0},null,null,null,null,null,null,null,null,null,null,"Ej bedömt",null,null,null,null,null,null,null,null,null,null,null,null,null,null,null,null,null,null,null,null,null,null,null,null,null,null,"Samkalk 3.4.6"]
[null,null,null,null,null,null,"Vägavgifter/vägskatt lastbil (släp)",null,null,null,null,null,null,null,null,null,null,null,{"$f":"'0.5. Importera data fr. verktyg'!AA21","v":0},null,null,null,"mnkr/år",null,null,null,{"$f":"'0.5. Importera data fr. verktyg'!AC21","v":6.0000000000000002E-5},null,null,null,null,null,null,null,null,null,null,"Ej bedömt",null,null,null,null,null,null,null,null,null,null,null,null,null,null,null,null,null,null,null,null,null,null,null,null,null,null,"Samkalk 3.4.6"]
[null,null,null,null,null,null,"Ej angett",null,null,null,null,null,null,null,null,null,null,null,"Ej angett",null,null,null,"Ej angett",null,null,null,"Ej beräknat",null,null,null,null,null,null,null,null,null,null,"Ej bedömt",null,null,null,null,null,null,null,null,null,null,null,null,null,null,null,null,null,null,null,null,null,null,null,null,null,null,"Samkalk 3.4.6"]
[null,null,null,null,null,null,"Ej angett",null,null,null,null,null,null,null,null,null,null,null,"Ej angett",null,null,null,"Ej angett",null,null,null,"Ej beräknat",null,null,null,null,null,null,null,null,null,null,"Ej bedömt",null,null,null,null,null,null,null,null,null,null,null,null,null,null,null,null,null,null,null,null,null,null,null,null,null,null,"Samkalk 3.4.6"]
[null,null,null,null,null,null,"Ej angett",null,null,null,null,null,null,null,null,null,null,null,"Ej angett",null,null,null,"Ej angett",null,null,null,"Ej beräknat",null,null,null,null,null,null,null,null,null,null,"Ej bedömt",null,null,null,null,null,null,null,null,null,null,null,null,null,null,null,null,null,null,null,null,null,null,null,null,null,null,"Samkalk 3.4.6"]
[null,null,null,null,null,null,"Ej angett",null,null,null,null,null,null,null,null,null,null,null,"Ej angett",null,null,null,"Ej angett",null,null,null,"Ej beräknat",null,null,null,null,null,null,null,null,null,null,"Ej bedömt",null,null,null,null,null,null,null,null,null,null,null,null,null,null,null,null,null,null,null,null,null,null,null,null,null,null,"Samkalk 3.4.6"]
[null,null,null,null,null,null,"Ej angett",null,null,null,null,null,null,null,null,null,null,null,"Ej angett",null,null,null,"Ej angett",null,null,null,"Ej beräknat",null,null,null,null,null,null,null,null,null,null,"Ej bedömt",null,null,null,null,null,null,null,null,null,null,null,null,null,null,null,null,null,null,null,null,null,null,null,null,null,null,"Samkalk 3.4.6"]
[null,null,null,null,null,null,"Ej angett",null,null,null,null,null,null,null,null,null,null,null,"Ej angett",null,null,null,"Ej angett",null,null,null,"Ej beräknat",null,null,null,null,null,null,null,null,null,null,"Ej bedömt",null,null,null,null,null,null,null,null,null,null,null,null,null,null,null,null,null,null,null,null,null,null,null,null,null,null,"Samkalk 3.4.6"]
[null,null,null,null,null,null,"Ej angett",null,null,null,null,null,null,null,null,null,null,null,"Ej angett",null,null,null,"Ej angett",null,null,null,"Ej beräknat",null,null,null,null,null,null,null,null,null,null,"Ej bedömt",null,null,null,null,null,null,null,null,null,null,null,null,null,null,null,null,null,null,null,null,null,null,null,null,null,null,"Samkalk 3.4.6"]
[null,null,null,null,null,null,"Ej angett",null,null,null,null,null,null,null,null,null,null,null,"Ej angett",null,null,null,"Ej angett",null,null,null,"Ej beräknat",null,null,null,null,null,null,null,null,null,null,"Ej bedömt",null,null,null,null,null,null,null,null,null,null,null,null,null,null,null,null,null,null,null,null,null,null,null,null,null,null,"Samkalk 3.4.6"]
[null,null,null,null,null,null,"Ej angett",null,null,null,null,null,null,null,null,null,null,null,"Ej angett",null,null,null,"Ej angett",null,null,null,"Ej beräknat",null,null,null,null,null,null,null,null,null,null,"Ej bedömt",null,null,null,null,null,null,null,null,null,null,null,null,null,null,null,null,null,null,null,null,null,null,null,null,null,null,"Samkalk 3.4.6"]
[null,null,null,null,null,null,"Ej angett",null,null,null,null,null,null,null,null,null,null,null,"Ej angett",null,null,null,"Ej angett",null,null,null,"Ej beräknat",null,null,null,null,null,null,null,null,null,null,"Ej bedömt",null,null,null,null,null,null,null,null,null,null,null,null,null,null,null,null,null,null,null,null,null,null,null,null,null,null,"Samkalk 3.4.6"]
[null,null,null,"PERSONTRANSPORTFÖRETAG",null,null,"Biljettintäkter",null,null,null,null,null,null,null,null,null,null,null,{"$f":"'0.5. Importera data fr. verktyg'!AG10","v":-0.29988999999999999},null,null,null,"mnkr/år",null,null,null,{"$f":"'0.5. Importera data fr. verktyg'!AI10","v":-6.4377300000000002},null,null,null,null,{"$f":"IF(ISNUMBER(SUM(AA113:AE132)),SUM(AA113:AE132),0)","v":-4.9841699999999998},null,null,null,null,null,"Ej bedömt",null,null,null,null,null,null,null,null,"Ej bedömt",null,null,null,null,null,"Ej angett",null,null,null,null,null,null,null,null,null,null,null,"Samkalk 3.4.6"]
[null,null,null,null,null,null,"Fordonskostnader för kollektivtrafik",null,null,null,null,null,null,null,null,null,null,null,{"$f":"'0.5. Importera data fr. verktyg'!AG11","v":-4.199E-2},null,null,null,"mnkr/år",null,null,null,{"$f":"'0.5. Importera data fr. verktyg'!AI11","v":1.0786800000000001},null,null,null,null,null,null,null,null,null,null,"Ej bedömt",null,null,null,null,null,null,null,null,null,null,null,null,null,null,null,null,null,null,null,null,null,null,null,null,null,null,"Samkalk 3.4.6"]
[null,null,null,null,null,null,"Moms på biljettintäkter",null,null,null,null,null,null,null,null,null,null,null,{"$f":"'0.5. Importera data fr. verktyg'!AG12","v":-1.6979999999999999E-2},null,null,null,"mnkr/år",null,null,null,{"$f":"'0.5. Importera data fr. verktyg'!AI12","v":0.3644},null,null,null,null,null,null,null,null,null,null,"Ej bedömt",null,null,null,null,null,null,null,null,null,null,null,null,null,null,null,null,null,null,null,null,null,null,null,null,null,null,"Samkalk 3.4.6"]
[null,null,null,null,null,null,"Banavgifter",null,null,null,null,null,null,null,null,null,null,null,{"$f":"'0.5. Importera data fr. verktyg'!AG13","v":-4.8999999999999998E-4},null,null,null,"mnkr/år",null,null,null,{"$f":"'0.5. Importera data fr. verktyg'!AI13","v":1.048E-2},null,null,null,null,null,null,null,null,null,null,"Ej bedömt",null,null,null,null,null,null,null,null,null,null,null,null,null,null,null,null,null,null,null,null,null,null,null,null,null,null,"Samkalk 3.4.6"]
[null,null,null,null,null,null,"Ej angett",null,null,null,null,null,null,null,null,null,null,null,"Ej angett",null,null,null,"Ej angett",null,null,null,"Ej beräknat",null,null,null,null,null,null,null,null,null,null,"Ej bedömt",null,null,null,null,null,null,null,null,null,null,null,null,null,null,null,null,null,null,null,null,null,null,null,null,null,null,"Samkalk 3.4.6"]
[null,null,null,null,null,null,"Ej angett",null,null,null,null,null,null,null,null,null,null,null,"Ej angett",null,null,null,"Ej angett",null,null,null,"Ej beräknat",null,null,null,null,null,null,null,null,null,null,"Ej bedömt",null,null,null,null,null,null,null,null,null,null,null,null,null,null,null,null,null,null,null,null,null,null,null,null,null,null,"Samkalk 3.4.6"]
[null,null,null,null,null,null,"Ej angett",null,null,null,null,null,null,null,null,null,null,null,"Ej angett",null,null,null,"Ej angett",null,null,null,"Ej beräknat",null,null,null,null,null,null,null,null,null,null,"Ej bedömt",null,null,null,null,null,null,null,null,null,null,null,null,null,null,null,null,null,null,null,null,null,null,null,null,null,null,"Samkalk 3.4.6"]
[null,null,null,null,null,null,"Ej angett",null,null,null,null,null,null,null,null,null,null,null,"Ej angett",null,null,null,"Ej angett",null,null,null,"Ej beräknat",null,null,null,null,null,null,null,null,null,null,"Ej bedömt",null,null,null,null,null,null,null,null,null,null,null,null,null,null,null,null,null,null,null,null,null,null,null,null,null,null,"Samkalk 3.4.6"]
[null,null,null,null,null,null,"Ej angett",null,null,null,null,null,null,null,null,null,null,null,"Ej angett",null,null,null,"Ej angett",null,null,null,"Ej beräknat",null,null,null,null,null,null,null,null,null,null,"Ej bedömt",null,null,null,null,null,null,null,null,null,null,null,null,null,null,null,null,null,null,null,null,null,null,null,null,null,null,"Samkalk 3.4.6"]
[null,null,null,null,null,null,"Ej angett",null,null,null,null,null,null,null,null,null,null,null,"Ej angett",null,null,null,"Ej angett",null,null,null,"Ej beräknat",null,null,null,null,null,null,null,null,null,null,"Ej bedömt",null,null,null,null,null,null,null,null,null,null,null,null,null,null,null,null,null,null,null,null,null,null,null,null,null,null,"Samkalk 3.4.6"]
[null,null,null,null,null,null,"Ej angett",null,null,null,null,null,null,null,null,null,null,null,"Ej angett",null,null,null,"Ej angett",null,null,null,"Ej beräknat",null,null,null,null,null,null,null,null,null,null,"Ej bedömt",null,null,null,null,null,null,null,null,null,null,null,null,null,null,null,null,null,null,null,null,null,null,null,null,null,null,"Samkalk 3.4.6"]
[null,null,null,null,null,null,"Ej angett",null,null,null,null,null,null,null,null,null,null,null,"Ej angett",null,null,null,"Ej angett",null,null,null,"Ej beräknat",null,null,null,null,null,null,null,null,null,null,"Ej bedömt",null,null,null,null,null,null,null,null,null,null,null,null,null,null,null,null,null,null,null,null,null,null,null,null,null,null,"Samkalk 3.4.6"]
[null,null,null,null,null,null,"Ej angett",null,null,null,null,null,null,null,null,null,null,null,"Ej angett",null,null,null,"Ej angett",null,null,null,"Ej beräknat",null,null,null,null,null,null,null,null,null,null,"Ej bedömt",null,null,null,null,null,null,null,null,null,null,null,null,null,null,null,null,null,null,null,null,null,null,null,null,null,null,"Samkalk 3.4.6"]
[null,null,null,null,null,null,"Ej angett",null,null,null,null,null,null,null,null,null,null,null,"Ej angett",null,null,null,"Ej angett",null,null,null,"Ej beräknat",null,null,null,null,null,null,null,null,null,null,"Ej bedömt",null,null,null,null,null,null,null,null,null,null,null,null,null,null,null,null,null,null,null,null,null,null,null,null,null,null,"Samkalk 3.4.6"]
[null,null,null,null,null,null,"Ej angett",null,null,null,null,null,null,null,null,null,null,null,"Ej angett",null,null,null,"Ej angett",null,null,null,"Ej beräknat",null,null,null,null,null,null,null,null,null,null,"Ej bedömt",null,null,null,null,null,null,null,null,null,null,null,null,null,null,null,null,null,null,null,null,null,null,null,null,null,null,"Samkalk 3.4.6"]
[null,null,null,null,null,null,"Ej angett",null,null,null,null,null,null,null,null,null,null,null,"Ej angett",null,null,null,"Ej angett",null,null,null,"Ej beräknat",null,null,null,null,null,null,null,null,null,null,"Ej bedömt",null,null,null,null,null,null,null,null,null,null,null,null,null,null,null,null,null,null,null,null,null,null,null,null,null,null,"Samkalk 3.4.6"]
[null,null,null,null,null,null,"Ej angett",null,null,null,null,null,null,null,null,null,null,null,"Ej angett",null,null,null,"Ej angett",null,null,null,"Ej beräknat",null,null,null,null,null,null,null,null,null,null,"Ej bedömt",null,null,null,null,null,null,null,null,null,null,null,null,null,null,null,null,null,null,null,null,null,null,null,null,null,null,"Samkalk 3.4.6"]
[null,null,null,null,null,null,"Ej angett",null,null,null,null,null,null,null,null,null,null,null,"Ej angett",null,null,null,"Ej angett",null,null,null,"Ej beräknat",null,null,null,null,null,null,null,null,null,null,"Ej bedömt",null,null,null,null,null,null,null,null,null,null,null,null,null,null,null,null,null,null,null,null,null,null,null,null,null,null,"Samkalk 3.4.6"]
[null,null,null,null,null,null,"Ej angett",null,null,null,null,null,null,null,null,null,null,null,"Ej angett",null,null,null,"Ej angett",null,null,null,"Ej beräknat",null,null,null,null,null,null,null,null,null,null,"Ej bedömt",null,null,null,null,null,null,null,null,null,null,null,null,null,null,null,null,null,null,null,null,null,null,null,null,null,null,"Samkalk 3.4.6"]
[null,null,null,null,null,null,"Ej angett",null,null,null,null,null,null,null,null,null,null,null,"Ej angett",null,null,null,"Ej angett",null,null,null,"Ej beräknat",null,null,null,null,null,null,null,null,null,null,"Ej bedömt",null,null,null,null,null,null,null,null,null,null,null,null,null,null,null,null,null,null,null,null,null,null,null,null,null,null,"Samkalk 3.4.6"]
["EXTERNA EFFEKTER",null,null,"TRAFIKSÄKERHET (TS)",null,null,"Trafiksäkerhet totalt",null,null,null,null,null,null,null,null,null,null,null,"Ej angett",null,null,null,"Ej angett",null,null,null,{"$f":"-'0.5. Importera data fr. verktyg'!AO13","v":-55.545787114354098},null,null,null,null,{"$f":"IF(ISNUMBER(SUM(AA133:AE149)),SUM(AA133:AE149),0)","v":-55.545787114354098},null,null,null,null,null,"Ej bedömt",null,null,null,null,null,null,null,null,"Ej bedömt",null,null,null,null,null,"Ej angett",null,null,null,null,null,null,null,null,null,null,null,{"$f":"$AJ$19","v":"Samkalk 3.4.6"}]
[null,null,null,null,null,null,"Döda",null,null,null,null,null,null,null,null,null,null,null,null,null,null,null,{"$f":"'[7]0.5. Importera data fr. verktyg'!W20","v":"D/år"},null,null,null,"Ej beräknat",null,null,null,null,null,null,null,null,null,null,"Ej bedömt",null,null,null,null,null,null,null,null,null,null,null,null,null,null,null,null,null,null,null,null,null,null,null,null,null,null,"Samkalk 3.4.6"]
[null,null,null,null,null,null,"Mycket allvarligt skadade",null,null,null,null,null,null,null,null,null,null,null,null,null,null,null,{"$f":"'[7]0.5. Importera data fr. verktyg'!W21","v":"MAS/år"},null,null,null,"Ej beräknat",null,null,null,null,null,null,null,null,null,null,"Ej bedömt",null,null,null,null,null,null,null,null,null,null,null,null,null,null,null,null,null,null,null,null,null,null,null,null,null,null,"Samkalk 3.4.6"]
[null,null,null,null,null,null,"Allvarligt skadade exkl MAS",null,null,null,null,null,null,null,null,null,null,null,null,null,null,null,{"$f":"'[7]0.5. Importera data fr. verktyg'!W22","v":"AS/år"},null,null,null,"Ej beräknat",null,null,null,null,null,null,null,null,null,null,"Ej bedömt",null,null,null,null,null,null,null,null,null,null,null,null,null,null,null,null,null,null,null,null,null,null,null,null,null,null,"Samkalk 3.4.6"]
[null,null,null,null,null,null,"Ej allvarligt skadade",null,null,null,null,null,null,null,null,null,null,null,null,null,null,null,{"$f":"'[7]0.5. Importera data fr. verktyg'!W23","v":"ES/år"},null,null,null,"Ej beräknat",null,null,null,null,null,null,null,null,null,null,"Ej bedömt",null,null,null,null,null,null,null,null,null,null,null,null,null,null,null,null,null,null,null,null,null,null,null,null,null,null,"Samkalk 3.4.6"]
[null,null,null,null,null,null,"Ej angett",null,null,null,null,null,null,null,null,null,null,null,"Ej angett",null,null,null,"Ej angett",null,null,null,"Ej beräknat",null,null,null,null,null,null,null,null,null,null,"Ej bedömt",null,null,null,null,null,null,null,null,null,null,null,null,null,null,null,null,null,null,null,null,null,null,null,null,null,null,"Samkalk 3.4.6"]
[null,null,null,null,null,null,"Ej angett",null,null,null,null,null,null,null,null,null,null,null,"Ej angett",null,null,null,"Ej angett",null,null,null,"Ej beräknat",null,null,null,null,null,null,null,null,null,null,"Ej bedömt",null,null,null,null,null,null,null,null,null,null,null,null,null,null,null,null,null,null,null,null,null,null,null,null,null,null,"Samkalk 3.4.6"]
[null,null,null,null,null,null,"Ej angett",null,null,null,null,null,null,null,null,null,null,null,"Ej angett",null,null,null,"Ej angett",null,null,null,"Ej beräknat",null,null,null,null,null,null,null,null,null,null,"Ej bedömt",null,null,null,null,null,null,null,null,null,null,null,null,null,null,null,null,null,null,null,null,null,null,null,null,null,null,"Samkalk 3.4.6"]
[null,null,null,null,null,null,"Ej angett",null,null,null,null,null,null,null,null,null,null,null,"Ej angett",null,null,null,"Ej angett",null,null,null,"Ej beräknat",null,null,null,null,null,null,null,null,null,null,"Ej bedömt",null,null,null,null,null,null,null,null,null,null,null,null,null,null,null,null,null,null,null,null,null,null,null,null,null,null,"Samkalk 3.4.6"]
[null,null,null,null,null,null,"Ej angett",null,null,null,null,null,null,null,null,null,null,null,"Ej angett",null,null,null,"Ej angett",null,null,null,"Ej beräknat",null,null,null,null,null,null,null,null,null,null,"Ej bedömt",null,null,null,null,null,null,null,null,null,null,null,null,null,null,null,null,null,null,null,null,null,null,null,null,null,null,"Samkalk 3.4.6"]
[null,null,null,null,null,null,"Ej angett",null,null,null,null,null,null,null,null,null,null,null,"Ej angett",null,null,null,"Ej angett",null,null,null,"Ej beräknat",null,null,null,null,null,null,null,null,null,null,"Ej bedömt",null,null,null,null,null,null,null,null,null,null,null,null,null,null,null,null,null,null,null,null,null,null,null,null,null,null,"Samkalk 3.4.6"]
[null,null,null,null,null,null,"Ej angett",null,null,null,null,null,null,null,null,null,null,null,"Ej angett",null,null,null,"Ej angett",null,null,null,"Ej beräknat",null,null,null,null,null,null,null,null,null,null,"Ej bedömt",null,null,null,null,null,null,null,null,null,null,null,null,null,null,null,null,null,null,null,null,null,null,null,null,null,null,"Samkalk 3.4.6"]
[null,null,null,null,null,null,"Ej angett",null,null,null,null,null,null,null,null,null,null,null,"Ej angett",null,null,null,"Ej angett",null,null,null,"Ej beräknat",null,null,null,null,null,null,null,null,null,null,"Ej bedömt",null,null,null,null,null,null,null,null,null,null,null,null,null,null,null,null,null,null,null,null,null,null,null,null,null,null,"Samkalk 3.4.6"]
[null,null,null,null,null,null,"Ej angett",null,null,null,null,null,null,null,null,null,null,null,"Ej angett",null,null,null,"Ej angett",null,null,null,"Ej beräknat",null,null,null,null,null,null,null,null,null,null,"Ej bedömt",null,null,null,null,null,null,null,null,null,null,null,null,null,null,null,null,null,null,null,null,null,null,null,null,null,null,"Samkalk 3.4.6"]
[null,null,null,null,null,null,"Ej angett",null,null,null,null,null,null,null,null,null,null,null,"Ej angett",null,null,null,"Ej angett",null,null,null,"Ej beräknat",null,null,null,null,null,null,null,null,null,null,"Ej bedömt",null,null,null,null,null,null,null,null,null,null,null,null,null,null,null,null,null,null,null,null,null,null,null,null,null,null,"Samkalk 3.4.6"]
[null,null,null,null,null,null,"Ej angett",null,null,null,null,null,null,null,null,null,null,null,"Ej angett",null,null,null,"Ej angett",null,null,null,"Ej beräknat",null,null,null,null,null,null,null,null,null,null,"Ej bedömt",null,null,null,null,null,null,null,null,null,null,null,null,null,null,null,null,null,null,null,null,null,null,null,null,null,null,"Samkalk 3.4.6"]
[null,null,null,null,null,null,"Ej angett",null,null,null,null,null,null,null,null,null,null,null,"Ej angett",null,null,null,"Ej angett",null,null,null,"Ej beräknat",null,null,null,null,null,null,null,null,null,null,"Ej bedömt",null,null,null,null,null,null,null,null,null,null,null,null,null,null,null,null,null,null,null,null,null,null,null,null,null,null,"Samkalk 3.4.6"]
[null,null,null,"KLIMAT",null,null,"CO2-ekvivalenter, Avser koldioxid",null,null,null,null,null,null,null,null,null,null,null,{"$f":"'0.5. Importera data fr. verktyg'!AM12","v":-9.4480000000000008E-2},null,null,null,"kton/år",null,null,null,{"$f":"'0.5. Importera data fr. verktyg'!AO12","v":20.63522},null,null,null,null,{"$f":"IF(ISNUMBER(SUM(AA150:AE172)),SUM(AA150:AE172),0)","v":20.63522},null,null,null,null,null,"Ej bedömt",null,null,null,null,null,null,null,null,"Ej bedömt",null,null,null,null,null,"Ej angett",null,null,null,null,null,null,null,null,null,null,null,"Samkalk 3.4.6"]
[null,null,null,null,null,null,"Ej angett",null,null,null,null,null,null,null,null,null,null,null,"Ej angett",null,null,null,"Ej angett",null,null,null,"Ej beräknat",null,null,null,null,null,null,null,null,null,null,"Ej bedömt",null,null,null,null,null,null,null,null,null,null,null,null,null,null,null,null,null,null,null,null,null,null,null,null,null,null,"Samkalk 3.4.6"]
[null,null,null,null,null,null,"Ej angett",null,null,null,null,null,null,null,null,null,null,null,"Ej angett",null,null,null,"Ej angett",null,null,null,"Ej beräknat",null,null,null,null,null,null,null,null,null,null,"Ej bedömt",null,null,null,null,null,null,null,null,null,null,null,null,null,null,null,null,null,null,null,null,null,null,null,null,null,null,"Samkalk 3.4.6"]
[null,null,null,null,null,null,"Ej angett",null,null,null,null,null,null,null,null,null,null,null,"Ej angett",null,null,null,"Ej angett",null,null,null,"Ej beräknat",null,null,null,null,null,null,null,null,null,null,"Ej bedömt",null,null,null,null,null,null,null,null,null,null,null,null,null,null,null,null,null,null,null,null,null,null,null,null,null,null,"Samkalk 3.4.6"]
[null,null,null,null,null,null,"Ej angett",null,null,null,null,null,null,null,null,null,null,null,"Ej angett",null,null,null,"Ej angett",null,null,null,"Ej beräknat",null,null,null,null,null,null,null,null,null,null,"Ej bedömt",null,null,null,null,null,null,null,null,null,null,null,null,null,null,null,null,null,null,null,null,null,null,null,null,null,null,"Samkalk 3.4.6"]
[null,null,null,null,null,null,"Ej angett",null,null,null,null,null,null,null,null,null,null,null,"Ej angett",null,null,null,"Ej angett",null,null,null,"Ej beräknat",null,null,null,null,null,null,null,null,null,null,"Ej bedömt",null,null,null,null,null,null,null,null,null,null,null,null,null,null,null,null,null,null,null,null,null,null,null,null,null,null,"Samkalk 3.4.6"]
[null,null,null,null,null,null,"Ej angett",null,null,null,null,null,null,null,null,null,null,null,"Ej angett",null,null,null,"Ej angett",null,null,null,"Ej beräknat",null,null,null,null,null,null,null,null,null,null,"Ej bedömt",null,null,null,null,null,null,null,null,null,null,null,null,null,null,null,null,null,null,null,null,null,null,null,null,null,null,"Samkalk 3.4.6"]
[null,null,null,null,null,null,"Ej angett",null,null,null,null,null,null,null,null,null,null,null,"Ej angett",null,null,null,"Ej angett",null,null,null,"Ej beräknat",null,null,null,null,null,null,null,null,null,null,"Ej bedömt",null,null,null,null,null,null,null,null,null,null,null,null,null,null,null,null,null,null,null,null,null,null,null,null,null,null,"Samkalk 3.4.6"]
[null,null,null,null,null,null,"Ej angett",null,null,null,null,null,null,null,null,null,null,null,"Ej angett",null,null,null,"Ej angett",null,null,null,"Ej beräknat",null,null,null,null,null,null,null,null,null,null,"Ej bedömt",null,null,null,null,null,null,null,null,null,null,null,null,null,null,null,null,null,null,null,null,null,null,null,null,null,null,"Samkalk 3.4.6"]
[null,null,null,null,null,null,"Ej angett",null,null,null,null,null,null,null,null,null,null,null,"Ej angett",null,null,null,"Ej angett",null,null,null,"Ej beräknat",null,null,null,null,null,null,null,null,null,null,"Ej bedömt",null,null,null,null,null,null,null,null,null,null,null,null,null,null,null,null,null,null,null,null,null,null,null,null,null,null,"Samkalk 3.4.6"]
[null,null,null,null,null,null,"Ej angett",null,null,null,null,null,null,null,null,null,null,null,"Ej angett",null,null,null,"Ej angett",null,null,null,"Ej beräknat",null,null,null,null,null,null,null,null,null,null,"Ej bedömt",null,null,null,null,null,null,null,null,null,null,null,null,null,null,null,null,null,null,null,null,null,null,null,null,null,null,"Samkalk 3.4.6"]
[null,null,null,null,null,null,"Ej angett",null,null,null,null,null,null,null,null,null,null,null,"Ej angett",null,null,null,"Ej angett",null,null,null,"Ej beräknat",null,null,null,null,null,null,null,null,null,null,"Ej bedömt",null,null,null,null,null,null,null,null,null,null,null,null,null,null,null,null,null,null,null,null,null,null,null,null,null,null,"Samkalk 3.4.6"]
[null,null,null,null,null,null,"Ej angett",null,null,null,null,null,null,null,null,null,null,null,"Ej angett",null,null,null,"Ej angett",null,null,null,"Ej beräknat",null,null,null,null,null,null,null,null,null,null,"Ej bedömt",null,null,null,null,null,null,null,null,null,null,null,null,null,null,null,null,null,null,null,null,null,null,null,null,null,null,"Samkalk 3.4.6"]
[null,null,null,null,null,null,"Ej angett",null,null,null,null,null,null,null,null,null,null,null,"Ej angett",null,null,null,"Ej angett",null,null,null,"Ej beräknat",null,null,null,null,null,null,null,null,null,null,"Ej bedömt",null,null,null,null,null,null,null,null,null,null,null,null,null,null,null,null,null,null,null,null,null,null,null,null,null,null,"Samkalk 3.4.6"]
[null,null,null,null,null,null,"Ej angett",null,null,null,null,null,null,null,null,null,null,null,"Ej angett",null,null,null,"Ej angett",null,null,null,"Ej beräknat",null,null,null,null,null,null,null,null,null,null,"Ej bedömt",null,null,null,null,null,null,null,null,null,null,null,null,null,null,null,null,null,null,null,null,null,null,null,null,null,null,"Samkalk 3.4.6"]
[null,null,null,null,null,null,"Ej angett",null,null,null,null,null,null,null,null,null,null,null,"Ej angett",null,null,null,"Ej angett",null,null,null,"Ej beräknat",null,null,null,null,null,null,null,null,null,null,"Ej bedömt",null,null,null,null,null,null,null,null,null,null,null,null,null,null,null,null,null,null,null,null,null,null,null,null,null,null,"Samkalk 3.4.6"]
[null,null,null,null,null,null,"Ej angett",null,null,null,null,null,null,null,null,null,null,null,"Ej angett",null,null,null,"Ej angett",null,null,null,"Ej beräknat",null,null,null,null,null,null,null,null,null,null,"Ej bedömt",null,null,null,null,null,null,null,null,null,null,null,null,null,null,null,null,null,null,null,null,null,null,null,null,null,null,"Samkalk 3.4.6"]
[null,null,null,null,null,null,"Ej angett",null,null,null,null,null,null,null,null,null,null,null,"Ej angett",null,null,null,"Ej angett",null,null,null,"Ej beräknat",null,null,null,null,null,null,null,null,null,null,"Ej bedömt",null,null,null,null,null,null,null,null,null,null,null,null,null,null,null,null,null,null,null,null,null,null,null,null,null,null,"Samkalk 3.4.6"]
[null,null,null,null,null,null,"Ej angett",null,null,null,null,null,null,null,null,null,null,null,"Ej angett",null,null,null,"Ej angett",null,null,null,"Ej beräknat",null,null,null,null,null,null,null,null,null,null,"Ej bedömt",null,null,null,null,null,null,null,null,null,null,null,null,null,null,null,null,null,null,null,null,null,null,null,null,null,null,"Samkalk 3.4.6"]
[null,null,null,null,null,null,"Ej angett",null,null,null,null,null,null,null,null,null,null,null,"Ej angett",null,null,null,"Ej angett",null,null,null,"Ej beräknat",null,null,null,null,null,null,null,null,null,null,"Ej bedömt",null,null,null,null,null,null,null,null,null,null,null,null,null,null,null,null,null,null,null,null,null,null,null,null,null,null,"Samkalk 3.4.6"]
[null,null,null,null,null,null,"Ej angett",null,null,null,null,null,null,null,null,null,null,null,"Ej angett",null,null,null,"Ej angett",null,null,null,"Ej beräknat",null,null,null,null,null,null,null,null,null,null,"Ej bedömt",null,null,null,null,null,null,null,null,null,null,null,null,null,null,null,null,null,null,null,null,null,null,null,null,null,null,"Samkalk 3.4.6"]
[null,null,null,null,null,null,"Ej angett",null,null,null,null,null,null,null,null,null,null,null,"Ej angett",null,null,null,"Ej angett",null,null,null,"Ej beräknat",null,null,null,null,null,null,null,null,null,null,"Ej bedömt",null,null,null,null,null,null,null,null,null,null,null,null,null,null,null,null,null,null,null,null,null,null,null,null,null,null,"Samkalk 3.4.6"]
[null,null,null,null,null,null,"Ej angett",null,null,null,null,null,null,null,null,null,null,null,"Ej angett",null,null,null,"Ej angett",null,null,null,"Ej beräknat",null,null,null,null,null,null,null,null,null,null,"Ej bedömt",null,null,null,null,null,null,null,null,null,null,null,null,null,null,null,null,null,null,null,null,null,null,null,null,null,null,"Samkalk 3.4.6"]
[null,null,null,"HÄLSA (exkl trafiksäkerhet)",null,null,"Luft Avser NOX, avgaspartiklar och slitagepartiklar",null,null,null,null,null,null,null,null,null,null,null,"Ej angett",null,null,null,"Ej angett",null,null,null,{"$f":"'0.5. Importera data fr. verktyg'!AO14+'0.5. Importera data fr. verktyg'!AO15+'0.5. Importera data fr. verktyg'!AO16","v":87.872699999999995},null,null,null,null,{"$f":"IF(ISNUMBER(SUM(AA173:AE188)),SUM(AA173:AE188),0)","v":87.872699999999995},null,null,null,null,null,"Ej bedömt",null,null,null,null,null,null,null,null,"Ej bedömt",null,null,null,null,null,"Ej angett",null,null,null,null,null,null,null,null,null,null,null,"Samkalk 3.4.6"]
[null,null,null,null,null,null,"Luft - NOX Kväveoxider",null,null,null,null,null,null,null,null,null,null,null,{"$f":"'0.5. Importera data fr. verktyg'!AM14","v":-0.30298999999999998},null,null,null,"ton/år",null,null,null,"Ej beräknat",null,null,null,null,null,null,null,null,null,null,"Ej bedömt",null,null,null,null,null,null,null,null,null,null,null,null,null,null,null,null,null,null,null,null,null,null,null,null,null,null,"Samkalk 3.4.6"]
[null,null,null,null,null,null,"Luft -Avgaspartiklar",null,null,null,null,null,null,null,null,null,null,null,{"$f":"'0.5. Importera data fr. verktyg'!AM15","v":-3.8899999999999994E-3},null,null,null,"ton/år",null,null,null,"Ej beräknat",null,null,null,null,null,null,null,null,null,null,"Ej bedömt",null,null,null,null,null,null,null,null,null,null,null,null,null,null,null,null,null,null,null,null,null,null,null,null,null,null,"Samkalk 3.4.6"]
[null,null,null,null,null,null,"Luft - Slitagepartiklar",null,null,null,null,null,null,null,null,null,null,null,{"$f":"'0.5. Importera data fr. verktyg'!AM16","v":-8.269E-2},null,null,null,"ton/år",null,null,null,"Ej beräknat",null,null,null,null,null,null,null,null,null,null,"Ej bedömt",null,null,null,null,null,null,null,null,null,null,null,null,null,null,null,null,null,null,null,null,null,null,null,null,null,null,"Samkalk 3.4.6"]
[null,null,null,null,null,null,"Ej angett",null,null,null,null,null,null,null,null,null,null,null,"Ej angett",null,null,null,"Ej angett",null,null,null,"Ej beräknat",null,null,null,null,null,null,null,null,null,null,"Ej bedömt",null,null,null,null,null,null,null,null,null,null,null,null,null,null,null,null,null,null,null,null,null,null,null,null,null,null,"Samkalk 3.4.6"]
[null,null,null,null,null,null,"Ej angett",null,null,null,null,null,null,null,null,null,null,null,"Ej angett",null,null,null,"Ej angett",null,null,null,"Ej beräknat",null,null,null,null,null,null,null,null,null,null,"Ej bedömt",null,null,null,null,null,null,null,null,null,null,null,null,null,null,null,null,null,null,null,null,null,null,null,null,null,null,"Samkalk 3.4.6"]
[null,null,null,null,null,null,"Ej angett",null,null,null,null,null,null,null,null,null,null,null,"Ej angett",null,null,null,"Ej angett",null,null,null,"Ej beräknat",null,null,null,null,null,null,null,null,null,null,"Ej bedömt",null,null,null,null,null,null,null,null,null,null,null,null,null,null,null,null,null,null,null,null,null,null,null,null,null,null,"Samkalk 3.4.6"]
[null,null,null,null,null,null,"Ej angett",null,null,null,null,null,null,null,null,null,null,null,"Ej angett",null,null,null,"Ej angett",null,null,null,"Ej beräknat",null,null,null,null,null,null,null,null,null,null,"Ej bedömt",null,null,null,null,null,null,null,null,null,null,null,null,null,null,null,null,null,null,null,null,null,null,null,null,null,null,"Samkalk 3.4.6"]
[null,null,null,null,null,null,"Ej angett",null,null,null,null,null,null,null,null,null,null,null,"Ej angett",null,null,null,"Ej angett",null,null,null,"Ej beräknat",null,null,null,null,null,null,null,null,null,null,"Ej bedömt",null,null,null,null,null,null,null,null,null,null,null,null,null,null,null,null,null,null,null,null,null,null,null,null,null,null,"Samkalk 3.4.6"]
[null,null,null,null,null,null,"Ej angett",null,null,null,null,null,null,null,null,null,null,null,"Ej angett",null,null,null,"Ej angett",null,null,null,"Ej beräknat",null,null,null,null,null,null,null,null,null,null,"Ej bedömt",null,null,null,null,null,null,null,null,null,null,null,null,null,null,null,null,null,null,null,null,null,null,null,null,null,null,"Samkalk 3.4.6"]
[null,null,null,null,null,null,"Ej angett",null,null,null,null,null,null,null,null,null,null,null,"Ej angett",null,null,null,"Ej angett",null,null,null,"Ej beräknat",null,null,null,null,null,null,null,null,null,null,"Ej bedömt",null,null,null,null,null,null,null,null,null,null,null,null,null,null,null,null,null,null,null,null,null,null,null,null,null,null,"Samkalk 3.4.6"]
[null,null,null,null,null,null,"Ej angett",null,null,null,null,null,null,null,null,null,null,null,"Ej angett",null,null,null,"Ej angett",null,null,null,"Ej beräknat",null,null,null,null,null,null,null,null,null,null,"Ej bedömt",null,null,null,null,null,null,null,null,null,null,null,null,null,null,null,null,null,null,null,null,null,null,null,null,null,null,"Samkalk 3.4.6"]
[null,null,null,null,null,null,"Ej angett",null,null,null,null,null,null,null,null,null,null,null,"Ej angett",null,null,null,"Ej angett",null,null,null,"Ej beräknat",null,null,null,null,null,null,null,null,null,null,"Ej bedömt",null,null,null,null,null,null,null,null,null,null,null,null,null,null,null,null,null,null,null,null,null,null,null,null,null,null,"Samkalk 3.4.6"]
[null,null,null,null,null,null,"Ej angett",null,null,null,null,null,null,null,null,null,null,null,"Ej angett",null,null,null,"Ej angett",null,null,null,"Ej beräknat",null,null,null,null,null,null,null,null,null,null,"Ej bedömt",null,null,null,null,null,null,null,null,null,null,null,null,null,null,null,null,null,null,null,null,null,null,null,null,null,null,"Samkalk 3.4.6"]
[null,null,null,null,null,null,"Ej angett",null,null,null,null,null,null,null,null,null,null,null,"Ej angett",null,null,null,"Ej angett",null,null,null,"Ej beräknat",null,null,null,null,null,null,null,null,null,null,"Ej bedömt",null,null,null,null,null,null,null,null,null,null,null,null,null,null,null,null,null,null,null,null,null,null,null,null,null,null,"Samkalk 3.4.6"]
[null,null,null,null,null,null,"Ej angett",null,null,null,null,null,null,null,null,null,null,null,"Ej angett",null,null,null,"Ej angett",null,null,null,"Ej beräknat",null,null,null,null,null,null,null,null,null,null,"Ej bedömt",null,null,null,null,null,null,null,null,null,null,null,null,null,null,null,null,null,null,null,null,null,null,null,null,null,null,"Samkalk 3.4.6"]
[null,null,null,"LANDSKAP",null,null,"Ej angett",null,null,null,null,null,null,null,null,null,null,null,"Ej angett",null,null,null,"Ej angett",null,null,null,"Ej beräknat",null,null,null,null,{"$f":"IF(ISNUMBER(SUM(AA189:AE203)),SUM(AA189:AE203),0)","v":0},null,null,null,null,null,"Ej bedömt",null,null,null,null,null,null,null,null,"Ej bedömt",null,null,null,null,null,"Ej angett"]
[null,null,null,null,null,null,"Ej angett",null,null,null,null,null,null,null,null,null,null,null,"Ej angett",null,null,null,"Ej angett",null,null,null,"Ej beräknat",null,null,null,null,null,null,null,null,null,null,"Ej bedömt"]
[null,null,null,null,null,null,"Ej angett",null,null,null,null,null,null,null,null,null,null,null,"Ej angett",null,null,null,"Ej angett",null,null,null,"Ej beräknat",null,null,null,null,null,null,null,null,null,null,"Ej bedömt"]
[null,null,null,null,null,null,"Ej angett",null,null,null,null,null,null,null,null,null,null,null,"Ej angett",null,null,null,"Ej angett",null,null,null,"Ej beräknat",null,null,null,null,null,null,null,null,null,null,"Ej bedömt"]
[null,null,null,null,null,null,"Ej angett",null,null,null,null,null,null,null,null,null,null,null,"Ej angett",null,null,null,"Ej angett",null,null,null,"Ej beräknat",null,null,null,null,null,null,null,null,null,null,"Ej bedömt"]
[null,null,null,null,null,null,"Ej angett",null,null,null,null,null,null,null,null,null,null,null,"Ej angett",null,null,null,"Ej angett",null,null,null,"Ej beräknat",null,null,null,null,null,null,null,null,null,null,"Ej bedömt"]
[null,null,null,null,null,null,"Ej angett",null,null,null,null,null,null,null,null,null,null,null,"Ej angett",null,null,null,"Ej angett",null,null,null,"Ej beräknat",null,null,null,null,null,null,null,null,null,null,"Ej bedömt"]
[null,null,null,null,null,null,"Ej angett",null,null,null,null,null,null,null,null,null,null,null,"Ej angett",null,null,null,"Ej angett",null,null,null,"Ej beräknat",null,null,null,null,null,null,null,null,null,null,"Ej bedömt"]
[null,null,null,null,null,null,"Ej angett",null,null,null,null,null,null,null,null,null,null,null,"Ej angett",null,null,null,"Ej angett",null,null,null,"Ej beräknat",null,null,null,null,null,null,null,null,null,null,"Ej bedömt"]
[null,null,null,null,null,null,"Ej angett",null,null,null,null,null,null,null,null,null,null,null,"Ej angett",null,null,null,"Ej angett",null,null,null,"Ej beräknat",null,null,null,null,null,null,null,null,null,null,"Ej bedömt"]
[null,null,null,null,null,null,"Ej angett",null,null,null,null,null,null,null,null,null,null,null,"Ej angett",null,null,null,"Ej angett",null,null,null,"Ej beräknat",null,null,null,null,null,null,null,null,null,null,"Ej bedömt"]
[null,null,null,null,null,null,"Ej angett",null,null,null,null,null,null,null,null,null,null,null,"Ej angett",null,null,null,"Ej angett",null,null,null,"Ej beräknat",null,null,null,null,null,null,null,null,null,null,"Ej bedömt"]
[null,null,null,null,null,null,"Ej angett",null,null,null,null,null,null,null,null,null,null,null,"Ej angett",null,null,null,"Ej angett",null,null,null,"Ej beräknat",null,null,null,null,null,null,null,null,null,null,"Ej bedömt"]
[null,null,null,null,null,null,"Ej angett",null,null,null,null,null,null,null,null,null,null,null,"Ej angett",null,null,null,"Ej angett",null,null,null,"Ej beräknat",null,null,null,null,null,null,null,null,null,null,"Ej bedömt"]
[null,null,null,null,null,null,"Ej angett",null,null,null,null,null,null,null,null,null,null,null,"Ej angett",null,null,null,"Ej angett",null,null,null,"Ej beräknat",null,null,null,null,null,null,null,null,null,null,"Ej bedömt"]
[null,null,null,"ÖVRIGA EXTERNA EFFEKTER",null,null,"Marginellt slitage",null,null,null,null,null,null,null,null,null,null,null,{"$f":"'0.5. Importera data fr. verktyg'!AM20","v":-0.31492000000000003},null,null,null,"mnkr/år",null,null,null,{"$f":"'0.5. Importera data fr. verktyg'!AO20","v":6.8743800000000004},null,null,null,null,{"$f":"IF(ISNUMBER(SUM(AA204:AE220)),SUM(AA204:AE220),0)","v":6.8743800000000004},null,null,null,null,null,"Ej bedömt",null,null,null,null,null,null,null,null,"Ej bedömt",null,null,null,null,null,"Ej angett",null,null,null,null,null,null,null,null,null,null,null,{"$f":"$AJ$19","v":"Samkalk 3.4.6"}]
[null,null,null,null,null,null,"Ej angett",null,null,null,null,null,null,null,null,null,null,null,"Ej angett",null,null,null,"Ej angett",null,null,null,"Ej beräknat",null,null,null,null,null,null,null,null,null,null,"Ej bedömt",null,null,null,null,null,null,null,null,null,null,null,null,null,null,null,null,null,null,null,null,null,null,null,null,null,null,"Samkalk 3.4.6"]
[null,null,null,null,null,null,"Ej angett",null,null,null,null,null,null,null,null,null,null,null,"Ej angett",null,null,null,"Ej angett",null,null,null,"Ej beräknat",null,null,null,null,null,null,null,null,null,null,"Ej bedömt",null,null,null,null,null,null,null,null,null,null,null,null,null,null,null,null,null,null,null,null,null,null,null,null,null,null,"Samkalk 3.4.6"]
[null,null,null,null,null,null,"Ej angett",null,null,null,null,null,null,null,null,null,null,null,"Ej angett",null,null,null,"Ej angett",null,null,null,"Ej beräknat",null,null,null,null,null,null,null,null,null,null,"Ej bedömt",null,null,null,null,null,null,null,null,null,null,null,null,null,null,null,null,null,null,null,null,null,null,null,null,null,null,"Samkalk 3.4.6"]
[null,null,null,null,null,null,"Ej angett",null,null,null,null,null,null,null,null,null,null,null,"Ej angett",null,null,null,"Ej angett",null,null,null,"Ej beräknat",null,null,null,null,null,null,null,null,null,null,"Ej bedömt",null,null,null,null,null,null,null,null,null,null,null,null,null,null,null,null,null,null,null,null,null,null,null,null,null,null,"Samkalk 3.4.6"]
[null,null,null,null,null,null,"Ej angett",null,null,null,null,null,null,null,null,null,null,null,"Ej angett",null,null,null,"Ej angett",null,null,null,"Ej beräknat",null,null,null,null,null,null,null,null,null,null,"Ej bedömt",null,null,null,null,null,null,null,null,null,null,null,null,null,null,null,null,null,null,null,null,null,null,null,null,null,null,"Samkalk 3.4.6"]
[null,null,null,null,null,null,"Ej angett",null,null,null,null,null,null,null,null,null,null,null,"Ej angett",null,null,null,"Ej angett",null,null,null,"Ej beräknat",null,null,null,null,null,null,null,null,null,null,"Ej bedömt",null,null,null,null,null,null,null,null,null,null,null,null,null,null,null,null,null,null,null,null,null,null,null,null,null,null,"Samkalk 3.4.6"]
[null,null,null,null,null,null,"Ej angett",null,null,null,null,null,null,null,null,null,null,null,"Ej angett",null,null,null,"Ej angett",null,null,null,"Ej beräknat",null,null,null,null,null,null,null,null,null,null,"Ej bedömt",null,null,null,null,null,null,null,null,null,null,null,null,null,null,null,null,null,null,null,null,null,null,null,null,null,null,"Samkalk 3.4.6"]
[null,null,null,null,null,null,"Ej angett",null,null,null,null,null,null,null,null,null,null,null,"Ej angett",null,null,null,"Ej angett",null,null,null,"Ej beräknat",null,null,null,null,null,null,null,null,null,null,"Ej bedömt",null,null,null,null,null,null,null,null,null,null,null,null,null,null,null,null,null,null,null,null,null,null,null,null,null,null,"Samkalk 3.4.6"]
[null,null,null,null,null,null,"Ej angett",null,null,null,null,null,null,null,null,null,null,null,"Ej angett",null,null,null,"Ej angett",null,null,null,"Ej beräknat",null,null,null,null,null,null,null,null,null,null,"Ej bedömt",null,null,null,null,null,null,null,null,null,null,null,null,null,null,null,null,null,null,null,null,null,null,null,null,null,null,"Samkalk 3.4.6"]
[null,null,null,null,null,null,"Ej angett",null,null,null,null,null,null,null,null,null,null,null,"Ej angett",null,null,null,"Ej angett",null,null,null,"Ej beräknat",null,null,null,null,null,null,null,null,null,null,"Ej bedömt",null,null,null,null,null,null,null,null,null,null,null,null,null,null,null,null,null,null,null,null,null,null,null,null,null,null,"Samkalk 3.4.6"]
[null,null,null,null,null,null,"Ej angett",null,null,null,null,null,null,null,null,null,null,null,"Ej angett",null,null,null,"Ej angett",null,null,null,"Ej beräknat",null,null,null,null,null,null,null,null,null,null,"Ej bedömt",null,null,null,null,null,null,null,null,null,null,null,null,null,null,null,null,null,null,null,null,null,null,null,null,null,null,"Samkalk 3.4.6"]
[null,null,null,null,null,null,"Ej angett",null,null,null,null,null,null,null,null,null,null,null,"Ej angett",null,null,null,"Ej angett",null,null,null,"Ej beräknat",null,null,null,null,null,null,null,null,null,null,"Ej bedömt",null,null,null,null,null,null,null,null,null,null,null,null,null,null,null,null,null,null,null,null,null,null,null,null,null,null,"Samkalk 3.4.6"]
[null,null,null,null,null,null,"Ej angett",null,null,null,null,null,null,null,null,null,null,null,"Ej angett",null,null,null,"Ej angett",null,null,null,"Ej beräknat",null,null,null,null,null,null,null,null,null,null,"Ej bedömt",null,null,null,null,null,null,null,null,null,null,null,null,null,null,null,null,null,null,null,null,null,null,null,null,null,null,"Samkalk 3.4.6"]
[null,null,null,null,null,null,"Ej angett",null,null,null,null,null,null,null,null,null,null,null,"Ej angett",null,null,null,"Ej angett",null,null,null,"Ej beräknat",null,null,null,null,null,null,null,null,null,null,"Ej bedömt",null,null,null,null,null,null,null,null,null,null,null,null,null,null,null,null,null,null,null,null,null,null,null,null,null,null,"Samkalk 3.4.6"]
[null,null,null,null,null,null,"Ej angett",null,null,null,null,null,null,null,null,null,null,null,"Ej angett",null,null,null,"Ej angett",null,null,null,"Ej beräknat",null,null,null,null,null,null,null,null,null,null,"Ej bedömt",null,null,null,null,null,null,null,null,null,null,null,null,null,null,null,null,null,null,null,null,null,null,null,null,null,null,"Samkalk 3.4.6"]
[null,null,null,null,null,null,"Ej angett",null,null,null,null,null,null,null,null,null,null,null,"Ej angett",null,null,null,"Ej angett",null,null,null,"Ej beräknat",null,null,null,null,null,null,null,null,null,null,"Ej bedömt",null,null,null,null,null,null,null,null,null,null,null,null,null,null,null,null,null,null,null,null,null,null,null,null,null,null,"Samkalk 3.4.6"]
["BUDGETEFFEKTER",null,null,null,null,null,"Drivmedelsskatt för vägtrafik, regionalt",null,null,null,null,null,null,null,null,null,null,null,{"$f":"'0.5. Importera data fr. verktyg'!AM22","v":1.0771700000000002},null,null,null,"mnkr/år",null,null,null,{"$f":"'0.5. Importera data fr. verktyg'!AO22","v":23.514360000000003},null,null,null,null,{"$f":"IF(ISNUMBER(SUM(AA221:AE234)),SUM(AA221:AE234),0)","v":23.139420000000001},null,null,null,null,null,"Ej bedömt",null,null,null,null,null,null,null,null,"Ej bedömt",null,null,null,null,null,"Ej angett",null,null,null,null,null,null,null,null,null,null,null,"Samkalk 3.4.6"]
[null,null,null,null,null,null,"Drivmedelsskatt för vägtrafik, långväga",null,null,null,null,null,null,null,null,null,null,null,{"$f":"'0.5. Importera data fr. verktyg'!AM23","v":0},null,null,null,"mnkr/år",null,null,null,{"$f":"'0.5. Importera data fr. verktyg'!AO23","v":0},null,null,null,null,null,null,null,null,null,null,"Ej bedömt",null,null,null,null,null,null,null,null,null,null,null,null,null,null,null,null,null,null,null,null,null,null,null,null,null,null,"Samkalk 3.4.6"]
[null,null,null,null,null,null,"Vägavgifter/ vägskatt",null,null,null,null,null,null,null,null,null,null,null,{"$f":"'0.5. Importera data fr. verktyg'!AM24","v":0},null,null,null,"mnkr/år",null,null,null,{"$f":"'0.5. Importera data fr. verktyg'!AO24","v":-6.0000000000000002E-5},null,null,null,null,null,null,null,null,null,null,"Ej bedömt",null,null,null,null,null,null,null,null,null,null,null,null,null,null,null,null,null,null,null,null,null,null,null,null,null,null,"Samkalk 3.4.6"]
[null,null,null,null,null,null,"Moms på biljettintäkter",null,null,null,null,null,null,null,null,null,null,null,{"$f":"'0.5. Importera data fr. verktyg'!AM25","v":-1.6979999999999999E-2},null,null,null,"mnkr/år",null,null,null,{"$f":"'0.5. Importera data fr. verktyg'!AO25","v":-0.3644},null,null,null,null,null,null,null,null,null,null,"Ej bedömt",null,null,null,null,null,null,null,null,null,null,null,null,null,null,null,null,null,null,null,null,null,null,null,null,null,null,"Samkalk 3.4.6"]
[null,null,null,null,null,null,"Banavgifter",null,null,null,null,null,null,null,null,null,null,null,{"$f":"'0.5. Importera data fr. verktyg'!AM26","v":-4.8999999999999998E-4},null,null,null,"mnkr/år",null,null,null,{"$f":"'0.5. Importera data fr. verktyg'!AO26","v":-1.048E-2},null,null,null,null,null,null,null,null,null,null,"Ej bedömt",null,null,null,null,null,null,null,null,null,null,null,null,null,null,null,null,null,null,null,null,null,null,null,null,null,null,"Samkalk 3.4.6"]
[null,null,null,null,null,null,"Ej angett",null,null,null,null,null,null,null,null,null,null,null,"Ej angett",null,null,null,"Ej angett",null,null,null,"Ej beräknat",null,null,null,null,null,null,null,null,null,null,"Ej bedömt",null,null,null,null,null,null,null,null,null,null,null,null,null,null,null,null,null,null,null,null,null,null,null,null,null,null,"Samkalk 3.4.6"]
[null,null,null,null,null,null,"Ej angett",null,null,null,null,null,null,null,null,null,null,null,"Ej angett",null,null,null,"Ej angett",null,null,null,"Ej beräknat",null,null,null,null,null,null,null,null,null,null,"Ej bedömt",null,null,null,null,null,null,null,null,null,null,null,null,null,null,null,null,null,null,null,null,null,null,null,null,null,null,"Samkalk 3.4.6"]
[null,null,null,null,null,null,"Ej angett",null,null,null,null,null,null,null,null,null,null,null,"Ej angett",null,null,null,"Ej angett",null,null,null,"Ej beräknat",null,null,null,null,null,null,null,null,null,null,"Ej bedömt",null,null,null,null,null,null,null,null,null,null,null,null,null,null,null,null,null,null,null,null,null,null,null,null,null,null,"Samkalk 3.4.6"]
[null,null,null,null,null,null,"Ej angett",null,null,null,null,null,null,null,null,null,null,null,"Ej angett",null,null,null,"Ej angett",null,null,null,"Ej beräknat",null,null,null,null,null,null,null,null,null,null,"Ej bedömt",null,null,null,null,null,null,null,null,null,null,null,null,null,null,null,null,null,null,null,null,null,null,null,null,null,null,"Samkalk 3.4.6"]
[null,null,null,null,null,null,"Ej angett",null,null,null,null,null,null,null,null,null,null,null,"Ej angett",null,null,null,"Ej angett",null,null,null,"Ej beräknat",null,null,null,null,null,null,null,null,null,null,"Ej bedömt",null,null,null,null,null,null,null,null,null,null,null,null,null,null,null,null,null,null,null,null,null,null,null,null,null,null,"Samkalk 3.4.6"]
[null,null,null,null,null,null,"Ej angett",null,null,null,null,null,null,null,null,null,null,null,"Ej angett",null,null,null,"Ej angett",null,null,null,"Ej beräknat",null,null,null,null,null,null,null,null,null,null,"Ej bedömt",null,null,null,null,null,null,null,null,null,null,null,null,null,null,null,null,null,null,null,null,null,null,null,null,null,null,"Samkalk 3.4.6"]
[null,null,null,null,null,null,"Ej angett",null,null,null,null,null,null,null,null,null,null,null,"Ej angett",null,null,null,"Ej angett",null,null,null,"Ej beräknat",null,null,null,null,null,null,null,null,null,null,"Ej bedömt",null,null,null,null,null,null,null,null,null,null,null,null,null,null,null,null,null,null,null,null,null,null,null,null,null,null,"Samkalk 3.4.6"]
[null,null,null,null,null,null,"Ej angett",null,null,null,null,null,null,null,null,null,null,null,"Ej angett",null,null,null,"Ej angett",null,null,null,"Ej beräknat",null,null,null,null,null,null,null,null,null,null,"Ej bedömt",null,null,null,null,null,null,null,null,null,null,null,null,null,null,null,null,null,null,null,null,null,null,null,null,null,null,"Samkalk 3.4.6"]
[null,null,null,null,null,null,"Ej angett",null,null,null,null,null,null,null,null,null,null,null,"Ej angett",null,null,null,"Ej angett",null,null,null,"Ej beräknat",null,null,null,null,null,null,null,null,null,null,"Ej bedömt",null,null,null,null,null,null,null,null,null,null,null,null,null,null,null,null,null,null,null,null,null,null,null,null,null,null,"Samkalk 3.4.6"]
["INBESPARADE JA-KOSTNADER",null,null,null,null,null,"Inbesparade JA-kostnader",null,null,null,null,null,null,null,null,null,null,null,"Ej angett",null,null,null,"Ej angett",null,null,null,"Ej beräknat",null,null,null,null,{"$f":"IF(ISNUMBER(SUM(AA235:AE235)),SUM(AA235:AE235),0)","v":0},null,null,null,null,null,"Ej bedömt",null,null,null,null,null,null,null,null,"Ej bedömt",null,null,null,null,null,"Ej angett"]
["DRIFT-, UNDERHÅLLS- OCH REINVESTERINGS-KOSTNADER UNDER LIVSLÄNGD",null,null,null,null,null,"Ej angett",null,null,null,null,null,null,null,null,null,null,null,"Ej angett",null,null,null,"Ej angett",null,null,null,"Ej beräknat",null,null,null,null,{"$f":"IF(ISNUMBER(SUM(AA236:AE250)),SUM(AA236:AE250),0)","v":0},null,null,null,null,null,"Ej bedömt",null,null,null,null,null,null,null,null,"Ej bedömt",null,null,null,null,null,"Ej angett",null,null,null,null,null,null,null,null,null,null,null,"Samkalk 3.4.6"]
[null,null,null,null,null,null,"Ej angett",null,null,null,null,null,null,null,null,null,null,null,"Ej angett",null,null,null,"Ej angett",null,null,null,"Ej beräknat",null,null,null,null,null,null,null,null,null,null,"Ej bedömt"]
[null,null,null,null,null,null,"Ej angett",null,null,null,null,null,null,null,null,null,null,null,"Ej angett",null,null,null,"Ej angett",null,null,null,"Ej beräknat",null,null,null,null,null,null,null,null,null,null,"Ej bedömt"]
[null,null,null,null,null,null,"Ej angett",null,null,null,null,null,null,null,null,null,null,null,"Ej angett",null,null,null,"Ej angett",null,null,null,"Ej beräknat",null,null,null,null,null,null,null,null,null,null,"Ej bedömt"]
[null,null,null,null,null,null,"Ej angett",null,null,null,null,null,null,null,null,null,null,null,"Ej angett",null,null,null,"Ej angett",null,null,null,"Ej beräknat",null,null,null,null,null,null,null,null,null,null,"Ej bedömt"]
[null,null,null,null,null,null,"Ej angett",null,null,null,null,null,null,null,null,null,null,null,"Ej angett",null,null,null,"Ej angett",null,null,null,"Ej beräknat",null,null,null,null,null,null,null,null,null,null,"Ej bedömt"]
[null,null,null,null,null,null,"Ej angett",null,null,null,null,null,null,null,null,null,null,null,"Ej angett",null,null,null,"Ej angett",null,null,null,"Ej beräknat",null,null,null,null,null,null,null,null,null,null,"Ej bedömt"]
[null,null,null,null,null,null,"Ej angett",null,null,null,null,null,null,null,null,null,null,null,"Ej angett",null,null,null,"Ej angett",null,null,null,"Ej beräknat",null,null,null,null,null,null,null,null,null,null,"Ej bedömt"]
[null,null,null,null,null,null,"Ej angett",null,null,null,null,null,null,null,null,null,null,null,"Ej angett",null,null,null,"Ej angett",null,null,null,"Ej beräknat",null,null,null,null,null,null,null,null,null,null,"Ej bedömt"]
[null,null,null,null,null,null,"Ej angett",null,null,null,null,null,null,null,null,null,null,null,"Ej angett",null,null,null,"Ej angett",null,null,null,"Ej beräknat",null,null,null,null,null,null,null,null,null,null,"Ej bedömt"]
[null,null,null,null,null,null,"Ej angett",null,null,null,null,null,null,null,null,null,null,null,"Ej angett",null,null,null,"Ej angett",null,null,null,"Ej beräknat",null,null,null,null,null,null,null,null,null,null,"Ej bedömt"]
[null,null,null,null,null,null,"Ej angett",null,null,null,null,null,null,null,null,null,null,null,"Ej angett",null,null,null,"Ej angett",null,null,null,"Ej beräknat",null,null,null,null,null,null,null,null,null,null,"Ej bedömt"]
[null,null,null,null,null,null,"Ej angett",null,null,null,null,null,null,null,null,null,null,null,"Ej angett",null,null,null,"Ej angett",null,null,null,"Ej beräknat",null,null,null,null,null,null,null,null,null,null,"Ej bedömt"]
[null,null,null,null,null,null,"Ej angett",null,null,null,null,null,null,null,null,null,null,null,"Ej angett",null,null,null,"Ej angett",null,null,null,"Ej beräknat",null,null,null,null,null,null,null,null,null,null,"Ej bedömt"]
[null,null,null,null,null,null,"Ej angett",null,null,null,null,null,null,null,null,null,null,null,"Ej angett",null,null,null,"Ej angett",null,null,null,"Ej beräknat",null,null,null,null,null,null,null,null,null,null,"Ej bedömt"]
["SAMHÄLLS EKONOMISK INVESTERINGS-KOSTNAD",null,null,null,null,null,"Effekten prognosår 1 avser annuitetsberäknad samhällsekonomisk investeringskostnad",null,null,null,null,null,null,null,null,null,null,null,{"$f":"-'0.5. Importera data fr. verktyg'!AY13","v":-4.6827282259000329},null,null,null,"mnkr/ år",null,null,null,{"$f":"-'0.5. Importera data fr. verktyg'!AY10","v":-100},null,null,null,null,{"$f":"-SUM(AA251:AE251)","v":100},null,null,null,null,null,null,null,null,null,null,null,null,null,null,null,null,null,null,null,null,null,null,null,null,null,null,null,null,null,null,null,null,null,null,null,null,"Kostnaden fylls i här"]
["                   NETTONUVÄRDE       ",null,null,null,null,null,null,null,null,null,null,null,null,null,null,null,null,null,null,null,null,null,null,null,null,null,null,null,null,null,null,{"$f":"IF((SUM(AF68,AF91,AF113,AF133,AF150,AF173,AF189,AF204,AF221,AF235,AF236)=0),\" -\", (SUM(AF68,AF91,AF113,AF133,AF150,AF173,AF189,AF204,AF221,AF235,AF236,-AF251)))","v":1082.3351928856455},null,null,null,null,null,"SAMMANVÄGNING AV EJ VÄRDERBARA EFFEKTER",null,null,null,null,null,null,null,null,"Ej bedömt"]
[]
["Kvalitetsbedömning av samhällsekonomisk kalkyl",null,null,null,null,null,null,null,null,null,null,null,null,null,null,null,null,null,null,null,null,null,null,null,null,null,null,null,null,null,null,null,null,null,null,null,"Motivering sammanvägning av ej värderbara effekter"]
["Kvalitetsbedömning  ",null,null,null,null,null,null,null,null,null,null,null,null,null,null,null,null,null,null,null,null,null,null,null,null,null,null,null,null,null,null,null,null,null,null,null,"Motivering  "]
[]
[]
["Slutligt bedömd sammanvägd lönsamhet"]
[]
["Tabell 2.4"]
["Slutligt bedömd sammanvägd lönsamhet",null,null,null,null,null,null,null,null,null,null,null,null,null,null,null,null,null,null,null,null,null,null,null,null,"Ej bedömt"]
["Slutlig sammanvägning bedömd av:",null,null,null,null,null,null,null,null,null,null,null,null,null,null,null,null,null,null,null,null,null,null,null,null,"Ej angett"]
[]
["Motivering:"]
["Kortfattad text som förs över till sammanfattningen (Motivering samhällsekonomi)",null,null,null,null,null,null,null,null,null,null,null,null,null,null,null,null,null,null,null,null,null,null,null,null,null,null,null,null,null,null,null,null,null,null,null,null,null,null,null,null,null,null,null,null,null,null,null,null,null,null,null,null,null,null,null,null,null,null,null,null,null,null,null,null,null,null,null,"Text som går till sammanfattningen"]
["Möjlighet att skriva mer text",null,null,null,null,null,null,null,null,null,null,null,null,null,null,null,null,null,null,null,null,null,null,null,null,null,null,null,null,null,null,null,null,null,null,null,null,null,null,null,null,null,null,null,null,null,null,null,null,null,null,null,null,null,null,null,null,null,null,null,null,null,null,null,null,null,null,null,"Kompletterande text. \n"]
[]
[]
[]
["Underlag till kostnadseffektivitetstal"]
[null,null,null,null,null,null,null,null,"Effekt prognosår 1",null,null,null,null,null,"Enhet"]
["Trafiksäkerhet D",null,null,null,null,null,null,null,null,null,null,null,null,null,"personer/år"]
["Trafiksäkerhet DAS",null,null,null,null,null,null,null,null,null,null,null,null,null,"personer/år"]
["Restid",null,null,null,null,null,null,null,{"$f":"'0.5. Importera data fr. verktyg'!AV23","v":-246.17999999999998},null,null,null,null,null,"ktim/år"]
["CO2",null,null,null,null,null,null,null,{"$f":"'0.5. Importera data fr. verktyg'!AV24","v":-9.4480000000000008E-2},null,null,null,null,null,"kton/år"]